Workbook

Sheet 説明書
C1: 交通事故損害計算ワークシート TRACALCU | G1: TRaffic Accident damages CALCUlator とらかるく | H1: ver4.1
C3: このワークシートは交通事故における損害額の算出にあたり、相談・調停等の場面で、迅速に計算を実行することを目標に開発されています。
C4: 主に、相談を受ける立場にある専門家向けに制作しているため、それ以外の方は専門家のアドバイスのもとに使用してください。
C5: 対象のタブをクリックするか、下のリンクから開いてください。画面はHD(1920x1080)以上の解像度を推奨します。
E7: ＊交通事故紛争処理センター使用書式
C8: 共通データ入力 | D8: 個別事案ごとの共通データを入力します。 | E8: 書式セット
E9: ＊ | F9: 物損
C10: 休業損害 | D10: 治療期間中の休業に関する損害の項目です。
E11: ＊ | F11: 傷害 | G11: ＊ | H11: 傷害既払
C12: 傷害慰謝料 | D12: 症状固定までに入通院したことによる慰謝料項目です
E13: ＊ | F13: 死亡 | G13: ＊ | H13: 死亡既払
C14: 逸失利益 | D14: 逸失利益の損害項目です。
C16: 後遺障害慰謝料 | D16: 症状固定後の損失に対する慰謝料項目です
C21: この表計算シートに関するご意見、お問い合わせは、
C22: 交通事故賠償額計算の表計算シート | 梅新東法律事務所 弁護士 山之内桂 WEB
C23: までお願いいたします。
C24: ©2015-2024 UHL software corporation.

Sheet 共通入力
A1: データ入力シート | C1: メニューに戻る | E1: 担当者名 | F1: 受付番号 | G1: 作成日 | J1: 等級 | K1: 性別 | L1: 学歴 | M1: 賃金表 | N1: 余命表 | O1: 余命データ
E2: ＫＹ | F2: 1 | G2: =TODAY() -> 2024-07-14 | J2: 非該当 | K2: 女 | L2: 全学歴 | M2: 賃セＲ５ | N2: 0 | O2: Ｒ４
A3: 申立人氏名 | B3: Ａ | J3: 14 | K3: 男 | L3: 中学 | M3: 賃セＲ４ | N3: 1 | O3: Ｒ３
A4: 生年月日 | B4: 1969-09-26 | C4: 作成日の年齢 | D4: =IF(YEAR(G2)-YEAR(B4)-1>106,"",DATEDIF(B4,G2,"Y")) -> 54 | J4: 13 | L4: 高校 | M4: 賃セＲ３ | N4: 2 | O4: Ｒ２
A5: 性別 | B5: 女 | J5: 12 | L5: 専門学校 | M5: 賃セＲ２ | N5: 3 | O5: Ｒ１
A6: 最終学歴 | B6: 全学歴 | J6: 11 | L6: 高専・短大 | M6: 賃セＲ１ | N6: 4 | O6: Ｈ３０
A7: 職業 | B7: 主婦 | J7: 10 | L7: 大学 | M7: 賃セＨ３０ | N7: 5 | O7: Ｈ２９
A8: 代理人名 | B8: ＡＤ | J8: 9 | L8: 大学院
A9: 事故日 | B9: 2022-10-06 | C9: 事故発生時年齢 | D9: =IF(B9<>"",IF(YEAR(B9)-YEAR(B4)-1>106,"",DATEDIF(B4,B9,"Y")),"") -> 53 | J9: 8 | L9: 不明
A10: 症状固定日 | B10: 2024-08-31 | C10: 症状固定時年齢 | D10: =IF(B10<>"",IF(YEAR(B10)-YEAR(B4)-1>106,"",DATEDIF(B4,B10,"Y")),"") -> 54 | J10: 7
A11: 死亡日 | B11: 2024-10-06 | C11: 死亡時年齢 | D11: =IF(B11<>"",IF(YEAR(B11)-YEAR(B4)-1>106,"",DATEDIF(B4,B11,"Y")),"") -> 55 | J11: 6
A12: 後遺障害等級 | B12: 14 | J12: 5
A13: 過失割合％ | B13: 0 | C13: ％ | J13: 4
A14: 傷害素因 | B14: 0 | C14: ％ | E14: 各計算表のデータは保存されません。 | J14: 3
A15: 後遺障害素因 | B15: 0 | C15: ％ | E15: 各シートをコピーして新しいブックに保存 | J15: 2
A16: 素因全体 | B16: 0 | C16: ％ | E16: してください。 | J16: 1
A17: 相手方(運転者) | B17: Ｂ
A18: 相手方(保有者) | B18: Ｃ
A19: 相手方(保険会社) | B19: Ｄ
A20: 相手方(代理人) | B20: ＢＤ
H21: TRUE
A22: 用法 | B22: この色部分は、選択式 | G22: 最終更新 | H22: 更新予定日
B23: この色部分のみ入力可 | F23: 賃金センサス
B24: この色部分は、自動入力 | F24: 簡易生命表

Sheet 休業損害
C1: 休業損害算定 | D1: 休業証明からの計算は下部欄 （ここをクリックで移動します） | G1: メニューに戻る
C2: 年齢 | D2: 性別 | E2: 学歴 | F2: 後遺障害等級 | G2: 14 | H2: 級
D3: 女 | E3: 全学歴 | F3: 喪失率 | G3: =VLOOKUP(IF(G2="",H3,G2),後遺障害慰謝料!A3:G17,7) -> 0.05
C4: =IF(C3>69,12,IF(C3>64,11,IF(C3>59,10,IF(C3>54,9,IF(C3>49,8,IF(C3>44,7,IF(C3>39,6,IF(C3>34,5,IF(C3>29,4,IF(C3>24,3,IF(C3>19,2,IF(C3>0,1,0))))))))))))+13*E4 -> 0 | D4: =IF(D3="男",22,IF(D3="女",34,10)) -> 34 | E4: =IF(D5="賃セＲ２",IF(E3="全学歴",0,IF(E3="中学",1,IF(E3="高校",2,IF(E3="専門学校",3,IF(E3="高専・短大",4,IF(E3="大学",5,IF(E3="大学院",6,7))))))),IF(E3="全学歴",0,IF(E3="中学",1,IF(OR(E3="不明",E3="高校"),2,IF(OR(E3="専門学校",E3="高専・短大"),4,5))))) -> 0
C5: 賃金センサス年度 | D5: 賃セＲ５ | E5: 産業計企業規模１０人以上
C6: 基準収入 | D6: =VLOOKUP(C4,INDIRECT(D5&"!A9:AJ112"),D4)*1000 -> 3996500 | E6: 円／年 | F6: 日額 | G6: =ROUNDDOWN(D6/365,0) -> 10949 | H6: 円 A
C7: 減額後割合 | F7: 減額後日額 | G7: =G6*D7 -> 0 | H7: 円（A×減額率）
C8: 手入力＞ | E8: 円／年 | F8: 適用日額 | G8: =IF(D8<>0,ROUNDDOWN(D8/365,0),IF(D7<>0,G7,G6)) -> 10949 | H8: 円
C10: ＜各期別平均計算＞ | F10: =(1+G3)/2 -> 0.525 | G10: ＜後遺障害に応じた中央値
C11: 計算始期 | D11: 終期 | E11: 日数 | F11: 平均休業率％ | G11: 金額
C12: 事故の日から | D12: 退院日まで | F12: 1 | G12: =$G$8*F12*E12 -> 0
C13: 退院翌日から | D13: 通院 症状重 | G13: =$G$8*F13*E13 -> 0 | H13: 通院時
D14: 通院 症状中 | G14: =$G$8*F14*E14 -> 0
D15: 通院 症状軽 | G15: =$G$8*F15*E15 -> 0
C16: 症状固定（死亡）日の | D16: 当日まで | G16: =$G$8*F16*E16 -> 0
D17: 延日数 | E17: =SUM(E12:E16) -> 0 | F17: 日 合計 | G17: =SUM(G12:G16) -> 0 | H17: 円
C19: ＜日数計算＞
C20: 開始日 | D20: 終了日 | E20: 期間日数
E21: =D21-C21+1 -> 1
C23: 用法 | D23: この色部分は、選択式 | E23: この色部分のみ入力可 | F23: この色部分は、自動入力
C25: 休業証明書計算 | D25: ＊計算は最終結果部分で四捨五入しています。
C27: 事故前稼働月 | D27: 月日数 | E27: 稼働日 | F27: 本給 | G27: 付加給
H30: 累計総支給
C31: 計 | D31: =SUM(D28:D30) -> 0 | E31: =SUM(E28:E30) -> 0 | F31: =SUM(F28:F30) -> 0 | G31: =SUM(G28:G30) -> 0 | H31: =SUM(F31:G31) -> 0
G33: ①総日平均 | H33: =ROUNDUP(H31/IF(D31=0,1,D31),0) -> 0
G34: ②稼働日平均 | H34: =ROUNDUP(H31/IF(E31=0,1,E31),0) -> 0
H35: 傷害表↓ 死亡表↓
C36: =H33 -> 0 | D36: ×（a延休業期間 | F36: 日） ＝ | G36: =ROUND(C36*E36,0) -> 0 | H36: ①ａ
C37: =H34 -> 0 | D37: ×（b実休業日 | F37: 日） ＝ | G37: =ROUND(C37*E37,0) -> 0 | H37: ②ｂ
C38: =H33 -> 0 | D38: ×（b実休業日 | F38: 日） ＝ | G38: =ROUND(C38*E38,0) -> 0 | H38: ①ｂ
C40: トップに戻る | H40: トップに戻る

Sheet 入通院慰謝料
B1: 入通院慰謝料算定 | E1: ＊月＝３０日として計算 | G1: メニューに戻る | I1: H30 基準表
B2: A 事故日 | C2: B 退院日 | D2: C 症状固定日 | E2: 入院日数 | F2: 入院簡易入力 | J2: Ⅰ | L2: Ⅱ | N2: Ⅰ修正 | P2: Ⅰ | R2: Ⅱ | T2: Ⅰ修正 | V2: 重症 | X2: 通常 | Z2: 通常修正 | AB2: 重症 | AD2: 通常
E3: =IF(F3<>"",F3,IF(C3<>"",C3-B3+1,0)) -> 0 | J3: 通 | K3: 入 | L3: 通 | M3: 入 | N3: 通 | O3: 入 | P3: 通 | Q3: 入 | R3: 通 | S3: 入 | T3: 通 | U3: 入 | V3: 通 | W3: 入 | X3: 通 | Y3: 入 | Z3: 通 | AA3: 入 | AB3: 通 | AC3: 入 | AD3: 通 | AE3: 入
B4: 実通院日数 | D4: 修正通院日数 | E4: 修正総治療日数 | F4: 延通院簡易入力 | G4: C-A | I4: 0 | J4: =K33 -> 0 | K4: =K33 -> 0 | L4: =K52 -> 0 | M4: =K52 -> 0 | N4: =AD33 -> 0 | O4: =AD33 -> 0 | P4: =K72 -> 0 | Q4: =K72 -> 0 | R4: =K91 -> 0 | S4: =K91 -> 0 | T4: =AD72 -> 0 | U4: =AD72 -> 0 | V4: =K111 -> 0 | W4: =K111 -> 0 | X4: =K130 -> 0 | Y4: =K130 -> 0 | Z4: =AD130 -> 0 | AA4: =AD130 -> 0 | AB4: =AC33 -> 0 | AC4: =AC33 -> 0 | AD4: =AC52 -> 0 | AE4: =AC52 -> 0
C5: 3.5 | D5: =IF(F5<>"",IF(B5*C5<F5,B5*C5,F5),IF(B5*C5<G5,B5*C5,G5)) -> 0 | E5: =D5+$E$3 -> 0 | G5: =IF(F5<>"",F5,D3-B3+1-E3) -> 1 | I5: 1 | J5: =K34 -> 29 | K5: =L33 -> 60 | L5: 16 | M5: =L52 -> 32 | N5: 20.3 | O5: =AE33 -> 42 | P5: 28 | Q5: 53 | R5: 19 | S5: =L91 -> 35 | T5: 36.4 | U5: =AE72 -> 68.9 | V5: 34 | W5: =L111 -> 64 | X5: 27 | Y5: =L130 -> 53 | Z5: 17.82 | AA5: =AE130 -> 34.98 | AB5: =AD152 -> 32.5 | AC5: =AE151 -> 65 | AD5: =K152 -> 25 | AE5: =L151 -> 50
C6: 3 | D6: =IF(F5<>"",IF(B5*C6<F5,B5*C6,F5),IF(B5*C6<G5,B5*C6,G5)) -> 0 | E6: =D6+$E$3 -> 0 | I6: 2 | J6: =K35 -> 57 | K6: =M33 -> 117 | L6: 31 | M6: =M52 -> 63 | N6: 39.9 | O6: =AF33 -> 81.9 | P6: 52 | Q6: =M72 -> 101 | R6: 36 | S6: =M91 -> 66 | T6: 67.6 | U6: =AF72 -> 131.3 | V6: 61 | W6: =M111 -> 121 | X6: 49 | Y6: =M130 -> 101 | Z6: 32.34 | AA6: =AF130 -> 66.66 | AB6: 61.1 | AC6: =AF151 -> 122.2 | AD6: 47 | AE6: =M151 -> 94
B7: ３．５倍 | C7: =ROUNDDOWN(E3/30,0) -> 0 | D7: =C7+1 -> 1 | E7: 総治療月 | F7: =ROUNDDOWN(D5/30,0) -> 0 | G7: =F7+1 -> 1 | I7: 3 | J7: 84 | K7: =N33 -> 171 | L7: 46 | M7: =N52 -> 92 | N7: 58.8 | O7: =AG33 -> 119.7 | P7: 73 | Q7: =N72 -> 145 | R7: 53 | S7: =N91 -> 92 | T7: 94.9 | U7: =AG72 -> 188.5 | V7: 90 | W7: =N111 -> 175 | X7: 72 | Y7: =N130 -> 146 | Z7: 47.52 | AA7: =AG130 -> 96.36 | AB7: 87.1 | AC7: =AG151 -> 176.8 | AD7: 67 | AE7: =N151 -> 136
C8: =E3-(C7*30) -> 0 | E8: 端数日 | F8: =D5-(F7*30) -> 0 | I8: 4 | J8: 105 | K8: =O33 -> 214 | L8: 57 | M8: =O52 -> 115 | N8: 73.5 | O8: =AH33 -> 149.8 | P8: 90 | Q8: =O72 -> 184 | R8: 67 | S8: =O91 -> 116 | T8: 117 | U8: =AH72 -> 239.2 | V8: 113 | W8: =O111 -> 223 | X8: 90 | Y8: =O130 -> 186 | Z8: 59.4 | AA8: =AH130 -> 122.76 | AB8: 109.2 | AC8: =AH151 -> 218.4 | AD8: 84 | AE8: =O151 -> 168
B9: ３倍 | E9: 総治療月 | F9: =ROUNDDOWN(D6/30,0) -> 0 | G9: =F9+1 -> 1 | I9: 5 | J9: 123 | K9: =P33 -> 252 | L9: 67 | M9: =P52 -> 135 | N9: 86.1 | O9: =AI33 -> 176.4 | P9: 105 | Q9: =P72 -> 217 | R9: 79 | S9: =P91 -> 135 | T9: 136.5 | U9: =AI72 -> 282.1 | V9: 135 | W9: =P111 -> 264 | X9: 108 | Y9: =P130 -> 220 | Z9: 71.28 | AA9: =AI130 -> 145.2 | AB9: 127.4 | AC9: =AI151 -> 256.1 | AD9: 98 | AE9: =P151 -> 197
E10: 端数日 | F10: =D6-(F9*30) -> 0 | I10: 6 | J10: 139 | K10: =Q33 -> 284 | L10: 76 | M10: =Q52 -> 153 | N10: 97.3 | O10: =AJ33 -> 198.8 | P10: 116 | Q10: =Q72 -> 244 | R10: 89 | S10: =Q91 -> 152 | T10: 150.8 | U10: =AJ72 -> 317.2 | V10: 150 | W10: =Q111 -> 300 | X10: 120 | Y10: 228 | Z10: 79.2 | AA10: =AJ130 -> 165 | AB10: 143 | AC10: =AJ151 -> 289.9 | AD10: 110 | AE10: =Q151 -> 223
B11: 通院率判定 | C11: =B5/G5 -> 0 | D11: =2/7 -> 0.2857142857 | E11: =IF(C11>=D11,"標準通院より多い","標準通院より少ない") -> 標準通院より少ない | I11: 7 | J11: 153 | K11: =R33 -> 312 | L11: 84 | M11: =R52 -> 168 | N11: 107.1 | O11: =AK33 -> 218.4 | P11: 124 | Q11: =R72 -> 266 | R11: 97 | S11: =R91 -> 165 | T11: 161.2 | U11: =AK72 -> 345.8 | V11: 160 | W11: =R111 -> 319 | X11: 128 | Y11: 236 | Z11: 84.48 | AA11: =AK130 -> 175.56 | AB11: 156 | AC11: =AK151 -> 318.5 | AD11: 120 | AE11: =R151 -> 245
C12: =C5-0.5 -> 3 | I12: 8 | J12: 165 | K12: =S33 -> 336 | L12: 90 | M12: =S52 -> 181 | N12: 115.5 | O12: =AL33 -> 235.2 | P12: 132 | Q12: =S72 -> 284 | R12: 103 | S12: =S91 -> 176 | T12: 171.6 | U12: =AL72 -> 369.2 | V12: 170 | W12: =S111 -> 332 | X12: 136 | Y12: 244 | Z12: 89.76 | AA12: =AL130 -> 182.82 | AB12: 167.7 | AC12: =AL151 -> 340.6 | AD12: 129 | AE12: =S151 -> 262
C13: 入院部分 | D13: 通院部分 | E13: 合計 | F13: 増減倍率の調整 | I13: 9 | J13: 174 | K13: =T33 -> 356 | L13: 95 | M13: =T52 -> 191 | N13: 121.8 | O13: =AM33 -> 249.2 | P13: 139 | Q13: =T72 -> 297 | R13: 109 | S13: =T91 -> 186 | T13: 180.7 | U13: =AM72 -> 386.1 | V13: 180 | W13: =T111 -> 343 | X13: 144 | Y13: 249 | Z13: 95.04 | AA13: =AM130 -> 188.76 | AB13: 178.1 | AC13: =AM151 -> 361.4 | AD13: 137 | AE13: =T151 -> 278
B14: 青い本 | I14: 10 | J14: 182 | K14: =U33 -> 372 | L14: 100 | M14: =U52 -> 200 | N14: 127.4 | O14: =AN33 -> 260.4 | P14: 145 | Q14: =U72 -> 306 | R14: 113 | S14: =U91 -> 195 | T14: 188.5 | U14: =AN72 -> 397.8 | V14: 190 | W14: =U111 -> 354 | X14: 152 | Y14: 254 | Z14: 100.32 | AA14: =AN130 -> 194.7 | AB14: 184.6 | AC14: =AN151 -> 377 | AD14: 142 | AE14: =U151 -> 290
B15: Ⅰ | C15: =(VLOOKUP($C$7,I2:AA28,3)+(VLOOKUP($D$7,I2:AA28,3)-VLOOKUP($C$7,I2:AA28,3))/30*$C$8) -> 0 | D15: =(VLOOKUP($F$7,$I$2:$AA$28,2)+(VLOOKUP($G$7,$I$2:$AA$28,2)-VLOOKUP($F$7,$I$2:$AA$28,2))/30*$F$8) -> 0 | E15: =ROUNDDOWN((C15+D15)*10000,0) -> 0 | I15: 11 | J15: 189 | K15: =V33 -> 385 | L15: 103 | M15: =V52 -> 207 | N15: 132.3 | O15: =AO33 -> 269.5 | P15: 150 | Q15: =V72 -> 314 | R15: 117 | S15: =V91 -> 204 | T15: 195 | U15: =AO72 -> 408.2 | V15: 200 | W15: =V111 -> 364 | X15: 160 | Y15: 259 | Z15: 105.6 | AA15: =AO130 -> 199.98 | AB15: 191.1 | AC15: =AO151 -> 392.6 | AD15: 147 | AE15: =V151 -> 302
B16: Ⅰ修正 | C16: =(VLOOKUP($C$7,I2:AA28,7)+(VLOOKUP($D$7,I2:AA28,7)-VLOOKUP($C$7,I2:AA28,7))/30*$C$8) -> 0 | D16: =(VLOOKUP($F$7,$I$2:$AA$28,6)+(VLOOKUP($G$7,$I$2:$AA$28,6)-VLOOKUP($F$7,$I$2:$AA$28,6))/30*$F$8) -> 0 | E16: =ROUNDDOWN((C16+D16)*10000,0) -> 0 | F16: 0.7 | G16: 0.7-1.2 | I16: 12 | J16: 194 | K16: =W33 -> 395 | L16: 106 | M16: =W52 -> 212 | N16: 135.8 | O16: =AP33 -> 276.5 | P16: 154 | Q16: =W72 -> 321 | R16: 119 | S16: =W91 -> 211 | T16: 200.2 | U16: =AP72 -> 417.3 | V16: 208 | W16: =W111 -> 370 | X16: 166 | Y16: 263 | Z16: 109.56 | AA16: =AP130 -> 203.28 | AB16: 197.6 | AC16: =AP151 -> 406.9 | AD16: 152 | AE16: =W151 -> 313
B17: Ⅱ | C17: =(VLOOKUP($C$7,I2:AA28,5)+(VLOOKUP($D$7,I2:AA28,5)-VLOOKUP($C$7,I2:AA28,5))/30*$C$8) -> 0 | D17: =(VLOOKUP($F$7,$I$2:$AA$28,4)+(VLOOKUP($G$7,$I$2:$AA$28,4)-VLOOKUP($F$7,$I$2:$AA$28,4))/30*$F$8) -> 0 | E17: =ROUNDDOWN((C17+D17)*10000,0) -> 0 | I17: 13 | J17: 198 | K17: =X33 -> 403 | L17: 108 | M17: =X52 -> 217 | N17: 138.6 | O17: =AQ33 -> 282.1 | P17: 158 | Q17: =X72 -> 328 | R17: 120 | S17: =X91 -> 218 | T17: 205.4 | U17: =AQ72 -> 426.4 | V17: 213 | W17: =X111 -> 374 | X17: 170 | Y17: 267 | Z17: 112.2 | AA17: =AQ130 -> 205.92 | AB17: 202.8 | AC17: =AQ151 -> 416 | AD17: 156 | AE17: =X151 -> 320
B18: 赤い本 | I18: 14 | J18: 201 | K18: =Y33 -> 408 | L18: 110 | M18: =Y52 -> 221 | N18: 140.7 | O18: =AR33 -> 285.6 | P18: 162 | Q18: =Y72 -> 334 | R18: 121 | S18: =Y91 -> 223 | T18: 210.6 | U18: =AR72 -> 434.2 | V18: 219 | W18: =Y111 -> 379 | X18: 175 | Y18: 271 | Z18: 115.5 | AA18: =AR130 -> 208.56 | AB18: 206.7 | AC18: =AR151 -> 422.5 | AD18: 159 | AE18: =Y151 -> 325
B19: Ⅰ修正 | C19: =(VLOOKUP($C$7,I2:AA28,13)+(VLOOKUP($D$7,I2:AA28,13)-VLOOKUP($C$7,I2:AA28,13))/30*$C$8) -> 0 | D19: =(VLOOKUP($F$9,$I$2:$AA$28,12)+(VLOOKUP($G$9,$I$2:$AA$28,12)-VLOOKUP($F$9,$I$2:$AA$28,12))/30*$F$10) -> 0 | E19: =ROUNDDOWN((C19+D19)*10000,0) -> 0 | F19: 1.3 | G19: 1-1.3 | I19: 15 | J19: 204 | K19: =Z33 -> 413 | L19: 112 | M19: =Z52 -> 225 | N19: 142.8 | O19: =AS33 -> 289.1 | P19: 164 | Q19: =Z72 -> 340 | R19: 122 | S19: =Z91 -> 228 | T19: 213.2 | U19: =AS72 -> 442 | V19: 225 | W19: =Z111 -> 383 | X19: 180 | Y19: 274 | Z19: 118.8 | AA19: =AS130 -> 210.54 | AB19: 209.3 | AC19: =AS151 -> 427.7 | AD19: 161 | AE19: =Z151 -> 329
B20: Ⅰ | C20: =(VLOOKUP($C$7,I2:AA28,9)+(VLOOKUP($D$7,I2:AA28,9)-VLOOKUP($C$7,I2:AA28,9))/30*$C$8) -> 0 | D20: =(VLOOKUP($F$9,$I$2:$AA$28,8)+(VLOOKUP($G$9,$I$2:$AA$28,8)-VLOOKUP($F$9,$I$2:$AA$28,8))/30*$F$10) -> 0 | E20: =ROUNDDOWN((C20+D20)*10000,0) -> 0 | I20: 16 | J20: =J19+$K$49 -> 207 | K20: =K19+$AA$33 -> 418 | L20: =L19+$K$68 -> 114 | M20: =M19+$AA$52 -> 229 | N20: =N19+$AD$49 -> 145.8 | O20: =O19+$AT$33 -> 294.1 | P20: =P19+$K$88 -> 166 | Q20: =Q19+$AA$72 -> 346 | R20: =R19+$K$107 -> 123 | S20: =S19+$AA$91 -> 233 | T20: =T19+$AD$88 -> 215.8 | U20: =U19+$AT$72 -> 449.8 | V20: =V19+$K$127 -> 228.1 | W20: =W19+$AA$111 -> 385.7 | X20: =X19+$K$146 -> 182.5 | Y20: 277 | Z20: =Z19+$AD$146 -> 120.45 | AA20: =AA19+$AT$130 -> 212.058 | AB20: =AD166+$AD$167 -> 211.9 | AC20: =AC19+$AT$151 -> 432.9 | AD20: =AD19+$K$167 -> 163 | AE20: =AE19+$AA$151 -> 333
B21: Ⅱ | C21: =(VLOOKUP($C$7,I2:AA28,11)+(VLOOKUP($D$7,I2:AA28,11)-VLOOKUP($C$7,I2:AA28,11))/30*$C$8) -> 0 | D21: =(VLOOKUP($F$9,$I$2:$AA$28,10)+(VLOOKUP($G$9,$I$2:$AA$28,10)-VLOOKUP($F$9,$I$2:$AA$28,10))/30*$F$10) -> 0 | E21: =ROUNDDOWN((C21+D21)*10000,0) -> 0 | I21: 17 | J21: 210 | K21: 423 | L21: 116 | M21: 233 | N21: 148.8 | O21: 299.1 | P21: 168 | Q21: 352 | R21: 124 | S21: 238 | T21: 218.4 | U21: 457.6 | V21: 231.2 | W21: 388.4 | X21: 185 | Y21: 281 | Z21: 122.1 | AA21: 213.576 | AB21: =AB20+$AD$167 -> 214.5 | AC21: 438.1 | AD21: 165 | AE21: 337
B22: 緑本 | I22: 18 | J22: 213 | K22: 428 | L22: 118 | M22: 237 | N22: 151.8 | O22: 304.1 | P22: 170 | Q22: 358 | R22: 125 | S22: 243 | T22: 221 | U22: 465.4 | V22: 234.3 | W22: 391.1 | X22: 187.5 | Y22: 284 | Z22: 123.75 | AA22: 215.094 | AB22: 217.1 | AC22: 443.3 | AD22: 167 | AE22: 341
B23: 重症 | C23: =(VLOOKUP($C$7,I2:AA28,15)+(VLOOKUP($D$7,I2:AA28,15)-VLOOKUP($C$7,I2:AA28,15))/30*$C$8) -> 0 | D23: =(VLOOKUP($F$7,$I$2:$AA$28,14)+(VLOOKUP($G$7,$I$2:$AA$28,14)-VLOOKUP($F$7,$I$2:$AA$28,14))/30*$F$8) -> 0 | E23: =ROUNDDOWN((C23+D23)*10000,0) -> 0 | I23: 19 | J23: 216 | K23: 433 | L23: 120 | M23: 241 | N23: 154.8 | O23: 309.1 | P23: 172 | Q23: 364 | R23: 126 | S23: 248 | T23: 223.6 | U23: 473.2 | V23: 237.4 | W23: 393.8 | X23: 190 | Y23: 287 | Z23: 125.4 | AA23: 216.612 | AB23: 219.7 | AC23: 448.5 | AD23: 169 | AE23: 345
B24: 通常 | C24: =(VLOOKUP($C$7,I2:AA28,17)+(VLOOKUP($D$7,I2:AA28,17)-VLOOKUP($C$7,I2:AA28,17))/30*$C$8) -> 0 | D24: =(VLOOKUP($F$7,$I$2:$AA$28,16)+(VLOOKUP($G$7,$I$2:$AA$28,16)-VLOOKUP($F$7,$I$2:$AA$28,16))/30*$F$8) -> 0 | E24: =ROUNDDOWN((C24+D24)*10000,0) -> 0 | I24: 20 | J24: 219 | K24: 438 | L24: 122 | M24: 245 | N24: 157.8 | O24: 314.1 | P24: 174 | Q24: 370 | R24: 127 | S24: 253 | T24: 226.2 | U24: 481 | V24: 240.5 | W24: 396.5 | X24: 192.5 | Y24: 289 | Z24: 127.05 | AA24: 218.13 | AB24: 222.3 | AC24: 453.7 | AD24: 171 | AE24: 349
B25: 通常修正 | C25: =(VLOOKUP($C$7,I2:AA28,19)+(VLOOKUP($D$7,I2:AA28,19)-VLOOKUP($C$7,I2:AA28,19))/30*$C$8) -> 0 | D25: =(VLOOKUP($F$7,$I$2:$AA$28,18)+(VLOOKUP($G$7,$I$2:$AA$28,18)-VLOOKUP($F$7,$I$2:$AA$28,18))/30*$F$8) -> 0 | E25: =ROUNDDOWN((C25+D25)*10000,0) -> 0 | F25: 0.66 | G25: 0.66-1.2 | I25: 21 | J25: 222 | K25: 443 | L25: 124 | M25: 249 | N25: 160.8 | O25: 319.1 | P25: 176 | Q25: 376 | R25: 128 | S25: 258 | T25: 228.8 | U25: 488.8 | V25: 243.6 | W25: 399.2 | X25: 195 | Y25: =Y24+$AA$130 -> 291.3 | Z25: 128.7 | AA25: 219.648 | AB25: 224.9 | AC25: 458.9 | AD25: 173 | AE25: 353
E26: =E24*2/3 -> 0 | F26: ３分の２ | I26: 22 | J26: 225 | K26: 448 | L26: 126 | M26: 253 | N26: 163.8 | O26: 324.1 | P26: 178 | Q26: 382 | R26: 129 | S26: 263 | T26: 231.4 | U26: 496.6 | V26: 246.7 | W26: 401.9 | X26: 197.5 | Y26: =Y25+$AA$130 -> 293.6 | Z26: 130.35 | AA26: 221.166 | AB26: 227.5 | AC26: 464.1 | AD26: 175 | AE26: 357
B27: 参考（日数計算は赤い本準拠） | I27: 23 | J27: 228 | K27: 453 | L27: 128 | M27: 257 | N27: 166.8 | O27: 329.1 | P27: 180 | Q27: 388 | R27: 130 | S27: 268 | T27: 234 | U27: 504.4 | V27: 249.8 | W27: 404.6 | X27: 200 | Y27: =Y26+$AA$130 -> 295.9 | Z27: 132 | AA27: 222.684 | AB27: 230.1 | AC27: 469.3 | AD27: 177 | AE27: 361
B28: 黄本 | I28: 24 | J28: 231 | K28: 458 | L28: 130 | M28: 261 | N28: 169.8 | O28: 334.1 | P28: 182 | Q28: 394 | R28: 131 | S28: 273 | T28: 236.6 | U28: 512.2 | V28: 252.9 | W28: 407.3 | X28: 202.5 | Y28: =Y27+$AA$130 -> 298.2 | Z28: 133.65 | AA28: 224.202 | AB28: 232.7 | AC28: 474.5 | AD28: 179 | AE28: 365
B29: 重症 | C29: =(VLOOKUP($C$7,I2:AE28,21)+(VLOOKUP($D$7,I2:AE28,21)-VLOOKUP($C$7,I2:AE28,21))/30*$C$8) -> 0 | D29: =(VLOOKUP($F$9,$I$2:$AE$28,20)+(VLOOKUP($G$9,$I$2:$AE$28,20)-VLOOKUP($F$9,$I$2:$AE$28,20))/30*$F$10) -> 0 | E29: =ROUNDDOWN((C29+D29)*10000,0) -> 0 | F29: 1.3 | G29: ・・-1.3
B30: 通常 | C30: =(VLOOKUP($C$7,I2:AE28,23)+(VLOOKUP($D$7,I2:AE28,23)-VLOOKUP($C$7,I2:AE28,23))/30*$C$8) -> 0 | D30: =(VLOOKUP($F$9,$I$2:$AE$28,22)+(VLOOKUP($G$9,$I$2:$AE$28,22)-VLOOKUP($F$9,$I$2:$AE$28,22))/30*$F$10) -> 0 | E30: =ROUNDDOWN((C30+D30)*10000,0) -> 0 | AE30: =F16 -> 0.7 | AF30: <1.2
B31: 用法 | J31: 別表Ⅰ（上限） | AC31: 別表Ⅰの増減
B32: この色部分は、選択式 | C32: この色部分のみ入力可 | D32: この色部分は、自動入力 | J32: 通院＼入院 | L32: １月 | M32: ２月 | N32: ３月 | O32: ４月 | P32: ５月 | Q32: ６月 | R32: ７月 | S32: ８月 | T32: ９月 | U32: １０月 | V32: １１月 | W32: １２月 | X32: １３月 | Y32: １４月 | Z32: １５月 | AC32: 通院＼入院 | AE32: １月 | AF32: ２月 | AG32: ３月 | AH32: ４月 | AI32: ５月 | AJ32: ６月 | AK32: ７月 | AL32: ８月 | AM32: ９月 | AN32: １０月 | AO32: １１月 | AP32: １２月 | AQ32: １３月 | AR32: １４月 | AS32: １５月
C33: この色部分は要注意入力可 | L33: 60 | M33: 117 | N33: 171 | O33: 214 | P33: 252 | Q33: 284 | R33: 312 | S33: 336 | T33: 356 | U33: 372 | V33: 385 | W33: 395 | X33: 403 | Y33: 408 | Z33: 413 | AA33: 5 | AE33: =L33*$AE$30 -> 42 | AF33: 81.9 | AG33: 119.7 | AH33: 149.8 | AI33: 176.4 | AJ33: 198.8 | AK33: 218.4 | AL33: 235.2 | AM33: 249.2 | AN33: 260.4 | AO33: 269.5 | AP33: 276.5 | AQ33: 282.1 | AR33: 285.6 | AS33: 289.1 | AT33: 5
J34: １月 | K34: 29 | L34: =L33+$K35-$K34 -> 88 | M34: =M33+$K36-$K35 -> 144 | N34: =N33+$K37-$K36 -> 192 | O34: =O33+$K38-$K37 -> 232 | P34: =P33+$K39-$K38 -> 268 | Q34: =Q33+$K40-$K39 -> 298 | R34: =R33+$K41-$K40 -> 324 | S34: =S33+$K42-$K41 -> 345 | T34: =T33+$K43-$K42 -> 364 | U34: =U33+$K44-$K43 -> 379 | V34: =V33+$K45-$K44 -> 390 | W34: =W33+$K46-$K45 -> 399 | X34: =X33+$K47-$K46 -> 406 | Y34: =Y33+$K48-$K47 -> 411 | Z34: =Z33+$K$49 -> 416 | AC34: １月 | AD34: =K34*$AE$30 -> 20.3 | AE34: 61.6 | AF34: 100.8 | AG34: 134.4 | AH34: 162.4 | AI34: 187.6 | AJ34: 208.6 | AK34: 226.8 | AL34: 241.5 | AM34: 254.8 | AN34: 265.3 | AO34: 273 | AP34: 279.3 | AQ34: 284.2 | AR34: 287.7 | AS34: 291.2
J35: ２月 | K35: 57 | L35: 115 | M35: 165 | N35: 210 | O35: 248 | P35: 282 | Q35: 310 | R35: 333 | S35: 353 | T35: 371 | U35: =U34+$K45-$K44 -> 384 | V35: =V34+$K46-$K45 -> 394 | W35: =W34+$K47-$K46 -> 402 | X35: =X34+$K48-$K47 -> 409 | Y35: =Y34+$K$49 -> 414 | Z35: 419 | AC35: ２月 | AD35: 39.9 | AE35: 80.5 | AF35: 115.5 | AG35: 147 | AH35: 173.6 | AI35: 197.4 | AJ35: 217 | AK35: 233.1 | AL35: 247.1 | AM35: 259.7 | AN35: 268.8 | AO35: 275.8 | AP35: 281.4 | AQ35: 286.3 | AR35: 289.8 | AS35: 293.3
J36: ３月 | K36: 84 | L36: 136 | M36: 183 | N36: 226 | O36: 262 | P36: 294 | Q36: 319 | R36: 341 | S36: 360 | T36: 376 | U36: =U35+$K46-$K45 -> 388 | V36: =V35+$K47-$K46 -> 397 | W36: =W35+$K48-$K47 -> 405 | X36: =X35+$K$49 -> 412 | Y36: 417 | Z36: 422 | AC36: ３月 | AD36: 58.8 | AE36: 95.2 | AF36: 128.1 | AG36: 158.2 | AH36: 183.4 | AI36: 205.8 | AJ36: 223.3 | AK36: 238.7 | AL36: 252 | AM36: 263.2 | AN36: 271.6 | AO36: 277.9 | AP36: 283.5 | AQ36: 288.4 | AR36: 291.9 | AS36: 295.4
J37: ４月 | K37: 105 | L37: 154 | M37: 199 | N37: 240 | O37: 274 | P37: 303 | Q37: 327 | R37: 348 | S37: 365 | T37: 380 | U37: =U36+$K47-$K46 -> 391 | V37: =V36+$K48-$K47 -> 400 | W37: =W36+$K$49 -> 408 | X37: 415 | Y37: 420 | Z37: 425 | AC37: ４月 | AD37: 73.5 | AE37: 107.8 | AF37: 139.3 | AG37: 168 | AH37: 191.8 | AI37: 212.1 | AJ37: 228.9 | AK37: 243.6 | AL37: 255.5 | AM37: 266 | AN37: 273.7 | AO37: 280 | AP37: 285.6 | AQ37: 290.5 | AR37: 294 | AS37: 297.5
J38: ５月 | K38: 123 | L38: 170 | M38: 213 | N38: 252 | O38: 283 | P38: 311 | Q38: 334 | R38: 353 | S38: 369 | T38: 383 | U38: =U37+$K48-$K47 -> 394 | V38: =V37+$K$49 -> 403 | W38: 411 | X38: 418 | Y38: 423 | Z38: 428 | AC38: ５月 | AD38: 86.1 | AE38: 119 | AF38: 149.1 | AG38: 176.4 | AH38: 198.1 | AI38: 217.7 | AJ38: 233.8 | AK38: 247.1 | AL38: 258.3 | AM38: 268.1 | AN38: 275.8 | AO38: 282.1 | AP38: 287.7 | AQ38: 292.6 | AR38: 296.1 | AS38: 299.6
J39: ６月 | K39: 139 | L39: 184 | M39: 225 | N39: 261 | O39: 291 | P39: 318 | Q39: 339 | R39: 357 | S39: 372 | T39: 386 | U39: =U38+$K$49 -> 397 | V39: 406 | W39: 414 | X39: 421 | Y39: 426 | Z39: 431 | AC39: ６月 | AD39: 97.3 | AE39: 128.8 | AF39: 157.5 | AG39: 182.7 | AH39: 203.7 | AI39: 222.6 | AJ39: 237.3 | AK39: 249.9 | AL39: 260.4 | AM39: 270.2 | AN39: 277.9 | AO39: 284.2 | AP39: 289.8 | AQ39: 294.7 | AR39: 298.2 | AS39: 301.7
J40: ７月 | K40: 153 | L40: 196 | M40: 234 | N40: 269 | O40: 298 | P40: 323 | Q40: 343 | R40: 360 | S40: 375 | T40: =T39+$K$49 -> 389 | U40: 400 | V40: 409 | W40: 417 | X40: 424 | Y40: 429 | Z40: 434 | AC40: ７月 | AD40: 107.1 | AE40: 137.2 | AF40: 163.8 | AG40: 188.3 | AH40: 208.6 | AI40: 226.1 | AJ40: 240.1 | AK40: 252 | AL40: 262.5 | AM40: 272.3 | AN40: 280 | AO40: 286.3 | AP40: 291.9 | AQ40: 296.8 | AR40: 300.3 | AS40: 303.8
J41: ８月 | K41: 165 | L41: 205 | M41: 242 | N41: 276 | O41: 303 | P41: 327 | Q41: 346 | R41: 363 | S41: =S40+$K$49 -> 378 | T41: 392 | U41: 403 | V41: 412 | W41: 420 | X41: 427 | Y41: 432 | Z41: 437 | AC41: ８月 | AD41: 115.5 | AE41: 143.5 | AF41: 169.4 | AG41: 193.2 | AH41: 212.1 | AI41: 228.9 | AJ41: 242.2 | AK41: 254.1 | AL41: 264.6 | AM41: 274.4 | AN41: 282.1 | AO41: 288.4 | AP41: 294 | AQ41: 298.9 | AR41: 302.4 | AS41: 305.9
J42: ９月 | K42: 174 | L42: 213 | M42: 249 | N42: 281 | O42: 307 | P42: 330 | Q42: 349 | R42: =R41+$K$49 -> 366 | S42: 381 | T42: 395 | U42: 406 | V42: 415 | W42: 423 | X42: 430 | Y42: 435 | Z42: 440 | AC42: ９月 | AD42: 121.8 | AE42: 149.1 | AF42: 174.3 | AG42: 196.7 | AH42: 214.9 | AI42: 231 | AJ42: 244.3 | AK42: 256.2 | AL42: 266.7 | AM42: 276.5 | AN42: 284.2 | AO42: 290.5 | AP42: 296.1 | AQ42: 301 | AR42: 304.5 | AS42: 308
J43: １０月 | K43: 182 | L43: 220 | M43: 254 | N43: 285 | O43: 310 | P43: 333 | Q43: =Q42+$K$49 -> 352 | R43: 369 | S43: 384 | T43: 398 | U43: 409 | V43: 418 | W43: 426 | X43: 433 | Y43: 438 | Z43: 443 | AC43: １０月 | AD43: 127.4 | AE43: 154 | AF43: 177.8 | AG43: 199.5 | AH43: 217 | AI43: 233.1 | AJ43: 246.4 | AK43: 258.3 | AL43: 268.8 | AM43: 278.6 | AN43: 286.3 | AO43: 292.6 | AP43: 298.2 | AQ43: 303.1 | AR43: 306.6 | AS43: 310.1
J44: １１月 | K44: 189 | L44: 225 | M44: 258 | N44: 288 | O44: 313 | P44: =P43+$K$49 -> 336 | Q44: 355 | R44: 372 | S44: 387 | T44: 401 | U44: 412 | V44: 421 | W44: 429 | X44: 436 | Y44: 441 | Z44: 446 | AC44: １１月 | AD44: 132.3 | AE44: 157.5 | AF44: 180.6 | AG44: 201.6 | AH44: 219.1 | AI44: 235.2 | AJ44: 248.5 | AK44: 260.4 | AL44: 270.9 | AM44: 280.7 | AN44: 288.4 | AO44: 294.7 | AP44: 300.3 | AQ44: 305.2 | AR44: 308.7 | AS44: 312.2
J45: １２月 | K45: 194 | L45: 229 | M45: 261 | N45: 291 | O45: =O44+$K$49 -> 316 | P45: =P44+$K$49 -> 339 | Q45: 358 | R45: 375 | S45: 390 | T45: 404 | U45: 415 | V45: 424 | W45: 432 | X45: 439 | Y45: 444 | Z45: 449 | AC45: １２月 | AD45: 135.8 | AE45: 160.3 | AF45: 182.7 | AG45: 203.7 | AH45: 221.2 | AI45: 237.3 | AJ45: 250.6 | AK45: 262.5 | AL45: 273 | AM45: 282.8 | AN45: 290.5 | AO45: 296.8 | AP45: 302.4 | AQ45: 307.3 | AR45: 310.8 | AS45: 314.3
J46: １３月 | K46: 198 | L46: 232 | M46: 264 | N46: =N45+$K$49 -> 294 | O46: =O45+$K$49 -> 319 | P46: =P45+$K$49 -> 342 | Q46: 361 | R46: 378 | S46: 393 | T46: 407 | U46: 418 | V46: 427 | W46: 435 | X46: 442 | Y46: 447 | Z46: 452 | AC46: １３月 | AD46: 138.6 | AE46: 162.4 | AF46: 184.8 | AG46: 205.8 | AH46: 223.3 | AI46: 239.4 | AJ46: 252.7 | AK46: 264.6 | AL46: 275.1 | AM46: 284.9 | AN46: 292.6 | AO46: 298.9 | AP46: 304.5 | AQ46: 309.4 | AR46: 312.9 | AS46: 316.4
J47: １４月 | K47: 201 | L47: 235 | M47: =M46+$K49 -> 267 | N47: =N46+$K$49 -> 297 | O47: =O46+$K$49 -> 322 | P47: =P46+$K$49 -> 345 | Q47: 364 | R47: 381 | S47: 396 | T47: 410 | U47: 421 | V47: 430 | W47: 438 | X47: 445 | Y47: 450 | Z47: 455 | AC47: １４月 | AD47: 140.7 | AE47: 164.5 | AF47: 186.9 | AG47: 207.9 | AH47: 225.4 | AI47: 241.5 | AJ47: 254.8 | AK47: 266.7 | AL47: 277.2 | AM47: 287 | AN47: 294.7 | AO47: 301 | AP47: 306.6 | AQ47: 311.5 | AR47: 315 | AS47: 318.5
J48: １５月 | K48: 204 | L48: =L47+$K49 -> 238 | M48: =M47+$K49 -> 270 | N48: =N47+$K$49 -> 300 | O48: =O47+$K$49 -> 325 | P48: =P47+$K$49 -> 348 | Q48: 367 | R48: 384 | S48: 399 | T48: 413 | U48: 424 | V48: 433 | W48: 441 | X48: 448 | Y48: 453 | Z48: 458 | AC48: １５月 | AD48: 142.8 | AE48: 166.6 | AF48: 189 | AG48: 210 | AH48: 227.5 | AI48: 243.6 | AJ48: 256.9 | AK48: 268.8 | AL48: 279.3 | AM48: 289.1 | AN48: 296.8 | AO48: 303.1 | AP48: 308.7 | AQ48: 313.6 | AR48: 317.1 | AS48: 320.6
K49: 3 | AD49: 3
J50: 別表Ⅱ（下限）
J51: 通院＼入院 | L51: １月 | M51: ２月 | N51: ３月 | O51: ４月 | P51: ５月 | Q51: ６月 | R51: ７月 | S51: ８月 | T51: ９月 | U51: １０月 | V51: １１月 | W51: １２月 | X51: １３月 | Y51: １４月 | Z51: １５月
L52: 32 | M52: 63 | N52: 92 | O52: 115 | P52: 135 | Q52: 153 | R52: 168 | S52: 181 | T52: 191 | U52: 200 | V52: 207 | W52: 212 | X52: 217 | Y52: 221 | Z52: 225 | AA52: 4
J53: １月 | K53: 16 | L53: =L52+$K54-$K53 -> 47 | M53: =M52+$K55-$K54 -> 78 | N53: =N52+$K56-$K55 -> 103 | O53: =O52+$K57-$K56 -> 125 | P53: =P52+$K58-$K57 -> 144 | Q53: =Q52+$K59-$K58 -> 161 | R53: =R52+$K60-$K59 -> 174 | S53: =S52+$K61-$K60 -> 186 | T53: =T52+$K62-$K61 -> 196 | U53: =U52+$K63-$K62 -> 203 | V53: =V52+$K64-$K63 -> 210 | W53: =W52+$K65-$K64 -> 214 | X53: =X52+$K66-$K65 -> 219 | Y53: =Y52+$K67-$K66 -> 223 | Z53: =Z52+$K$68 -> 227
J54: ２月 | K54: 31 | L54: 62 | M54: 89 | N54: 113 | O54: 134 | P54: 152 | Q54: 167 | R54: 179 | S54: 191 | T54: 199 | U54: =U53+$K64-$K63 -> 206 | V54: =V53+$K65-$K64 -> 212 | W54: =W53+$K66-$K65 -> 216 | X54: =X53+$K67-$K66 -> 221 | Y54: =Y53+$K$68 -> 225 | Z54: 229
J55: ３月 | K55: 46 | L55: 73 | M55: 99 | N55: 122 | O55: 142 | P55: 158 | Q55: 172 | R55: 184 | S55: 194 | T55: 202 | U55: =U54+$K65-$K64 -> 208 | V55: =V54+$K66-$K65 -> 214 | W55: =W54+$K67-$K66 -> 218 | X55: =X54+$K$68 -> 223 | Y55: 227 | Z55: 231
J56: ４月 | K56: 57 | L56: 83 | M56: 108 | N56: 130 | O56: 148 | P56: 163 | Q56: 177 | R56: 187 | S56: 197 | T56: 204 | U56: =U55+$K66-$K65 -> 210 | V56: =V55+$K67-$K66 -> 216 | W56: =W55+$K$68 -> 220 | X56: 225 | Y56: 229 | Z56: 233
J57: ５月 | K57: 67 | L57: 92 | M57: 116 | N57: 136 | O57: 153 | P57: 168 | Q57: 180 | R57: 190 | S57: 199 | T57: 206 | U57: =U56+$K67-$K66 -> 212 | V57: =V56+$K$68 -> 218 | W57: 222 | X57: 227 | Y57: 231 | Z57: 235
J58: ６月 | K58: 76 | L58: 100 | M58: 122 | N58: 141 | O58: 158 | P58: 171 | Q58: 183 | R58: 192 | S58: 201 | T58: 208 | U58: =U57+$K$68 -> 214 | V58: 220 | W58: 224 | X58: 229 | Y58: 233 | Z58: 237
J59: ７月 | K59: 84 | L59: 106 | M59: 127 | N59: 146 | O59: 161 | P59: 174 | Q59: 185 | R59: 194 | S59: 203 | T59: =T58+$K$68 -> 210 | U59: 216 | V59: 222 | W59: 226 | X59: 231 | Y59: 235 | Z59: 239
J60: ８月 | K60: 90 | L60: 111 | M60: 132 | N60: 149 | O60: 164 | P60: 176 | Q60: 187 | R60: 196 | S60: =S59+$K$68 -> 205 | T60: 212 | U60: 218 | V60: 224 | W60: 228 | X60: 233 | Y60: 237 | Z60: 241
J61: ９月 | K61: 95 | L61: 116 | M61: 135 | N61: 152 | O61: 166 | P61: 178 | Q61: 189 | R61: =R60+$K$68 -> 198 | S61: 207 | T61: 214 | U61: 220 | V61: 226 | W61: 230 | X61: 235 | Y61: 239 | Z61: 243
J62: １０月 | K62: 100 | L62: 119 | M62: 138 | N62: 154 | O62: 168 | P62: 180 | Q62: =Q61+$K$68 -> 191 | R62: 200 | S62: 209 | T62: 216 | U62: 222 | V62: 228 | W62: 232 | X62: 237 | Y62: 241 | Z62: 245
J63: １１月 | K63: 103 | L63: 122 | M63: 140 | N63: 156 | O63: 170 | P63: =P62+$K$68 -> 182 | Q63: 193 | R63: 202 | S63: 211 | T63: 218 | U63: 224 | V63: 230 | W63: 234 | X63: 239 | Y63: 243 | Z63: 247
J64: １２月 | K64: 106 | L64: 124 | M64: 142 | N64: 158 | O64: =O63+$K$68 -> 172 | P64: =P63+$K$68 -> 184 | Q64: 195 | R64: 204 | S64: 213 | T64: 220 | U64: 226 | V64: 232 | W64: 236 | X64: 241 | Y64: 245 | Z64: 249
J65: １３月 | K65: 108 | L65: 126 | M65: 144 | N65: =N64+$K$68 -> 160 | O65: =O64+$K$68 -> 174 | P65: =P64+$K$68 -> 186 | Q65: 197 | R65: 206 | S65: 215 | T65: 222 | U65: 228 | V65: 234 | W65: 238 | X65: 243 | Y65: 247 | Z65: 251
J66: １４月 | K66: 110 | L66: 128 | M66: =M65+$K68 -> 146 | N66: =N65+$K$68 -> 162 | O66: =O65+$K$68 -> 176 | P66: =P65+$K$68 -> 188 | Q66: 199 | R66: 208 | S66: 217 | T66: 224 | U66: 230 | V66: 236 | W66: 240 | X66: 245 | Y66: 249 | Z66: 253
J67: １５月 | K67: 112 | L67: =L66+$K68 -> 130 | M67: =M66+$K68 -> 148 | N67: =N66+$K$68 -> 164 | O67: =O66+$K$68 -> 178 | P67: =P66+$K$68 -> 190 | Q67: 201 | R67: 210 | S67: 219 | T67: 226 | U67: 232 | V67: 238 | W67: 242 | X67: 247 | Y67: 251 | Z67: 255
K68: 2
AE69: =F19 -> 1.3 | AF69: <1.3
J70: 別表Ⅰ | AC70: 別表Ⅰの増減
J71: 通院＼入院 | L71: １月 | M71: ２月 | N71: ３月 | O71: ４月 | P71: ５月 | Q71: ６月 | R71: ７月 | S71: ８月 | T71: ９月 | U71: １０月 | V71: １１月 | W71: １２月 | X71: １３月 | Y71: １４月 | Z71: １５月 | AC71: 通院＼入院 | AE71: １月 | AF71: ２月 | AG71: ３月 | AH71: ４月 | AI71: ５月 | AJ71: ６月 | AK71: ７月 | AL71: ８月 | AM71: ９月 | AN71: １０月 | AO71: １１月 | AP71: １２月 | AQ71: １３月 | AR71: １４月 | AS71: １５月
L72: 53 | M72: 101 | N72: 145 | O72: 184 | P72: 217 | Q72: 244 | R72: 266 | S72: 284 | T72: 297 | U72: 306 | V72: 314 | W72: 321 | X72: 328 | Y72: 334 | Z72: 340 | AA72: 6 | AE72: =L72*$AE$69 -> 68.9 | AF72: 131.3 | AG72: 188.5 | AH72: 239.2 | AI72: 282.1 | AJ72: 317.2 | AK72: 345.8 | AL72: 369.2 | AM72: 386.1 | AN72: 397.8 | AO72: 408.2 | AP72: 417.3 | AQ72: 426.4 | AR72: 434.2 | AS72: 442 | AT72: 7.8
J73: １月 | K73: 28 | L73: =L72+$K74-$K73 -> 77 | M73: =M72+$K75-$K74 -> 122 | N73: =N72+$K76-$K75 -> 162 | O73: =O72+$K77-$K76 -> 199 | P73: =P72+$K78-$K77 -> 228 | Q73: =Q72+$K79-$K78 -> 252 | R73: =R72+$K80-$K79 -> 274 | S73: =S72+$K81-$K80 -> 291 | T73: =T72+$K82-$K81 -> 303 | U73: =U72+$K83-$K82 -> 311 | V73: =V72+$K84-$K83 -> 318 | W73: =W72+$K85-$K84 -> 325 | X73: =X72+$K86-$K85 -> 332 | Y73: =Y72+$K87-$K86 -> 336 | Z73: =Z72+$K$88 -> 342 | AC73: １月 | AD73: =K73*$AE$69 -> 36.4 | AE73: 100.1 | AF73: 158.6 | AG73: 210.6 | AH73: 258.7 | AI73: 296.4 | AJ73: 327.6 | AK73: 356.2 | AL73: 378.3 | AM73: 393.9 | AN73: 404.3 | AO73: 413.4 | AP73: 422.5 | AQ73: 431.6 | AR73: 436.8 | AS73: 444.6
J74: ２月 | K74: 52 | L74: =L73+$K75-$K74 -> 98 | M74: =M73+$K76-$K75 -> 139 | N74: =N73+$K77-$K76 -> 177 | O74: =O73+$K78-$K77 -> 210 | P74: =P73+$K79-$K78 -> 236 | Q74: 260 | R74: 281 | S74: 297 | T74: 308 | U74: =U73+$K84-$K83 -> 315 | V74: =V73+$K85-$K84 -> 322 | W74: =W73+$K86-$K85 -> 329 | X74: =X73+$K87-$K86 -> 334 | Y74: =Y73+$K$88 -> 338 | Z74: 344 | AC74: ２月 | AD74: 67.6 | AE74: 127.4 | AF74: 180.7 | AG74: 230.1 | AH74: 273 | AI74: 306.8 | AJ74: 338 | AK74: 365.3 | AL74: 386.1 | AM74: 400.4 | AN74: 409.5 | AO74: 418.6 | AP74: 427.7 | AQ74: 434.2 | AR74: 439.4 | AS74: 447.2
J75: ３月 | K75: 73 | L75: 115 | M75: 154 | N75: 188 | O75: 218 | P75: 244 | Q75: 267 | R75: 287 | S75: 302 | T75: 312 | U75: =U74+$K85-$K84 -> 319 | V75: =V74+$K86-$K85 -> 326 | W75: =W74+$K87-$K86 -> 331 | X75: =X74+$K$88 -> 336 | Y75: 340 | Z75: 346 | AC75: ３月 | AD75: 94.9 | AE75: 149.5 | AF75: 200.2 | AG75: 244.4 | AH75: 283.4 | AI75: 317.2 | AJ75: 347.1 | AK75: 373.1 | AL75: 392.6 | AM75: 405.6 | AN75: 414.7 | AO75: 423.8 | AP75: 430.3 | AQ75: 436.8 | AR75: 442 | AS75: 449.8
J76: ４月 | K76: 90 | L76: 130 | M76: 165 | N76: 196 | O76: 226 | P76: 251 | Q76: 273 | R76: 292 | S76: 306 | T76: 316 | U76: =U75+$K86-$K85 -> 323 | V76: =V75+$K87-$K86 -> 328 | W76: =W75+$K$88 -> 333 | X76: 338 | Y76: 342 | Z76: 348 | AC76: ４月 | AD76: 117 | AE76: 169 | AF76: 214.5 | AG76: 254.8 | AH76: 293.8 | AI76: 326.3 | AJ76: 354.9 | AK76: 379.6 | AL76: 397.8 | AM76: 410.8 | AN76: 419.9 | AO76: 426.4 | AP76: 432.9 | AQ76: 439.4 | AR76: 444.6 | AS76: 452.4
J77: ５月 | K77: 105 | L77: 141 | M77: =M76+$K79-$K78 -> 173 | N77: 204 | O77: 233 | P77: 257 | Q77: 278 | R77: 296 | S77: 310 | T77: 320 | U77: =U76+$K87-$K86 -> 325 | V77: =V76+$K$88 -> 330 | W77: 335 | X77: 340 | Y77: 344 | Z77: 350 | AC77: ５月 | AD77: 136.5 | AE77: 183.3 | AF77: 224.9 | AG77: 265.2 | AH77: 302.9 | AI77: 334.1 | AJ77: 361.4 | AK77: 384.8 | AL77: 403 | AM77: 416 | AN77: 422.5 | AO77: 429 | AP77: 435.5 | AQ77: 442 | AR77: 447.2 | AS77: 455
J78: ６月 | K78: 116 | L78: 149 | M78: 181 | N78: 211 | O78: 239 | P78: 262 | Q78: 282 | R78: 300 | S78: 314 | T78: 322 | U78: =U77+$K$88 -> 327 | V78: 332 | W78: 337 | X78: 342 | Y78: 346 | Z78: 352 | AC78: ６月 | AD78: 150.8 | AE78: 193.7 | AF78: 235.3 | AG78: 274.3 | AH78: 310.7 | AI78: 340.6 | AJ78: 366.6 | AK78: 390 | AL78: 408.2 | AM78: 418.6 | AN78: 425.1 | AO78: 431.6 | AP78: 438.1 | AQ78: 444.6 | AR78: 449.8 | AS78: 457.6
J79: ７月 | K79: 124 | L79: 157 | M79: 188 | N79: 217 | O79: 244 | P79: 266 | Q79: 286 | R79: 304 | S79: 316 | T79: =T78+$K$88 -> 324 | U79: 329 | V79: 334 | W79: 339 | X79: 344 | Y79: 348 | Z79: 354 | AC79: ７月 | AD79: 161.2 | AE79: 204.1 | AF79: 244.4 | AG79: 282.1 | AH79: 317.2 | AI79: 345.8 | AJ79: 371.8 | AK79: 395.2 | AL79: 410.8 | AM79: 421.2 | AN79: 427.7 | AO79: 434.2 | AP79: 440.7 | AQ79: 447.2 | AR79: 452.4 | AS79: 460.2
J80: ８月 | K80: 132 | L80: 164 | M80: 194 | N80: 222 | O80: 248 | P80: 270 | Q80: 290 | R80: 306 | S80: =S79+$K$88 -> 318 | T80: 326 | U80: 331 | V80: 336 | W80: 341 | X80: 346 | Y80: 350 | Z80: 356 | AC80: ８月 | AD80: 171.6 | AE80: 213.2 | AF80: 252.2 | AG80: 288.6 | AH80: 322.4 | AI80: 351 | AJ80: 377 | AK80: 397.8 | AL80: 413.4 | AM80: 423.8 | AN80: 430.3 | AO80: 436.8 | AP80: 443.3 | AQ80: 449.8 | AR80: 455 | AS80: 462.8
J81: ９月 | K81: 139 | L81: 170 | M81: 199 | N81: 226 | O81: 252 | P81: 274 | Q81: 292 | R81: =R80+$K$88 -> 308 | S81: 320 | T81: 328 | U81: 333 | V81: 338 | W81: 343 | X81: 348 | Y81: 352 | Z81: 358 | AC81: ９月 | AD81: 180.7 | AE81: 221 | AF81: 258.7 | AG81: 293.8 | AH81: 327.6 | AI81: 356.2 | AJ81: 379.6 | AK81: 400.4 | AL81: 416 | AM81: 426.4 | AN81: 432.9 | AO81: 439.4 | AP81: 445.9 | AQ81: 452.4 | AR81: 457.6 | AS81: 465.4
J82: １０月 | K82: 145 | L82: 175 | M82: 203 | N82: 230 | O82: 256 | P82: 276 | Q82: =Q81+$K$88 -> 294 | R82: 310 | S82: 322 | T82: 330 | U82: 335 | V82: 340 | W82: 345 | X82: 350 | Y82: 354 | Z82: 360 | AC82: １０月 | AD82: 188.5 | AE82: 227.5 | AF82: 263.9 | AG82: 299 | AH82: 332.8 | AI82: 358.8 | AJ82: 382.2 | AK82: 403 | AL82: 418.6 | AM82: 429 | AN82: 435.5 | AO82: 442 | AP82: 448.5 | AQ82: 455 | AR82: 460.2 | AS82: 468
J83: １１月 | K83: 150 | L83: 179 | M83: 207 | N83: 234 | O83: 258 | P83: =P82+$K$88 -> 278 | Q83: 296 | R83: 312 | S83: 324 | T83: 332 | U83: 337 | V83: 342 | W83: 347 | X83: 352 | Y83: 356 | Z83: 362 | AC83: １１月 | AD83: 195 | AE83: 232.7 | AF83: 269.1 | AG83: 304.2 | AH83: 335.4 | AI83: 361.4 | AJ83: 384.8 | AK83: 405.6 | AL83: 421.2 | AM83: 431.6 | AN83: 438.1 | AO83: 444.6 | AP83: 451.1 | AQ83: 457.6 | AR83: 462.8 | AS83: 470.6
J84: １２月 | K84: 154 | L84: 183 | M84: 211 | N84: =N83+$K87-$K86 -> 236 | O84: =O83+$K$88 -> 260 | P84: =P83+$K$88 -> 280 | Q84: 298 | R84: 314 | S84: 326 | T84: 334 | U84: 339 | V84: 344 | W84: 349 | X84: 354 | Y84: 358 | Z84: 364 | AC84: １２月 | AD84: 200.2 | AE84: 237.9 | AF84: 274.3 | AG84: 306.8 | AH84: 338 | AI84: 364 | AJ84: 387.4 | AK84: 408.2 | AL84: 423.8 | AM84: 434.2 | AN84: 440.7 | AO84: 447.2 | AP84: 453.7 | AQ84: 460.2 | AR84: 465.4 | AS84: 473.2
J85: １３月 | K85: 158 | L85: 187 | M85: 213 | N85: =N84+$K$88 -> 238 | O85: =O84+$K$88 -> 262 | P85: =P84+$K$88 -> 282 | Q85: 300 | R85: 316 | S85: 328 | T85: 336 | U85: 341 | V85: 346 | W85: 351 | X85: 356 | Y85: 360 | Z85: 366 | AC85: １３月 | AD85: 205.4 | AE85: 243.1 | AF85: 276.9 | AG85: 309.4 | AH85: 340.6 | AI85: 366.6 | AJ85: 390 | AK85: 410.8 | AL85: 426.4 | AM85: 436.8 | AN85: 443.3 | AO85: 449.8 | AP85: 456.3 | AQ85: 462.8 | AR85: 468 | AS85: 475.8
J86: １４月 | K86: 162 | L86: 189 | M86: =M85+$K88 -> 215 | N86: =N85+$K$88 -> 240 | O86: =O85+$K$88 -> 264 | P86: =P85+$K$88 -> 284 | Q86: 302 | R86: 318 | S86: 330 | T86: 338 | U86: 343 | V86: 348 | W86: 353 | X86: 358 | Y86: 362 | Z86: 368 | AC86: １４月 | AD86: 210.6 | AE86: 245.7 | AF86: 279.5 | AG86: 312 | AH86: 343.2 | AI86: 369.2 | AJ86: 392.6 | AK86: 413.4 | AL86: 429 | AM86: 439.4 | AN86: 445.9 | AO86: 452.4 | AP86: 458.9 | AQ86: 465.4 | AR86: 470.6 | AS86: 478.4
J87: １５月 | K87: 164 | L87: =L86+$K88 -> 191 | M87: =M86+$K88 -> 217 | N87: =N86+$K$88 -> 242 | O87: =O86+$K$88 -> 266 | P87: =P86+$K$88 -> 286 | Q87: 304 | R87: 320 | S87: 332 | T87: 340 | U87: 345 | V87: 350 | W87: 355 | X87: 360 | Y87: 364 | Z87: 370 | AC87: １５月 | AD87: 213.2 | AE87: 248.3 | AF87: 282.1 | AG87: 314.6 | AH87: 345.8 | AI87: 371.8 | AJ87: 395.2 | AK87: 416 | AL87: 431.6 | AM87: 442 | AN87: 448.5 | AO87: 455 | AP87: 461.5 | AQ87: 468 | AR87: 473.2 | AS87: 481
K88: 2 | AD88: =K88*$AE$69 -> 2.6
J89: 別表Ⅱ
J90: 通院＼入院 | L90: １月 | M90: ２月 | N90: ３月 | O90: ４月 | P90: ５月 | Q90: ６月 | R90: ７月 | S90: ８月 | T90: ９月 | U90: １０月 | V90: １１月 | W90: １２月 | X90: １３月 | Y90: １４月 | Z90: １５月
L91: 35 | M91: 66 | N91: 92 | O91: 116 | P91: 135 | Q91: 152 | R91: 165 | S91: 176 | T91: 186 | U91: 195 | V91: 204 | W91: 211 | X91: 218 | Y91: 223 | Z91: 228 | AA91: 5
J92: １月 | K92: 19 | L92: =L91+$K93-$K92 -> 52 | M92: =M91+$K94-$K93 -> 83 | N92: =N91+$K95-$K94 -> 106 | O92: =O91+$K96-$K95 -> 128 | P92: =P91+$K97-$K96 -> 145 | Q92: =Q91+$K98-$K97 -> 160 | R92: =R91+$K99-$K98 -> 171 | S92: =S91+$K100-$K99 -> 182 | T92: =T91+$K101-$K100 -> 190 | U92: =U91+$K102-$K101 -> 199 | V92: =V91+$K103-$K102 -> 206 | W92: =W91+$K104-$K103 -> 212 | X92: =X91+$K105-$K104 -> 219 | Y92: =Y91+$K$107 -> 224 | Z92: 229
J93: ２月 | K93: 36 | L93: =L92+$K94-$K93 -> 69 | M93: =M92+$K95-$K94 -> 97 | N93: =N92+$K96-$K95 -> 118 | O93: =O92+$K97-$K96 -> 138 | P93: 153 | Q93: =Q92+$K99-$K98 -> 166 | R93: =R92+$K100-$K99 -> 177 | S93: 186 | T93: 194 | U93: =U92+$K103-$K102 -> 201 | V93: =V92+$K104-$K103 -> 207 | W93: =W92+$K105-$K104 -> 213 | X93: =X92+$K$107 -> 220 | Y93: 225 | Z93: 230
J94: ３月 | K94: 53 | L94: 83 | M94: 109 | N94: 128 | O94: 146 | P94: 159 | Q94: =Q93+$K100-$K99 -> 172 | R94: 181 | S94: 190 | T94: 196 | U94: =U93+$K104-$K103 -> 202 | V94: =V93+$K105-$K104 -> 208 | W94: =W93+$K106-$K105 -> 214 | X94: 221 | Y94: 226 | Z94: 231
J95: ４月 | K95: 67 | L95: 95 | M95: 119 | N95: 136 | O95: =O94+$K99-$K98 -> 152 | P95: 165 | Q95: 176 | R95: 185 | S95: 192 | T95: 197 | U95: =U94+$K105-$K104 -> 203 | V95: =V94+$K106-$K105 -> 209 | W95: =W94+$K$107 -> 215 | X95: 222 | Y95: 227 | Z95: 232
J96: ５月 | K96: 79 | L96: 105 | M96: 127 | N96: 142 | O96: 158 | P96: 169 | Q96: 180 | R96: 187 | S96: 193 | T96: 198 | U96: =U95+$K106-$K105 -> 204 | V96: =V95+$K$107 -> 210 | W96: 216 | X96: 223 | Y96: 228 | Z96: 233
J97: ６月 | K97: 89 | L97: 113 | M97: 133 | N97: 148 | O97: 162 | P97: 173 | Q97: 182 | R97: 188 | S97: 194 | T97: 199 | U97: =U96+$K$107 -> 205 | V97: 211 | W97: 217 | X97: 224 | Y97: 229 | Z97: 234
J98: ７月 | K98: 97 | L98: 119 | M98: 139 | N98: 152 | O98: 166 | P98: 175 | Q98: 183 | R98: 189 | S98: 195 | T98: =T97+$K$107 -> 200 | U98: 206 | V98: 212 | W98: 218 | X98: 225 | Y98: 230 | Z98: 235
J99: ８月 | K99: 103 | L99: 125 | M99: 143 | N99: 156 | O99: 168 | P99: 176 | Q99: 184 | R99: 190 | S99: =S98+$K$107 -> 196 | T99: 201 | U99: 207 | V99: 213 | W99: 219 | X99: 226 | Y99: 231 | Z99: 236
J100: ９月 | K100: 109 | L100: 129 | M100: 147 | N100: 158 | O100: 169 | P100: 177 | Q100: 185 | R100: =R99+$K$107 -> 191 | S100: 197 | T100: 202 | U100: 208 | V100: 214 | W100: 220 | X100: 227 | Y100: 232 | Z100: 237
J101: １０月 | K101: 113 | L101: 133 | M101: 149 | N101: =N100+$K104-$K103 -> 159 | O101: 170 | P101: 178 | Q101: =Q100+$K$107 -> 186 | R101: 192 | S101: 198 | T101: 203 | U101: 209 | V101: 215 | W101: 221 | X101: 228 | Y101: 233 | Z101: 238
J102: １１月 | K102: 117 | L102: 135 | M102: 150 | N102: 160 | O102: 171 | P102: =P101+$K$107 -> 179 | Q102: 187 | R102: 193 | S102: 199 | T102: 204 | U102: 210 | V102: 216 | W102: 222 | X102: 229 | Y102: 234 | Z102: 239
J103: １２月 | K103: 119 | L103: 136 | M103: 151 | N103: 161 | O103: =O102+$K$107 -> 172 | P103: =P102+$K$107 -> 180 | Q103: 188 | R103: 194 | S103: 200 | T103: 205 | U103: 211 | V103: 217 | W103: 223 | X103: 230 | Y103: 235 | Z103: 240
J104: １３月 | K104: 120 | L104: 137 | M104: 152 | N104: =N103+$K$107 -> 162 | O104: =O103+$K$107 -> 173 | P104: =P103+$K$107 -> 181 | Q104: 189 | R104: 195 | S104: 201 | T104: 206 | U104: 212 | V104: 218 | W104: 224 | X104: 231 | Y104: 236 | Z104: 241
J105: １４月 | K105: 121 | L105: 138 | M105: =M104+$K$107 -> 153 | N105: =N104+$K$107 -> 163 | O105: =O104+$K$107 -> 174 | P105: =P104+$K$107 -> 182 | Q105: 190 | R105: 196 | S105: 202 | T105: 207 | U105: 213 | V105: 219 | W105: 225 | X105: 232 | Y105: 237 | Z105: 242
J106: １５月 | K106: 122 | L106: =L105+$K107 -> 139 | M106: =M105+$K$107 -> 154 | N106: =N105+$K$107 -> 164 | O106: =O105+$K$107 -> 175 | P106: =P105+$K$107 -> 183 | Q106: 191 | R106: 197 | S106: 203 | T106: 208 | U106: 214 | V106: 220 | W106: 226 | X106: 233 | Y106: 238 | Z106: 243
K107: 1
J109: 別表（重症）
J110: 通院＼入院 | L110: １月 | M110: ２月 | N110: ３月 | O110: ４月 | P110: ５月 | Q110: ６月 | R110: ７月 | S110: ８月 | T110: ９月 | U110: １０月 | V110: １１月 | W110: １２月 | X110: １３月 | Y110: １４月 | Z110: １５月
L111: 64 | M111: 121 | N111: 175 | O111: 223 | P111: 264 | Q111: 300 | R111: 319 | S111: 332 | T111: 343 | U111: 354 | V111: 364 | W111: 370 | X111: 374 | Y111: 379 | Z111: 383 | AA111: 2.7
J112: １月 | K112: 34 | L112: =L111+$K113-$K112+4 -> 95 | M112: =M111+$K114-$K113+1 -> 151 | N112: =N111+$K115-$K114+7 -> 205 | O112: =O111+$K116-$K115+6 -> 251 | P112: =P111+$K117-$K116+6 -> 285 | Q112: =Q111+$K118-$K117+9 -> 319 | R112: =R111+$K119-$K118+9 -> 338 | S112: =S111+$K120-$K119+9 -> 351 | T112: =T111+$K121-$K120+11 -> 364 | U112: =U111+$K121-$K120+9 -> 373 | V112: =V111+$K121-$K120+9 -> 383 | W112: =W111+$K121-$K120+8 -> 388 | X112: =X111+$K121-$K120+9 -> 393 | Y112: =Y111+$K121-$K120+9 -> 398 | Z112: =Z111+$K121-$K120+10 -> 403
J113: ２月 | K113: 61 | L113: =L112+$K114-$K113 -> 124 | M113: =M112+$K115-$K114+2 -> 176 | N113: =N112+$K116-$K115-1 -> 226 | O113: =O112+$K117-$K116-5 -> 261 | P113: =P112+$K118-$K117 -> 295 | Q113: =Q112+$K119-$K118-5 -> 324 | R113: =R112+$K120-$K119-5 -> 343 | S113: =S112+$K121-$K120-3 -> 358 | T113: =T112+$K122-$K121-7 -> 367 | U113: =U112+$K122-$K121-7 -> 376 | V113: =V112+$K122-$K121-8 -> 385 | W113: =W112+$K122-$K121-8 -> 390 | X113: =X112+$K122-$K121-7 -> 396 | Y113: =Y112+$K122-$K121-8 -> 400 | Z113: =Z112+$K122-$K121-8 -> 405
J114: ３月 | K114: 90 | L114: =L113+$K115-$K114+2 -> 149 | M114: =M113+$K116-$K115+1 -> 199 | N114: =N113+$K117-$K116 -> 241 | O114: =O113+$K118-$K117 -> 271 | P114: 305 | Q114: =Q113+$K120-$K119-5 -> 329 | R114: =R113+$K121-$K120-5 -> 348 | S114: =S113+$K122-$K121-5 -> 363 | T114: =T113+$K123-$K122-2 -> 373 | U114: =U113+$K123-$K122-4 -> 380 | V114: =V113+$K123-$K122-4 -> 389 | W114: =W113+$K123-$K122-5 -> 393 | X114: =X113+$K123-$K122-5 -> 399 | Y114: =Y113+$K123-$K122-4 -> 404 | Z114: =Z113+$K123-$K122-5 -> 408
J115: ４月 | K115: 113 | L115: =L114+$K116-$K115-2 -> 169 | M115: =M114+$K117-$K116-8 -> 206 | N115: =N114+$K118-$K117-2 -> 249 | O115: =O114+$K119-$K118-1 -> 280 | P115: =P114+$K120-$K119-4 -> 311 | Q115: =Q114+$K121-$K120-5 -> 334 | R115: =R114+$K122-$K121-5 -> 353 | S115: =S114+$K123-$K122-3 -> 368 | T115: =T114+$K124-$K123-2 -> 376 | U115: =U114+$K124-$K123-2 -> 383 | V115: =V114+$K124-$K123-3 -> 391 | W115: =W114+$K124-$K123-2 -> 396 | X115: =X114+$K124-$K123-1 -> 403 | Y115: =Y114+$K124-$K123-3 -> 406 | Z115: =Z114+$K124-$K123-2 -> 411
J116: ５月 | K116: 135 | L116: =L115+$K117-$K116-3 -> 181 | M116: =M115+$K118-$K117+3 -> 219 | N116: 259 | O116: =O115+$K120-$K119-2 -> 288 | P116: =P115+$K121-$K120-3 -> 318 | Q116: =Q115+$K122-$K121-6 -> 338 | R116: =R115+$K123-$K122-3 -> 358 | S116: =S115+$K124-$K123 -> 373 | T116: =T115+$K125-$K124-2 -> 380 | U116: =U115+$K125-$K124-4 -> 385 | V116: =V115+$K125-$K124-2 -> 395 | W116: =W115+$K125-$K124-3 -> 399 | X116: =X115+$K125-$K124-4 -> 405 | Y116: =Y115+$K125-$K124-2 -> 410 | Z116: =Z115+$K125-$K124-3 -> 414
J117: ６月 | K117: 150 | L117: =L116+$K118-$K117 -> 191 | M117: =M116+$K119-$K118 -> 229 | N117: =N116+$K120-$K119-3 -> 266 | O117: =O116+$K121-$K120-3 -> 295 | P117: =P116+$K122-$K121-4 -> 324 | Q117: =Q116+$K123-$K122-2 -> 344 | R117: =R116+$K124-$K123 -> 363 | S117: =S116+$K125-$K124-4 -> 375 | T117: =T116+$K126-$K125-3 -> 383 | U117: =U116+$K126-$K125-2 -> 389 | V117: =V116+$K126-$K125-3 -> 398 | W117: =W116+$K126-$K125-2 -> 403 | X117: =X116+$K126-$K125-3 -> 408 | Y117: =Y116+$K126-$K125-3 -> 413 | Z117: =Z116+$K126-$K125-2 -> 418
J118: ７月 | K118: 160 | L118: =L117+$K119-$K118 -> 201 | M118: =M117+$K120-$K119+2 -> 241 | N118: =N117+$K121-$K120-5 -> 271 | O118: =O117+$K122-$K121-2 -> 303 | P118: =P117+$K123-$K122-3 -> 329 | Q118: =Q117+$K124-$K123+1 -> 350 | R118: =R117+$K125-$K124-1 -> 368 | S118: =S117+$K126-$K125-3 -> 378 | T118: =T117+$K$107+1 -> 385 | U118: =U117+$K$107+1 -> 391 | V118: =V117+$K$107+1 -> 400 | W118: =W117+$K$107+1 -> 405 | X118: =X117+$K$107+2 -> 411 | Y118: =Y117+$K$107+1 -> 415 | Z118: =Z117+$K$107+1 -> 420
J119: ８月 | K119: 170 | L119: =L118+$K120-$K119 -> 211 | M119: =M118+$K121-$K120-3 -> 248 | N119: =N118+$K122-$K121-1 -> 280 | O119: =O118+$K123-$K122-1 -> 310 | P119: 334 | Q119: =Q118+$K125-$K124-1 -> 355 | R119: =R118+$K126-$K125-1 -> 373 | S119: =S118+$K$107+2 -> 381 | T119: =T118+$K$107+3 -> 389 | U119: =U118+$K$107+3 -> 395 | V119: =V118+$K$107+3 -> 404 | W119: =W118+$K$107+2 -> 408 | X119: =X118+$K$107+2 -> 414 | Y119: =Y118+$K$107+3 -> 419 | Z119: 423
J120: ９月 | K120: 180 | L120: =L119+$K121-$K120-1 -> 220 | M120: =M119+$K122-$K121-3 -> 255 | N120: =N119+$K123-$K122+2 -> 290 | O120: =O119+$K124-$K123+3 -> 318 | P120: =P119+$K125-$K124-1 -> 339 | Q120: =Q119+$K126-$K125-1 -> 360 | R120: =R119+$K$107+2 -> 376 | S120: =S119+$K$107+2 -> 384 | T120: =T119+$K$107+1 -> 391 | U120: =U119+$K$107+2 -> 398 | V120: =V119+$K$107+1 -> 406 | W120: =W119+$K$107+2 -> 411 | X120: =X119+$K$107+3 -> 418 | Y120: =Y119+$K$107+1 -> 421 | Z120: 426
J121: １０月 | K121: 190 | L121: =L120+$K122-$K121-2 -> 228 | M121: =M120+$K123-$K122 -> 263 | N121: 295 | O121: =O120+$K125-$K124+1 -> 325 | P121: =P120+$K126-$K125-2 -> 343 | Q121: =Q120+$K$107+4 -> 365 | R121: =R120+$K$107+3 -> 380 | S121: =S120+$K$107+3 -> 388 | T121: =T120+$K$107+3 -> 395 | U121: =U120+$K$107+1 -> 400 | V121: =V120+$K$107+3 -> 410 | W121: =W120+$K$107+2 -> 414 | X121: =X120+$K$107+1 -> 420 | Y121: =Y120+$K$107+3 -> 425 | Z121: 429
J122: １１月 | K122: 200 | L122: =L121+$K123-$K122-1 -> 235 | M122: =M121+$K124-$K123+2 -> 270 | N122: 301 | O122: =O121+$K126-$K125-1 -> 330 | P122: =P121+$K$107+2 -> 346 | Q122: =Q121+$K$107+2 -> 368 | R122: =R121+$K$107+2 -> 383 | S122: =S121+$K$107+1 -> 390 | T122: =T121+$K$107+2 -> 398 | U122: =U121+$K$107+3 -> 404 | V122: =V121+$K$107+2 -> 413 | W122: =W121+$K$107+3 -> 418 | X122: =X121+$K$107+2 -> 423 | Y122: =Y121+$K$107+2 -> 428 | Z122: =Z121+$K$107+3 -> 433
J123: １２月 | K123: 208 | L123: =L122+$K124-$K123+3 -> 243 | M123: =M122+$K125-$K124-1 -> 275 | N123: =N122+$K126-$K125+1 -> 308 | O123: =O122+$K$107+4 -> 335 | P123: =P122+$K$107+4 -> 351 | Q123: =Q122+$K$107+1 -> 370 | R123: =R122+$K$107+1 -> 385 | S123: =S122+$K$107+2 -> 393 | T123: =T122+$K$107+1 -> 400 | U123: =U122+$K$107+1 -> 406 | V123: =V122+$K$107+1 -> 415 | W123: =W122+$K$107+1 -> 420 | X123: =X122+$K$107+2 -> 426 | Y123: =Y122+$K$107+1 -> 430 | Z123: =Z122+$K$107+1 -> 435
J124: １３月 | K124: 213 | L124: =L123+$K125-$K124 -> 249 | M124: =M123+$K126-$K125-1 -> 280 | N124: =N123+$K$107+4 -> 313 | O124: =O123+$K$107+3 -> 339 | P124: =P123+$K$107+3 -> 355 | Q124: =Q123+$K$107+3 -> 374 | R124: =R123+$K$107+3 -> 389 | S124: =S123+$K$107+2 -> 396 | T124: =T123+$K$107+3 -> 404 | U124: =U123+$K$107+3 -> 410 | V124: =V123+$K$107+3 -> 419 | W124: =W123+$K$107+2 -> 423 | X124: =X123+$K$107+2 -> 429 | Y124: =Y123+$K$107+3 -> 434 | Z124: 438
J125: １４月 | K125: 219 | L125: =L124+$K126-$K125-1 -> 254 | M125: =M124+$K$107+4 -> 285 | N125: =N124+$K$107+2 -> 316 | O125: =O124+$K$107+4 -> 344 | P125: =P124+$K$107+3 -> 359 | Q125: =Q124+$K$107+1 -> 376 | R125: =R124+$K$107+1 -> 391 | S125: =S124+$K$107+2 -> 399 | T125: =T124+$K$107+1 -> 406 | U125: =U124+$K$107+2 -> 413 | V125: =V124+$K$107+1 -> 421 | W125: =W124+$K$107+2 -> 426 | X125: =X124+$K$107+3 -> 433 | Y125: =Y124+$K$107+1 -> 436 | Z125: 441
J126: １５月 | K126: 225 | L126: =L125+$K127+0.9 -> 258 | M126: =M125+$K$107+4 -> 290 | N126: =N125+$K$107+4 -> 321 | O126: =O125+$K$107+1 -> 346 | P126: =P125+$K$107+1 -> 361 | Q126: =Q125+$K$107+3 -> 380 | R126: =R125+$K$107+3 -> 395 | S126: =S125+$K$107+3 -> 403 | T126: =T125+$K$107+3 -> 410 | U126: =U125+$K$107+1 -> 415 | V126: =V125+$K$107+3 -> 425 | W126: =W125+$K$107+2 -> 429 | X126: =X125+$K$107+1 -> 435 | Y126: =Y125+$K$107+3 -> 440 | Z126: 444
K127: 3.1 | AE127: =F25 -> 0.66 | AF127: <1.2 | AG127: 他覚所見のない神経症状は2/3
J128: 別表（通常） | AC128: 別表（通常）の増減
J129: 通院＼入院 | L129: １月 | M129: ２月 | N129: ３月 | O129: ４月 | P129: ５月 | Q129: ６月 | R129: ７月 | S129: ８月 | T129: ９月 | U129: １０月 | V129: １１月 | W129: １２月 | X129: １３月 | Y129: １４月 | Z129: １５月 | AC129: 通院＼入院 | AE129: １月 | AF129: ２月 | AG129: ３月 | AH129: ４月 | AI129: ５月 | AJ129: ６月 | AK129: ７月 | AL129: ８月 | AM129: ９月 | AN129: １０月 | AO129: １１月 | AP129: １２月 | AQ129: １３月 | AR129: １４月 | AS129: １５月
L130: 53 | M130: 101 | N130: 146 | O130: 186 | P130: 220 | Q130: 250 | R130: 266 | S130: 277 | T130: 286 | U130: 295 | V130: 303 | W130: 308 | X130: 312 | Y130: 316 | Z130: 319 | AA130: 2.3 | AE130: =L130*$AE$127 -> 34.98 | AF130: =M130*$AE$127 -> 66.66 | AG130: 96.36 | AH130: 122.76 | AI130: 145.2 | AJ130: 165 | AK130: 175.56 | AL130: 182.82 | AM130: 188.76 | AN130: 194.7 | AO130: 199.98 | AP130: 203.28 | AQ130: 205.92 | AR130: 208.56 | AS130: 210.54 | AT130: 1.518
J131: １月 | K131: 27 | L131: =L130+$K132-$K131+1 -> 76 | M131: =M130+$K134-$K133+2 -> 121 | N131: =N130+$K134-$K133 -> 164 | O131: =O130+$K135-$K134-3 -> 201 | P131: =P130+$K136-$K135-4 -> 228 | Q131: =Q130+$K137-$K136-3 -> 255 | R131: =R130+$K138-$K137-4 -> 270 | S131: =S130+$K139-$K138-3 -> 282 | T131: =T130+$K140-$K139-3 -> 291 | U131: =U130+$K141-$K140-5 -> 298 | V131: =V130+$K142-$K141-3 -> 306 | W131: =W130+$K143-$K142 -> 312 | X131: =X130+$K144-$K143 -> 317 | Y131: =Y130+$K$107+1 -> 318 | Z131: =Z130+$K$107+2 -> 322 | AC131: １月 | AD131: =K131*$AE$127 -> 17.82 | AE131: =L131*$AE$127 -> 50.16 | AF131: 79.86 | AG131: 108.24 | AH131: 132.66 | AI131: 150.48 | AJ131: 168.3 | AK131: 178.2 | AL131: 186.12 | AM131: 192.06 | AN131: 196.68 | AO131: 201.96 | AP131: 205.92 | AQ131: 209.22 | AR131: 209.88 | AS131: 212.52
J132: ２月 | K132: 49 | L132: =L131+$K133-$K132 -> 99 | M132: =M131+$K135-$K134+2 -> 141 | N132: =N131+$K135-$K134-1 -> 181 | O132: =O131+$K136-$K135-4 -> 209 | P132: =P131+$K137-$K136 -> 236 | Q132: =Q131+$K138-$K137-4 -> 259 | R132: =R131+$K139-$K138-4 -> 274 | S132: =S131+$K140-$K139-4 -> 286 | T132: =T131+$K141-$K140-5 -> 294 | U132: =U131+$K142-$K141-3 -> 301 | V132: =V131+$K143-$K142-2 -> 308 | W132: =W131+$K144-$K143 -> 317 | X132: =X131+$K$107 -> 318 | Y132: =Y131+$K$107+1 -> 320 | Z132: =Z131+$K$107+1 -> 324 | AC132: ２月 | AD132: 32.34 | AE132: 65.34 | AF132: 93.06 | AG132: 119.46 | AH132: 137.94 | AI132: 155.76 | AJ132: 170.94 | AK132: 180.84 | AL132: 188.76 | AM132: 194.04 | AN132: 198.66 | AO132: 203.28 | AP132: 209.22 | AQ132: 209.88 | AR132: 211.2 | AS132: 213.84
J133: ３月 | K133: 72 | L133: =L132+$K134-$K133+2 -> 119 | M133: =M132+$K136-$K135+6 -> 159 | N133: =N132+$K136-$K135 -> 193 | O133: =O132+$K137-$K136 -> 217 | P133: =P132+$K138-$K137 -> 244 | Q133: =Q132+$K139-$K138-4 -> 263 | R133: =R132+$K140-$K139-4 -> 278 | S133: =S132+$K141-$K140-4 -> 290 | T133: =T132+$K142-$K141-2 -> 298 | U133: =U132+$K143-$K142-1 -> 304 | V133: =V132+$K144-$K143-2 -> 311 | W133: =W132+$K145-$K144 -> 322 | X133: 319 | Y133: =Y132+$K$107+2 -> 323 | Z133: =Z132+$K$107+1 -> 326 | AC133: ３月 | AD133: 47.52 | AE133: 78.54 | AF133: 104.94 | AG133: 127.38 | AH133: 143.22 | AI133: 161.04 | AJ133: 173.58 | AK133: 183.48 | AL133: 191.4 | AM133: 196.68 | AN133: 200.64 | AO133: 205.26 | AP133: 212.52 | AQ133: 210.54 | AR133: 213.18 | AS133: 215.16
J134: ４月 | K134: 90 | L134: =L133+$K135-$K134-3 -> 134 | M134: =M133+$K137-$K136-2 -> 165 | N134: =N133+$K137-$K136-2 -> 199 | O134: =O133+$K138-$K137-1 -> 224 | P134: =P133+$K139-$K138-3 -> 249 | Q134: =Q133+$K140-$K139-4 -> 267 | R134: =R133+$K141-$K140-4 -> 282 | S134: =S133+$K142-$K141-2 -> 294 | T134: =T133+$K143-$K142-1 -> 301 | U134: =U133+$K144-$K143-3 -> 306 | V134: =V133+$K145-$K144-3 -> 313 | W134: =W133+$K$107 -> 323 | X134: 320 | Y134: =Y133+$K$107+1 -> 325 | Z134: =Z133+$K$107+2 -> 329 | AC134: ４月 | AD134: 59.4 | AE134: 88.44 | AF134: 108.9 | AG134: 131.34 | AH134: 147.84 | AI134: 164.34 | AJ134: 176.22 | AK134: 186.12 | AL134: 194.04 | AM134: 198.66 | AN134: 201.96 | AO134: 206.58 | AP134: 213.18 | AQ134: 211.2 | AR134: 214.5 | AS134: 217.14
J135: ５月 | K135: 108 | L135: =L134+$K136-$K135-1 -> 145 | M135: =M134+$K138-$K137+2 -> 175 | N135: 207 | O135: =O134+$K139-$K138-2 -> 230 | P135: =P134+$K140-$K139-3 -> 254 | Q135: =Q134+$K141-$K140-5 -> 270 | R135: =R134+$K142-$K141-2 -> 286 | S135: =S134+$K143-$K142 -> 298 | T135: =T134+$K144-$K143-2 -> 304 | U135: =U134+$K145-$K144-3 -> 308 | V135: =V134+$K$107+2 -> 316 | W135: 324 | X135: 321 | Y135: =Y134+$K$107+2 -> 328 | Z135: =Z134+$K$107+1 -> 331 | AC135: ５月 | AD135: 71.28 | AE135: 95.7 | AF135: 115.5 | AG135: 136.62 | AH135: 151.8 | AI135: 167.64 | AJ135: 178.2 | AK135: 188.76 | AL135: 196.68 | AM135: 200.64 | AN135: 203.28 | AO135: 208.56 | AP135: 213.84 | AQ135: 211.86 | AR135: 216.48 | AS135: 218.46
J136: ６月 | K136: 120 | L136: =L135+$K137-$K136 -> 153 | M136: =M135+$K139-$K138 -> 183 | N136: =N135+$K139-$K138-2 -> 213 | O136: =O135+$K140-$K139-2 -> 236 | P136: =P135+$K141-$K140-3 -> 259 | Q136: =Q135+$K142-$K141-1 -> 275 | R136: =R135+$K143-$K142 -> 290 | S136: =S135+$K144-$K143-3 -> 300 | T136: =T135+$K145-$K144-3 -> 306 | U136: =U135+$K$107+2 -> 311 | V136: =V135+$K$107+1 -> 318 | W136: 325 | X136: 322 | Y136: =Y135+$K$107+1 -> 330 | Z136: =Z135+$K$107+2 -> 334 | AC136: ６月 | AD136: 79.2 | AE136: 100.98 | AF136: 120.78 | AG136: 140.58 | AH136: 155.76 | AI136: 170.94 | AJ136: 181.5 | AK136: 191.4 | AL136: 198 | AM136: 201.96 | AN136: 205.26 | AO136: 209.88 | AP136: 214.5 | AQ136: 212.52 | AR136: 217.8 | AS136: 220.44
J137: ７月 | K137: 128 | L137: 161 | M137: =M136+$K140-$K139+2 -> 193 | N137: =N136+$K140-$K139-4 -> 217 | O137: =O136+$K141-$K140-2 -> 242 | P137: =P136+$K142-$K141-2 -> 263 | Q137: =Q136+$K143-$K142+1 -> 280 | R137: =R136+$K144-$K143-1 -> 294 | S137: =S136+$K145-$K144-3 -> 302 | T137: =T136+$K$107+1 -> 308 | U137: =U136+$K$107+1 -> 313 | V137: =V136+$K$107+1 -> 320 | W137: 326 | X137: 323 | Y137: =Y136+$K$107+1 -> 332 | Z137: =Z136+$K$107+1 -> 336 | AC137: ７月 | AD137: 84.48 | AE137: 106.26 | AF137: 127.38 | AG137: 143.22 | AH137: 159.72 | AI137: 173.58 | AJ137: 184.8 | AK137: 194.04 | AL137: 199.32 | AM137: 203.28 | AN137: 206.58 | AO137: 211.2 | AP137: 215.16 | AQ137: 213.18 | AR137: 219.12 | AS137: 221.76
J138: ８月 | K138: 136 | L138: 169 | M138: =M137+$K141-$K140-3 -> 198 | N138: =N137+$K141-$K140-1 -> 224 | O138: =O137+$K142-$K141 -> 248 | P138: =P137+$K143-$K142 -> 267 | Q138: =Q137+$K144-$K143-1 -> 284 | R138: =R137+$K145-$K144-1 -> 298 | S138: =S137+$K145-$K144-2 -> 305 | T138: =T137+$K$107+2 -> 311 | U138: =U137+$K$107+2 -> 316 | V138: =V137+$K$107+2 -> 323 | W138: 327 | X138: 324 | Y138: =Y137+$K$107+2 -> 335 | Z138: =Z137+$K$107+1 -> 338 | AC138: ８月 | AD138: 89.76 | AE138: 111.54 | AF138: 130.68 | AG138: 147.84 | AH138: 163.68 | AI138: 176.22 | AJ138: 187.44 | AK138: 196.68 | AL138: 201.3 | AM138: 205.26 | AN138: 208.56 | AO138: 213.18 | AP138: 215.82 | AQ138: 213.84 | AR138: 221.1 | AS138: 223.08
J139: ９月 | K139: 144 | L139: =L138+$K140-$K139-1 -> 176 | M139: =M138+$K142-$K141 -> 204 | N139: =N138+$K142-$K141+2 -> 232 | O139: =O138+$K143-$K142+2 -> 254 | P139: =P138+$K144-$K143-1 -> 271 | Q139: =Q138+$K145-$K144-1 -> 288 | R139: =R138+$K$107+2 -> 301 | S139: =S138+$K$107+1 -> 307 | T139: =T138+$K$107+1 -> 313 | U139: =U138+$K$107+1 -> 318 | V139: =V138+$K$107+1 -> 325 | W139: 328 | X139: 325 | Y139: =Y138+$K$107+1 -> 337 | Z139: =Z138+$K$107+2 -> 341 | AC139: ９月 | AD139: 95.04 | AE139: 116.16 | AF139: 134.64 | AG139: 153.12 | AH139: 167.64 | AI139: 178.86 | AJ139: 190.08 | AK139: 198.66 | AL139: 202.62 | AM139: 206.58 | AN139: 209.88 | AO139: 214.5 | AP139: 216.48 | AQ139: 214.5 | AR139: 222.42 | AS139: 225.06
J140: １０月 | K140: 152 | L140: =L139+$K141-$K140-2 -> 182 | M140: =M139+$K143-$K142+2 -> 210 | N140: 236 | O140: =O139+$K144-$K143+1 -> 260 | P140: =P139+$K145-$K144-2 -> 274 | Q140: =Q139+$K$107+3 -> 292 | R140: =R139+$K$107+2 -> 304 | S140: =S139+$K$107+2 -> 310 | T140: =T139+$K$107+2 -> 316 | U140: =U139+$K$107+1 -> 320 | V140: =V139+$K$107+2 -> 328 | W140: 329 | X140: 326 | Y140: =Y139+$K$107+2 -> 340 | Z140: =Z139+$K$107+1 -> 343 | AC140: １０月 | AD140: 100.32 | AE140: 120.12 | AF140: 138.6 | AG140: 155.76 | AH140: 171.6 | AI140: 180.84 | AJ140: 192.72 | AK140: 200.64 | AL140: 204.6 | AM140: 208.56 | AN140: 211.2 | AO140: 216.48 | AP140: 217.14 | AQ140: 215.16 | AR140: 224.4 | AS140: 226.38
J141: １１月 | K141: 160 | L141: 188 | M141: =M140+$K144-$K143+1 -> 216 | N141: 241 | O141: =O140+$K145-$K144-1 -> 264 | P141: =P140+$K145-$K144-2 -> 277 | Q141: =Q140+$K$107+1 -> 294 | R141: =R140+$K$107+1 -> 306 | S141: =S140+$K$107+1 -> 312 | T141: =T140+$K$107+1 -> 318 | U141: =U140+$K$107+2 -> 323 | V141: =V140+$K$107+1 -> 330 | W141: 330 | X141: 327 | Y141: =Y140+$K$107+1 -> 342 | Z141: =Z140+$K$107+2 -> 346 | AC141: １１月 | AD141: 105.6 | AE141: 124.08 | AF141: 142.56 | AG141: 159.06 | AH141: 174.24 | AI141: 182.82 | AJ141: 194.04 | AK141: 201.96 | AL141: 205.92 | AM141: 209.88 | AN141: 213.18 | AO141: 217.8 | AP141: 217.8 | AQ141: 215.82 | AR141: 225.72 | AS141: 228.36
J142: １２月 | K142: 166 | L142: =L141+$K143-$K142+2 -> 194 | M142: =M141+$K145-$K144-1 -> 220 | N142: 246 | O142: =O141+$K145-$K144-1 -> 268 | P142: =P141+$K$107+3 -> 281 | Q142: =Q141+$K$107+1 -> 296 | R142: =R141+$K$107+1 -> 308 | S142: =S141+$K$107+1 -> 314 | T142: =T141+$K$107+2 -> 321 | U142: =U141+$K$107+1 -> 325 | V142: =V141+$K$107+1 -> 332 | W142: 331 | X142: 328 | Y142: =Y141+$K$107+1 -> 344 | Z142: =Z141+$K$107+1 -> 348 | AC142: １２月 | AD142: 109.56 | AE142: 128.04 | AF142: 145.2 | AG142: 162.36 | AH142: 176.88 | AI142: 185.46 | AJ142: 195.36 | AK142: 203.28 | AL142: 207.24 | AM142: 211.86 | AN142: 214.5 | AO142: 219.12 | AP142: 218.46 | AQ142: 216.48 | AR142: 227.04 | AS142: 229.68
J143: １３月 | K143: 170 | L143: =L142+$K144-$K143 -> 199 | M143: =M142+$K146+1.5 -> 224 | N143: =N142+$K146+1.5 -> 250 | O143: =O142+$K146+0.5 -> 271 | P143: =P142+$K$107+2 -> 284 | Q143: =Q142+$K$107+2 -> 299 | R143: =R142+$K$107+2 -> 311 | S143: =S142+$K$107+2 -> 317 | T143: =T142+$K$107+1 -> 323 | U143: =U142+$K$107+2 -> 328 | V143: =V142+$K$107+2 -> 335 | W143: 332 | X143: 329 | Y143: =Y142+$K$107+2 -> 347 | Z143: =Z142+$K$107+1 -> 350 | AC143: １３月 | AD143: 112.2 | AE143: 131.34 | AF143: 147.84 | AG143: 165 | AH143: 178.86 | AI143: 187.44 | AJ143: 197.34 | AK143: 205.26 | AL143: 209.22 | AM143: 213.18 | AN143: 216.48 | AO143: 221.1 | AP143: 219.12 | AQ143: 217.14 | AR143: 229.02 | AS143: 231
J144: １４月 | K144: 175 | L144: =L143+$K145-$K144-1 -> 203 | M144: =M143+$K147+4 -> 228 | N144: =N143+$K147+3 -> 253 | O144: =O143+$K147+4 -> 275 | P144: =P143+$K$107+2 -> 287 | Q144: =Q143+$K$107+1 -> 301 | R144: =R143+$K$107+1 -> 313 | S144: =S143+$K$107+1 -> 319 | T144: =T143+$K$107+1 -> 325 | U144: =U143+$K$107+1 -> 330 | V144: =V143+$K$107+1 -> 337 | W144: 333 | X144: 330 | Y144: =Y143+$K$107+1 -> 349 | Z144: =Z143+$K$107+2 -> 353 | AC144: １４月 | AD144: 115.5 | AE144: 133.98 | AF144: 150.48 | AG144: 166.98 | AH144: 181.5 | AI144: 189.42 | AJ144: 198.66 | AK144: 206.58 | AL144: 210.54 | AM144: 214.5 | AN144: 217.8 | AO144: 222.42 | AP144: 219.78 | AQ144: 217.8 | AR144: 230.34 | AS144: 232.98
J145: １５月 | K145: 180 | L145: 206 | M145: =M144+$K146+1.5 -> 232 | N145: =N144+$K148+4 -> 257 | O145: =O144+$K149-$K148+2 -> 277 | P145: =P144+$K$107+1 -> 289 | Q145: =Q144+$K$107+2 -> 304 | R145: =R144+$K$107+2 -> 316 | S145: =S144+$K$107+2 -> 322 | T145: =T144+$K$107+2 -> 328 | U145: =U144+$K$107+1 -> 332 | V145: =V144+$K$107+2 -> 340 | W145: 334 | X145: 331 | Y145: =Y144+$K$107+2 -> 352 | Z145: =Z144+$K$107+2 -> 356 | AC145: １５月 | AD145: 118.8 | AE145: 135.96 | AF145: 153.12 | AG145: 169.62 | AH145: 182.82 | AI145: 190.74 | AJ145: 200.64 | AK145: 208.56 | AL145: 212.52 | AM145: 216.48 | AN145: 219.12 | AO145: 224.4 | AP145: 220.44 | AQ145: 218.46 | AR145: 232.32 | AS145: 234.96
K146: 2.5 | AD146: =K146*$AE$127 -> 1.65
AE148: =F29 -> 1.3 | AF148: <1.3 | AG148: 増分上限 ３割
J149: 別表 | AC149: 別表の増減
J150: 通院＼入院 | L150: １月 | M150: ２月 | N150: ３月 | O150: ４月 | P150: ５月 | Q150: ６月 | R150: ７月 | S150: ８月 | T150: ９月 | U150: １０月 | V150: １１月 | W150: １２月 | X150: １３月 | Y150: １４月 | Z150: １５月 | AC150: 通院＼入院 | AE150: １月 | AF150: ２月 | AG150: ３月 | AH150: ４月 | AI150: ５月 | AJ150: ６月 | AK150: ７月 | AL150: ８月 | AM150: ９月 | AN150: １０月 | AO150: １１月 | AP150: １２月 | AQ150: １３月 | AR150: １４月 | AS150: １５月
L151: 50 | M151: 94 | N151: 136 | O151: 168 | P151: 197 | Q151: 223 | R151: 245 | S151: 262 | T151: 278 | U151: 290 | V151: 302 | W151: 313 | X151: 320 | Y151: 325 | Z151: 329 | AA151: 4 | AE151: =L151*$AE$148 -> 65 | AF151: 122.2 | AG151: 176.8 | AH151: 218.4 | AI151: 256.1 | AJ151: 289.9 | AK151: 318.5 | AL151: 340.6 | AM151: 361.4 | AN151: 377 | AO151: 392.6 | AP151: 406.9 | AQ151: 416 | AR151: 422.5 | AS151: 427.7 | AT151: 5.2
J152: １月 | K152: 25 | L152: =L151+$K153-$K152 -> 72 | M152: =M151+$K154-$K153 -> 114 | N152: =N151+$K155-$K154 -> 153 | O152: =O151+$K156-$K155 -> 182 | P152: =P151+$K157-$K156 -> 209 | Q152: =Q151+$K158-$K157 -> 233 | R152: =R151+$K159-$K158 -> 254 | S152: =S151+$K160-$K159 -> 270 | T152: =T151+$K161-$K160 -> 283 | U152: =U151+$K162-$K161 -> 295 | V152: =V151+$K163-$K162 -> 307 | W152: =W151+$K164-$K163 -> 317 | X152: =X151+$K165-$K164 -> 323 | Y152: =Y151+$K166-$K165 -> 327 | Z152: 331 | AC152: １月 | AD152: =K152*$AE$148 -> 32.5 | AE152: =AE151+$K153-$K152 -> 87 | AF152: =AF151+$K154-$K153 -> 142.2 | AG152: =AG151+$K155-$K154 -> 193.8 | AH152: =AH151+$K156-$K155 -> 232.4 | AI152: =AI151+$K157-$K156 -> 268.1 | AJ152: =AJ151+$K158-$K157 -> 299.9 | AK152: =AK151+$K159-$K158 -> 327.5 | AL152: =AL151+$K160-$K159 -> 348.6 | AM152: =AM151+$K161-$K160 -> 366.4 | AN152: =AN151+$K162-$K161 -> 382 | AO152: =AO151+$K163-$K162 -> 397.6 | AP152: =AP151+$K164-$K163 -> 410.9 | AQ152: =AQ151+$K165-$K164 -> 419 | AR152: =AR151+$K166-$K165 -> 424.5 | AS152: 331
J153: ２月 | K153: 47 | L153: 92 | M153: 131 | N153: 167 | O153: 194 | P153: 219 | Q153: 242 | R153: 262 | S153: 275 | T153: 288 | U153: =U152+$K163-$K162 -> 300 | V153: =V152+$K164-$K163 -> 311 | W153: =W152+$K165-$K164 -> 320 | X153: =X152+$K166-$K165 -> 325 | Y153: =Y152+$K$167 -> 329 | Z153: 333 | AC153: ２月 | AD153: 61.1 | AE153: 107 | AF153: 159.2 | AG153: 207.8 | AH153: 244.4 | AI153: 278.1 | AJ153: 308.9 | AK153: 335.5 | AL153: 353.6 | AM153: 371.4 | AN153: =AN152+$K163-$K162 -> 387 | AO153: =AO152+$K164-$K163 -> 401.6 | AP153: =AP152+$K165-$K164 -> 413.9 | AQ153: =AQ152+$K166-$K165 -> 421 | AR153: =AR152+$K$167 -> 426.5 | AS153: 333
J154: ３月 | K154: 67 | L154: 109 | M154: 145 | N154: 179 | O154: 204 | P154: 228 | Q154: 250 | R154: 267 | S154: 280 | T154: 293 | U154: =U153+$K164-$K163 -> 304 | V154: =V153+$K165-$K164 -> 314 | W154: =W153+$K166-$K165 -> 322 | X154: =X153+$K$167 -> 327 | Y154: 331 | Z154: 335 | AC154: ３月 | AD154: 87.1 | AE154: 124 | AF154: 173.2 | AG154: 219.8 | AH154: 254.4 | AI154: 287.1 | AJ154: 316.9 | AK154: 340.5 | AL154: 358.6 | AM154: 376.4 | AN154: =AN153+$K164-$K163 -> 391 | AO154: =AO153+$K165-$K164 -> 404.6 | AP154: =AP153+$K166-$K165 -> 415.9 | AQ154: =AQ153+$K$167 -> 423 | AR154: 428.5 | AS154: 335
J155: ４月 | K155: 84 | L155: 123 | M155: 157 | N155: 189 | O155: 213 | P155: 236 | Q155: 255 | R155: 272 | S155: 285 | T155: 297 | U155: =U154+$K165-$K164 -> 307 | V155: =V154+$K166-$K165 -> 316 | W155: =W154+$K$167 -> 324 | X155: 329 | Y155: 333 | Z155: 337 | AC155: ４月 | AD155: 109.2 | AE155: 138 | AF155: 185.2 | AG155: 229.8 | AH155: 263.4 | AI155: 295.1 | AJ155: 321.9 | AK155: 345.5 | AL155: 363.6 | AM155: 380.4 | AN155: =AN154+$K165-$K164 -> 394 | AO155: =AO154+$K166-$K165 -> 406.6 | AP155: =AP154+$K$167 -> 417.9 | AQ155: 425 | AR155: 430.5 | AS155: 337
J156: ５月 | K156: 98 | L156: 135 | M156: 167 | N156: 198 | O156: 221 | P156: 241 | Q156: 260 | R156: 277 | S156: 289 | T156: 300 | U156: =U155+$K166-$K165 -> 309 | V156: =V155+$K$167 -> 318 | W156: 326 | X156: 331 | Y156: 335 | Z156: 339 | AC156: ５月 | AD156: 127.4 | AE156: 150 | AF156: 195.2 | AG156: 238.8 | AH156: 271.4 | AI156: 300.1 | AJ156: 326.9 | AK156: 350.5 | AL156: 367.6 | AM156: 383.4 | AN156: =AN155+$K166-$K165 -> 396 | AO156: =AO155+$K$167 -> 408.6 | AP156: 419.9 | AQ156: 427 | AR156: 432.5 | AS156: 339
J157: ６月 | K157: 110 | L157: 145 | M157: 176 | N157: 206 | O157: 226 | P157: 246 | Q157: 265 | R157: 281 | S157: 292 | T157: 302 | U157: =U156+$K$167 -> 311 | V157: 320 | W157: 328 | X157: 333 | Y157: 337 | Z157: 341 | AC157: ６月 | AD157: 143 | AE157: 160 | AF157: 204.2 | AG157: 246.8 | AH157: 276.4 | AI157: 305.1 | AJ157: 331.9 | AK157: 354.5 | AL157: 370.6 | AM157: 385.4 | AN157: =AN156+$K$167 -> 398 | AO157: 410.6 | AP157: 421.9 | AQ157: 429 | AR157: 434.5 | AS157: 341
J158: ７月 | K158: 120 | L158: 154 | M158: 184 | N158: 211 | O158: 231 | P158: 251 | Q158: 269 | R158: 284 | S158: 294 | T158: =T157+$K$167 -> 304 | U158: 313 | V158: 322 | W158: 330 | X158: 335 | Y158: 339 | Z158: 343 | AC158: ７月 | AD158: 156 | AE158: 169 | AF158: 212.2 | AG158: 251.8 | AH158: 281.4 | AI158: 310.1 | AJ158: 335.9 | AK158: 357.5 | AL158: 372.6 | AM158: =AM157+$K$167 -> 387.4 | AN158: 400 | AO158: 412.6 | AP158: 423.9 | AQ158: 431 | AR158: 436.5 | AS158: 343
J159: ８月 | K159: 129 | L159: 162 | M159: 189 | N159: 216 | O159: 236 | P159: 255 | Q159: 272 | R159: 286 | S159: =S158+$K$167 -> 296 | T159: 306 | U159: 315 | V159: 324 | W159: 332 | X159: 337 | Y159: 341 | Z159: 345 | AC159: ８月 | AD159: 167.7 | AE159: 177 | AF159: 217.2 | AG159: 256.8 | AH159: 286.4 | AI159: 314.1 | AJ159: 338.9 | AK159: 359.5 | AL159: =AL158+$K$167 -> 374.6 | AM159: 389.4 | AN159: 402 | AO159: 414.6 | AP159: 425.9 | AQ159: 433 | AR159: 438.5 | AS159: 345
J160: ９月 | K160: 137 | L160: 167 | M160: 194 | N160: 221 | O160: 240 | P160: 258 | Q160: 274 | R160: =R159+$K$167 -> 288 | S160: 298 | T160: 308 | U160: 317 | V160: 326 | W160: 334 | X160: 339 | Y160: 343 | Z160: 347 | AC160: ９月 | AD160: 178.1 | AE160: 182 | AF160: 222.2 | AG160: 261.8 | AH160: 290.4 | AI160: 317.1 | AJ160: 340.9 | AK160: =AK159+$K$167 -> 361.5 | AL160: 376.6 | AM160: 391.4 | AN160: 404 | AO160: 416.6 | AP160: 427.9 | AQ160: 435 | AR160: 440.5 | AS160: 347
J161: １０月 | K161: 142 | L161: 172 | M161: 199 | N161: 225 | O161: 243 | P161: 260 | Q161: =Q160+$K$167 -> 276 | R161: 290 | S161: 300 | T161: 310 | U161: 319 | V161: 328 | W161: 336 | X161: 341 | Y161: 345 | Z161: 349 | AC161: １０月 | AD161: 184.6 | AE161: 187 | AF161: 227.2 | AG161: 265.8 | AH161: 293.4 | AI161: 319.1 | AJ161: =AJ160+$K$167 -> 342.9 | AK161: 363.5 | AL161: 378.6 | AM161: 393.4 | AN161: 406 | AO161: 418.6 | AP161: 429.9 | AQ161: 437 | AR161: 442.5 | AS161: 349
J162: １１月 | K162: 147 | L162: 177 | M162: 203 | N162: 228 | O162: 245 | P162: =P161+$K$167 -> 262 | Q162: 278 | R162: 292 | S162: 302 | T162: 312 | U162: 321 | V162: 330 | W162: 338 | X162: 343 | Y162: 347 | Z162: 351 | AC162: １１月 | AD162: 191.1 | AE162: 192 | AF162: 231.2 | AG162: 268.8 | AH162: 295.4 | AI162: =AI161+$K$167 -> 321.1 | AJ162: 344.9 | AK162: 365.5 | AL162: 380.6 | AM162: 395.4 | AN162: 408 | AO162: 420.6 | AP162: 431.9 | AQ162: 439 | AR162: 444.5 | AS162: 351
J163: １２月 | K163: 152 | L163: 181 | M163: 206 | N163: 230 | O163: =O162+$K$167 -> 247 | P163: =P162+$K$167 -> 264 | Q163: 280 | R163: 294 | S163: 304 | T163: 314 | U163: 323 | V163: 332 | W163: 340 | X163: 345 | Y163: 349 | Z163: 353 | AC163: １２月 | AD163: 197.6 | AE163: 196 | AF163: 234.2 | AG163: 270.8 | AH163: =AH162+$K$167 -> 297.4 | AI163: =AI162+$K$167 -> 323.1 | AJ163: 346.9 | AK163: 367.5 | AL163: 382.6 | AM163: 397.4 | AN163: 410 | AO163: 422.6 | AP163: 433.9 | AQ163: 441 | AR163: 446.5 | AS163: 353
J164: １３月 | K164: 156 | L164: 184 | M164: 208 | N164: =N163+$K167 -> 232 | O164: =O163+$K$167 -> 249 | P164: =P163+$K$167 -> 266 | Q164: 282 | R164: 296 | S164: 306 | T164: 316 | U164: 325 | V164: 334 | W164: 342 | X164: 347 | Y164: 351 | Z164: 355 | AC164: １３月 | AD164: 202.8 | AE164: 199 | AF164: 236.2 | AG164: =AG163+$K167 -> 272.8 | AH164: =AH163+$K$167 -> 299.4 | AI164: =AI163+$K$167 -> 325.1 | AJ164: 348.9 | AK164: 369.5 | AL164: 384.6 | AM164: 399.4 | AN164: 412 | AO164: 424.6 | AP164: 435.9 | AQ164: 443 | AR164: 448.5 | AS164: 355
J165: １４月 | K165: 159 | L165: 186 | M165: =M164+$K167 -> 210 | N165: =N164+$K167 -> 234 | O165: =O164+$K$167 -> 251 | P165: =P164+$K$167 -> 268 | Q165: 284 | R165: 298 | S165: 308 | T165: 318 | U165: 327 | V165: 336 | W165: 344 | X165: 349 | Y165: 353 | Z165: 357 | AC165: １４月 | AD165: 206.7 | AE165: 201 | AF165: =AF164+$K167 -> 238.2 | AG165: =AG164+$K167 -> 274.8 | AH165: =AH164+$K$167 -> 301.4 | AI165: =AI164+$K$167 -> 327.1 | AJ165: 350.9 | AK165: 371.5 | AL165: 386.6 | AM165: 401.4 | AN165: 414 | AO165: 426.6 | AP165: 437.9 | AQ165: 445 | AR165: 450.5 | AS165: 357
J166: １５月 | K166: 161 | L166: =L165+$K167 -> 188 | M166: =M165+$K167 -> 212 | N166: =N165+$K167 -> 236 | O166: =O165+$K$167 -> 253 | P166: =P165+$K$167 -> 270 | Q166: 286 | R166: 300 | S166: 310 | T166: 320 | U166: 329 | V166: 338 | W166: 346 | X166: 351 | Y166: 355 | Z166: 359 | AC166: １５月 | AD166: 209.3 | AE166: =AE165+$K167 -> 203 | AF166: =AF165+$K167 -> 240.2 | AG166: =AG165+$K167 -> 276.8 | AH166: =AH165+$K$167 -> 303.4 | AI166: =AI165+$K$167 -> 329.1 | AJ166: 352.9 | AK166: 373.5 | AL166: 388.6 | AM166: 403.4 | AN166: 416 | AO166: 428.6 | AP166: 439.9 | AQ166: 447 | AR166: 452.5 | AS166: 359
K167: 2 | AD167: 2.6

Sheet 後遺障害慰謝料
A1: 後遺障害慰謝料 | G1: メニューに戻る | I1: 別表２ | J1: http://www.mlit.go.jp/jidosha/anzen/04relief/resourse/data/kijyun.pdf
A2: 級 | B2: 下限 | C2: 中 | D2: 上限 | E2: 赤・黄 | F2: 緑 | G2: 労働能力喪失率 | I2: 自賠責 | J2: 慰謝料部分 | K2: 逸失部分
A3: 1 | B3: 2800 | C3: =(D3+B3)/2 -> 2950 | D3: 3100 | E3: 2800 | F3: 2800 | G3: 1 | I3: 4000 | J3: 1150
A4: 2 | B4: 2300 | C4: 2500 | D4: 2700 | E4: 2370 | F4: 2400 | G4: 1 | I4: 3000 | J4: 998
A5: 3 | B5: 1800 | C5: 2000 | D5: 2200 | E5: 1990 | F5: 2000 | G5: 1 | I5: 2219 | J5: 861
A6: 4 | B6: 1500 | C6: 1650 | D6: 1800 | E6: 1670 | F6: 1700 | G6: 0.92 | I6: 1889 | J6: 737
A7: 5 | B7: 1300 | C7: 1400 | D7: 1500 | E7: 1400 | F7: 1440 | G7: 0.79 | I7: 1574 | J7: 618
A8: 6 | B8: 1100 | C8: 1200 | D8: 1300 | E8: 1180 | F8: 1220 | G8: 0.67 | I8: 1296 | J8: 512
A9: 7 | B9: 900 | C9: 1000 | D9: 1100 | E9: 1000 | F9: 1030 | G9: 0.56 | I9: 1051 | J9: 419
A10: 8 | B10: 750 | C10: 810 | D10: 870 | E10: 830 | F10: 830 | G10: 0.45 | I10: 819 | J10: 331
A11: 9 | B11: 600 | C11: 650 | D11: 700 | E11: 690 | F11: 670 | G11: 0.35 | I11: 616 | J11: 249
A12: 10 | B12: 480 | C12: 525 | D12: 570 | E12: 550 | F12: 530 | G12: 0.27 | I12: 461 | J12: 190
A13: 11 | B13: 360 | C13: 395 | D13: 430 | E13: 420 | F13: 400 | G13: 0.2 | I13: 331 | J13: 136
A14: 12 | B14: 250 | C14: 275 | D14: 300 | E14: 290 | F14: 280 | G14: 0.14 | I14: 224 | J14: 94
A15: 13 | B15: 160 | C15: 175 | D15: 190 | E15: 180 | F15: 180 | G15: 0.09 | I15: 139 | J15: 57
A16: 14 | B16: 90 | C16: 105 | D16: 120 | E16: 110 | F16: 110 | G16: 0.05 | I16: 75 | J16: 32
A17: 非該当 | B17: 0 | C17: 0 | D17: 0 | E17: 0 | F17: 0 | G17: 0

Sheet 逸失利益
B1: 逸失利益算定 | C1: 死亡時逸失利益は右欄で算出 （ここをクリックで移動します） | D1: 定期買替の現価計算は右下欄で算出 | F1: メニューに戻る | I1: 死亡逸失利益算定 | J1: （稼働・年金） | L1: メニューに戻る
B2: 性別 | C2: 学歴 | I2: 性別 | J2: 学歴
B3: 女 | C3: 全学歴 | E3: 後遺障害等級 | F3: 14 | I3: 女 | J3: 全学歴 | L3: 賃金センサス年度
B4: =IF(B3="男",22,IF(B3="女",34,10)) -> 34 | C4: =IF(F6="賃セＲ２",IF(C3="全学歴",0,IF(C3="中学",1,IF(C3="高校",2,IF(C3="専門学校",3,IF(C3="高専・短大",4,IF(C3="大学",5,IF(C3="大学院",6,7))))))),IF(C3="全学歴",0,IF(C3="中学",1,IF(OR(C3="不明",C3="高校"),2,IF(OR(C3="専門学校",C3="高専・短大"),4,5))))) -> 0 | D4: =INDEX(共通入力!$N$2:$N$7+1, MATCH(F6, 共通入力!$M$2:$M$7, 0)) -> 1 | E4: 喪失率 | F4: =VLOOKUP(F3,後遺障害慰謝料!$A$3:$G$17,7) -> 0.05 | I4: =IF(I3="男",22,IF(I3="女",34,10)) -> 34 | J4: =IF(L4="賃セＲ２",IF(J3="全学歴",0,IF(J3="中学",1,IF(J3="高校",2,IF(J3="専門学校",3,IF(J3="高専・短大",4,IF(J3="大学",5,IF(J3="大学院",6,7))))))),IF(J3="全学歴",0,IF(J3="中学",1,IF(OR(J3="不明",J3="高校"),2,IF(OR(J3="専門学校",J3="高専・短大"),4,5))))) -> 0 | K4: =INDEX(共通入力!$N$2:$N$7+1, MATCH(L4, 共通入力!$M$2:$M$7, 0)) -> 1 | L4: 賃セＲ５ | M4: 産業計企業規模１０人以上
B5: 症状固定時年齢 | D5: 歳 | E5: 収入評価基準年齢 | G5: 歳 | I5: 死亡時年齢 | K5: 歳 | L5: 稼働可能年齢
B6: 就労開始年齢 | D6: 歳 | E6: 賃金センサス年度 | F6: 賃セＲ５ | G6: 産業計企業規模１０人以上 | I6: 就労開始年齢 | K6: 歳 | L6: 67 | M6: 歳
B7: 初期区分期間 | D7: 年 | E7: 稼働可能年齢 | F7: 67 | G7: 歳 | I7: 受給開始年齢 | K7: 歳 | L7: 平均余命
B8: 限定喪失期間 | D8: 年 | E8: 平均余命 | F8: =ROUNDDOWN(VLOOKUP($C$5,平均余命!$A$2:$K$107,IF($B$3="女",$D$4*2+1,IF($B$3="男",$D$4*2,0))),0) -> 87 | G8: 年（１未満切り捨て） | I8: 適用する喪失期間 | J8: =ROUNDDOWN(IF(L8/2>L6-J5,L8/2,L6-J5),0) -> 67 | K8: 年 | L8: =ROUNDDOWN(VLOOKUP($J$5,平均余命!$A$2:$K$107,IF($I$3="女",$K$4*2+1,IF($I$3="男",$K$4*2,0))),0) -> 87 | M8: 年（１未満切り捨て）
D9: 0.03 | E9: 0.05 | L9: 基準年収
B10: 適用期間① | C10: =C5 &"歳 ～ "&IF(AND(C5+C8<F10,C8>0),C5+C8,F10)& "歳（終期）まで" -> 歳 ～ 67歳（終期）まで | D10: =ROUND((1-(1+D9)^-(IF(AND($C$5+$C$8<$F$10,$C$8>0),$C$5+$C$8,$F$10)-$C$5))/D9,4) -> 28.733 | E10: =ROUND((1-(1+E9)^-(IF(AND($C$5+$C$8<$F$10,$C$8>0),$C$5+$C$8,$F$10)-$C$5))/E9,4) -> 19.2391 | F10: =ROUNDDOWN(IF(F8/2>F7-C5,F8/2+C5,F7),0) -> 67 | I10: ライプニッツ係数 | J10: 稼働適用 | K10: 年金適用 | L10: =VLOOKUP(O9,INDIRECT(L4&"!$A$9:$AJ$112"),$I$4)*1000 -> 3996500 | M10: 円
B11: 適用期間② | C11: =C5 &"歳 ～ "&IF(C7>0,C5+C7, "") & "歳（初期期間）まで" -> 歳 ～ 歳（初期期間）まで | D11: =ROUND((1-(1+D9)^-(IF(AND($C$5+$C$7<$F$10,$C$7>0),$C$5+$C$7,$C$5)-$C$5))/D9,4) -> 0 | E11: =ROUND((1-(1+E9)^-(IF(AND($C$5+$C$7<$F$10,$C$7>0),$C$5+$C$7,$C$5)-$C$5))/E9,4) -> 0 | I11: 0.03 | J11: =ROUND((1-(1+$I$11)^-$J$8)/$I$11,4) -> 28.733 | K11: =ROUND((1-(1+$I$11)^-$L$8)/$I$11,4) -> 30.7863
B12: 適用期間③ | C12: =C5 &"歳 ～ "&C6& "歳（控除対象）" -> 歳 ～ 歳（控除対象） | D12: =ROUND((1-(1+D9)^-(IF($C$6>0,$C$6-$C$5,0)/D9)),4) -> 0 | E12: =ROUND((1-(1+E9)^-(IF($C$6>0,$C$6-$C$5,0)/E9)),4) -> 0 | I12: 控除係数 | J12: =ROUND((1-(1+$I$11)^-IF(J7<>0,J7-J5,J7))/$I$11,4) -> 0 | K12: =ROUND((1-(1+$I$11)^-IF(J7<>0,J7-J5,J7))/$I$11,4) -> 0
C13: ="上記に適合する算定パターン "& IF($C$7>0,"C",IF($C$6>0,"B","A")) -> 上記に適合する算定パターン A | D13: =IF($C$7>0,D41,IF($C$6>0,D28,D21)) -> 0 | E13: =IF($C$7>0,E41,IF($C$6>0,E28,E21)) -> 0 | I13: 適用係数 | J13: =J11-J12 -> 28.733 | K13: =K11-K12 -> 30.7863
I15: 稼働収入年額 | J15: 生活費控除率 | K15: ライプニッツ係数 | L15: 金額
B16: A 控除期間がないパターン | K16: =J13 -> 28.733 | L16: =I16*(1-J16)*K16 -> 0
B17: 賃金センサス年度 | C17: 賃セＲ５ | D17: 産業計企業規模１０人以上 | E17: 収入評価基準年齢 | G17: 歳
B18: 基準年収 | C18: =VLOOKUP(F17,INDIRECT(C17&"!$A$9:$AJ$112"),$B$4)*1000 -> 3996500 | D18: 円／年 A | E18: 喪失率 | I18: 年金収入年額 １
B19: 減額後割合 | C19: 0 | E19: 減額後年額 | F19: =C18*C19 -> 0 | G19: 円／年（A×減額率） | K19: =K13 -> 30.7863 | L19: =I19*(1-J19)*K19 -> 0
B20: 手入力＞ | D20: 円／年 | E20: 適用基礎年収 | F20: =IF(C20<>0,C20,IF(C19<>0,F19,C18)) -> 3996500 | G20: 円／年
C21: 算定額① | D21: =ROUND(F20*F18*D10,0) -> 0 | E21: =ROUND(F20*F18*E10,0) -> 0 | F21: 円 | I21: 年金収入年額 ２
L22: =I22*(1-J22)*K22 -> 0
B23: B 控除期間があるパターン | C23: （未成熟子、学生等）
B24: 賃金センサス年度 | C24: 賃セＲ５ | D24: 産業計企業規模１０人以上 | E24: 収入評価基準年齢 | G24: 歳 | I24: ＊除外対象 | K24: 合計額 | L24: =L16+L19+L22 -> 0
B25: 基準年収 | C25: =VLOOKUP(F24,INDIRECT(C24&"!$A$9:$AJ$112"),$B$4)*1000 -> 3996500 | D25: 円／年 A | E25: 喪失率 | I25: 障害年金の加給部分
B26: 低減率 | C26: 0 | E26: 減額後年額 | F26: =C25*C26 -> 0 | G26: 円／年（A×減額率） | I26: 遺族厚生年金
B27: 手入力＞ | D27: 円／年 | E27: 適用基礎年収 | F27: =IF(C27<>0,C27,IF(C26<>0,F26,C25)) -> 3996500 | G27: 円／年 | I27: 軍人恩給の扶養料
C28: 算定額①－③ | D28: =F27*F25*(D10-D12) -> 0 | E28: =F27*F25*(E10-E12) -> 0 | F28: 円
B30: C 合算のパターン | C30: （第二期間①＋第一期間②のケース） | I30: 装具・器具等購入費 買替係数 | L30: メニューに戻る
B31: 第二期間①賃金センサス年度 | C31: 賃セＲ５ | D31: 産業計企業規模１０人以上 | E31: 収入評価基準年齢 | G31: 歳
B32: 基準年収 | C32: =VLOOKUP(F31,INDIRECT(C31&"!$A$9:$AJ$112"),$B$4)*1000 -> 3996500 | D32: 円／年 A | E32: 喪失率 | I32: 性別 | J32: 開始時年齢 | L32: 基準生命表 | M32: 平均余命
B33: 低減率 | C33: 0 | E33: 減額後年額 | F33: =C32*C33 -> 0 | G33: 円／年（A×減額率） | I33: 女 | K33: =INDEX(共通入力!$N$2:$N$7+1, MATCH(L33, 共通入力!$O$2:$O$7, 0)) -> 1 | L33: Ｒ４ | M33: =ROUNDDOWN(VLOOKUP($J$33,平均余命!$A$2:$K$107,IF($I$33="女",$K$33*2+1,IF($I$33="男",$K$33*2,0))),2) -> 87.09
B34: 手入力＞ | D34: 円／年 | E34: 適用基礎年収 | F34: =IF(C34<>0,C34,IF(C33<>0,F33,C32)) -> 3996500 | G34: 円／年 | I34: =IF(I33="男",22,IF(I33="女",34,10)) -> 34
C35: 算定額①－② | D35: =ROUND(F34*F32*(D10-D11),0) -> 0 | E35: =ROUND(F34*F32*(E10-E11),0) -> 0 | F35: 円 | I35: 耐用年数 | J35: 買替回数 | K35: 単価（円） | L35: ライプニッツ係数 | M35: 現価（円）
B36: 第一期間②賃金センサス年度 | C36: 賃セＲ５ | D36: 産業計企業規模１０人以上 | E36: 収入評価基準年齢 | G36: 歳 | J36: =IF(I36>0,ROUNDDOWN(M33/I36,0),0) -> 0 | L36: 0.03 | M36: =K36*L37 -> 0
B37: 基準年収 | C37: =VLOOKUP(F36,INDIRECT(C36&"!$A$9:$AJ$112"),$B$4)*1000 -> 3996500 | D37: 円／年 A | E37: 喪失率 | L37: =IF(I36>0,rcc(I36,J36,K36,L36),0) -> 0
B38: 低減率 | C38: 0 | E38: 減額後年額 | F38: =C37*C38 -> 0 | G38: 円／年（A×減額率）
B39: 手入力＞ | D39: 円／年 | E39: 適用基礎年収 | F39: =IF(C39<>0,C39,IF(C38<>0,F38,C37)) -> 3996500 | G39: 円／年 | I39: 転写先＞
C40: 算定額② | D40: =ROUND(F39*F37*(D11-D12),0) -> 0 | E40: =ROUND(F39*F37*(E11-E12),0) -> 0 | F40: 円
C41: 算定額①＋② | D41: =D40+D35 -> 0 | E41: =E40+E35 -> 0 | F41: 円
B43: 用法 | C43: この色部分は、選択式
C44: この色部分のみ入力可
C45: この色部分は、自動入力
C46: この色部分は要注意入力可

Sheet 算定物損
A1: 算 定 原 票 （物損） | Y1: メニューに戻る
H2: 相手方保険会社： | K2: Ｄ | U2: 作成日： | X2: =TODAY() -> 2024-07-14
A3: 申立人 | C3: Ａ | E3: 相手方 | G3: Ｂ | N3: 事故日
A4: 区 分 | E4: 申立人車 | N4: 相手方車
A5: 所有者／使用者 | I5: ／ | R5: ／
A6: 車名・型式／登録番号 | I6: ／ | R6: ／
A7: 初年度登年月 | H7: 販売価格 | M7: 円 | Q7: 販売価格 | V7: 円
A8: 次期車検年月 | H8: 特別仕様価格 | M8: 円 | Q8: 特別仕様価格 | V8: 円
A9: 走行キロ | G9: Km | H9: 下取価格 | M9: 円 | P9: Km | Q9: 下取価格 | V9: 円
A11: 区 分 | E11: 申立人の主張 | H11: 相手方の主張 | K11: 斡旋案 | N11: 申立人の主張 | Q11: 相手方の主張 | T11: 斡旋案 | W11: 争 点 | X11: コメント
A12: 1 全損処理の場合 | B12: 車輌時価額
B13: スクラップ | E13: △ | H13: △ | K13: △ | N13: △ | Q13: △ | T13: △
B14: 差引額 | E14: =E12-F13 -> 0 | H14: =H12-I13 -> 0 | K14: =K12-L13 -> 0 | N14: =N12-O13 -> 0 | Q14: =Q12-R13 -> 0 | T14: =T12-U13 -> 0
B15: 廃車費用
B16: 新車登録費用
B17: その他
A18: 2 修理 | B18: 修理代
C19: 消費税
B20: 格落ち
A21: 3 | B21: レッカー代
A22: 4 | B22: 代車料
G23: 円 | J23: 円 | M23: 円 | P23: 円 | S23: 円 | V23: 円
E24: × | G24: 日 | H24: × | J24: 日 | K24: × | M24: 日 | N24: × | P24: 日 | Q24: × | S24: 日 | T24: × | V24: 日
A25: 5 | B25: 休車損害
A26: 6 | B26: 第三者損害
A27: 7 | B27: 諸費
A28: 8
A29: 9
A30: 10 | B30: 総計 | E30: =SUM(E14:G18)+SUM(E20:G22)+SUM(E25:G29) -> 0 | H30: =SUM(H14:J18)+SUM(H20:J22)+SUM(H25:J29) -> 0 | K30: =SUM(K14:M18)+SUM(K20:M22)+SUM(K25:M29) -> 0 | N30: =SUM(N14:P18)+SUM(N20:P22)+SUM(N25:P29) -> 0 | Q30: =SUM(Q14:S18)+SUM(Q20:S22)+SUM(Q25:S29) -> 0 | T30: =SUM(T14:V18)+SUM(T20:V22)+SUM(T25:V29) -> 0
E31: 申立人の過失割合 | N31: 相手方の過失割合
A32: 11 | B32: 過失 | G32: ％ | J32: ％ | M32: ％ | P32: ％ | S32: ％ | V32: ％
A33: 12 | B33: 既払額
E34: 相手方が申立人に支払う額 | N34: 申立人が相手方に支払う額
A35: 13 | B35: 賠償額 | E35: =E30*(1-F32/100)-E33 -> 0 | H35: =H30*(1-I32/100)-H33 -> 0 | K35: =K30*(1-L32/100)-K33 -> 0 | N35: =N30*(1-O32/100)-N33 -> 0 | Q35: =Q30*(1-R32/100)-Q33 -> 0 | T35: =T30*(1-U32/100)-T33 -> 0
A36: 14 | B36: 相殺払い時の受領額 | E36: =E35-N35 -> 0 | H36: =H35-Q35 -> 0 | K36: =K35-T35 -> 0 | N36: =N35-W35 -> 0 | Q36: =Q35-Z35 -> 0 | T36: =T35-AC35 -> 0
A37: 摘 要 | X37: （単位：円）
A40: ※争点について 合意項目に○、重要争点は×、非重要争点は△をつける

Sheet 算定傷後
A1: 算 定 原 票（傷・後） | AE1: メニューに戻る
A3: 担当弁護士： | L3: 受付番号： | AC3: 作成日： | AD3: =TODAY() -> 2024-07-14
A4: 申立人 | M4: 歳 | N4: 事故日 | U4: 申立人(代理人)
A5: 相手方(運転者) | G5: 相手方(保有者) | Q5: 相手方(保険会社) | AC5: 相手方(代理人)
A6: 区 分 | G6: 被害者側の主張 | N6: 加害者側の主張 | U6: 斡旋案 | AB6: 争 点 | AC6: コメント
A7: 傷 害 | B7: 1 | C7: 治 療 費
C8: 相殺額（ 療養費等 ） | G8: △ | N8: △ | U8: △
C9: 損益相殺後金額 | G9: =G7-I8 -> 0 | N9: =N7-P8 -> 0 | U9: =U7-W8 -> 0
B10: 2 | C10: 付 添 費
C11: (単価 × 要付添日) | G11: @ | J11: × | M11: 日 | N11: @ | Q11: × | T11: 日 | U11: @ | X11: × | AA11: 日
B12: 3 | C12: 入 院 雑 費
C13: (単価 × 入院日数) | G13: @ | H13: 1500 | J13: × | M13: 日 | N13: @ | Q13: × | T13: 日 | U13: @ | X13: × | AA13: 日
B14: 4 | C14: 通 院 交 通 費
C15: (単価 × 認定通院日数) | G15: @ | J15: × | M15: 日 | N15: @ | Q15: × | T15: 日 | U15: @ | X15: × | AA15: 日
B16: 5 | C16: 休 業 損 害 | AE16: 元の表に戻る
C17: (収入 × 認定休業日数) | G17: @ | J17: × | M17: 日 | N17: @ | Q17: × | T17: 日 | U17: @ | X17: × | AA17: 日
G18: 日額 | J18: × | M18: 日 | N18: 日額 | Q18: × | T18: 日 | U18: 日額 | X18: × | AA18: 日 | AE18: 元の表に戻る
G19: 認定率 | J19: ％ | N19: 認定率 | Q19: ％ | U19: 認定率 | X19: ％
C20: 相殺額（ 傷病手当金等 ） | G20: △ | N20: △ | U20: △
C21: 損益相殺後金額 | G21: =G16-I20 -> 0 | N21: =N16-P20 -> 0 | U21: =U16-W20 -> 0
B22: 6 | C22: 慰 謝 料 | AE22: 元の表に戻る
C23: (対象入院及び通院延べ日数) | J23: 入院 | M23: 日 | Q23: 入院 | T23: 日 | X23: 入院 | AA23: 日
J24: 通院実 | M24: 日 | Q24: 通院実 | T24: 日 | X24: 通院実 | AA24: 日
J25: 通院延 | M25: 日 | Q25: 通院延 | T25: 日 | X25: 通院延 | AA25: 日
B26: 7
B27: 8
B28: 9
B29: 10 | C29: 小計（1～9） | G29: =G9+G10+G12+G14+G21+G22+G26+G27+G28 -> 0 | N29: =N9+N10+N12+N14+N21+N22+N26+N27+N28 -> 0 | U29: =U9+U10+U12+U14+U21+U22+U26+U27+U28 -> 0
B30: 11 | C30: 素因減額（％）
B31: 12 | C31: 傷害計（1～11） | G31: =ROUNDDOWN(G29*(1-G30),0) -> 0 | N31: =ROUNDDOWN(N29*(1-N30),0) -> 0 | U31: =ROUNDDOWN(U29*(1-U30),0) -> 0
A32: 後 遺 障 害 | B32: 13 | C32: 逸 失 利 益 | AE32: 元の表に戻る
C33: 症状固定年齢 | F33: 歳 | G33: 基礎収入 | N33: 基礎収入 | U33: 基礎収入
C34: 後遺障害等級 | F34: 級 | G34: 労働能力喪失率 | M34: ％ | N34: 労働能力喪失率 | T34: ％ | U34: 労働能力喪失率 | AA34: ％
C35: 就労可能年数 | F35: 年 | H35: 年 | J35: 係数 | O35: 年 | Q35: 係数 | V35: 年 | X35: 係数
C36: 相殺額（ 障害厚生年金等 ） | G36: △ | N36: △ | U36: △
C37: 損益相殺後金額 | G37: =G32-I36 -> 0 | N37: =N32-P36 -> 0 | U37: =U32-W36 -> 0
B38: 14 | C38: 慰 謝 料
B39: 15 | C39: 介 護 料
C40: 相殺額（ 介護保険等 ） | G40: △ | N40: △ | U40: △
C41: 損益相殺後金額 | G41: =G39-I40 -> 0 | N41: =N39-P40 -> 0 | U41: =U39-W40 -> 0
B42: 16 | C42: 介 護 用 品 費 | AE42: 元の表に戻る
B43: 17 | C43: 住 宅 改 造 費
B44: 18 | C44: 車 輌 改 造 費
B45: 19
B46: 20 | C46: 小計（13～19） | G46: =SUM(G37,G38,G41,G42:G45) -> 0 | N46: =SUM(N37,N38,N41,N42:N45) -> 0 | U46: =SUM(U37,U38,U41,U42:U45) -> 0
B47: 21 | C47: 素因減額（％）
B48: 22 | C48: 後遺障害計（13～21） | G48: =ROUNDDOWN(G46*(1-G47),0) -> 0 | N48: =ROUNDDOWN(N46*(1-N47),0) -> 0 | U48: =ROUNDDOWN(U46*(1-U47),0) -> 0
B49: 23 | C49: 物損（ﾒｶﾞﾈ･義肢･義足等）
B50: 24 | C50: 総 計（1～23） | G50: =G31+G48+G49 -> 0 | N50: =N31+N48+N49 -> 0 | U50: =U31+U48+U49 -> 0
B51: 25 | C51: 素 因 減 額(％)
B52: 26 | C52: 過 失 相 殺(％)
B53: 27 | C53: 賠償額 ｛総計(24)×(100- 素因(25)×(100-過失(26))｝ | G53: =ROUNDDOWN(G50*(1-G51)*(1-G52),0) -> 0 | N53: =ROUNDDOWN(N50*(1-N51)*(1-N52),0) -> 0 | U53: =ROUNDDOWN(U50*(1-U51)*(1-U52),0) -> 0
B54: 28 | C54: 自賠責保険(被害者請求) | AE54: 既払い入力へ
C55: 任意保険
C56: 人身傷害保険(求償額)
C57: 労災 | D57: 療養･介護補償給付
D58: (控除対象区分№)
D59: 休業･障害補償給付
D60: (控除対象区分№)
D61: 相殺不可額 | G61: △ | N61: △ | U61: △
C62: 既 払 合 計 | G62: =G54+G55+G56+G57+G59-I61 -> 0 | N62: =N54+N55+N56+N57+N59-P61 -> 0 | U62: =U54+U55+U56+U57+U59-W61 -> 0
B63: 29 | C63: 差 引 額 (賠償額(27)－既払(28)) | G63: =G53-G62 -> 0 | N63: =N53-N62 -> 0 | U63: =U53-U62 -> 0
A64: 摘 要
A67: ※争点について 合意項目に○、重要争点は×、非重要争点は△をつける | AD67: （単位：円）

Sheet 算定原票（傷・後）-既払
A1: 既払【傷害、後遺障害】 | C1: 元の表に戻る | F1: メニューに戻る
B2: 被害者の主張 | E2: ↓転送ボタン | F2: 計算エリア
C3: [自賠責保険（被害者請求）] | D3: 保険金
C4: [任意保険] | D4: 保険金
B5: [人身傷害保険（求償額）]
B6: 受取額 | C6: 24.総計 | D6: 素因減額・過失相殺 | E6: 求償額
C7: =算定傷後!G50 -> 0 | D7: =算定傷後!G51+算定傷後!G52 -> 0 | E7: =IF(AND(B7>0,B7-C7*D7>0),B7-C7*D7,0) -> 0
B9: [療養・介護給付] | C9: 療養給付額 | D9: 介護給付額 | E9: 給付合計
E10: =C10+D10 -> 0
B11: 控除対象チェック↓_
B12: 費目 | C12: 損害額 | D12: 素因減額・過失相殺 | E12: 相殺後賠償額
B13: 1.治療費 | C13: =算定傷後!G7 -> 0 | D13: =算定傷後!G30+算定傷後!G52 -> 0 | E13: =IF(G13,C13*(1-D13),0) -> 0 | G13: FALSE
B14: 2.付添費 | C14: =算定傷後!G10 -> 0 | D14: =$D$13 -> 0 | E14: =IF(G14,C14*(1-D14),0) -> 0 | G14: FALSE
B15: 3.入院雑費 | C15: =算定傷後!G12 -> 0 | D15: =$D$13 -> 0 | E15: =IF(G15,C15*(1-D15),0) -> 0 | G15: FALSE
B16: 4.通院交通費 | C16: =算定傷後!G14 -> 0 | D16: =$D$13 -> 0 | E16: 0 | G16: FALSE
B17: ="7."&算定傷後!C26 -> 7. | C17: =算定傷後!G26 -> 0 | D17: =$D$13 -> 0 | E17: 0 | G17: FALSE
B18: ="8."&算定傷後!C27 -> 8. | C18: =算定傷後!G27 -> 0 | D18: =$D$13 -> 0 | E18: 0 | G18: FALSE
B19: 15.介護料 | C19: =算定傷後!G39 -> 0 | D19: =算定傷後!G47+算定傷後!G52 -> 0 | E19: 0 | G19: FALSE
B20: 16.介護用品費 | C20: =算定傷後!G42 -> 0 | D20: =$D$19 -> 0 | E20: 0 | G20: FALSE
B21: 17.住宅改造費 | C21: =算定傷後!G43 -> 0 | D21: =$D$19 -> 0 | E21: 0 | G21: FALSE
B22: 18.車両改造費 | C22: =算定傷後!G44 -> 0 | D22: =$D$19 -> 0 | E22: 0 | G22: FALSE
B23: ="19."&算定傷後!C45 -> 19. | C23: =算定傷後!G45 -> 0 | D23: =$D$19 -> 0 | E23: 0 | F23: 相殺不可額 | G23: FALSE
D24: 計 | E24: =SUM(E13:E23) -> 0 | F24: =IF(E10-E24<0,0,E10-E24) -> 0
E25: 選択された控除対象＞ | F25: =IF(G13,"(1)","") & IF(G14,"(2)","")& IF(G15,"(3)","")& IF(G16,"(4)","")& IF(G17,"(7)","")& IF(G18,"(8)","")& IF(G19,"(15)","")& IF(G20,"(16)","")& IF(G21,"(17)","")& IF(G22,"(18)","")& IF(G23,"(19)","") -> 
B26: [休業・障害補償給付] | C26: 休業給付額 | D26: 障害補償給付額 | E26: 給付合計
E27: =C27+D27 -> 0
B28: 控除対象チェック↓_
B29: 費目 | C29: 損害額 | D29: 素因減額・過失相殺 | E29: 相殺後賠償額
B30: 5.休業損害 | C30: =算定傷後!G16 -> 0 | D30: =$D$13 -> 0 | E30: =IF(G30,C30*(1-D30),0) -> 0 | G30: FALSE
B31: ="9."&算定傷後!C28 -> 9. | C31: =算定傷後!G28 -> 0 | D31: =$D$13 -> 0 | E31: =IF(G31,C31*(1-D31),0) -> 0 | G31: FALSE
B32: 13.逸失利益 | C32: =算定傷後!G32 -> 0 | D32: =$D$19 -> 0 | E32: =IF(G32,C32*(1-D32),0) -> 0 | F32: 相殺不可額 | G32: FALSE
D33: 計 | E33: =SUM(E30:E32) -> 0 | F33: =IF(E27-E33<0,0,E27-E33) -> 0
B34: ≪サマリー≫ | E34: 選択された控除対象＞ | F34: =IF(G30,"(5)","")& IF(G31,"(9)","")& IF(G32,"(13)","") -> 
B35: 24.総計 | C35: 素因減額・過失相殺(％) | D35: 27.賠償額 | E35: 控除額計 | F35: 相殺不可額合計
B36: =算定傷後!G50 -> 0 | C36: =$D$7 -> 0 | D36: =算定傷後!G53 -> 0 | E36: =E3+E4+E7+C10+C27 -> 0 | F36: =F24+F33 -> 0
E38: 28.既払合計 | F38: 控除額計－相殺不可額合計
E39: =IF(E36-F36<0,0,E36-F36) -> 0
E40: 29.差引額 | F40: 27.賠償額－28.既払合計
E41: =D36-E39 -> 0
B43: 加害者の主張 | E43: ↓転送ボタン | F43: 計算エリア
C44: [自賠責保険（被害者請求）] | D44: 保険金
C45: [任意保険] | D45: 保険金
B46: [人身傷害保険（求償額）]
B47: 受取額 | C47: 24.総計 | D47: 素因減額・過失相殺 | E47: 求償額
C48: =算定傷後!N50 -> 0 | D48: =算定傷後!N51+算定傷後!N52 -> 0 | E48: =IF(AND(B48>0,B48-C48*D48>0),B48-C48*D48,0) -> 0
B50: [療養・介護給付] | C50: 療養給付額 | D50: 介護給付額 | E50: 給付合計
E51: =C51+D51 -> 0
B52: 控除対象チェック↓_
B53: 費目 | C53: 損害額 | D53: 素因減額・過失相殺 | E53: 相殺後賠償額
B54: 1.治療費 | C54: =算定傷後!N7 -> 0 | D54: =算定傷後!N30+算定傷後!N52 -> 0 | E54: =IF(G54,C54*(1-D54),0) -> 0 | G54: FALSE
B55: 2.付添費 | C55: =算定傷後!N10 -> 0 | D55: =$D$54 -> 0 | E55: =IF(G55,C55*(1-D55),0) -> 0 | G55: FALSE
B56: 3.入院雑費 | C56: =算定傷後!N12 -> 0 | D56: =$D$54 -> 0 | E56: =IF(G56,C56*(1-D56),0) -> 0 | G56: FALSE
B57: 4.通院交通費 | C57: =算定傷後!N14 -> 0 | D57: =$D$54 -> 0 | E57: =IF(G57,C57*(1-D57),0) -> 0 | G57: FALSE
B58: ="7."&算定傷後!$C$26 -> 7. | C58: =算定傷後!N26 -> 0 | D58: =$D$54 -> 0 | E58: 0 | G58: FALSE
B59: ="8."&算定傷後!$C$27 -> 8. | C59: =算定傷後!N27 -> 0 | D59: =$D$54 -> 0 | E59: 0 | G59: FALSE
B60: 15.介護料 | C60: =算定傷後!N39 -> 0 | D60: =算定傷後!N47+算定傷後!N52 -> 0 | E60: 0 | G60: FALSE
B61: 16.介護用品費 | C61: =算定傷後!N42 -> 0 | D61: =$D$60 -> 0 | E61: 0 | G61: FALSE
B62: 17.住宅改造費 | C62: =算定傷後!N43 -> 0 | D62: =$D$60 -> 0 | E62: 0 | G62: FALSE
B63: 18.車両改造費 | C63: =算定傷後!N44 -> 0 | D63: =$D$60 -> 0 | E63: 0 | G63: FALSE
B64: ="19."&算定傷後!$C$45 -> 19. | C64: =算定傷後!N45 -> 0 | D64: =$D$60 -> 0 | E64: 0 | F64: 相殺不可額 | G64: FALSE
D65: 計 | E65: =SUM(E54:E64) -> 0 | F65: =IF(E51-E65<0,0,E51-E65) -> 0
E66: 選択された控除対象＞ | F66: =IF(G54,"(1)","") & IF(G55,"(2)","")& IF(G56,"(3)","")& IF(G57,"(4)","")& IF(G58,"(7)","")& IF(G59,"(8)","")& IF(G60,"(15)","")& IF(G61,"(16)","")& IF(G62,"(17)","")& IF(G63,"(18)","")& IF(G64,"(19)","") -> 
B67: [休業・障害補償給付] | C67: 休業給付額 | D67: 障害補償給付額 | E67: 給付合計
E68: =C68+D68 -> 0
B69: 控除対象チェック↓_
B70: 費目 | C70: 損害額 | D70: 素因減額・過失相殺 | E70: 相殺後賠償額
B71: 5.休業損害 | C71: =算定傷後!N16 -> 0 | D71: =$D$54 -> 0 | E71: =IF(G71,C71*(1-D71),0) -> 0 | G71: FALSE
B72: ="9."&算定傷後!C69 -> 9. | C72: =算定傷後!N28 -> 0 | D72: =$D$54 -> 0 | E72: =IF(G72,C72*(1-D72),0) -> 0 | G72: FALSE
B73: 13.逸失利益 | C73: =算定傷後!N32 -> 0 | D73: =$D$60 -> 0 | E73: =IF(G73,C73*(1-D73),0) -> 0 | F73: 相殺不可額 | G73: FALSE
D74: 計 | E74: =SUM(E71:E73) -> 0 | F74: =IF(E68-E74<0,0,E68-E74) -> 0
B75: ≪サマリー≫ | E75: 選択された控除対象＞ | F75: =IF(G71,"(5)","")& IF(G72,"(9)","")& IF(G73,"(13)","") -> 
B76: 24.総計 | C76: 素因減額・過失相殺(％) | D76: 27.賠償額 | E76: 控除額計 | F76: 相殺不可額合計
B77: =算定傷後!N50 -> 0 | C77: =$D$48 -> 0 | D77: =算定傷後!N53 -> 0 | E77: =E44+E45+E48+C51+C68 -> 0 | F77: =F65+F74 -> 0
E79: 28.既払合計 | F79: 控除額計－相殺不可額合計
E80: =IF(E77-F77<0,0,E77-F77) -> 0
E81: 29.差引額 | F81: 27.賠償額－28.既払合計
E82: =D77-E80 -> 0
B84: 斡旋案 | E84: ↓転送ボタン | F84: 計算エリア
C85: [自賠責保険（被害者請求）] | D85: 保険金
C86: [任意保険] | D86: 保険金
B87: [人身傷害保険（求償額）]
B88: 受取額 | C88: 24.総計 | D88: 素因減額・過失相殺 | E88: 求償額
C89: =算定傷後!U50 -> 0 | D89: =算定傷後!U51+算定傷後!U52 -> 0 | E89: =IF(AND(B89>0,B89-C89*D89>0),B89-C89*D89,0) -> 0
B91: [療養・介護給付] | C91: 療養給付額 | D91: 介護給付額 | E91: 給付合計
E92: =C92+D92 -> 0
B93: 控除対象チェック↓_
B94: 費目 | C94: 損害額 | D94: 素因減額・過失相殺 | E94: 相殺後賠償額
B95: 1.治療費 | C95: =算定傷後!U7 -> 0 | D95: =算定傷後!U30+算定傷後!U52 -> 0 | E95: =IF(G95,C95*(1-D95),0) -> 0 | G95: FALSE
B96: 2.付添費 | C96: =算定傷後!U10 -> 0 | D96: =$D$95 -> 0 | E96: =IF(G96,C96*(1-D96),0) -> 0 | G96: FALSE
B97: 3.入院雑費 | C97: =算定傷後!U12 -> 0 | D97: =$D$95 -> 0 | E97: =IF(G97,C97*(1-D97),0) -> 0 | G97: FALSE
B98: 4.通院交通費 | C98: =算定傷後!U14 -> 0 | D98: =$D$95 -> 0 | E98: =IF(G98,C98*(1-D98),0) -> 0 | G98: FALSE
B99: ="7."&算定傷後!$C$26 -> 7. | C99: =算定傷後!U26 -> 0 | D99: =$D$95 -> 0 | E99: 0 | G99: FALSE
B100: ="8."&算定傷後!$C$27 -> 8. | C100: =算定傷後!U27 -> 0 | D100: =$D$95 -> 0 | E100: 0 | G100: FALSE
B101: 15.介護料 | C101: =算定傷後!U39 -> 0 | D101: =算定傷後!U47+算定傷後!U52 -> 0 | E101: 0 | G101: FALSE
B102: 16.介護用品費 | C102: =算定傷後!U42 -> 0 | D102: =$D$101 -> 0 | E102: 0 | G102: FALSE
B103: 17.住宅改造費 | C103: =算定傷後!U43 -> 0 | D103: =$D$101 -> 0 | E103: 0 | G103: FALSE
B104: 18.車両改造費 | C104: =算定傷後!U44 -> 0 | D104: =$D$101 -> 0 | E104: 0 | G104: FALSE
B105: ="19."&算定傷後!$C$45 -> 19. | C105: =算定傷後!U45 -> 0 | D105: =$D$101 -> 0 | E105: 0 | F105: 相殺不可額 | G105: FALSE
D106: 計 | E106: =SUM(E95:E105) -> 0 | F106: =IF(E92-E106<0,0,E92-E106) -> 0
E107: 選択された控除対象＞ | F107: =IF(G95,"(1)","") & IF(G96,"(2)","")& IF(G97,"(3)","")& IF(G98,"(4)","")& IF(G99,"(7)","")& IF(G100,"(8)","")& IF(G101,"(15)","")& IF(G102,"(16)","")& IF(G103,"(17)","")& IF(G104,"(18)","")& IF(G105,"(19)","") -> 
B108: [休業・障害補償給付] | C108: 休業給付額 | D108: 障害補償給付額 | E108: 給付合計
E109: =C109+D109 -> 0
B110: 控除対象チェック↓_
B111: 費目 | C111: 損害額 | D111: 素因減額・過失相殺 | E111: 相殺後賠償額
B112: 5.休業損害 | C112: =算定傷後!U16 -> 0 | D112: =$D$95 -> 0 | E112: =IF(G112,C112*(1-D112),0) -> 0 | G112: FALSE
B113: ="9."&算定傷後!C110 -> 9. | C113: =算定傷後!U28 -> 0 | D113: =$D$95 -> 0 | E113: =IF(G113,C113*(1-D113),0) -> 0 | G113: FALSE
B114: 13.逸失利益 | C114: =算定傷後!U32 -> 0 | D114: =$D$101 -> 0 | E114: =IF(G114,C114*(1-D114),0) -> 0 | F114: 相殺不可額 | G114: FALSE
D115: 計 | E115: =SUM(E112:E114) -> 0 | F115: =IF(E109-E115<0,0,E109-E115) -> 0
B116: ≪サマリー≫ | E116: 選択された控除対象＞ | F116: =IF(G112,"(5)","")& IF(G113,"(9)","")& IF(G114,"(13)","") -> 
B117: 24.総計 | C117: 素因減額・過失相殺(％) | D117: 27.賠償額 | E117: 控除額計 | F117: 相殺不可額合計
B118: =算定傷後!U50 -> 0 | C118: =$D$89 -> 0 | D118: =算定傷後!U53 -> 0 | E118: =E85+E86+E89+E106+E115 -> 0 | F118: =F106+F115 -> 0
E120: 28.既払合計 | F120: 控除額計－相殺不可額合計
E121: =IF(E118-F118<0,0,E118-F118) -> 0
E122: 29.差引額 | F122: 27.賠償額－28.既払合計
E123: =D118-E121 -> 0

Sheet 算定死亡
A1: 算 定 原 票（死亡） | AG1: メニューに戻る
V2: 作成日： | Z2: =TODAY() -> 2024-07-14 | AF2: 相手方保険会社
A3: 氏名 | M3: 生 | Q3: 歳 | R3: 事故日
A4: 学歴 | G4: 職業 | U4: 死亡日
A5: 区 分 | G5: 被害者側の主張 | O5: 加害者側の主張 | W5: 斡旋案 | AE5: 争 点 | AF5: コメント
A6: 死 亡 | B6: 1 | C6: 逸 失 利 益 | AF6: 平成２５年賃金センサス女子学歴計６５－６９の値を基準、就労可能年齢を平均余命の１／２（７５歳）までとする。
C7: 死亡年月日 | E7: =IF(W4>0,W4,"") ->  | G7: 基礎収入 | O7: 基礎収入 | W7: 基礎収入
C8: 就労可能年数 | F8: 年 | G8: 生活費控除率 | N8: % | O8: 生活費控除率 | V8: % | W8: 生活費控除率 | AD8: %
G9: 就労可能年数 | N9: 年 | O9: 就労可能年数 | V9: 年 | W9: 就労可能年数 | AD9: 年
I10: 年 | K10: 係数 | Q10: 年 | S10: 係数 | Y10: 年 | AA10: 係数 | AG10: 元の表に戻る
C11: 年金の逸失利益 | AF11: ７５から平均余命までの年金について対象とする
C12: 死亡年月日 | E12: =IF(W4>0,W4,"") ->  | G12: 年金収入 | O12: 年金収入 | W12: 年金収入
C13: 死亡年齢 | E13: =IF(N3>0,N3,"") ->  | F13: 歳 | G13: 生活費控除率 | N13: % | O13: 生活費控除率 | V13: % | W13: 生活費控除率 | AD13: %
G14: 平均余命年数 | N14: 年 | O14: 平均余命年数 | V14: 年 | W14: 平均余命年数 | AD14: 年
I15: 年 | K15: 係数 | Q15: 年 | S15: 係数 | Y15: 年 | AA15: 係数
B16: 2 | C16: 葬 儀 費
B17: 3 | C17: 慰 謝 料 | AF17: 事故態様、被害者生活状況、近親者固有分を考慮
B18: 4
B19: 5
B20: 6 | C20: 小 計（1～5） | G20: =G6+G11+G16+G17+G18+G19 -> 0 | O20: =O6+O11+O16+O17+O18+O19 -> 0 | W20: =W6+W11+W16+W17+W18+W19 -> 0
A21: 傷 害 | B21: 7 | C21: 治 療 費
B22: 8 | C22: 付 添 費
C23: (単価 × 要付添日) | G23: @ | K23: × | N23: 日 | O23: @ | S23: × | V23: 日 | W23: @ | AA23: × | AD23: 日
B24: 9 | C24: 入 院 雑 費
C25: (単価 × 入院日数) | G25: @ | H25: 1500 | K25: × | N25: 日 | O25: @ | S25: × | V25: 日 | W25: @ | AA25: × | AD25: 日
B26: 10 | C26: 通 院 交 通 費
C27: (単価 × 認定通院日数) | G27: @ | K27: × | N27: 日 | O27: @ | S27: × | V27: 日 | W27: @ | AA27: × | AD27: 日
B28: 11 | C28: 休 業 損 害 | AG28: 元の表に戻る
C29: (単価 × 認定休業日数) | G29: @ | K29: × | N29: 日 | O29: @ | S29: × | V29: 日 | W29: @ | AA29: × | AD29: 日 | AG29: 元の表に戻る
B30: 12 | C30: 慰 謝 料 | AG30: 元の表に戻る
C31: (入院及び通院日数) | K31: 入院 | N31: 日 | S31: 入院 | V31: 日 | AA31: 入院 | AD31: 日
K32: 通院実 | N32: 日 | S32: 通院実 | V32: 日 | AA32: 通院実 | AD32: 日
K33: 延 | N33: 日 | S33: 延 | V33: 日 | AA33: 延 | AD33: 日
B34: 13 | C34: 文書料
B35: 14
B36: 15 | C36: 小 計（7～14） | G36: =G21+G22+G24+G26+G28+G30+G34 -> 0 | O36: =O21+O22+O24+O26+O28+O30+O34 -> 0 | W36: =W21+W22+W24+W26+W28+W30+W34 -> 0
B37: 16 | C37: 物 損（衣類・自転車等）
B38: 17 | C38: 総 計（1～16） | G38: =G20+G36+G37 -> 0 | O38: =O20+O36+O37 -> 0 | W38: =W20+W36+W37 -> 0
B39: 18 | C39: 過 失 相 殺（％）
C40: (好意同乗・素因減額)
B42: 19 | C42: 賠償額 ｛総計(17)×(100-過失(18))｝ | G42: =G38*(1-G39) -> 0 | O42: =O38*(1-O39) -> 0 | W42: =W38*(1-W39) -> 0
B43: 20 | C43: 自賠責保険(被害者請求)
C44: 任 意 保 険
C45: 人身傷害保険(求償額)
C46: 労災 | D46: 療養･介護給付
D47: (控除対象区分№)
D48: 休業･遺族年金給付
D49: (控除対象区分№)
D50: 葬祭給付
D51: (控除対象区分№)
D52: 相殺不可額 | G52: △ | O52: △ | W52: △
C53: 既 払 合 計 | G53: =G43+G44+G45+G46+G48+G50 -> 0 | O53: =O43+O44+O45+O46+O48+O50 -> 0 | W53: =W43+W44+W45+W46+W48+W50 -> 0
B54: 21 | C54: 差引額 (賠償額(19)－既払(20)) | G54: =G42-G53 -> 0 | O54: =O42-O53 -> 0 | W54: =W42-W53 -> 0
A55: 摘 要
A57: ※争点について 合意項目に○、重要争点は×、非重要争点は△をつける | AE57: （単位：円）

Sheet 算定死亡-既払
A1: 既払【死亡時】 | F1: メニューに戻る
B2: 被害者の主張 | E2: ↓転送ボタン | F2: 計算エリア
C3: [自賠責保険（被害者請求）] | D3: 保険金
C4: [任意保険] | D4: 保険金
B5: [人身傷害保険（求償額）]
B6: 受取額 | C6: 17.総計 | D6: 18.過失相殺(％) | E6: 求償額
C7: =算定死亡!G38 -> 0 | D7: =算定死亡!$G$39 -> 0 | E7: =IF(AND(B7>0,B7-C7*D7>0),B7-C7*D7,0) -> 0
B9: [療養・介護給付] | C9: 療養給付額 | D9: 介護給付額 | E9: 給付合計
E10: =C10+D10 -> 0
B11: 控除対象チェック↓_
B12: 費目 | C12: 損害額 | D12: 素因減額・過失相殺 | E12: 相殺後賠償額
B13: 7.治療費 | C13: =算定死亡!G21 -> 0 | D13: =$D$7 -> 0 | E13: =IF(G13,C13*(1-D13),0) -> 0 | G13: FALSE
B14: 8.付添費 | C14: =算定死亡!G22 -> 0 | D14: 0 | E14: 0 | G14: FALSE
B15: 9.入院雑費 | C15: =算定死亡!G24 -> 0 | D15: 0 | E15: 0 | G15: FALSE
B16: 10.通院交通費 | C16: =算定死亡!G26 -> 0 | D16: 0 | E16: 0 | G16: FALSE
B17: ="13."& 算定死亡!C34 -> 13.文書料 | C17: =算定死亡!G34 -> 0 | D17: 0 | E17: 0 | G17: FALSE
B18: ="14."&算定死亡!C35 -> 14. | C18: =算定死亡!G35 -> 0 | D18: 0 | E18: 0 | F18: 相殺不可額 | G18: FALSE
D19: 計 | E19: =SUM(E13:E18) -> 0 | F19: =IF(E10-E19<0,0,E10-E19) -> 0
E20: 選択された控除対象＞ | F20: =IF(G13,"(7)","") & IF(G14,"(8)","")& IF(G15,"(9)","")& IF(G16,"(10)","")& IF(G17,"(13)","")& IF(G18,"(14)","") -> 
B22: [休業・障害補償給付] | C22: 休業給付額 | D22: 遺族補償年金給付額 | E22: 給付合計
E23: =C23+D23 -> 0
B24: 控除対象チェック↓_
B25: 費目 | C25: 損害額 | D25: 素因減額・過失相殺 | E25: 相殺後賠償額
B26: 1-1.逸失利益 | C26: =算定死亡!G6 -> 0 | D26: =$D$7 -> 0 | E26: =IF(G26,C26*(1-D26),0) -> 0 | G26: FALSE
B27: 1-2.年金の逸失利益 | C27: =算定死亡!G11 -> 0 | D27: =$D$7 -> 0 | E27: =IF(G27,C27*(1-D27),0) -> 0 | G27: FALSE
B28: ="4."&算定死亡!C18 -> 4. | C28: =算定死亡!G18 -> 0 | D28: =$D$7 -> 0 | E28: =IF(G28,C28*(1-D28),0) -> 0 | G28: FALSE
B29: ="5."&算定死亡!C19 -> 5. | C29: =算定死亡!G19 -> 0 | D29: =$D$7 -> 0 | E29: =IF(G29,C29*(1-D29),0) -> 0 | G29: FALSE
B30: 11.休業損害 | C30: =算定死亡!G28 -> 0 | D30: =$D$7 -> 0 | E30: =IF(G30,C30*(1-D30),0) -> 0 | F30: 相殺不可額 | G30: FALSE
D31: 計 | E31: =SUM(E26:E30) -> 0 | F31: =IF(E23-E31<0,0,E23-E31) -> 0
E32: 選択された控除対象＞ | F32: =IF(G26,"(1-1)","")& IF(G27,"(1-2)","")& IF(G28,"(4)","")& IF(G29,"(5)","")& IF(G30,"(11)","") -> 
B33: [葬祭給付]
B34: 葬祭給付額
B37: 費目 | C37: 損害額 | D37: 18.過失相殺(％) | E37: 相殺後賠償額
B38: 2.葬儀費 | C38: =算定死亡!G16 -> 0 | D38: =$D$7 -> 0 | E38: =IF(G38,C38*(1-D38),0) -> 0 | F38: 相殺不可額
D39: 計 | E39: =SUM(E38) -> 0 | F39: =IF(B35-E39<0,0,E31-E39) -> 0
F40: =IF(B35>0,"(2)","") -> 
B41: ≪サマリー≫
B42: 17.総計 | C42: 18.過失相殺(%) | D42: 19.賠償額 | E42: 控除額計
B43: =算定死亡!G38 -> 0 | C43: =$D$7 -> 0 | D43: =算定死亡!G42 -> 0 | E43: =E3+E4+E7+C10+C23 -> 0
E44: 相殺不可額合計
E45: =F19+F31+F39 -> 0
E46: 20.既払合計
E47: =算定死亡!G53 -> 0
E48: 21.差引額
E49: =算定死亡!G54 -> 0
B51: 加害者の主張 | E51: ↓転送ボタン | F51: 計算エリア
C52: [自賠責保険（被害者請求）] | D52: 保険金
C53: [任意保険] | D53: 保険金
B54: [人身傷害保険（求償額）]
B55: 受取額 | C55: 17.総計 | D55: 18.過失相殺(％) | E55: 求償額
C56: =算定死亡!O38 -> 0 | D56: =算定死亡!O39 -> 0 | E56: =IF(AND(B56>0,B56-C56*D56>0),B56-C56*D56,0) -> 0
B58: [療養・介護給付] | C58: 療養給付額 | D58: 介護給付額 | E58: 給付合計
E59: =C59+D59 -> 0
B60: 控除対象チェック↓_
B61: 費目 | C61: 損害額 | D61: 素因減額・過失相殺 | E61: 相殺後賠償額
B62: 7.治療費 | C62: =算定死亡!O21 -> 0 | D62: =$D$56 -> 0 | E62: =IF(G62,C62*(1-D62),0) -> 0 | G62: FALSE
B63: 8.付添費 | C63: =算定死亡!O22 -> 0 | D63: 0 | E63: 0 | G63: FALSE
B64: 9.入院雑費 | C64: =算定死亡!O24 -> 0 | D64: 0 | E64: 0 | G64: FALSE
B65: 10.通院交通費 | C65: =算定死亡!O26 -> 0 | D65: 0 | E65: 0 | G65: FALSE
B66: ="13."& 算定死亡!C34 -> 13.文書料 | C66: =算定死亡!O34 -> 0 | D66: 0 | E66: 0 | G66: FALSE
B67: ="14."&算定死亡!C35 -> 14. | C67: =算定死亡!O35 -> 0 | D67: 0 | E67: 0 | F67: 相殺不可額 | G67: FALSE
D68: 計 | E68: =SUM(E62:E67) -> 0 | F68: =IF(E59-E68<0,0,E59-E68) -> 0 | G68: FALSE
E69: 選択された控除対象＞ | F69: =IF(G62,"(7)","") & IF(G63,"(8)","")& IF(G64,"(9)","")& IF(G65,"(10)","")& IF(G66,"(13)","")& IF(G67,"(14)","") -> 
B71: [休業・障害補償給付] | C71: 休業給付額 | D71: 遺族補償年金給付額 | E71: 給付合計
E72: =C72+D72 -> 0
B73: 控除対象チェック↓_
B74: 費目 | C74: 損害額 | D74: 素因減額・過失相殺 | E74: 相殺後賠償額
B75: 1-1.逸失利益 | C75: =算定死亡!O6 -> 0 | D75: =$D$56 -> 0 | E75: =IF(G75,C75*(1-D75),0) -> 0 | G75: FALSE
B76: 1-2.年金の逸失利益 | C76: =算定死亡!O11 -> 0 | D76: =$D$56 -> 0 | E76: =IF(G76,C76*(1-D76),0) -> 0
B77: ="4."&算定死亡!C18 -> 4. | C77: =算定死亡!O18 -> 0 | D77: =$D$56 -> 0 | E77: =IF(G77,C77*(1-D77),0) -> 0
B78: ="5."&算定死亡!C19 -> 5. | C78: =算定死亡!O19 -> 0 | D78: =$D$56 -> 0 | E78: =IF(G78,C78*(1-D78),0) -> 0
B79: 11.休業損害 | C79: =算定死亡!O28 -> 0 | D79: =$D$56 -> 0 | E79: =IF(G79,C79*(1-D79),0) -> 0 | F79: 相殺不可額 | G79: FALSE
D80: 計 | E80: =SUM(E75:E79) -> 0 | F80: =IF(E72-E80<0,0,E72-E80) -> 0
E81: 選択された控除対象＞ | F81: =IF(G75,"(1-1)","")& IF(G76,"(1-2)","")& IF(G77,"(4)","")& IF(G78,"(5)","")& IF(G79,"(11)","") -> 
B82: [葬祭給付]
B83: 葬祭給付額
B86: 費目 | C86: 損害額 | D86: 18.過失相殺(％) | E86: 相殺後賠償額
B87: 2.葬儀費 | C87: =算定死亡!O16 -> 0 | D87: =$D$56 -> 0 | E87: =IF(G87,C87*(1-D87),0) -> 0 | F87: 相殺不可額
D88: 計 | E88: =SUM(E87) -> 0 | F88: =IF(B84-E88<0,0,B84-E88) -> 0
F89: =IF(B84>0,"(2)","") -> 
B90: ≪サマリー≫
B91: 17.総計 | C91: 18.過失相殺(%) | D91: 19.賠償額 | E91: 控除額計
B92: =算定死亡!O38 -> 0 | C92: =$D$56 -> 0 | D92: =算定死亡!O42 -> 0 | E92: =E52+E53+E56+C59+C72 -> 0
E93: 相殺不可額合計
E94: =F68+F80+F88 -> 0
E95: 20.既払合計
E96: =算定死亡!O53 -> 0
E97: 21.差引額
E98: =算定死亡!O54 -> 0
B100: 斡旋案 | E100: ↓転送ボタン | F100: 計算エリア
C101: [自賠責保険（被害者請求）] | D101: 保険金
C102: [任意保険] | D102: 保険金
B103: [人身傷害保険（求償額）]
B104: 受取額 | C104: 17.総計 | D104: 18.過失相殺(％) | E104: 求償額
C105: =算定死亡!W38 -> 0 | D105: =算定死亡!W39 -> 0 | E105: =IF(AND(B105>0,B105-C105*D105>0),B105-C105*D105,0) -> 0
B107: [療養・介護給付] | C107: 療養給付額 | D107: 介護給付額 | E107: 給付合計
E108: =C108+D108 -> 0
B109: 控除対象チェック↓_
B110: 費目 | C110: 損害額 | D110: 素因減額・過失相殺 | E110: 相殺後賠償額
B111: 7.治療費 | C111: =算定死亡!W21 -> 0 | D111: =$D$105 -> 0 | E111: =IF(G111,C111*(1-D111),0) -> 0 | G111: FALSE
B112: 8.付添費 | C112: =算定死亡!W22 -> 0 | D112: 0 | E112: 0 | G112: FALSE
B113: 9.入院雑費 | C113: =算定死亡!W24 -> 0 | D113: 0 | E113: 0 | G113: FALSE
B114: 10.通院交通費 | C114: =算定死亡!W26 -> 0 | D114: 0 | E114: 0 | G114: FALSE
B115: ="13."& 算定死亡!C34 -> 13.文書料 | C115: =算定死亡!W34 -> 0 | D115: 0 | E115: 0 | G115: FALSE
B116: ="14."&算定死亡!C35 -> 14. | C116: =算定死亡!W35 -> 0 | D116: 0 | E116: 0 | F116: 相殺不可額 | G116: FALSE
D117: 計 | E117: =SUM(E111:E116) -> 0 | F117: =IF(E108-E117<0,0,E108-E117) -> 0
E118: 選択された控除対象＞ | F118: =IF(G111,"(7)","") & IF(G112,"(8)","")& IF(G113,"(9)","")& IF(G114,"(10)","")& IF(G115,"(13)","")& IF(G116,"(14)","") -> 
B120: [休業・障害補償給付] | C120: 休業給付額 | D120: 遺族補償年金給付額 | E120: 給付合計
E121: =C121+D121 -> 0
B122: 控除対象チェック↓_
B123: 費目 | C123: 損害額 | D123: 素因減額・過失相殺 | E123: 相殺後賠償額
B124: 1-1.逸失利益 | C124: =算定死亡!W6 -> 0 | D124: =$D$105 -> 0 | E124: =IF(G124,C124*(1-D124),0) -> 0 | G124: FALSE
B125: 1-2.年金の逸失利益 | C125: =算定死亡!W11 -> 0 | D125: =$D$105 -> 0 | E125: =IF(G125,C125*(1-D125),0) -> 0 | G125: FALSE
B126: ="4."&算定死亡!C18 -> 4. | C126: =算定死亡!W18 -> 0 | D126: =$D$105 -> 0 | E126: =IF(G126,C126*(1-D126),0) -> 0 | G126: FALSE
B127: ="5."&算定死亡!C19 -> 5. | C127: =算定死亡!W19 -> 0 | D127: =$D$105 -> 0 | E127: =IF(G127,C127*(1-D127),0) -> 0 | G127: FALSE
B128: 11.休業損害 | C128: =算定死亡!W28 -> 0 | D128: =$D$105 -> 0 | E128: =IF(G128,C128*(1-D128),0) -> 0 | F128: 相殺不可額 | G128: FALSE
D129: 計 | E129: =SUM(E124:E128) -> 0 | F129: =IF(E121-E129<0,0,E121-E129) -> 0
E130: 選択された控除対象＞ | F130: =IF(G124,"(1-1)","")& IF(G125,"(1-2)","")& IF(G126,"(4)","")& IF(G127,"(5)","")& IF(G128,"(11)","") -> 
B131: [葬祭給付]
B132: 葬祭給付額
B135: 費目 | C135: 損害額 | D135: 18.過失相殺(％) | E135: 相殺後賠償額
B136: 2.葬儀費 | C136: =算定死亡!W16 -> 0 | D136: =$D$105 -> 0 | E136: =IF(G136,C136*(1-D136),0) -> 0 | F136: 相殺不可額
D137: 計 | E137: =SUM(E131:E136) -> 0 | F137: =IF(B133-E137<0,0,B133-E137) -> 0
F138: =IF(B133>0,"(2)","") -> 
B139: ≪サマリー≫
B140: 17.総計 | C140: 18.過失相殺(%) | D140: 19.賠償額 | E140: 控除額計
B141: =算定死亡!W38 -> 0 | C141: =$D$105 -> 0 | D141: =算定死亡!W42 -> 0 | E141: =E101+E102+E105+C108+C121 -> 0
E142: 相殺不可額合計
E143: =F117+F129+F137 -> 0
E144: 20.既払合計
E145: =算定死亡!W53 -> 0
E146: 21.差引額
E147: =算定死亡!W54 -> 0

Sheet 賃セＲ５ (hidden)
A1: 令和５年賃金構造基本統計調査
A2: 第１表 年齢階級別きまって支給する現金給与額、所定内給与額及び年間賞与その他特別給与額
A3: 産業 | C3: 産業計
A5: 区 分 | C5: 企業規模計（10人以上） | M5: 区 分 | O5: 企業規模計（10人以上） | Y5: 区 分 | AA5: 企業規模計（10人以上）
C6: 年齢 | D6: 勤続 年数 | E6: 所定内 実労働 時間数 | F6: 超過 実労働 時間数 | G6: きまって 支給す る現金 給与額 | I6: 年間賞与その他特別給与額 | J6: 年額計 | K6: 日額 | L6: 労働者数 | O6: 年齢 | P6: 勤続 年数 | Q6: 所定内 実労働 時間数 | R6: 超過 実労働 時間数 | S6: きまって 支給す る現金 給与額 | U6: 年間賞与その他特別給与額 | V6: 年額計 | W6: 日額 | X6: 労働者数 | AA6: 年齢 | AB6: 勤続 年数 | AC6: 所定内 実労働 時間数 | AD6: 超過 実労働 時間数 | AE6: きまって 支給す る現金 給与額 | AG6: 年間賞与その他特別給与額 | AH6: 年額計 | AI6: 日額 | AJ6: 労働者数
H7: 所定内 給与額 | K7: ÷365 | T7: 所定内 給与額 | W7: ÷365 | AF7: 所定内 給与額 | AI7: ÷365
C8: 歳 | D8: 年 | E8: 時間 | F8: 時間 | G8: 千円 | H8: 千円 | I8: 千円 | L8: 十人
A9: 0 | B9: 男女計 学歴計 | C9: 43.9 | D9: 12.4 | E9: 166 | F9: 12 | G9: 346.7 | H9: 318.3 | I9: 909 | J9: =G9*12+I9 -> 5069.4 | K9: =J9/365*1000 -> 13888.76712 | L9: 2996709 | N9: 男 学歴計 | O9: 44.6 | P9: 13.8 | Q9: 168 | R9: 14 | S9: 385.4 | T9: 350.9 | U9: 1073.4 | V9: =S9*12+U9 -> 5698.2 | W9: =V9/365*1000 -> 15611.50685 | X9: 1890589 | Z9: 女 学歴計 | AA9: 42.6 | AB9: 9.9 | AC9: 163 | AD9: 8 | AE9: 280.7 | AF9: 262.6 | AG9: 628.1 | AH9: =AE9*12+AG9 -> 3996.5 | AI9: =AH9/365*1000 -> 10949.31507 | AJ9: 1106120
A10: 1 | B10: ～１９歳 | C10: 19.1 | D10: 0.9 | E10: 167 | F10: 9 | G10: 206 | H10: 190 | I10: 148.7 | J10: =G10*12+I10 -> 2620.7 | K10: 7180 | L10: 24098 | N10: ～１９歳 | O10: 19.1 | P10: 0.9 | Q10: 166 | R10: 10 | S10: 209.6 | T10: 191.1 | U10: 160.7 | V10: 2675.9 | W10: 7331.232877 | X10: 13695 | Z10: ～１９歳 | AA10: 19.1 | AB10: 1 | AC10: 169 | AD10: 9 | AE10: 201.4 | AF10: 188.4 | AG10: 132.8 | AH10: 2549.6 | AI10: 6985.205479 | AJ10: 10402
A11: 2 | B11: ２０～２４歳 | C11: 23 | D11: 2.1 | E11: 167 | F11: 12 | G11: 247.7 | H11: 224.6 | I11: 378.9 | J11: 3351.3 | K11: 9181.643836 | L11: 223105 | N11: ２０～２４歳 | O11: 23 | P11: 2.3 | Q11: 168 | R11: 15 | S11: 257.8 | T11: 229.3 | U11: 421.7 | V11: 3515.3 | W11: 9630.958904 | X11: 114424 | Z11: ２０～２４歳 | AA11: 23 | AB11: 2 | AC11: 166 | AD11: 9 | AE11: 237.2 | AF11: 219.6 | AG11: 333.9 | AH11: 3180.3 | AI11: 8713.150685 | AJ11: 108681
A12: 3 | B12: ２５～２９歳 | C12: 27.5 | D12: 4.2 | E12: 166 | F12: 14 | G12: 289.8 | H12: 258.3 | I12: 663.1 | J12: 4140.7 | K12: 11344.38356 | L12: 319567 | N12: ２５～２９歳 | O12: 27.5 | P12: 4.5 | Q12: 168 | R12: 17 | S12: 305.7 | T12: 267.8 | U12: 724.9 | V12: 4393.3 | W12: 12036.43836 | X12: 181113 | Z12: ２５～２９歳 | AA12: 27.4 | AB12: 3.9 | AC12: 164 | AD12: 10 | AE12: 269.1 | AF12: 245.8 | AG12: 582.4 | AH12: 3811.6 | AI12: 10442.73973 | AJ12: 138454
A13: 4 | B13: ３０～３４歳 | C13: 32.5 | D13: 6.9 | E13: 165 | F13: 14 | G13: 319.4 | H13: 286 | I13: 802.1 | J13: 4634.9 | K13: 12698.35616 | L13: 290662 | N13: ３０～３４歳 | O13: 32.5 | P13: 7.3 | Q13: 167 | R13: 17 | S13: 343.6 | T13: 302.1 | U13: 912.7 | V13: 5035.9 | W13: 13796.9863 | X13: 180566 | Z13: ３０～３４歳 | AA13: 32.4 | AB13: 6.3 | AC13: 163 | AD13: 8 | AE13: 279.8 | AF13: 259.6 | AG13: 620.6 | AH13: 3978.2 | AI13: 10899.17808 | AJ13: 110096
A14: 5 | B14: ３５～３９歳 | C14: 37.5 | D14: 9.6 | E14: 165 | F14: 13 | G14: 349.3 | H14: 314.8 | I14: 938.1 | J14: 5129.7 | K14: 14053.9726 | L14: 313027 | N14: ３５～３９歳 | O14: 37.5 | P14: 10.1 | Q14: 167 | R14: 16 | S14: 380.7 | T14: 337.9 | U14: 1074.5 | V14: 5642.9 | W14: 15460 | X14: 206482 | Z14: ３５～３９歳 | AA14: 37.6 | AB14: 8.6 | AC14: 161 | AD14: 7 | AE14: 288.4 | AF14: 270.1 | AG14: 673.8 | AH14: 4134.6 | AI14: 11327.67123 | AJ14: 106544
A15: 6 | B15: ４０～４４歳 | C15: 42.5 | D15: 12.2 | E15: 166 | F15: 12 | G15: 370.4 | H15: 338.8 | I15: 1030.9 | J15: 5475.7 | K15: 15001.91781 | L15: 351570 | N15: ４０～４４歳 | O15: 42.5 | P15: 13.1 | Q15: 168 | R15: 15 | S15: 410.9 | T15: 371.8 | U15: 1201.3 | V15: 6132.1 | W15: 16800.27397 | X15: 229365 | Z15: ４０～４４歳 | AA15: 42.5 | AB15: 10.5 | AC15: 162 | AD15: 7 | AE15: 294.2 | AF15: 276.8 | AG15: 711.2 | AH15: 4241.6 | AI15: 11620.82192 | AJ15: 122205
A16: 7 | B16: ４５～４９歳 | C16: 47.6 | D16: 14.9 | E16: 166 | F16: 11 | G16: 385.7 | H16: 355.7 | I16: 1119.8 | J16: 5748.2 | K16: 15748.49315 | L16: 418135 | N16: ４５～４９歳 | O16: 47.6 | P16: 16.4 | Q16: 168 | R16: 14 | S16: 433.2 | T16: 396.9 | U16: 1314 | V16: 6512.4 | W16: 17842.19178 | X16: 268753 | Z16: ４５～４９歳 | AA16: 47.6 | AB16: 12.2 | AC16: 162 | AD16: 8 | AE16: 300.2 | AF16: 281.7 | AG16: 770.5 | AH16: 4372.9 | AI16: 11980.54795 | AJ16: 149382
A17: 8 | B17: ５０～５４歳 | C17: 52.4 | D17: 17.8 | E17: 166 | F17: 11 | G17: 399.2 | H17: 371.1 | I17: 1196.3 | J17: 5986.7 | K17: 16401.91781 | L17: 411748 | N17: ５０～５４歳 | O17: 52.4 | P17: 20 | Q17: 168 | R17: 12 | S17: 451.3 | T17: 417.7 | U17: 1434.6 | V17: 6850.2 | W17: 18767.67123 | X17: 266155 | Z17: ５０～５４歳 | AA17: 52.4 | AB17: 13.9 | AC17: 162 | AD17: 7 | AE17: 304.2 | AF17: 285.9 | AG17: 760.6 | AH17: 4411 | AI17: 12084.93151 | AJ17: 145593
A18: 9 | B18: ５５～５９歳 | C18: 57.4 | D18: 20.3 | E18: 165 | F18: 10 | G18: 402.8 | H18: 376.4 | I18: 1219.1 | J18: 6052.7 | K18: 16582.73973 | L18: 313400 | N18: ５５～５９歳 | O18: 57.4 | P18: 22.8 | Q18: 167 | R18: 12 | S18: 458.9 | T18: 427.4 | U18: 1474.8 | V18: 6981.6 | W18: 19127.67123 | X18: 203708 | Z18: ５５～５９歳 | AA18: 57.4 | AB18: 15.6 | AC18: 162 | AD18: 7 | AE18: 298.5 | AF18: 281.7 | AG18: 744.3 | AH18: 4326.3 | AI18: 11852.87671 | AJ18: 109692
A19: 10 | B19: ６０～６４歳 | C19: 62.3 | D19: 18.8 | E19: 164 | F19: 8 | G19: 324.4 | H19: 305.9 | I19: 723.6 | J19: 4616.4 | K19: 12647.67123 | L19: 209813 | N19: ６０～６４歳 | O19: 62.4 | P19: 20.2 | Q19: 166 | R19: 10 | S19: 356 | T19: 334.2 | U19: 843.1 | V19: 5115.1 | W19: 14013.9726 | X19: 142004 | Z19: ６０～６４歳 | AA19: 62.3 | AB19: 15.8 | AC19: 161 | AD19: 6 | AE19: 258.3 | AF19: 246.6 | AG19: 473.2 | AH19: 3572.8 | AI19: 9788.493151 | AJ19: 67809
A20: 11 | B20: ６５～６９歳 | C20: 67.2 | D20: 16.7 | E20: 163 | F20: 7 | G20: 284.6 | H20: 269.8 | I20: 362 | J20: 3777.2 | K20: 10348.49315 | L20: 78834 | N20: ６５～６９歳 | O20: 67.2 | P20: 16.8 | Q20: 165 | R20: 8 | S20: 309.7 | T20: 293.3 | U20: 403 | V20: 4119.4 | W20: 11286.0274 | X20: 54501 | Z20: ６５～６９歳 | AA20: 67.2 | AB20: 16.5 | AC20: 159 | AD20: 6 | AE20: 228.5 | AF20: 217.1 | AG20: 270.3 | AH20: 3012.3 | AI20: 8252.876712 | AJ20: 24333
A21: 12 | B21: ７０歳～ | C21: 73.2 | D21: 17.7 | E21: 162 | F21: 6 | G21: 265.9 | H21: 254.4 | I21: 270.3 | J21: 3461.1 | K21: 9482.465753 | L21: 42751 | N21: ７０歳～ | O21: 73.3 | P21: 17.2 | Q21: 164 | R21: 6 | S21: 283.4 | T21: 270.7 | U21: 278.2 | V21: 3679 | W21: 10079.45205 | X21: 29823 | Z21: ７０歳～ | AA21: 73 | AB21: 19 | AC21: 159 | AD21: 5 | AE21: 225.4 | AF21: 216.8 | AG21: 252.1 | AH21: 2956.9 | AI21: 8101.09589 | AJ21: 12928
A22: 13 | B22: 中学 | C22: 49.2 | D22: 13.2 | E22: 169 | F22: 14 | G22: 308.1 | H22: 275.9 | I22: 489.4 | J22: 4186.6 | K22: 11470.13699 | L22: 67989 | N22: 中学 | O22: 49.6 | P22: 14.2 | Q22: 171 | R22: 16 | S22: 330.9 | T22: 293.3 | U22: 545.1 | V22: 4515.9 | W22: 12372.32877 | X22: 52911 | Z22: 中学 | AA22: 47.7 | AB22: 9.4 | AC22: 163 | AD22: 7 | AE22: 227.8 | AF22: 214.7 | AG22: 293.7 | AH22: 3027.3 | AI22: 8293.972603 | AJ22: 15078
A23: 14 | B23: ～１９歳 | C23: 18.5 | D23: 1.6 | E23: 163 | F23: 7 | G23: 195.3 | H23: 185.5 | I23: 90.1 | J23: 2433.7 | K23: 6667.671233 | L23: 500 | N23: ～１９歳 | O23: 18.3 | P23: 1.5 | Q23: 163 | R23: 6 | S23: 200.9 | T23: 191.6 | U23: 128.7 | V23: 2539.5 | W23: 6957.534247 | X23: 331 | Z23: ～１９歳 | AA23: 18.9 | AB23: 1.9 | AC23: 164 | AD23: 9 | AE23: 184.2 | AF23: 173.5 | AG23: 14.4 | AH23: 2224.8 | AI23: 6095.342466 | AJ23: 169
A24: 15 | B24: ２０～２４歳 | C24: 22.8 | D24: 2.6 | E24: 167 | F24: 14 | G24: 245.7 | H24: 219.7 | I24: 172.2 | J24: 3120.6 | K24: 8549.589041 | L24: 1940 | N24: ２０～２４歳 | O24: 22.9 | P24: 2.6 | Q24: 169 | R24: 14 | S24: 260.9 | T24: 232.2 | U24: 204.4 | V24: 3335.2 | W24: 9137.534247 | X24: 1366 | Z24: ２０～２４歳 | AA24: 22.6 | AB24: 2.5 | AC24: 163 | AD24: 12 | AE24: 209.7 | AF24: 190 | AG24: 95.7 | AH24: 2612.1 | AI24: 7156.438356 | AJ24: 573
A25: 16 | B25: ２５～２９歳 | C25: 27.9 | D25: 4.2 | E25: 174 | F25: 13 | G25: 281.7 | H25: 252.2 | I25: 359.9 | J25: 3740.3 | K25: 10247.39726 | L25: 4250 | N25: ２５～２９歳 | O25: 27.9 | P25: 4.4 | Q25: 179 | R25: 15 | S25: 304.2 | T25: 268.3 | U25: 360.9 | V25: 4011.3 | W25: 10989.86301 | X25: 3122 | Z25: ２５～２９歳 | AA25: 27.8 | AB25: 3.9 | AC25: 160 | AD25: 6 | AE25: 219.5 | AF25: 207.3 | AG25: 357 | AH25: 2991 | AI25: 8194.520548 | AJ25: 1128
A26: 17 | B26: ３０～３４歳 | C26: 32.8 | D26: 6.5 | E26: 167 | F26: 12 | G26: 285.2 | H26: 256.8 | I26: 426.2 | J26: 3848.6 | K26: 10544.10959 | L26: 4663 | N26: ３０～３４歳 | O26: 32.7 | P26: 7.2 | Q26: 169 | R26: 14 | S26: 310 | T26: 275.3 | U26: 521 | V26: 4241 | W26: 11619.17808 | X26: 3223 | Z26: ３０～３４歳 | AA26: 32.9 | AB26: 5 | AC26: 164 | AD26: 9 | AE26: 229.7 | AF26: 215.3 | AG26: 214.3 | AH26: 2970.7 | AI26: 8138.90411 | AJ26: 1441
A27: 18 | B27: ３５～３９歳 | C27: 37.6 | D27: 8.1 | E27: 169 | F27: 18 | G27: 318.2 | H27: 277.1 | I27: 530.3 | J27: 4348.7 | K27: 11914.24658 | L27: 6811 | N27: ３５～３９歳 | O27: 37.6 | P27: 8.9 | Q27: 170 | R27: 22 | S27: 342.6 | T27: 292.8 | U27: 615 | V27: 4726.2 | W27: 12948.49315 | X27: 5170 | Z27: ３５～３９歳 | AA27: 37.7 | AB27: 5.4 | AC27: 164 | AD27: 8 | AE27: 241.4 | AF27: 227.5 | AG27: 263.6 | AH27: 3160.4 | AI27: 8658.630137 | AJ27: 1641
A28: 19 | B28: ４０～４４歳 | C28: 42.5 | D28: 9.6 | E28: 172 | F28: 14 | G28: 323 | H28: 289.1 | I28: 517 | J28: 4393 | K28: 12035.61644 | L28: 7648 | N28: ４０～４４歳 | O28: 42.6 | P28: 10.1 | Q28: 174 | R28: 16 | S28: 347.1 | T28: 308.4 | U28: 578.8 | V28: 4744 | W28: 12997.26027 | X28: 6110 | Z28: ４０～４４歳 | AA28: 42.1 | AB28: 7.8 | AC28: 163 | AD28: 9 | AE28: 227.3 | AF28: 212.5 | AG28: 271.4 | AH28: 2999 | AI28: 8216.438356 | AJ28: 1538
A29: 20 | B29: ４５～４９歳 | C29: 47.8 | D29: 13.2 | E29: 169 | F29: 16 | G29: 330.9 | H29: 293.2 | I29: 596.4 | J29: 4567.2 | K29: 12512.87671 | L29: 9123 | N29: ４５～４９歳 | O29: 47.7 | P29: 14.3 | Q29: 170 | R29: 17 | S29: 353.4 | T29: 310.3 | U29: 651.4 | V29: 4892.2 | W29: 13403.28767 | X29: 7227 | Z29: ４５～４９歳 | AA29: 47.8 | AB29: 8.7 | AC29: 164 | AD29: 9 | AE29: 245 | AF29: 228.1 | AG29: 386.6 | AH29: 3326.6 | AI29: 9113.972603 | AJ29: 1895
A30: 21 | B30: ５０～５４歳 | C30: 52.4 | D30: 16.1 | E30: 170 | F30: 16 | G30: 357.8 | H30: 316.1 | I30: 700.5 | J30: 4994.1 | K30: 13682.46575 | L30: 10463 | N30: ５０～５４歳 | O30: 52.4 | P30: 17.5 | Q30: 172 | R30: 18 | S30: 383.1 | T30: 335.7 | U30: 768 | V30: 5365.2 | W30: 14699.17808 | X30: 8570 | Z30: ５０～５４歳 | AA30: 52.4 | AB30: 9.7 | AC30: 164 | AD30: 8 | AE30: 243.3 | AF30: 227.6 | AG30: 395.2 | AH30: 3314.8 | AI30: 9081.643836 | AJ30: 1893
A31: 22 | B31: ５５～５９歳 | C31: 57.4 | D31: 18.1 | E31: 168 | F31: 14 | G31: 347.1 | H31: 312.8 | I31: 673.1 | J31: 4838.3 | K31: 13255.61644 | L31: 7156 | N31: ５５～５９歳 | O31: 57.5 | P31: 19.8 | Q31: 170 | R31: 16 | S31: 375.1 | T31: 334.4 | U31: 741.7 | V31: 5242.9 | W31: 14364.10959 | X31: 5557 | Z31: ５５～５９歳 | AA31: 57 | AB31: 12.3 | AC31: 162 | AD31: 6 | AE31: 250 | AF31: 237.6 | AG31: 434.6 | AH31: 3434.6 | AI31: 9409.863014 | AJ31: 1599
A32: 23 | B32: ６０～６４歳 | C32: 62.4 | D32: 18.5 | E32: 168 | F32: 13 | G32: 284.1 | H32: 256.7 | I32: 368.7 | J32: 3777.9 | K32: 10350.41096 | L32: 5813 | N32: ６０～６４歳 | O32: 62.4 | P32: 19.3 | Q32: 169 | R32: 15 | S32: 302.1 | T32: 270.6 | U32: 398.9 | V32: 4024.1 | W32: 11024.93151 | X32: 4679 | Z32: ６０～６４歳 | AA32: 62.5 | AB32: 15.5 | AC32: 164 | AD32: 5 | AE32: 209.8 | AF32: 199.2 | AG32: 244.5 | AH32: 2762.1 | AI32: 7567.39726 | AJ32: 1134
A33: 24 | B33: ６５～６９歳 | C33: 67.5 | D33: 19.4 | E33: 166 | F33: 10 | G33: 251.6 | H33: 233 | I33: 248.8 | J33: 3268 | K33: 8953.424658 | L33: 4687 | N33: ６５～６９歳 | O33: 67.4 | P33: 20.4 | Q33: 167 | R33: 11 | S33: 267.3 | T33: 245.9 | U33: 270.8 | V33: 3478.4 | W33: 9529.863014 | X33: 3734 | Z33: ６５～６９歳 | AA33: 67.7 | AB33: 15.2 | AC33: 162 | AD33: 5 | AE33: 190.3 | AF33: 182.3 | AG33: 162.8 | AH33: 2446.4 | AI33: 6702.465753 | AJ33: 953
A34: 25 | B34: ７０歳～ | C34: 73.8 | D34: 19.3 | E34: 164 | F34: 7 | G34: 228.6 | H34: 216 | I34: 184.7 | J34: 2927.9 | K34: 8021.643836 | L34: 4935 | N34: ７０歳～ | O34: 73.9 | P34: 19.5 | Q34: 166 | R34: 9 | S34: 238.8 | T34: 223.5 | U34: 186 | V34: 3051.6 | W34: 8360.547945 | X34: 3822 | Z34: ７０歳～ | AA34: 73.7 | AB34: 18.9 | AC34: 157 | AD34: 2 | AE34: 193.6 | AF34: 190.5 | AG34: 180.1 | AH34: 2503.3 | AI34: 6858.356164 | AJ34: 1113
A35: 26 | B35: 高校 | C35: 45.6 | D35: 13.6 | E35: 167 | F35: 13 | G35: 312 | H35: 281.9 | I35: 723.1 | J35: 4467.1 | K35: 12238.63014 | L35: 1044396 | N35: 高校 | O35: 45.7 | P35: 14.8 | Q35: 169 | R35: 16 | S35: 343.6 | T35: 306.1 | U35: 835.2 | V35: 4958.4 | W35: 13584.65753 | X35: 710674 | Z35: 高校 | AA35: 45.4 | AB35: 11.1 | AC35: 164 | AD35: 7 | AE35: 244.7 | AF35: 230.5 | AG35: 484.2 | AH35: 3420.6 | AI35: 9371.506849 | AJ35: 333722
A36: 27 | B36: ～１９歳 | C36: 19.1 | D36: 0.9 | E36: 168 | F36: 9 | G36: 206.8 | H36: 191.5 | I36: 158.4 | J36: 2640 | K36: 7232.876712 | L36: 22132 | N36: ～１９歳 | O36: 19.1 | P36: 0.9 | Q36: 167 | R36: 10 | S36: 210.6 | T36: 192.3 | U36: 167.4 | V36: 2694.6 | W36: 7382.465753 | X36: 12776 | Z36: ～１９歳 | AA36: 19.1 | AB36: 1 | AC36: 169 | AD36: 7 | AE36: 201.5 | AF36: 190.4 | AG36: 146.2 | AH36: 2564.2 | AI36: 7025.205479 | AJ36: 9356
A37: 28 | B37: ２０～２４歳 | C37: 22.5 | D37: 3.2 | E37: 169 | F37: 15 | G37: 245 | H37: 216.2 | I37: 489.6 | J37: 3429.6 | K37: 9396.164384 | L37: 79847 | N37: ２０～２４歳 | O37: 22.5 | P37: 3.3 | Q37: 169 | R37: 18 | S37: 258.1 | T37: 222.4 | U37: 541.5 | V37: 3638.7 | W37: 9969.041096 | X37: 49792 | Z37: ２０～２４歳 | AA37: 22.5 | AB37: 3.1 | AC37: 168 | AD37: 10 | AE37: 223.3 | AF37: 205.9 | AG37: 403.7 | AH37: 3083.3 | AI37: 8447.39726 | AJ37: 30055
A38: 29 | B38: ２５～２９歳 | C38: 27.5 | D38: 5.6 | E38: 169 | F38: 15 | G38: 271.7 | H38: 240.7 | I38: 541.9 | J38: 3802.3 | K38: 10417.26027 | L38: 77193 | N38: ２５～２９歳 | O38: 27.5 | P38: 5.9 | Q38: 171 | R38: 17 | S38: 288 | T38: 250.9 | U38: 603.7 | V38: 4059.7 | W38: 11122.46575 | X38: 54502 | Z38: ２５～２９歳 | AA38: 27.5 | AB38: 4.8 | AC38: 164 | AD38: 9 | AE38: 232.5 | AF38: 216 | AG38: 393.4 | AH38: 3183.4 | AI38: 8721.643836 | AJ38: 22691
A39: 30 | B39: ３０～３４歳 | C39: 32.5 | D39: 8.2 | E39: 167 | F39: 15 | G39: 293.7 | H39: 258.5 | I39: 669.3 | J39: 4193.7 | K39: 11489.58904 | L39: 76332 | N39: ３０～３４歳 | O39: 32.5 | P39: 8.7 | Q39: 168 | R39: 18 | S39: 317 | T39: 273.6 | U39: 762.1 | V39: 4566.1 | W39: 12509.86301 | X39: 53531 | Z39: ３０～３４歳 | AA39: 32.6 | AB39: 7.1 | AC39: 163 | AD39: 8 | AE39: 239 | AF39: 223 | AG39: 451.4 | AH39: 3319.4 | AI39: 9094.246575 | AJ39: 22802
A40: 31 | B40: ３５～３９歳 | C40: 37.5 | D40: 9.8 | E40: 168 | F40: 15 | G40: 311.9 | H40: 276.8 | I40: 714 | J40: 4456.8 | K40: 12210.41096 | L40: 90263 | N40: ３５～３９歳 | O40: 37.5 | P40: 10.4 | Q40: 170 | R40: 18 | S40: 339 | T40: 295.4 | U40: 811.6 | V40: 4879.6 | W40: 13368.76712 | X40: 64376 | Z40: ３５～３９歳 | AA40: 37.5 | AB40: 8.2 | AC40: 163 | AD40: 7 | AE40: 244.4 | AF40: 230.5 | AG40: 471.4 | AH40: 3404.2 | AI40: 9326.575342 | AJ40: 25887
A41: 32 | B41: ４０～４４歳 | C41: 42.5 | D41: 12.5 | E41: 167 | F41: 14 | G41: 328.1 | H41: 293.4 | I41: 798.4 | J41: 4735.6 | K41: 12974.24658 | L41: 109225 | N41: ４０～４４歳 | O41: 42.6 | P41: 13.6 | Q41: 169 | R41: 17 | S41: 362.8 | T41: 319.3 | U41: 932.6 | V41: 5286.2 | W41: 14482.73973 | X41: 75729 | Z41: ４０～４４歳 | AA41: 42.5 | AB41: 9.9 | AC41: 164 | AD41: 7 | AE41: 249.8 | AF41: 234.9 | AG41: 495 | AH41: 3492.6 | AI41: 9568.767123 | AJ41: 33496
A42: 33 | B42: ４５～４９歳 | C42: 47.6 | D42: 15.4 | E42: 168 | F42: 14 | G42: 344.7 | H42: 310.4 | I42: 873.3 | J42: 5009.7 | K42: 13725.20548 | L42: 143607 | N42: ４５～４９歳 | O42: 47.6 | P42: 16.8 | Q42: 169 | R42: 17 | S42: 383.9 | T42: 341 | U42: 1008.8 | V42: 5615.6 | W42: 15385.20548 | X42: 98765 | Z42: ４５～４９歳 | AA42: 47.7 | AB42: 12.3 | AC42: 164 | AD42: 7 | AE42: 258.2 | AF42: 243 | AG42: 574.8 | AH42: 3673.2 | AI42: 10063.56164 | AJ42: 44842
A43: 34 | B43: ５０～５４歳 | C43: 52.4 | D43: 17.7 | E43: 167 | F43: 13 | G43: 351.6 | H43: 319.7 | I43: 916.7 | J43: 5135.9 | K43: 14070.9589 | L43: 161228 | N43: ５０～５４歳 | O43: 52.4 | P43: 19.7 | Q43: 169 | R43: 16 | S43: 396.4 | T43: 355.7 | U43: 1075.8 | V43: 5832.6 | W43: 15979.72603 | X43: 107375 | Z43: ５０～５４歳 | AA43: 52.5 | AB43: 13.7 | AC43: 163 | AD43: 7 | AE43: 262.4 | AF43: 247.9 | AG43: 599.4 | AH43: 3748.2 | AI43: 10269.0411 | AJ43: 53853
A44: 35 | B44: ５５～５９歳 | C44: 57.4 | D44: 20.2 | E44: 167 | F44: 12 | G44: 352.6 | H44: 322.5 | I44: 934.2 | J44: 5165.4 | K44: 14151.78082 | L44: 135695 | N44: ５５～５９歳 | O44: 57.4 | P44: 22.4 | Q44: 168 | R44: 15 | S44: 398.5 | T44: 360.5 | U44: 1104.9 | V44: 5886.9 | W44: 16128.49315 | X44: 90560 | Z44: ５５～５９歳 | AA44: 57.4 | AB44: 15.6 | AC44: 163 | AD44: 7 | AE44: 260.5 | AF44: 246.3 | AG44: 591.7 | AH44: 3717.7 | AI44: 10185.47945 | AJ44: 45135
A45: 36 | B45: ６０～６４歳 | C45: 62.4 | D45: 19.7 | E45: 166 | F45: 9 | G45: 285.8 | H45: 266.1 | I45: 576.8 | J45: 4006.4 | K45: 10976.43836 | L45: 92608 | N45: ６０～６４歳 | O45: 62.4 | P45: 21.2 | Q45: 167 | R45: 11 | S45: 311.3 | T45: 287.2 | U45: 661.2 | V45: 4396.8 | W45: 12046.0274 | X45: 63900 | Z45: ６０～６４歳 | AA45: 62.3 | AB45: 16.4 | AC45: 162 | AD45: 5 | AE45: 229.2 | AF45: 219.1 | AG45: 388.9 | AH45: 3139.3 | AI45: 8600.821918 | AJ45: 28708
A46: 37 | B46: ６５～６９歳 | C46: 67.2 | D46: 16.8 | E46: 165 | F46: 8 | G46: 250.4 | H46: 236 | I46: 285.9 | J46: 3290.7 | K46: 9015.616438 | L46: 35886 | N46: ６５～６９歳 | O46: 67.2 | P46: 16.6 | Q46: 166 | R46: 9 | S46: 265.6 | T46: 249.1 | U46: 302.2 | V46: 3489.4 | W46: 9560 | X46: 25097 | Z46: ６５～６９歳 | AA46: 67.3 | AB46: 17.2 | AC46: 161 | AD46: 5 | AE46: 215.1 | AF46: 205.6 | AG46: 248 | AH46: 2829.2 | AI46: 7751.232877 | AJ46: 10789
A47: 38 | B47: ７０歳～ | C47: 73.2 | D47: 18.2 | E47: 162 | F47: 7 | G47: 237.3 | H47: 225.5 | I47: 213.9 | J47: 3061.5 | K47: 8387.671233 | L47: 20380 | N47: ７０歳～ | O47: 73.2 | P47: 17.5 | Q47: 163 | R47: 8 | S47: 248.6 | T47: 234.4 | U47: 200.8 | V47: 3184 | W47: 8723.287671 | X47: 14272 | Z47: ７０歳～ | AA47: 73.2 | AB47: 19.8 | AC47: 160 | AD47: 4 | AE47: 211 | AF47: 204.7 | AG47: 244.4 | AH47: 2776.4 | AI47: 7606.575342 | AJ47: 6108
A48: 39 | B48: 専門学校 | C48: 43 | D48: 11.5 | E48: 165 | F48: 10 | G48: 325.8 | H48: 300.2 | I48: 760.8 | J48: 4670.4 | K48: 12795.61644 | L48: 395029 | N48: 専門学校 | O48: 43.3 | P48: 13.1 | Q48: 168 | R48: 13 | S48: 356.7 | T48: 325.6 | U48: 883.2 | V48: 5163.6 | W48: 14146.84932 | X48: 208761 | Z48: 専門学校 | AA48: 42.6 | AB48: 9.6 | AC48: 162 | AD48: 7 | AE48: 291.2 | AF48: 271.8 | AG48: 623.7 | AH48: 4118.1 | AI48: 11282.46575 | AJ48: 186268
A49: 40 | B49: ～１９歳 | C49: - | D49: - | E49: - | F49: - | G49: - | H49: - | I49: - | L49: - | N49: ～１９歳 | O49: - | P49: - | Q49: - | R49: - | S49: - | T49: - | U49: - | X49: - | Z49: ～１９歳 | AA49: - | AB49: - | AC49: - | AD49: - | AE49: - | AF49: - | AG49: - | AJ49: -
A50: 41 | B50: ２０～２４歳 | C50: 22.8 | D50: 1.8 | E50: 166 | F50: 9 | G50: 241.5 | H50: 223 | I50: 299.4 | J50: =G50*12+I50 -> 3197.4 | K50: =J50/365*1000 -> 8760 | L50: 33535 | N50: ２０～２４歳 | O50: 22.8 | P50: 1.9 | Q50: 168 | R50: 12 | S50: 245.4 | T50: 223.1 | U50: 326.5 | V50: =S50*12+U50 -> 3271.3 | W50: =V50/365*1000 -> 8962.465753 | X50: 14614 | Z50: ２０～２４歳 | AA50: 22.7 | AB50: 1.8 | AC50: 165 | AD50: 7 | AE50: 238.5 | AF50: 222.8 | AG50: 278.6 | AH50: =AE50*12+AG50 -> 3140.6 | AI50: =AH50/365*1000 -> 8604.383562 | AJ50: 18920
A51: 42 | B51: ２５～２９歳 | C51: 27.5 | D51: 4.4 | E51: 165 | F51: 11 | G51: 275.3 | H51: 249.2 | I51: 551.3 | J51: 3854.9 | K51: 10561.36986 | L51: 38803 | N51: ２５～２９歳 | O51: 27.6 | P51: 4.6 | Q51: 166 | R51: 14 | S51: 282.9 | T51: 252 | U51: 612.5 | V51: 4007.3 | W51: 10978.90411 | X51: 17456 | Z51: ２５～２９歳 | AA51: 27.4 | AB51: 4.2 | AC51: 164 | AD51: 8 | AE51: 269.1 | AF51: 246.9 | AG51: 501.1 | AH51: 3730.3 | AI51: 10220 | AJ51: 21346
A52: 43 | B52: ３０～３４歳 | C52: 32.6 | D52: 6.6 | E52: 165 | F52: 12 | G52: 297.9 | H52: 269.7 | I52: 619.1 | J52: 4193.9 | K52: 11490.13699 | L52: 35625 | N52: ３０～３４歳 | O52: 32.5 | P52: 7 | Q52: 167 | R52: 15 | S52: 313.3 | T52: 278.8 | U52: 694.1 | V52: 4453.7 | W52: 12201.91781 | X52: 19044 | Z52: ３０～３４歳 | AA52: 32.6 | AB52: 6.1 | AC52: 162 | AD52: 7 | AE52: 280.2 | AF52: 259.3 | AG52: 533 | AH52: 3895.4 | AI52: 10672.32877 | AJ52: 16581
A53: 44 | B53: ３５～３９歳 | C53: 37.6 | D53: 9.2 | E53: 165 | F53: 11 | G53: 316.8 | H53: 288.6 | I53: 721.5 | J53: 4523.1 | K53: 12392.05479 | L53: 49547 | N53: ３５～３９歳 | O53: 37.6 | P53: 10.1 | Q53: 167 | R53: 15 | S53: 340.9 | T53: 305.1 | U53: 809.7 | V53: 4900.5 | W53: 13426.0274 | X53: 29563 | Z53: ３５～３９歳 | AA53: 37.6 | AB53: 8 | AC53: 162 | AD53: 6 | AE53: 281 | AF53: 264.1 | AG53: 590.9 | AH53: 3962.9 | AI53: 10857.26027 | AJ53: 19984
A54: 45 | B54: ４０～４４歳 | C54: 42.6 | D54: 11.5 | E54: 165 | F54: 10 | G54: 335 | H54: 307.6 | I54: 810.7 | J54: 4830.7 | K54: 13234.79452 | L54: 51621 | N54: ４０～４４歳 | O54: 42.6 | P54: 12.6 | Q54: 168 | R54: 13 | S54: 368.4 | T54: 334.5 | U54: 929.9 | V54: 5350.7 | W54: 14659.45205 | X54: 28582 | Z54: ４０～４４歳 | AA54: 42.5 | AB54: 10.2 | AC54: 162 | AD54: 6 | AE54: 293.5 | AF54: 274.3 | AG54: 662.8 | AH54: 4184.8 | AI54: 11465.20548 | AJ54: 23039
A55: 46 | B55: ４５～４９歳 | C55: 47.5 | D55: 14.2 | E55: 166 | F55: 10 | G55: 361.2 | H55: 333.2 | I55: 945.5 | J55: 5279.9 | K55: 14465.47945 | L55: 65115 | N55: ４５～４９歳 | O55: 47.6 | P55: 16.1 | Q55: 169 | R55: 12 | S55: 398.9 | T55: 365.9 | U55: 1073.7 | V55: 5860.5 | W55: 16056.16438 | X55: 37319 | Z55: ４５～４９歳 | AA55: 47.5 | AB55: 11.6 | AC55: 162 | AD55: 7 | AE55: 310.6 | AF55: 289.2 | AG55: 773.2 | AH55: 4500.4 | AI55: 12329.86301 | AJ55: 27795
A56: 47 | B56: ５０～５４歳 | C56: 52.3 | D56: 16.6 | E56: 165 | F56: 9 | G56: 371.8 | H56: 345.3 | I56: 998 | J56: 5459.6 | K56: 14957.80822 | L56: 57070 | N56: ５０～５４歳 | O56: 52.3 | P56: 19.4 | Q56: 168 | R56: 11 | S56: 411.2 | T56: 380.7 | U56: 1184.9 | V56: 6119.3 | W56: 16765.20548 | X56: 31851 | Z56: ５０～５４歳 | AA56: 52.4 | AB56: 13.1 | AC56: 162 | AD56: 6 | AE56: 322 | AF56: 300.5 | AG56: 761.8 | AH56: 4625.8 | AI56: 12673.42466 | AJ56: 25218
A57: 48 | B57: ５５～５９歳 | C57: 57.4 | D57: 18.2 | E57: 165 | F57: 8 | G57: 374.8 | H57: 349.7 | I57: 1020.8 | J57: 5518.4 | K57: 15118.90411 | L57: 35022 | N57: ５５～５９歳 | O57: 57.3 | P57: 21.7 | Q57: 168 | R57: 11 | S57: 428.2 | T57: 397.7 | U57: 1208.1 | V57: 6346.5 | W57: 17387.67123 | X57: 16397 | Z57: ５５～５９歳 | AA57: 57.4 | AB57: 15.1 | AC57: 162 | AD57: 6 | AE57: 327.9 | AF57: 307.5 | AG57: 856 | AH57: 4790.8 | AI57: 13125.47945 | AJ57: 18625
A58: 49 | B58: ６０～６４歳 | C58: 62.2 | D58: 17.7 | E58: 164 | F58: 6 | G58: 301.4 | H58: 285 | I58: 598.2 | J58: 4215 | K58: 11547.94521 | L58: 20270 | N58: ６０～６４歳 | O58: 62.3 | P58: 19.8 | Q58: 166 | R58: 9 | S58: 320.7 | T58: 301.2 | U58: 624.7 | V58: 4473.1 | W58: 12255.06849 | X58: 9809 | Z58: ６０～６４歳 | AA58: 62.1 | AB58: 15.7 | AC58: 162 | AD58: 4 | AE58: 283.2 | AF58: 269.8 | AG58: 573.5 | AH58: 3971.9 | AI58: 10881.91781 | AJ58: 10461
A59: 50 | B59: ６５～６９歳 | C59: 67.1 | D59: 16.2 | E59: 163 | F59: 5 | G59: 283.5 | H59: 271.2 | I59: 398.7 | J59: 3800.7 | K59: 10412.87671 | L59: 6242 | N59: ６５～６９歳 | O59: 67.2 | P59: 17.1 | Q59: 165 | R59: 6 | S59: 301.3 | T59: 288.4 | U59: 376.5 | V59: 3992.1 | W59: 10937.26027 | X59: 3217 | Z59: ６５～６９歳 | AA59: 67.1 | AB59: 15.4 | AC59: 161 | AD59: 4 | AE59: 264.6 | AF59: 253 | AG59: 422.3 | AH59: 3597.5 | AI59: 9856.164384 | AJ59: 3025
A60: 51 | B60: ７０歳～ | C60: 73 | D60: 15.1 | E60: 162 | F60: 5 | G60: 261.9 | H60: 251 | I60: 265.4 | J60: 3408.2 | K60: 9337.534247 | L60: 2181 | N60: ７０歳～ | O60: 73.1 | P60: 15.9 | Q60: 166 | R60: 5 | S60: 264.2 | T60: 253.8 | U60: 234.7 | V60: 3405.1 | W60: 9329.041096 | X60: 908 | Z60: ７０歳～ | AA60: 72.9 | AB60: 14.4 | AC60: 160 | AD60: 5 | AE60: 260.2 | AF60: 249 | AG60: 287.4 | AH60: 3409.8 | AI60: 9341.917808 | AJ60: 1272
A61: 52 | B61: 高専・短大 | C61: 44.6 | D61: 13.1 | E61: 164 | F61: 8 | G61: 318.7 | H61: 297.4 | I61: 922.8 | J61: 4747.2 | K61: 13006.0274 | L61: 221355 | N61: 高専・短大 | O61: 44.2 | P61: 15.4 | Q61: 166 | R61: 13 | S61: 389.7 | T61: 354.9 | U61: 1244.6 | V61: 5921 | W61: 16221.91781 | X61: 65046 | Z61: 高専・短大 | AA61: 44.7 | AB61: 12.2 | AC61: 163 | AD61: 6 | AE61: 289.2 | AF61: 273.5 | AG61: 788.9 | AH61: 4259.3 | AI61: 11669.31507 | AJ61: 156309
A62: 53 | B62: ～１９歳 | C62: - | D62: - | E62: - | F62: - | G62: - | H62: - | I62: - | L62: - | N62: ～１９歳 | O62: - | P62: - | Q62: - | R62: - | S62: - | T62: - | U62: - | X62: - | Z62: ～１９歳 | AA62: - | AB62: - | AC62: - | AD62: - | AE62: - | AF62: - | AG62: - | AJ62: -
A63: 54 | B63: ２０～２４歳 | C63: 22.8 | D63: 2.1 | E63: 167 | F63: 7 | G63: 236 | H63: 220 | I63: 477.3 | J63: =G63*12+I63 -> 3309.3 | K63: =J63/365*1000 -> 9066.575342 | L63: 16876 | N63: ２０～２４歳 | O63: 22.7 | P63: 1.9 | Q63: 165 | R63: 13 | S63: 251.8 | T63: 225.7 | U63: 539.6 | V63: =S63*12+U63 -> 3561.2 | W63: =V63/365*1000 -> 9756.712329 | X63: 4068 | Z63: ２０～２４歳 | AA63: 22.8 | AB63: 2.1 | AC63: 168 | AD63: 6 | AE63: 231 | AF63: 218.2 | AG63: 457.5 | AH63: =AE63*12+AG63 -> 3229.5 | AI63: =AH63/365*1000 -> 8847.945205 | AJ63: 12808
A64: 55 | B64: ２５～２９歳 | C64: 27.5 | D64: 4.8 | E64: 166 | F64: 10 | G64: 272.2 | H64: 248.3 | I64: 655.1 | J64: 3921.5 | K64: 10743.83562 | L64: 19616 | N64: ２５～２９歳 | O64: 27.8 | P64: 5.3 | Q64: 167 | R64: 19 | S64: 308.9 | T64: 267.4 | U64: 766.6 | V64: 4473.4 | W64: 12255.89041 | X64: 6190 | Z64: ２５～２９歳 | AA64: 27.3 | AB64: 4.6 | AC64: 166 | AD64: 6 | AE64: 255.3 | AF64: 239.5 | AG64: 603.7 | AH64: 3667.3 | AI64: 10047.39726 | AJ64: 13426
A65: 56 | B65: ３０～３４歳 | C65: 32.5 | D65: 7.3 | E65: 164 | F65: 10 | G65: 282.9 | H65: 259.3 | I65: 752.9 | J65: 4147.7 | K65: 11363.56164 | L65: 17535 | N65: ３０～３４歳 | O65: 32.6 | P65: 7.7 | Q65: 165 | R65: 17 | S65: 323.8 | T65: 283.3 | U65: 926.2 | V65: 4811.8 | W65: 13183.0137 | X65: 6616 | Z65: ３０～３４歳 | AA65: 32.4 | AB65: 7 | AC65: 164 | AD65: 6 | AE65: 258.1 | AF65: 244.7 | AG65: 647.8 | AH65: 3745 | AI65: 10260.27397 | AJ65: 10919
A66: 57 | B66: ３５～３９歳 | C66: 37.6 | D66: 10.4 | E66: 163 | F66: 10 | G66: 309.3 | H66: 284.1 | I66: 868.5 | J66: 4580.1 | K66: 12548.21918 | L66: 19419 | N66: ３５～３９歳 | O66: 37.6 | P66: 11.4 | Q66: 164 | R66: 16 | S66: 365.7 | T66: 322.8 | U66: 1164.9 | V66: 5553.3 | W66: 15214.52055 | X66: 6877 | Z66: ３５～３９歳 | AA66: 37.6 | AB66: 9.9 | AC66: 163 | AD66: 7 | AE66: 278.4 | AF66: 262.9 | AG66: 706.1 | AH66: 4046.9 | AI66: 11087.39726 | AJ66: 12543
A67: 58 | B67: ４０～４４歳 | C67: 42.7 | D67: 12.2 | E67: 164 | F67: 9 | G67: 328 | H67: 304.2 | I67: 963.2 | J67: 4899.2 | K67: 13422.46575 | L67: 28191 | N67: ４０～４４歳 | O67: 42.6 | P67: 14 | Q67: 167 | R67: 15 | S67: 405.3 | T67: 362.8 | U67: 1275.4 | V67: 6139 | W67: 16819.17808 | X67: 8876 | Z67: ４０～４４歳 | AA67: 42.7 | AB67: 11.5 | AC67: 163 | AD67: 6 | AE67: 292.5 | AF67: 277.4 | AG67: 819.7 | AH67: 4329.7 | AI67: 11862.19178 | AJ67: 19316
A68: 59 | B68: ４５～４９歳 | C68: 47.6 | D68: 14.9 | E68: 163 | F68: 8 | G68: 338.3 | H68: 315.8 | I68: 1039 | J68: 5098.6 | K68: 13968.76712 | L68: 39816 | N68: ４５～４９歳 | O68: 47.5 | P68: 18.6 | Q68: 166 | R68: 13 | S68: 439.6 | T68: 401.9 | U68: 1477.2 | V68: 6752.4 | W68: 18499.72603 | X68: 9956 | Z68: ４５～４９歳 | AA68: 47.7 | AB68: 13.7 | AC68: 162 | AD68: 7 | AE68: 304.5 | AF68: 287.1 | AG68: 892.9 | AH68: 4546.9 | AI68: 12457.26027 | AJ68: 29860
A69: 60 | B69: ５０～５４歳 | C69: 52.4 | D69: 18.1 | E69: 163 | F69: 8 | G69: 362.6 | H69: 339.4 | I69: 1206.3 | J69: 5557.5 | K69: 15226.0274 | L69: 35089 | N69: ５０～５４歳 | O69: 52.4 | P69: 23 | Q69: 167 | R69: 11 | S69: 469.8 | T69: 438.2 | U69: 1755.1 | V69: 7392.7 | W69: 20253.9726 | X69: 9408 | Z69: ５０～５４歳 | AA69: 52.4 | AB69: 16.3 | AC69: 162 | AD69: 7 | AE69: 323.3 | AF69: 303.2 | AG69: 1005.3 | AH69: 4884.9 | AI69: 13383.28767 | AJ69: 25681
A70: 61 | B70: ５５～５９歳 | C70: 57.3 | D70: 20.1 | E70: 163 | F70: 7 | G70: 360 | H70: 340.5 | I70: 1166.7 | J70: 5486.7 | K70: 15032.05479 | L70: 24453 | N70: ５５～５９歳 | O70: 57.4 | P70: 25.8 | Q70: 166 | R70: 9 | S70: 471.5 | T70: 443.2 | U70: 1771 | V70: 7429 | W70: 20353.42466 | X70: 6544 | Z70: ５５～５９歳 | AA70: 57.3 | AB70: 18.1 | AC70: 162 | AD70: 6 | AE70: 319.2 | AF70: 303 | AG70: 945.9 | AH70: 4776.3 | AI70: 13085.75342 | AJ70: 17909
A71: 62 | B71: ６０～６４歳 | C71: 62.2 | D71: 18.3 | E71: 164 | F71: 5 | G71: 302.7 | H71: 290.8 | I71: 755.1 | J71: 4387.5 | K71: 12020.54795 | L71: 14943 | N71: ６０～６４歳 | O71: 62.3 | P71: 21.7 | Q71: 166 | R71: 7 | S71: 375.5 | T71: 358.5 | U71: 1092.8 | V71: 5598.8 | W71: 15339.17808 | X71: 4442 | Z71: ６０～６４歳 | AA71: 62.2 | AB71: 16.9 | AC71: 163 | AD71: 4 | AE71: 271.9 | AF71: 262.2 | AG71: 612.2 | AH71: 3875 | AI71: 10616.43836 | AJ71: 10501
A72: 63 | B72: ６５～６９歳 | C72: 67 | D72: 18.9 | E72: 165 | F72: 5 | G72: 275.3 | H72: 265.4 | I72: 475.9 | J72: 3779.5 | K72: 10354.79452 | L72: 3882 | N72: ６５～６９歳 | O72: 67.1 | P72: 19.9 | Q72: 168 | R72: 9 | S72: 302.9 | T72: 288.6 | U72: 476 | V72: 4110.8 | W72: 11262.46575 | X72: 1523 | Z72: ６５～６９歳 | AA72: 67 | AB72: 18.3 | AC72: 163 | AD72: 3 | AE72: 257.5 | AF72: 250.5 | AG72: 475.8 | AH72: 3565.8 | AI72: 9769.315068 | AJ72: 2359
A73: 64 | B73: ７０歳～ | C73: 72.7 | D73: 19 | E73: 163 | F73: 2 | G73: 277.4 | H73: 272.8 | I73: 508.9 | J73: 3837.7 | K73: 10514.24658 | L73: 1534 | N73: ７０歳～ | O73: 72.8 | P73: 18.1 | Q73: 172 | R73: 4 | S73: 267.7 | T73: 261.3 | U73: 308.8 | V73: 3521.2 | W73: 9647.123288 | X73: 547 | Z73: ７０歳～ | AA73: 72.7 | AB73: 19.5 | AC73: 159 | AD73: 2 | AE73: 282.7 | AF73: 279.1 | AG73: 619.7 | AH73: 4012.1 | AI73: 10992.05479 | AJ73: 988
A74: 65 | B74: 男女計 大学 | C74: 41.6 | D74: 12 | E74: 165 | F74: 11 | G74: 398.3 | H74: 369.4 | I74: 1212.7 | J74: 5992.3 | K74: 16417.26027 | L74: 937434 | N74: 男 大学 | O74: 43.6 | P74: 13.6 | Q74: 167 | R74: 12 | S74: 431.6 | T74: 399.9 | U74: 1373.5 | V74: 6552.7 | W74: 17952.60274 | X74: 653740 | Z74: 女 大学 | AA74: 37.1 | AB74: 8.2 | AC74: 162 | AD74: 9 | AE74: 321.5 | AF74: 299.2 | AG74: 842.2 | AH74: 4700.2 | AI74: 12877.26027 | AJ74: 283694
A75: 66 | B75: ～１９歳 | C75: - | D75: - | E75: - | F75: - | G75: - | H75: - | I75: - | L75: - | N75: ～１９歳 | O75: - | P75: - | Q75: - | R75: - | S75: - | T75: - | U75: - | X75: - | Z75: ～１９歳 | AA75: - | AB75: - | AC75: - | AD75: - | AE75: - | AF75: - | AG75: - | AJ75: -
A76: 67 | B76: ２０～２４歳 | C76: 23.7 | D76: 1.3 | E76: 166 | F76: 10 | G76: 260.3 | H76: 239.7 | I76: 349 | J76: =G76*12+I76 -> 3472.6 | K76: =J76/365*1000 -> 9513.972603 | L76: 73606 | N76: ２０～２４歳 | O76: 23.7 | P76: 1.3 | Q76: 167 | R76: 12 | S76: 265.2 | T76: 242.3 | U76: 359.3 | V76: =S76*12+U76 -> 3541.7 | W76: =V76/365*1000 -> 9703.287671 | X76: 37286 | Z76: ２０～２４歳 | AA76: 23.6 | AB76: 1.3 | AC76: 165 | AD76: 9 | AE76: 255.2 | AF76: 236.9 | AG76: 338.4 | AH76: =AE76*12+AG76 -> 3400.8 | AI76: =AH76/365*1000 -> 9317.260274 | AJ76: 36320
A77: 68 | B77: ２５～２９歳 | C77: 27.5 | D77: 3.7 | E77: 165 | F77: 14 | G77: 306.1 | H77: 272.6 | I77: 804.9 | J77: 4478.1 | K77: 12268.76712 | L77: 141263 | N77: ２５～２９歳 | O77: 27.5 | P77: 3.8 | Q77: 167 | R77: 17 | S77: 320.9 | T77: 282.1 | U77: 861.3 | V77: 4712.1 | W77: 12909.86301 | X77: 76966 | Z77: ２５～２９歳 | AA77: 27.4 | AB77: 3.6 | AC77: 164 | AD77: 11 | AE77: 288.3 | AF77: 261.1 | AG77: 737.5 | AH77: 4197.1 | AI77: 11498.90411 | AJ77: 64298
A78: 69 | B78: ３０～３４歳 | C78: 32.4 | D78: 6.5 | E78: 165 | F78: 13 | G78: 343.6 | H78: 309 | I78: 963.4 | J78: 5086.6 | K78: 13935.89041 | L78: 119448 | N78: ３０～３４歳 | O78: 32.5 | P78: 6.7 | Q78: 167 | R78: 16 | S78: 363.9 | T78: 323 | U78: 1057.2 | V78: 5424 | W78: 14860.27397 | X78: 74673 | Z78: ３０～３４歳 | AA78: 32.4 | AB78: 6.2 | AC78: 163 | AD78: 9 | AE78: 309.7 | AF78: 285.7 | AG78: 807 | AH78: 4523.4 | AI78: 12392.87671 | AJ78: 44774
A79: 70 | B79: ３５～３９歳 | C79: 37.5 | D79: 10 | E79: 164 | F79: 14 | G79: 391.2 | H79: 354.1 | I79: 1218.5 | J79: 5912.9 | K79: 16199.72603 | L79: 111970 | N79: ３５～３９歳 | O79: 37.5 | P79: 10.2 | Q79: 166 | R79: 16 | S79: 418.5 | T79: 374.8 | U79: 1343.2 | V79: 6365.2 | W79: 17438.90411 | X79: 77189 | Z79: ３５～３９歳 | AA79: 37.5 | AB79: 9.5 | AC79: 160 | AD79: 9 | AE79: 330.7 | AF79: 308.2 | AG79: 941.7 | AH79: 4910.1 | AI79: 13452.32877 | AJ79: 34781
A80: 71 | B80: ４０～４４歳 | C80: 42.4 | D80: 12.9 | E80: 166 | F80: 11 | G80: 426.9 | H80: 394.7 | I80: 1349 | J80: 6471.8 | K80: 17730.9589 | L80: 114476 | N80: ４０～４４歳 | O80: 42.5 | P80: 13.4 | Q80: 168 | R80: 13 | S80: 457.1 | T80: 420.4 | U80: 1475.8 | V80: 6961 | W80: 19071.23288 | X80: 83426 | Z80: ４０～４４歳 | AA80: 42.4 | AB80: 11.6 | AC80: 160 | AD80: 8 | AE80: 345.8 | AF80: 325.6 | AG80: 1008.5 | AH80: 5158.1 | AI80: 14131.78082 | AJ80: 31050
A81: 72 | B81: ４５～４９歳 | C81: 47.5 | D81: 15.8 | E81: 166 | F81: 10 | G81: 459.4 | H81: 430.9 | I81: 1563.3 | J81: 7076.1 | K81: 19386.57534 | L81: 117491 | N81: ４５～４９歳 | O81: 47.6 | P81: 16.7 | Q81: 168 | R81: 11 | S81: 490.7 | T81: 460.2 | U81: 1707.5 | V81: 7595.9 | W81: 20810.68493 | X81: 88789 | Z81: ４５～４９歳 | AA81: 47.5 | AB81: 12.9 | AC81: 160 | AD81: 8 | AE81: 362.4 | AF81: 340.3 | AG81: 1117 | AH81: 5465.8 | AI81: 14974.79452 | AJ81: 28702
A82: 73 | B82: ５０～５４歳 | C82: 52.4 | D82: 19.9 | E82: 167 | F82: 8 | G82: 497.6 | H82: 473.5 | I82: 1795.7 | J82: 7766.9 | K82: 21279.17808 | L82: 106557 | N82: ５０～５４歳 | O82: 52.5 | P82: 21.1 | Q82: 168 | R82: 8 | S82: 524.5 | T82: 499.3 | U82: 1956 | V82: 8250 | W82: 22602.73973 | X82: 84842 | Z82: ５０～５４歳 | AA82: 52.2 | AB82: 15.1 | AC82: 162 | AD82: 7 | AE82: 392.6 | AF82: 372.4 | AG82: 1169.5 | AH82: 5880.7 | AI82: 16111.50685 | AJ82: 21714
A83: 74 | B83: ５５～５９歳 | C83: 57.4 | D83: 23.2 | E83: 164 | F83: 8 | G83: 521.5 | H83: 499.1 | I83: 1907.6 | J83: 8165.6 | K83: 22371.50685 | L83: 79127 | N83: ５５～５９歳 | O83: 57.4 | P83: 24.3 | Q83: 165 | R83: 8 | S83: 543.3 | T83: 520.6 | U83: 2030.5 | V83: 8550.1 | W83: 23424.93151 | X83: 66440 | Z83: ５５～５９歳 | AA83: 57.3 | AB83: 17.5 | AC83: 161 | AD83: 8 | AE83: 407.4 | AF83: 386.1 | AG83: 1264.5 | AH83: 6153.3 | AI83: 16858.35616 | AJ83: 12687
A84: 75 | B84: ６０～６４歳 | C84: 62.4 | D84: 19.9 | E84: 163 | F84: 7 | G84: 401 | H84: 383.3 | I84: 1063 | J84: 5875 | K84: 16095.89041 | L84: 49825 | N84: ６０～６４歳 | O84: 62.4 | P84: 20.6 | Q84: 164 | R84: 7 | S84: 409.1 | T84: 390.6 | U84: 1126.1 | V84: 6035.3 | W84: 16535.06849 | X84: 42959 | Z84: ６０～６４歳 | AA84: 62.1 | AB84: 15.5 | AC84: 162 | AD84: 5 | AE84: 350.2 | AF84: 338.1 | AG84: 667.7 | AH84: 4870.1 | AI84: 13342.73973 | AJ84: 6866
A85: 76 | B85: ６５～６９歳 | C85: 67.1 | D85: 17.3 | E85: 164 | F85: 5 | G85: 383.1 | H85: 368.6 | I85: 552.7 | J85: 5149.9 | K85: 14109.31507 | L85: 16630 | N85: ６５～６９歳 | O85: 67.1 | P85: 17.7 | Q85: 164 | R85: 6 | S85: 390.7 | T85: 375.2 | U85: 575.2 | V85: 5263.6 | W85: 14420.82192 | X85: 14824 | Z85: ６５～６９歳 | AA85: 67.1 | AB85: 14.8 | AC85: 158 | AD85: 3 | AE85: 321.4 | AF85: 314.8 | AG85: 367.7 | AH85: 4224.5 | AI85: 11573.9726 | AJ85: 1805
A86: 77 | B86: ７０歳～ | C86: 73.2 | D86: 17.6 | E86: 163 | F86: 3 | G86: 379.7 | H86: 370.3 | I86: 484.8 | J86: 5041.2 | K86: 13811.50685 | L86: 7043 | N86: ７０歳～ | O86: 73.2 | P86: 16.7 | Q86: 163 | R86: 3 | S86: 386.8 | T86: 377.2 | U86: 495.4 | V86: 5137 | W86: 14073.9726 | X86: 6345 | Z86: ７０歳～ | AA86: 73.3 | AB86: 25.9 | AC86: 156 | AD86: 2 | AE86: 314.4 | AF86: 307.6 | AG86: 389 | AH86: 4161.8 | AI86: 11402.19178 | AJ86: 697
A87: 78 | B87: 大学院 | C87: 42 | D87: 11.8 | E87: 163 | F87: 11 | G87: 511.5 | H87: 476.7 | I87: 1940.4 | J87: 8078.4 | K87: 22132.60274 | L87: 113332 | N87: 大学院 | O87: 42.4 | P87: 12.5 | Q87: 164 | R87: 12 | S87: 528.1 | T87: 491.1 | U87: 2053.1 | V87: 8390.3 | W87: 22987.12329 | X87: 93724 | Z87: 大学院 | AA87: 40.4 | AB87: 8.4 | AC87: 162 | AD87: 8 | AE87: 432.2 | AF87: 407.8 | AG87: 1401.8 | AH87: 6588.2 | AI87: 18049.86301 | AJ87: 19608
A88: 79 | B88: ～１９歳 | C88: - | D88: - | E88: - | F88: - | G88: - | H88: - | I88: - | L88: - | N88: ～１９歳 | O88: - | P88: - | Q88: - | R88: - | S88: - | T88: - | U88: - | X88: - | Z88: ～１９歳 | AA88: - | AB88: - | AC88: - | AD88: - | AE88: - | AF88: - | AG88: - | AJ88: -
A89: 80 | B89: ２０～２４歳 | C89: 24.5 | D89: 0.5 | E89: 165 | F89: 3 | G89: 282.1 | H89: 274 | I89: 36.6 | J89: =G89*12+I89 -> 3421.8 | K89: =J89/365*1000 -> 9374.794521 | L89: 1977 | N89: ２０～２４歳 | O89: 24.5 | P89: 0.5 | Q89: 164 | R89: 3 | S89: 290 | T89: 282.2 | U89: 34.4 | V89: =S89*12+U89 -> 3514.4 | W89: =V89/365*1000 -> 9628.493151 | X89: 1415 | Z89: ２０～２４歳 | AA89: 24.5 | AB89: 0.5 | AC89: 167 | AD89: 3 | AE89: 261.9 | AF89: 253.4 | AG89: 42.2 | AH89: =AE89*12+AG89 -> 3185 | AI89: =AH89/365*1000 -> 8726.027397 | AJ89: 561
A90: 81 | B90: ２５～２９歳 | C90: 27.6 | D90: 2.7 | E90: 163 | F90: 19 | G90: 341.8 | H90: 296.2 | I90: 992.2 | J90: 5093.8 | K90: 13955.61644 | L90: 16148 | N90: ２５～２９歳 | O90: 27.6 | P90: 2.8 | Q90: 163 | R90: 20 | S90: 347.3 | T90: 298.3 | U90: 1033.8 | V90: 5201.4 | W90: 14250.41096 | X90: 12607 | Z90: ２５～２９歳 | AA90: 27.4 | AB90: 2.3 | AC90: 162 | AD90: 14 | AE90: 322 | AF90: 288.6 | AG90: 843.9 | AH90: 4707.9 | AI90: 12898.35616 | AJ90: 3541
A91: 82 | B91: ３０～３４歳 | C91: 32.5 | D91: 6.1 | E91: 162 | F91: 18 | G91: 407.9 | H91: 360.2 | I91: 1434.9 | J91: 6329.7 | K91: 17341.64384 | L91: 17154 | N91: ３０～３４歳 | O91: 32.5 | P91: 6.2 | Q91: 162 | R91: 19 | S91: 416.8 | T91: 365.3 | U91: 1477.3 | V91: 6478.9 | W91: 17750.41096 | X91: 14069 | Z91: ３０～３４歳 | AA91: 32.4 | AB91: 5.5 | AC91: 160 | AD91: 11 | AE91: 367.2 | AF91: 337 | AG91: 1241.4 | AH91: 5647.8 | AI91: 15473.42466 | AJ91: 3085
A92: 83 | B92: ３５～３９歳 | C92: 37.5 | D92: 9.5 | E92: 163 | F92: 14 | G92: 485.6 | H92: 439.3 | I92: 1774.6 | J92: 7601.8 | K92: 20826.84932 | L92: 16422 | N92: ３５～３９歳 | O92: 37.4 | P92: 9.9 | Q92: 163 | R92: 15 | S92: 499.1 | T92: 450.4 | U92: 1892.1 | V92: 7881.3 | W92: 21592.60274 | X92: 13433 | Z92: ３５～３９歳 | AA92: 37.6 | AB92: 7.8 | AC92: 159 | AD92: 9 | AE92: 424.8 | AF92: 389.6 | AG92: 1246.2 | AH92: 6343.8 | AI92: 17380.27397 | AJ92: 2988
A93: 84 | B93: ４０～４４歳 | C93: 42.4 | D93: 12.9 | E93: 164 | F93: 12 | G93: 537 | H93: 498.3 | I93: 2147.9 | J93: 8591.9 | K93: 23539.45205 | L93: 17947 | N93: ４０～４４歳 | O93: 42.4 | P93: 13.4 | Q93: 164 | R93: 12 | S93: 550.2 | T93: 509 | U93: 2263.5 | V93: 8865.9 | W93: 24290.13699 | X93: 15006 | Z93: ４０～４４歳 | AA93: 42.3 | AB93: 10.5 | AC93: 161 | AD93: 8 | AE93: 469.7 | AF93: 443.8 | AG93: 1557.9 | AH93: 7194.3 | AI93: 19710.41096 | AJ93: 2941
A94: 85 | B94: ４５～４９歳 | C94: 47.5 | D94: 15.4 | E94: 164 | F94: 8 | G94: 589.2 | H94: 559.9 | I94: 2411.3 | J94: 9481.7 | K94: 25977.26027 | L94: 15816 | N94: ４５～４９歳 | O94: 47.5 | P94: 16.2 | Q94: 165 | R94: 8 | S94: 609.7 | T94: 578.6 | U94: 2553.2 | V94: 9869.6 | W94: 27040 | X94: 13148 | Z94: ４５～４９歳 | AA94: 47.6 | AB94: 11.1 | AC94: 160 | AD94: 6 | AE94: 488.1 | AF94: 468 | AG94: 1712 | AH94: 7569.2 | AI94: 20737.53425 | AJ94: 2668
A95: 86 | B95: ５０～５４歳 | C95: 52.3 | D95: 19.3 | E95: 165 | F95: 5 | G95: 627.8 | H95: 609.5 | I95: 2737.5 | J95: 10271.1 | K95: 28140 | L95: 12267 | N95: ５０～５４歳 | O95: 52.3 | P95: 20.1 | Q95: 165 | R95: 5 | S95: 642 | T95: 622.6 | U95: 2857.3 | V95: 10561.3 | W95: 28935.06849 | X95: 10581 | Z95: ５０～５４歳 | AA95: 52.4 | AB95: 13.6 | AC95: 165 | AD95: 3 | AE95: 538.7 | AF95: 527.6 | AG95: 1985.3 | AH95: 8449.7 | AI95: 23149.86301 | AJ95: 1686
A96: 87 | B96: ５５～５９歳 | C96: 57.4 | D96: 22.5 | E96: 164 | F96: 5 | G96: 663.3 | H96: 643.1 | I96: 2886.4 | J96: 10846 | K96: 29715.06849 | L96: 8273 | N96: ５５～５９歳 | O96: 57.4 | P96: 23.7 | Q96: 164 | R96: 5 | S96: 679.3 | T96: 656.9 | U96: 3005.4 | V96: 11157 | W96: 30567.12329 | X96: 7195 | Z96: ５５～５９歳 | AA96: 57.5 | AB96: 14.7 | AC96: 166 | AD96: 2 | AE96: 556.4 | AF96: 550.5 | AG96: 2091.5 | AH96: 8768.3 | AI96: 24022.73973 | AJ96: 1077
A97: 88 | B97: ６０～６４歳 | C97: 62.4 | D97: 19 | E97: 164 | F97: 3 | G97: 652.7 | H97: 643.5 | I97: 2277.8 | J97: 10110.2 | K97: 27699.17808 | L97: 5777 | N97: ６０～６４歳 | O97: 62.5 | P97: 19.4 | Q97: 164 | R97: 3 | S97: 667.4 | T97: 657 | U97: 2305.6 | V97: 10314.4 | W97: 28258.63014 | X97: 4913 | Z97: ６０～６４歳 | AA97: 62.3 | AB97: 16.8 | AC97: 166 | AD97: 1 | AE97: 568.6 | AF97: 566.9 | AG97: 2119.8 | AH97: 8943 | AI97: 24501.36986 | AJ97: 864
A98: 89 | B98: ６５～６９歳 | C98: 67.1 | D98: 15.9 | E98: 165 | F98: 3 | G98: 618.2 | H98: 609 | I98: 1738.2 | J98: 9156.6 | K98: 25086.57534 | L98: 1178 | N98: ６５～６９歳 | O98: 67.1 | P98: 16.5 | Q98: 165 | R98: 3 | S98: 633.9 | T98: 623.9 | U98: 1722.5 | V98: 9329.3 | W98: 25559.72603 | X98: 1008 | Z98: ６５～６９歳 | AA98: 67 | AB98: 12.4 | AC98: 160 | AD98: 2 | AE98: 524.8 | AF98: 520.6 | AG98: 1831.4 | AH98: 8129 | AI98: 22271.23288 | AJ98: 170
A99: 90 | B99: ７０歳～ | C99: 74.3 | D99: 22.1 | E99: 164 | F99: 1 | G99: 737.7 | H99: 736.2 | I99: 1895.4 | J99: 10747.8 | K99: 29446.0274 | L99: 375 | N99: ７０歳～ | O99: 74.4 | P99: 22.7 | Q99: 164 | R99: 1 | S99: 755.6 | T99: 754 | U99: 1953.7 | V99: 11020.9 | W99: 30194.24658 | X99: 349 | Z99: ７０歳～ | AA99: 73.2 | AB99: 13.8 | AC99: 170 | AD99: 0 | AE99: 497.5 | AF99: 497.5 | AG99: 1112.2 | AH99: 7082.2 | AI99: 19403.28767 | AJ99: 26
A100: 91 | B100: 不明 | C100: 45.6 | D100: 9.5 | E100: 163 | F100: 13 | G100: 283.8 | H100: 257.4 | I100: 340.8 | J100: 3746.4 | K100: 10264.10959 | L100: 217174 | N100: 不明 | O100: 46.3 | P100: 10.6 | Q100: 167 | R100: 15 | S100: 334.6 | T100: 301.2 | U100: 484.6 | V100: 4499.8 | W100: 12328.21918 | X100: 105733 | Z100: 不明 | AA100: 45 | AB100: 8.5 | AC100: 159 | AD100: 11 | AE100: 235.5 | AF100: 215.8 | AG100: 204.4 | AH100: 3030.4 | AI100: 8302.465753 | AJ100: 111442
A101: 92 | B101: ～１９歳 | C101: 19.1 | D101: 0.9 | E101: 161 | F101: 22 | G101: 198.7 | H101: 168.9 | I101: 21.1 | J101: 2405.5 | K101: 6590.410959 | L101: 1466 | N101: ～１９歳 | O101: 19.2 | P101: 1.2 | Q101: 156 | R101: 18 | S101: 192.1 | T101: 166.5 | U101: 33.9 | V101: 2339.1 | W101: 6408.493151 | X101: 588 | Z101: ～１９歳 | AA101: 19 | AB101: 0.7 | AC101: 165 | AD101: 25 | AE101: 203.1 | AF101: 170.5 | AG101: 12.5 | AH101: 2449.7 | AI101: 6711.506849 | AJ101: 878
A102: 93 | B102: ２０～２４歳 | C102: 22.9 | D102: 1.7 | E102: 166 | F102: 15 | G102: 224 | H102: 198.2 | I102: 81.8 | J102: 2769.8 | K102: 7588.493151 | L102: 15325 | N102: ２０～２４歳 | O102: 23 | P102: 1.7 | Q102: 167 | R102: 15 | S102: 234.4 | T102: 208.2 | U102: 102.3 | V102: 2915.1 | W102: 7986.575342 | X102: 5882 | Z102: ２０～２４歳 | AA102: 22.8 | AB102: 1.7 | AC102: 165 | AD102: 14 | AE102: 217.6 | AF102: 191.9 | AG102: 69 | AH102: 2680.2 | AI102: 7343.013699 | AJ102: 9443
A103: 94 | B103: ２５～２９歳 | C103: 27.5 | D103: 3.1 | E103: 164 | F103: 14 | G103: 254.8 | H103: 226.7 | I103: 205.7 | J103: 3263.3 | K103: 8940.547945 | L103: 22294 | N103: ２５～２９歳 | O103: 27.5 | P103: 3.3 | Q103: 165 | R103: 16 | S103: 272 | T103: 239.1 | U103: 243.3 | V103: 3507.3 | W103: 9609.041096 | X103: 10270 | Z103: ２５～２９歳 | AA103: 27.4 | AB103: 2.9 | AC103: 163 | AD103: 12 | AE103: 240.1 | AF103: 216.1 | AG103: 173.6 | AH103: 3054.8 | AI103: 8369.315068 | AJ103: 12023
A104: 95 | B104: ３０～３４歳 | C104: 32.3 | D104: 5 | E104: 162 | F104: 12 | G104: 275.7 | H104: 249.2 | I104: 256.7 | J104: 3565.1 | K104: 9767.39726 | L104: 19905 | N104: ３０～３４歳 | O104: 32.5 | P104: 5.3 | Q104: 165 | R104: 16 | S104: 310.8 | T104: 274.1 | U104: 346.5 | V104: 4076.1 | W104: 11167.39726 | X104: 9411 | Z104: ３０～３４歳 | AA104: 32.3 | AB104: 4.7 | AC104: 160 | AD104: 9 | AE104: 244.2 | AF104: 226.9 | AG104: 176.1 | AH104: 3106.5 | AI104: 8510.958904 | AJ104: 10493
A105: 96 | B105: ３５～３９歳 | C105: 37.4 | D105: 7.3 | E105: 162 | F105: 12 | G105: 297.8 | H105: 269.2 | I105: 397.9 | J105: 3971.5 | K105: 10880.82192 | L105: 18595 | N105: ３５～３９歳 | O105: 37.4 | P105: 7.5 | Q105: 166 | R105: 16 | S105: 345.5 | T105: 306.8 | U105: 545.8 | V105: 4691.8 | W105: 12854.24658 | X105: 9874 | Z105: ３５～３９歳 | AA105: 37.5 | AB105: 7 | AC105: 156 | AD105: 8 | AE105: 243.7 | AF105: 226.6 | AG105: 230.5 | AH105: 3154.9 | AI105: 8643.561644 | AJ105: 8721
A106: 97 | B106: ４０～４４歳 | C106: 42.6 | D106: 9.7 | E106: 162 | F106: 11 | G106: 304.8 | H106: 278.7 | I106: 414.6 | J106: 4072.2 | K106: 11156.71233 | L106: 22462 | N106: ４０～４４歳 | O106: 42.6 | P106: 10.5 | Q106: 167 | R106: 14 | S106: 356.1 | T106: 320.2 | U106: 550.1 | V106: 4823.3 | W106: 13214.52055 | X106: 11637 | Z106: ４０～４４歳 | AA106: 42.7 | AB106: 8.8 | AC106: 158 | AD106: 8 | AE106: 249.5 | AF106: 234.2 | AG106: 268.9 | AH106: 3262.9 | AI106: 8939.452055 | AJ106: 10826
A107: 98 | B107: ４５～４９歳 | C107: 47.7 | D107: 11.1 | E107: 165 | F107: 13 | G107: 312 | H107: 284.5 | I107: 465.4 | J107: 4209.4 | K107: 11532.60274 | L107: 27169 | N107: ４５～４９歳 | O107: 47.6 | P107: 12.8 | Q107: 169 | R107: 16 | S107: 376.7 | T107: 340.4 | U107: 652.1 | V107: 5172.5 | W107: 14171.23288 | X107: 13548 | Z107: ４５～４９歳 | AA107: 47.7 | AB107: 9.4 | AC107: 161 | AD107: 10 | AE107: 247.6 | AF107: 228.9 | AG107: 279.8 | AH107: 3251 | AI107: 8906.849315 | AJ107: 13621
A108: 99 | B108: ５０～５４歳 | C108: 52.5 | D108: 13 | E108: 164 | F108: 14 | G108: 319.5 | H108: 288.8 | I108: 455 | J108: 4289 | K108: 11750.68493 | L108: 29075 | N108: ５０～５４歳 | O108: 52.5 | P108: 15.5 | Q108: 169 | R108: 16 | S108: 403 | T108: 361.9 | U108: 687.2 | V108: 5523.2 | W108: 15132.05479 | X108: 13527 | Z108: ５０～５４歳 | AA108: 52.5 | AB108: 10.8 | AC108: 159 | AD108: 12 | AE108: 246.8 | AF108: 225.3 | AG108: 253 | AH108: 3214.6 | AI108: 8807.123288 | AJ108: 15548
A109: 100 | B109: ５５～５９歳 | C109: 57.4 | D109: 14 | E109: 163 | F109: 12 | G109: 305.4 | H109: 278.4 | I109: 481 | J109: 4145.8 | K109: 11358.35616 | L109: 23674 | N109: ５５～５９歳 | O109: 57.4 | P109: 16.9 | Q109: 169 | R109: 15 | S109: 384.3 | T109: 347.7 | U109: 755.8 | V109: 5367.4 | W109: 14705.20548 | X109: 11015 | Z109: ５５～５９歳 | AA109: 57.5 | AB109: 11.4 | AC109: 157 | AD109: 10 | AE109: 236.8 | AF109: 218.1 | AG109: 241.9 | AH109: 3083.5 | AI109: 8447.945205 | AJ109: 12659
A110: 101 | B110: ６０～６４歳 | C110: 62.5 | D110: 13.2 | E110: 161 | F110: 12 | G110: 270.6 | H110: 248.3 | I110: 326.9 | J110: 3574.1 | K110: 9792.054795 | L110: 20577 | N110: ６０～６４歳 | O110: 62.5 | P110: 13.6 | Q110: 165 | R110: 13 | S110: 317.2 | T110: 291.1 | U110: 436 | V110: 4242.4 | W110: 11623.0137 | X110: 11302 | Z110: ６０～６４歳 | AA110: 62.4 | AB110: 12.7 | AC110: 157 | AD110: 11 | AE110: 213.9 | AF110: 196.1 | AG110: 194 | AH110: 2760.8 | AI110: 7563.835616 | AJ110: 9275
A111: 102 | B111: ６５～６９歳 | C111: 67.3 | D111: 13.7 | E111: 156 | F111: 11 | G111: 226.1 | H111: 206.8 | I111: 149.1 | J111: 2862.3 | K111: 7841.917808 | L111: 10330 | N111: ６５～６９歳 | O111: 67.3 | P111: 11.6 | Q111: 163 | R111: 10 | S111: 265.8 | T111: 246.9 | U111: 229.2 | V111: 3418.8 | W111: 9366.575342 | X111: 5098 | Z111: ６５～６９歳 | AA111: 67.2 | AB111: 15.7 | AC111: 149 | AD111: 11 | AE111: 187.5 | AF111: 167.7 | AG111: 71 | AH111: 2321 | AI111: 6358.90411 | AJ111: 5231
A112: 103 | B112: ７０歳～ | C112: 73 | D112: 15.4 | E112: 161 | F112: 7 | G112: 230.6 | H112: 216.6 | I112: 127.1 | J112: 2894.3 | K112: 7929.589041 | L112: 6303 | N112: ７０歳～ | O112: 73.3 | P112: 13.8 | Q112: 164 | R112: 6 | S112: 247.6 | T112: 236.2 | U112: 143.3 | V112: 3114.5 | W112: 8532.876712 | X112: 3580 | Z112: ７０歳～ | AA112: 72.5 | AB112: 17.5 | AC112: 157 | AD112: 8 | AE112: 208.3 | AF112: 190.9 | AG112: 105.8 | AH112: 2605.4 | AI112: 7138.082192 | AJ112: 2724

Sheet 賃セＲ４ (hidden)
A1: 令和４年賃金構造基本統計調査
A2: 第１表 年齢階級別きまって支給する現金給与額、所定内給与額及び年間賞与その他特別給与額
A3: 産業 | C3: 産業計
A5: 区 分 | C5: 企業規模計（10人以上） | M5: 区 分 | O5: 企業規模計（10人以上） | Y5: 区 分 | AA5: 企業規模計（10人以上）
C6: 年齢 | D6: 勤続 年数 | E6: 所定内 実労働 時間数 | F6: 超過 実労働 時間数 | G6: きまって 支給す る現金 給与額 | I6: 年間賞与その他特別給与額 | J6: 年額計 | K6: 日額 | L6: 労働者数 | O6: 年齢 | P6: 勤続 年数 | Q6: 所定内 実労働 時間数 | R6: 超過 実労働 時間数 | S6: きまって 支給す る現金 給与額 | U6: 年間賞与その他特別給与額 | V6: 年額計 | W6: 日額 | X6: 労働者数 | AA6: 年齢 | AB6: 勤続 年数 | AC6: 所定内 実労働 時間数 | AD6: 超過 実労働 時間数 | AE6: きまって 支給す る現金 給与額 | AG6: 年間賞与その他特別給与額 | AH6: 年額計 | AI6: 日額 | AJ6: 労働者数
H7: 所定内 給与額 | K7: ÷365 | T7: 所定内 給与額 | W7: ÷365 | AF7: 所定内 給与額 | AI7: ÷365
C8: 歳 | D8: 年 | E8: 時間 | F8: 時間 | G8: 千円 | H8: 千円 | I8: 千円 | L8: 十人
A9: 0 | B9: 男女計 学歴計 | C9: 43.7 | D9: 12.3 | E9: 165 | F9: 12 | G9: 340.1 | H9: 311.8 | I9: 884.5 | J9: =G9*12+I9 -> 4965.7 | K9: =J9/365*1000 -> 13604.65753 | L9: 2790674 | N9: 男 学歴計 | O9: 44.5 | P9: 13.7 | Q9: 167 | R9: 14 | S9: 376.5 | T9: 342 | U9: 1031.1 | V9: 5549.1 | W9: 15203.0137 | X9: 1775567 | Z9: 女 学歴計 | AA9: 42.3 | AB9: 9.8 | AC9: 163 | AD9: 8 | AE9: 276.3 | AF9: 258.9 | AG9: 627.9 | AH9: 3943.5 | AI9: 10804.10959 | AJ9: 1015107
A10: 1 | B10: ～１９歳 | C10: 19.1 | D10: 1 | E10: 167 | F10: 9 | G10: 200.3 | H10: 184.2 | I10: 150.7 | J10: 2554.3 | K10: 6998.082192 | L10: 21120 | N10: ～１９歳 | O10: 19.1 | P10: 1 | Q10: 167 | R10: 11 | S10: 207.2 | T10: 187.7 | U10: 167.5 | V10: 2653.9 | W10: 7270.958904 | X10: 13209 | Z10: ～１９歳 | AA10: 19.1 | AB10: 0.9 | AC10: 166 | AD10: 7 | AE10: 188.8 | AF10: 178.4 | AG10: 122.6 | AH10: 2388.2 | AI10: 6543.013699 | AJ10: 7911
A11: 2 | B11: ２０～２４歳 | C11: 23 | D11: 2.2 | E11: 166 | F11: 11 | G11: 240.8 | H11: 218.5 | I11: 382.2 | J11: 3271.8 | K11: 8963.835616 | L11: 202456 | N11: ２０～２４歳 | O11: 23 | P11: 2.3 | Q11: 167 | R11: 15 | S11: 248.1 | T11: 220.5 | U11: 424.6 | V11: 3401.8 | W11: 9320 | X11: 105181 | Z11: ２０～２４歳 | AA11: 23 | AB11: 2 | AC11: 166 | AD11: 8 | AE11: 232.9 | AF11: 216.3 | AG11: 336.4 | AH11: 3131.2 | AI11: 8578.630137 | AJ11: 97275
A12: 3 | B12: ２５～２９歳 | C12: 27.5 | D12: 4.3 | E12: 165 | F12: 14 | G12: 281.7 | H12: 251.2 | I12: 655.5 | J12: 4035.9 | K12: 11057.26027 | L12: 299419 | N12: ２５～２９歳 | O12: 27.5 | P12: 4.4 | Q12: 167 | R12: 18 | S12: 296.9 | T12: 259.3 | U12: 710.8 | V12: 4273.6 | W12: 11708.49315 | X12: 169318 | Z12: ２５～２９歳 | AA12: 27.4 | AB12: 4 | AC12: 164 | AD12: 10 | AE12: 261.9 | AF12: 240.8 | AG12: 583.5 | AH12: 3726.3 | AI12: 10209.0411 | AJ12: 130101
A13: 4 | B13: ３０～３４歳 | C13: 32.5 | D13: 6.9 | E13: 165 | F13: 14 | G13: 314.1 | H13: 281 | I13: 799.3 | J13: 4568.5 | K13: 12516.43836 | L13: 279813 | N13: ３０～３４歳 | O13: 32.5 | P13: 7.3 | Q13: 166 | R13: 17 | S13: 338.4 | T13: 297 | U13: 898.2 | V13: 4959 | W13: 13586.30137 | X13: 175865 | Z13: ３０～３４歳 | AA13: 32.4 | AB13: 6.3 | AC13: 163 | AD13: 8 | AE13: 273 | AF13: 254 | AG13: 631.8 | AH13: 3907.8 | AI13: 10706.30137 | AJ13: 103948
A14: 5 | B14: ３５～３９歳 | C14: 37.5 | D14: 9.6 | E14: 165 | F14: 14 | G14: 346.7 | H14: 312.5 | I14: 926.1 | J14: 5086.5 | K14: 13935.61644 | L14: 305420 | N14: ３５～３９歳 | O14: 37.6 | P14: 10.1 | Q14: 167 | R14: 17 | S14: 379 | T14: 335.8 | U14: 1052.5 | V14: 5600.5 | W14: 15343.83562 | X14: 199974 | Z14: ３５～３９歳 | AA14: 37.5 | AB14: 8.6 | AC14: 162 | AD14: 7 | AE14: 285.4 | AF14: 268.2 | AG14: 686.6 | AH14: 4111.4 | AI14: 11264.10959 | AJ14: 105446
A15: 6 | B15: ４０～４４歳 | C15: 42.6 | D15: 12.2 | E15: 166 | F15: 13 | G15: 366.1 | H15: 333.7 | I15: 1012.8 | J15: 5406 | K15: 14810.9589 | L15: 335836 | N15: ４０～４４歳 | O15: 42.6 | P15: 13.2 | Q15: 167 | R15: 15 | S15: 403.7 | T15: 363.6 | U15: 1163.8 | V15: 6008.2 | W15: 16460.82192 | X15: 221506 | Z15: ４０～４４歳 | AA15: 42.6 | AB15: 10.5 | AC15: 162 | AD15: 7 | AE15: 293.2 | AF15: 275.6 | AG15: 720.1 | AH15: 4238.5 | AI15: 11612.32877 | AJ15: 114330
A16: 7 | B16: ４５～４９歳 | C16: 47.6 | D16: 15.1 | E16: 166 | F16: 12 | G16: 379.5 | H16: 349.2 | I16: 1081.3 | J16: 5635.3 | K16: 15439.17808 | L16: 393721 | N16: ４５～４９歳 | O16: 47.6 | P16: 16.6 | Q16: 168 | R16: 14 | S16: 424.8 | T16: 388.1 | U16: 1263.2 | V16: 6360.8 | W16: 17426.84932 | X16: 253977 | Z16: ４５～４９歳 | AA16: 47.6 | AB16: 12.3 | AC16: 162 | AD16: 8 | AE16: 297.2 | AF16: 278.5 | AG16: 750.7 | AH16: 4317.1 | AI16: 11827.67123 | AJ16: 139744
A17: 8 | B17: ５０～５４歳 | C17: 52.4 | D17: 17.8 | E17: 166 | F17: 11 | G17: 393.2 | H17: 364.7 | I17: 1159.1 | J17: 5877.5 | K17: 16102.73973 | L17: 369125 | N17: ５０～５４歳 | O17: 52.4 | P17: 20 | Q17: 168 | R17: 13 | S17: 445 | T17: 410.9 | U17: 1382.6 | V17: 6722.6 | W17: 18418.08219 | X17: 239580 | Z17: ５０～５４歳 | AA17: 52.4 | AB17: 13.9 | AC17: 162 | AD17: 8 | AE17: 297.5 | AF17: 279.2 | AG17: 745.8 | AH17: 4315.8 | AI17: 11824.10959 | AJ17: 129545
A18: 9 | B18: ５５～５９歳 | C18: 57.4 | D18: 20.2 | E18: 165 | F18: 10 | G18: 395.6 | H18: 370 | I18: 1155.7 | J18: 5902.9 | K18: 16172.32877 | L18: 281539 | N18: ５５～５９歳 | O18: 57.4 | P18: 22.5 | Q18: 167 | R18: 12 | S18: 447.1 | T18: 416.5 | U18: 1374.9 | V18: 6740.1 | W18: 18466.0274 | X18: 185708 | Z18: ５５～５９歳 | AA18: 57.4 | AB18: 15.7 | AC18: 162 | AD18: 6 | AE18: 295.8 | AF18: 280 | AG18: 731.1 | AH18: 4280.7 | AI18: 11727.94521 | AJ18: 95831
A19: 10 | B19: ６０～６４歳 | C19: 62.3 | D19: 18.9 | E19: 164 | F19: 8 | G19: 313 | H19: 295.6 | I19: 692 | J19: 4448 | K19: 12186.30137 | L19: 189222 | N19: ６０～６４歳 | O19: 62.4 | P19: 20.3 | Q19: 166 | R19: 9 | S19: 342.2 | T19: 321.8 | U19: 798.1 | V19: 4904.5 | W19: 13436.9863 | X19: 130494 | Z19: ６０～６４歳 | AA19: 62.3 | AB19: 15.8 | AC19: 161 | AD19: 5 | AE19: 248.3 | AF19: 237.3 | AG19: 456.4 | AH19: 3436 | AI19: 9413.69863 | AJ19: 58727
A20: 11 | B20: ６５～６９歳 | C20: 67.2 | D20: 16.1 | E20: 164 | F20: 7 | G20: 271 | H20: 257.6 | I20: 350.8 | J20: 3602.8 | K20: 9870.684932 | L20: 73590 | N20: ６５～６９歳 | O20: 67.2 | P20: 16.3 | Q20: 166 | R20: 8 | S20: 290 | T20: 274.5 | U20: 377.5 | V20: 3857.5 | W20: 10568.49315 | X20: 52311 | Z20: ６５～６９歳 | AA20: 67.2 | AB20: 15.6 | AC20: 161 | AD20: 4 | AE20: 224.2 | AF20: 216.2 | AG20: 285.1 | AH20: 2975.5 | AI20: 8152.054795 | AJ20: 21280
A21: 12 | B21: ７０歳～ | C21: 73.2 | D21: 17.1 | E21: 162 | F21: 6 | G21: 249.6 | H21: 238.1 | I21: 228.9 | J21: 3224.1 | K21: 8833.150685 | L21: 39414 | N21: ７０歳～ | O21: 73.2 | P21: 16.4 | Q21: 164 | R21: 7 | S21: 259.6 | T21: 245.9 | U21: 212.7 | V21: 3327.9 | W21: 9117.534247 | X21: 28444 | Z21: ７０歳～ | AA21: 73.1 | AB21: 18.8 | AC21: 159 | AD21: 3 | AE21: 223.7 | AF21: 217.8 | AG21: 270.8 | AH21: 2955.2 | AI21: 8096.438356 | AJ21: 10970
A22: 13 | B22: 中学 | C22: 49.7 | D22: 13.2 | E22: 169 | F22: 16 | G22: 296.1 | H22: 264 | I22: 469 | J22: 4022.2 | K22: 11019.72603 | L22: 68984 | N22: 中学 | O22: 50.1 | P22: 14.1 | Q22: 171 | R22: 18 | S22: 316.9 | T22: 280 | U22: 525.7 | V22: 4328.5 | W22: 11858.90411 | X22: 54230 | Z22: 中学 | AA22: 48 | AB22: 9.9 | AC22: 163 | AD22: 8 | AE22: 219.8 | AF22: 205.2 | AG22: 260.6 | AH22: 2898.2 | AI22: 7940.273973 | AJ22: 14754
A23: 14 | B23: ～１９歳 | C23: 18.4 | D23: 1.3 | E23: 159 | F23: 8 | G23: 176.4 | H23: 165 | I23: 58.8 | J23: 2175.6 | K23: 5960.547945 | L23: 400 | N23: ～１９歳 | O23: 18.4 | P23: 1.4 | Q23: 160 | R23: 9 | S23: 177.3 | T23: 164 | U23: 64.3 | V23: 2191.9 | W23: 6005.205479 | X23: 308 | Z23: ～１９歳 | AA23: 18.5 | AB23: 1.1 | AC23: 155 | AD23: 3 | AE23: 173.3 | AF23: 168.3 | AG23: 40.3 | AH23: 2119.9 | AI23: 5807.945205 | AJ23: 92
A24: 15 | B24: ２０～２４歳 | C24: 22.8 | D24: 2.6 | E24: 166 | F24: 11 | G24: 228.7 | H24: 209.8 | I24: 211.5 | J24: 2955.9 | K24: 8098.356164 | L24: 2025 | N24: ２０～２４歳 | O24: 23 | P24: 2.6 | Q24: 170 | R24: 14 | S24: 244.6 | T24: 220.7 | U24: 201.8 | V24: 3137 | W24: 8594.520548 | X24: 1307 | Z24: ２０～２４歳 | AA24: 22.5 | AB24: 2.6 | AC24: 159 | AD24: 6 | AE24: 199.6 | AF24: 190 | AG24: 229.2 | AH24: 2624.4 | AI24: 7190.136986 | AJ24: 718
A25: 16 | B25: ２５～２９歳 | C25: 27.6 | D25: 3.9 | E25: 169 | F25: 15 | G25: 264.5 | H25: 237 | I25: 309.9 | J25: 3483.9 | K25: 9544.931507 | L25: 3657 | N25: ２５～２９歳 | O25: 27.5 | P25: 4.3 | Q25: 171 | R25: 15 | S25: 279.1 | T25: 249.2 | U25: 363.5 | V25: 3712.7 | W25: 10171.78082 | X25: 2587 | Z25: ２５～２９歳 | AA25: 27.8 | AB25: 2.9 | AC25: 163 | AD25: 14 | AE25: 229.4 | AF25: 207.7 | AG25: 180.1 | AH25: 2932.9 | AI25: 8035.342466 | AJ25: 1070
A26: 17 | B26: ３０～３４歳 | C26: 32.6 | D26: 5.9 | E26: 169 | F26: 17 | G26: 286 | H26: 252.3 | I26: 381.2 | J26: 3813.2 | K26: 10447.12329 | L26: 4771 | N26: ３０～３４歳 | O26: 32.6 | P26: 6.3 | Q26: 172 | R26: 21 | S26: 308.5 | T26: 266.9 | U26: 441.2 | V26: 4143.2 | W26: 11351.23288 | X26: 3531 | Z26: ３０～３４歳 | AA26: 32.9 | AB26: 4.8 | AC26: 163 | AD26: 7 | AE26: 222.1 | AF26: 210.7 | AG26: 210.4 | AH26: 2875.6 | AI26: 7878.356164 | AJ26: 1240
A27: 18 | B27: ３５～３９歳 | C27: 37.6 | D27: 8.5 | E27: 170 | F27: 19 | G27: 309.2 | H27: 269.9 | I27: 492.7 | J27: 4203.1 | K27: 11515.34247 | L27: 7208 | N27: ３５～３９歳 | O27: 37.7 | P27: 9.4 | Q27: 173 | R27: 23 | S27: 335.9 | T27: 289.2 | U27: 583.2 | V27: 4614 | W27: 12641.09589 | X27: 5498 | Z27: ３５～３９歳 | AA27: 37.3 | AB27: 5.8 | AC27: 162 | AD27: 9 | AE27: 223.5 | AF27: 207.8 | AG27: 201.7 | AH27: 2883.7 | AI27: 7900.547945 | AJ27: 1710
A28: 19 | B28: ４０～４４歳 | C28: 42.6 | D28: 11.4 | E28: 170 | F28: 16 | G28: 328.9 | H28: 294.7 | I28: 732.9 | J28: 4679.7 | K28: 12821.09589 | L28: 8789 | N28: ４０～４４歳 | O28: 42.6 | P28: 12.4 | Q28: 172 | R28: 18 | S28: 351.7 | T28: 312.8 | U28: 841.7 | V28: 5062.1 | W28: 13868.76712 | X28: 7251 | Z28: ４０～４４歳 | AA28: 42.4 | AB28: 6.7 | AC28: 163 | AD28: 6 | AE28: 221.6 | AF28: 209.1 | AG28: 220 | AH28: 2879.2 | AI28: 7888.219178 | AJ28: 1538
A29: 20 | B29: ４５～４９歳 | C29: 47.8 | D29: 12.5 | E29: 171 | F29: 20 | G29: 328.9 | H29: 286.8 | I29: 575.3 | J29: 4522.1 | K29: 12389.31507 | L29: 8459 | N29: ４５～４９歳 | O29: 47.8 | P29: 13.1 | Q29: 174 | R29: 23 | S29: 352.8 | T29: 304.3 | U29: 632.7 | V29: 4866.3 | W29: 13332.32877 | X29: 6667 | Z29: ４５～４９歳 | AA29: 47.9 | AB29: 10.5 | AC29: 163 | AD29: 11 | AE29: 240.1 | AF29: 221.7 | AG29: 361.7 | AH29: 3242.9 | AI29: 8884.657534 | AJ29: 1792
A30: 21 | B30: ５０～５４歳 | C30: 52.4 | D30: 14.9 | E30: 171 | F30: 18 | G30: 329 | H30: 288.2 | I30: 561.4 | J30: 4509.4 | K30: 12354.52055 | L30: 9448 | N30: ５０～５４歳 | O30: 52.4 | P30: 16.2 | Q30: 173 | R30: 20 | S30: 355.5 | T30: 308.4 | U30: 613.9 | V30: 4879.9 | W30: 13369.58904 | X30: 7480 | Z30: ５０～５４歳 | AA30: 52.4 | AB30: 10.2 | AC30: 165 | AD30: 10 | AE30: 228.4 | AF30: 211.2 | AG30: 362.3 | AH30: 3103.1 | AI30: 8501.643836 | AJ30: 1968
A31: 22 | B31: ５５～５９歳 | C31: 57.4 | D31: 18.7 | E31: 169 | F31: 17 | G31: 328.5 | H31: 292.1 | I31: 649.8 | J31: 4591.8 | K31: 12580.27397 | L31: 6629 | N31: ５５～５９歳 | O31: 57.4 | P31: 19.8 | Q31: 171 | R31: 19 | S31: 349.6 | T31: 308.7 | U31: 711 | V31: 4906.2 | W31: 13441.64384 | X31: 5434 | Z31: ５５～５９歳 | AA31: 57.4 | AB31: 13.8 | AC31: 162 | AD31: 9 | AE31: 232.5 | AF31: 216.3 | AG31: 371.1 | AH31: 3161.1 | AI31: 8660.547945 | AJ31: 1194
A32: 23 | B32: ６０～６４歳 | C32: 62.5 | D32: 18.6 | E32: 168 | F32: 13 | G32: 271.6 | H32: 247.4 | I32: 373.2 | J32: 3632.4 | K32: 9951.780822 | L32: 6204 | N32: ６０～６４歳 | O32: 62.5 | P32: 19.2 | Q32: 169 | R32: 13 | S32: 286.5 | T32: 259.8 | U32: 392.7 | V32: 3830.7 | W32: 10495.06849 | X32: 5005 | Z32: ６０～６４歳 | AA32: 62.4 | AB32: 16 | AC32: 164 | AD32: 10 | AE32: 209.4 | AF32: 195.4 | AG32: 291.8 | AH32: 2804.6 | AI32: 7683.835616 | AJ32: 1199
A33: 24 | B33: ６５～６９歳 | C33: 67.6 | D33: 18.7 | E33: 166 | F33: 10 | G33: 238.3 | H33: 221.3 | I33: 233 | J33: 3092.6 | K33: 8472.876712 | L33: 5905 | N33: ６５～６９歳 | O33: 67.5 | P33: 19.2 | Q33: 166 | R33: 10 | S33: 250.3 | T33: 231.7 | U33: 254.6 | V33: 3258.2 | W33: 8926.575342 | X33: 4810 | Z33: ６５～６９歳 | AA33: 67.6 | AB33: 16.5 | AC33: 165 | AD33: 6 | AE33: 185.7 | AF33: 175.8 | AG33: 138 | AH33: 2366.4 | AI33: 6483.287671 | AJ33: 1094
A34: 25 | B34: ７０歳～ | C34: 73.6 | D34: 19.5 | E34: 163 | F34: 9 | G34: 233.4 | H34: 216.9 | I34: 143.8 | J34: 2944.6 | K34: 8067.39726 | L34: 5490 | N34: ７０歳～ | O34: 73.6 | P34: 19.4 | Q34: 163 | R34: 10 | S34: 241.9 | T34: 223.6 | U34: 127.5 | V34: 3030.3 | W34: 8302.191781 | X34: 4352 | Z34: ７０歳～ | AA34: 73.7 | AB34: 19.9 | AC34: 162 | AD34: 4 | AE34: 200.8 | AF34: 191.1 | AG34: 205.7 | AH34: 2615.3 | AI34: 7165.205479 | AJ34: 1138
A35: 26 | B35: 高校 | C35: 45.8 | D35: 13.6 | E35: 166 | F35: 14 | G35: 304.6 | H35: 273.8 | I35: 690.3 | J35: 4345.5 | K35: 11905.47945 | L35: 1000091 | N35: 高校 | O35: 45.8 | P35: 14.8 | Q35: 168 | R35: 17 | S35: 336.4 | T35: 297.5 | U35: 793.1 | V35: 4829.9 | W35: 13232.60274 | X35: 681991 | Z35: 高校 | AA35: 45.6 | AB35: 11.1 | AC35: 163 | AD35: 7 | AE35: 236.5 | AF35: 222.9 | AG35: 469.7 | AH35: 3307.7 | AI35: 9062.191781 | AJ35: 318100
A36: 27 | B36: ～１９歳 | C36: 19.1 | D36: 0.9 | E36: 167 | F36: 9 | G36: 200.8 | H36: 184.6 | I36: 154 | J36: 2563.6 | K36: 7023.561644 | L36: 20340 | N36: ～１９歳 | O36: 19.1 | P36: 1 | Q36: 167 | R36: 11 | S36: 207.9 | T36: 188.2 | U36: 171.3 | V36: 2666.1 | W36: 7304.383562 | X36: 12708 | Z36: ～１９歳 | AA36: 19.1 | AB36: 0.9 | AC36: 167 | AD36: 6 | AE36: 189 | AF36: 178.7 | AG36: 125.2 | AH36: 2393.2 | AI36: 6556.712329 | AJ36: 7633
A37: 28 | B37: ２０～２４歳 | C37: 22.5 | D37: 3.3 | E37: 166 | F37: 15 | G37: 232 | H37: 205.2 | I37: 496.8 | J37: 3280.8 | K37: 8988.493151 | L37: 70119 | N37: ２０～２４歳 | O37: 22.6 | P37: 3.3 | Q37: 167 | R37: 17 | S37: 243.8 | T37: 211.4 | U37: 547.4 | V37: 3473 | W37: 9515.068493 | X37: 46035 | Z37: ２０～２４歳 | AA37: 22.5 | AB37: 3.2 | AC37: 165 | AD37: 10 | AE37: 209.3 | AF37: 193.5 | AG37: 400 | AH37: 2911.6 | AI37: 7976.986301 | AJ37: 24084
A38: 29 | B38: ２５～２９歳 | C38: 27.5 | D38: 5.7 | E38: 166 | F38: 16 | G38: 260 | H38: 228.1 | I38: 538 | J38: 3658 | K38: 10021.91781 | L38: 71500 | N38: ２５～２９歳 | O38: 27.5 | P38: 5.9 | Q38: 168 | R38: 20 | S38: 279.3 | T38: 239.2 | U38: 602.1 | V38: 3953.7 | W38: 10832.05479 | X38: 48024 | Z38: ２５～２９歳 | AA38: 27.5 | AB38: 5.3 | AC38: 164 | AD38: 9 | AE38: 220.7 | AF38: 205.3 | AG38: 406.9 | AH38: 3055.3 | AI38: 8370.684932 | AJ38: 23476
A39: 30 | B39: ３０～３４歳 | C39: 32.6 | D39: 8.3 | E39: 166 | F39: 16 | G39: 283.7 | H39: 248.5 | I39: 655.5 | J39: 4059.9 | K39: 11123.0137 | L39: 75750 | N39: ３０～３４歳 | O39: 32.5 | P39: 8.7 | Q39: 167 | R39: 20 | S39: 309 | T39: 263.8 | U39: 738 | V39: 4446 | W39: 12180.82192 | X39: 52231 | Z39: ３０～３４歳 | AA39: 32.6 | AB39: 7.5 | AC39: 163 | AD39: 7 | AE39: 227.5 | AF39: 214.4 | AG39: 472.4 | AH39: 3202.4 | AI39: 8773.69863 | AJ39: 23518
A40: 31 | B40: ３５～３９歳 | C40: 37.6 | D40: 10.1 | E40: 166 | F40: 16 | G40: 304.5 | H40: 267.6 | I40: 689.6 | J40: 4343.6 | K40: 11900.27397 | L40: 86743 | N40: ３５～３９歳 | O40: 37.6 | P40: 10.8 | Q40: 168 | R40: 20 | S40: 334.1 | T40: 287.2 | U40: 789.4 | V40: 4798.6 | W40: 13146.84932 | X40: 61420 | Z40: ３５～３９歳 | AA40: 37.6 | AB40: 8.5 | AC40: 162 | AD40: 7 | AE40: 232.8 | AF40: 220.2 | AG40: 447.5 | AH40: 3241.1 | AI40: 8879.726027 | AJ40: 25322
A41: 32 | B41: ４０～４４歳 | C41: 42.6 | D41: 12.5 | E41: 167 | F41: 16 | G41: 324.7 | H41: 287.5 | I41: 758.4 | J41: 4654.8 | K41: 12752.87671 | L41: 110753 | N41: ４０～４４歳 | O41: 42.6 | P41: 13.6 | Q41: 168 | R41: 19 | S41: 357.9 | T41: 311.2 | U41: 872.5 | V41: 5167.3 | W41: 14156.9863 | X41: 78758 | Z41: ４０～４４歳 | AA41: 42.7 | AB41: 9.9 | AC41: 163 | AD41: 7 | AE41: 243 | AF41: 229.2 | AG41: 477.7 | AH41: 3393.7 | AI41: 9297.808219 | AJ41: 31995
A42: 33 | B42: ４５～４９歳 | C42: 47.7 | D42: 15.6 | E42: 167 | F42: 15 | G42: 339.3 | H42: 303.6 | I42: 837.8 | J42: 4909.4 | K42: 13450.41096 | L42: 143715 | N42: ４５～４９歳 | O42: 47.6 | P42: 17.1 | Q42: 169 | R42: 18 | S42: 380.1 | T42: 335.4 | U42: 974 | V42: 5535.2 | W42: 15164.93151 | X42: 98360 | Z42: ４５～４９歳 | AA42: 47.7 | AB42: 12.3 | AC42: 163 | AD42: 8 | AE42: 250.7 | AF42: 234.7 | AG42: 542.5 | AH42: 3550.9 | AI42: 9728.493151 | AJ42: 45354
A43: 34 | B43: ５０～５４歳 | C43: 52.5 | D43: 17.8 | E43: 167 | F43: 14 | G43: 343.7 | H43: 310.6 | I43: 857.3 | J43: 4981.7 | K43: 13648.49315 | L43: 151914 | N43: ５０～５４歳 | O43: 52.5 | P43: 19.9 | Q43: 169 | R43: 17 | S43: 388.5 | T43: 346.4 | U43: 1003.9 | V43: 5665.9 | W43: 15523.0137 | X43: 100754 | Z43: ５０～５４歳 | AA43: 52.5 | AB43: 13.5 | AC43: 163 | AD43: 8 | AE43: 255.3 | AF43: 240.2 | AG43: 568.6 | AH43: 3632.2 | AI43: 9951.232877 | AJ43: 51160
A44: 35 | B44: ５５～５９歳 | C44: 57.5 | D44: 20.1 | E44: 166 | F44: 12 | G44: 343.9 | H44: 314.3 | I44: 864.3 | J44: 4991.1 | K44: 13674.24658 | L44: 126265 | N44: ５５～５９歳 | O44: 57.4 | P44: 22.3 | Q44: 168 | R44: 15 | S44: 388 | T44: 350.3 | U44: 1008.5 | V44: 5664.5 | W44: 15519.17808 | X44: 84266 | Z44: ５５～５９歳 | AA44: 57.5 | AB44: 15.7 | AC44: 163 | AD44: 6 | AE44: 255.4 | AF44: 242.1 | AG44: 575.1 | AH44: 3639.9 | AI44: 9972.328767 | AJ44: 41998
A45: 36 | B45: ６０～６４歳 | C45: 62.3 | D45: 19.3 | E45: 165 | F45: 10 | G45: 277.7 | H45: 258.2 | I45: 534.4 | J45: 3866.8 | K45: 10593.9726 | L45: 86809 | N45: ６０～６４歳 | O45: 62.4 | P45: 20.7 | Q45: 166 | R45: 12 | S45: 303 | T45: 279.2 | U45: 613.5 | V45: 4249.5 | W45: 11642.46575 | X45: 59923 | Z45: ６０～６４歳 | AA45: 62.3 | AB45: 16.3 | AC45: 161 | AD45: 6 | AE45: 221.3 | AF45: 211.4 | AG45: 358 | AH45: 3013.6 | AI45: 8256.438356 | AJ45: 26886
A46: 37 | B46: ６５～６９歳 | C46: 67.2 | D46: 16.1 | E46: 165 | F46: 8 | G46: 242.9 | H46: 227.9 | I46: 284.9 | J46: 3199.7 | K46: 8766.30137 | L46: 36089 | N46: ６５～６９歳 | O46: 67.2 | P46: 16.3 | Q46: 167 | R46: 9 | S46: 259.3 | T46: 241.2 | U46: 303.8 | V46: 3415.4 | W46: 9357.260274 | X46: 25168 | Z46: ６５～６９歳 | AA46: 67.3 | AB46: 15.8 | AC46: 161 | AD46: 5 | AE46: 205 | AF46: 197.2 | AG46: 241.2 | AH46: 2701.2 | AI46: 7400.547945 | AJ46: 10921
A47: 38 | B47: ７０歳～ | C47: 73 | D47: 16.9 | E47: 162 | F47: 6 | G47: 227.5 | H47: 216.1 | I47: 198.5 | J47: 2928.5 | K47: 8023.287671 | L47: 20096 | N47: ７０歳～ | O47: 73 | P47: 15.9 | Q47: 163 | R47: 7 | S47: 234.5 | T47: 220.7 | U47: 177.4 | V47: 2991.4 | W47: 8195.616438 | X47: 14344 | Z47: ７０歳～ | AA47: 72.9 | AB47: 19.2 | AC47: 158 | AD47: 3 | AE47: 210.1 | AF47: 204.7 | AG47: 251.1 | AH47: 2772.3 | AI47: 7595.342466 | AJ47: 5752
A48: 39 | B48: 専門学校 | C48: 42.3 | D48: 11 | E48: 165 | F48: 10 | G48: 319.2 | H48: 294.2 | I48: 737.2 | J48: 4567.6 | K48: 12513.9726 | L48: 359809 | N48: 専門学校 | O48: 42.7 | P48: 12.5 | Q48: 167 | R48: 13 | S48: 345.8 | T48: 316 | U48: 841 | V48: 4990.6 | W48: 13672.87671 | X48: 191656 | Z48: 専門学校 | AA48: 42 | AB48: 9.4 | AC48: 162 | AD48: 6 | AE48: 289 | AF48: 269.4 | AG48: 618.8 | AH48: 4086.8 | AI48: 11196.71233 | AJ48: 168153
A49: 40 | B49: ～１９歳 | C49: - | D49: - | E49: - | F49: - | G49: - | H49: - | I49: - | L49: - | N49: ～１９歳 | O49: - | P49: - | Q49: - | R49: - | S49: - | T49: - | U49: - | X49: - | Z49: ～１９歳 | AA49: - | AB49: - | AC49: - | AD49: - | AE49: - | AF49: - | AG49: - | AJ49: -
A50: 41 | B50: ２０～２４歳 | C50: 22.8 | D50: 1.9 | E50: 166 | F50: 8 | G50: 238.8 | H50: 220.3 | I50: 296.2 | J50: 3161.8 | K50: 8662.465753 | L50: 31805 | N50: ２０～２４歳 | O50: 22.8 | P50: 1.9 | Q50: 168 | R50: 12 | S50: 235 | T50: 214.6 | U50: 305.9 | V50: 3125.9 | W50: 8564.109589 | X50: 12877 | Z50: ２０～２４歳 | AA50: 22.8 | AB50: 1.8 | AC50: 165 | AD50: 6 | AE50: 241.4 | AF50: 224.1 | AG50: 289.6 | AH50: 3186.4 | AI50: 8729.863014 | AJ50: 18928
A51: 42 | B51: ２５～２９歳 | C51: 27.4 | D51: 4.2 | E51: 165 | F51: 9 | G51: 266.2 | H51: 244.6 | I51: 500.5 | J51: 3694.9 | K51: 10123.0137 | L51: 38941 | N51: ２５～２９歳 | O51: 27.5 | P51: 4.5 | Q51: 167 | R51: 12 | S51: 269.1 | T51: 244.9 | U51: 551 | V51: 3780.2 | W51: 10356.71233 | X51: 19026 | Z51: ２５～２９歳 | AA51: 27.3 | AB51: 3.9 | AC51: 164 | AD51: 7 | AE51: 263.5 | AF51: 244.4 | AG51: 452.2 | AH51: 3614.2 | AI51: 9901.917808 | AJ51: 19915
A52: 43 | B52: ３０～３４歳 | C52: 32.5 | D52: 6.5 | E52: 164 | F52: 10 | G52: 287.7 | H52: 263.1 | I52: 630.6 | J52: 4083 | K52: 11186.30137 | L52: 35323 | N52: ３０～３４歳 | O52: 32.5 | P52: 7 | Q52: 166 | R52: 13 | S52: 304.4 | T52: 275 | U52: 720.4 | V52: 4373.2 | W52: 11981.36986 | X52: 19527 | Z52: ３０～３４歳 | AA52: 32.5 | AB52: 5.9 | AC52: 161 | AD52: 6 | AE52: 267.2 | AF52: 248.4 | AG52: 519.6 | AH52: 3726 | AI52: 10208.21918 | AJ52: 15796
A53: 44 | B53: ３５～３９歳 | C53: 37.6 | D53: 9.2 | E53: 165 | F53: 11 | G53: 313 | H53: 286.3 | I53: 719.4 | J53: 4475.4 | K53: 12261.36986 | L53: 44388 | N53: ３５～３９歳 | O53: 37.6 | P53: 9.6 | Q53: 167 | R53: 15 | S53: 333.4 | T53: 300 | U53: 757.7 | V53: 4758.5 | W53: 13036.9863 | X53: 25777 | Z53: ３５～３９歳 | AA53: 37.6 | AB53: 8.5 | AC53: 161 | AD53: 6 | AE53: 284.7 | AF53: 267.2 | AG53: 666.5 | AH53: 4082.9 | AI53: 11186.0274 | AJ53: 18611
A54: 45 | B54: ４０～４４歳 | C54: 42.6 | D54: 11.4 | E54: 164 | F54: 11 | G54: 332.8 | H54: 303.7 | I54: 824.2 | J54: 4817.8 | K54: 13199.45205 | L54: 48973 | N54: ４０～４４歳 | O54: 42.6 | P54: 12.5 | Q54: 167 | R54: 14 | S54: 360.5 | T54: 324.6 | U54: 936.8 | V54: 5262.8 | W54: 14418.63014 | X54: 28290 | Z54: ４０～４４歳 | AA54: 42.6 | AB54: 9.9 | AC54: 161 | AD54: 6 | AE54: 294.8 | AF54: 275.2 | AG54: 670.3 | AH54: 4207.9 | AI54: 11528.49315 | AJ54: 20683
A55: 46 | B55: ４５～４９歳 | C55: 47.5 | D55: 14 | E55: 165 | F55: 11 | G55: 354.9 | H55: 326.4 | I55: 899.1 | J55: 5157.9 | K55: 14131.23288 | L55: 59526 | N55: ４５～４９歳 | O55: 47.5 | P55: 15.7 | Q55: 168 | R55: 13 | S55: 386.3 | T55: 352.4 | U55: 997 | V55: 5632.6 | W55: 15431.78082 | X55: 34105 | Z55: ４５～４９歳 | AA55: 47.5 | AB55: 11.7 | AC55: 162 | AD55: 7 | AE55: 312.9 | AF55: 291.5 | AG55: 767.7 | AH55: 4522.5 | AI55: 12390.41096 | AJ55: 25421
A56: 47 | B56: ５０～５４歳 | C56: 52.4 | D56: 16.6 | E56: 165 | F56: 9 | G56: 367.1 | H56: 340.2 | I56: 992.5 | J56: 5397.7 | K56: 14788.21918 | L56: 47204 | N56: ５０～５４歳 | O56: 52.3 | P56: 19 | Q56: 168 | R56: 11 | S56: 407.3 | T56: 377.9 | U56: 1153.8 | V56: 6041.4 | W56: 16551.78082 | X56: 25880 | Z56: ５０～５４歳 | AA56: 52.4 | AB56: 13.7 | AC56: 161 | AD56: 7 | AE56: 318.4 | AF56: 294.4 | AG56: 796.8 | AH56: 4617.6 | AI56: 12650.9589 | AJ56: 21324
A57: 48 | B57: ５５～５９歳 | C57: 57.4 | D57: 17.8 | E57: 164 | F57: 8 | G57: 369.8 | H57: 346.5 | I57: 954.9 | J57: 5392.5 | K57: 14773.9726 | L57: 30312 | N57: ５５～５９歳 | O57: 57.4 | P57: 20.4 | Q57: 167 | R57: 10 | S57: 412.7 | T57: 387.2 | U57: 1102.5 | V57: 6054.9 | W57: 16588.76712 | X57: 15075 | Z57: ５５～５９歳 | AA57: 57.3 | AB57: 15.2 | AC57: 161 | AD57: 6 | AE57: 327.3 | AF57: 306.2 | AG57: 808.8 | AH57: 4736.4 | AI57: 12976.43836 | AJ57: 15238
A58: 49 | B58: ６０～６４歳 | C58: 62.2 | D58: 17.8 | E58: 164 | F58: 8 | G58: 306.4 | H58: 286.5 | I58: 610.3 | J58: 4287.1 | K58: 11745.47945 | L58: 16722 | N58: ６０～６４歳 | O58: 62.3 | P58: 19.9 | Q58: 168 | R58: 10 | S58: 326.2 | T58: 302.7 | U58: 658.5 | V58: 4572.9 | W58: 12528.49315 | X58: 8021 | Z58: ６０～６４歳 | AA58: 62.2 | AB58: 15.9 | AC58: 161 | AD58: 5 | AE58: 288.1 | AF58: 271.6 | AG58: 565.9 | AH58: 4023.1 | AI58: 11022.19178 | AJ58: 8702
A59: 50 | B59: ６５～６９歳 | C59: 67.1 | D59: 15.3 | E59: 163 | F59: 5 | G59: 270.7 | H59: 259.3 | I59: 368.7 | J59: 3617.1 | K59: 9909.863014 | L59: 4707 | N59: ６５～６９歳 | O59: 67.1 | P59: 16.4 | Q59: 166 | R59: 8 | S59: 284.8 | T59: 269.3 | U59: 327.4 | V59: 3745 | W59: 10260.27397 | X59: 2176 | Z59: ６５～６９歳 | AA59: 67 | AB59: 14.4 | AC59: 160 | AD59: 2 | AE59: 258.6 | AF59: 250.7 | AG59: 404.2 | AH59: 3507.4 | AI59: 9609.315068 | AJ59: 2531
A60: 51 | B60: ７０歳～ | C60: 72.9 | D60: 15.9 | E60: 162 | F60: 5 | G60: 250 | H60: 238.6 | I60: 258 | J60: 3258 | K60: 8926.027397 | L60: 1907 | N60: ７０歳～ | O60: 73.1 | P60: 15.9 | Q60: 164 | R60: 9 | S60: 238 | T60: 221.3 | U60: 206.8 | V60: 3062.8 | W60: 8391.232877 | X60: 902 | Z60: ７０歳～ | AA60: 72.7 | AB60: 15.9 | AC60: 161 | AD60: 2 | AE60: 260.7 | AF60: 254.1 | AG60: 304 | AH60: 3432.4 | AI60: 9403.835616 | AJ60: 1005
A61: 52 | B61: 高専・短大 | C61: 44.1 | D61: 12.7 | E61: 164 | F61: 9 | G61: 313.7 | H61: 292.5 | I61: 869.7 | J61: 4634.1 | K61: 12696.16438 | L61: 214677 | N61: 高専・短大 | O61: 43.6 | P61: 14.8 | Q61: 165 | R61: 14 | S61: 383.6 | T61: 348.3 | U61: 1148.8 | V61: 5752 | W61: 15758.90411 | X61: 62982 | Z61: 高専・短大 | AA61: 44.3 | AB61: 11.9 | AC61: 163 | AD61: 7 | AE61: 284.7 | AF61: 269.3 | AG61: 753.9 | AH61: 4170.3 | AI61: 11425.47945 | AJ61: 151695
A62: 53 | B62: ～１９歳 | C62: - | D62: - | E62: - | F62: - | G62: - | H62: - | I62: - | L62: - | N62: ～１９歳 | O62: - | P62: - | Q62: - | R62: - | S62: - | T62: - | U62: - | X62: - | Z62: ～１９歳 | AA62: - | AB62: - | AC62: - | AD62: - | AE62: - | AF62: - | AG62: - | AJ62: -
A63: 54 | B63: ２０～２４歳 | C63: 22.8 | D63: 2.1 | E63: 167 | F63: 7 | G63: 230.2 | H63: 215.6 | I63: 447.5 | J63: 3209.9 | K63: 8794.246575 | L63: 16821 | N63: ２０～２４歳 | O63: 22.9 | P63: 2.1 | Q63: 165 | R63: 13 | S63: 247.6 | T63: 220.4 | U63: 485.8 | V63: 3457 | W63: 9471.232877 | X63: 4429 | Z63: ２０～２４歳 | AA63: 22.7 | AB63: 2.1 | AC63: 168 | AD63: 5 | AE63: 224 | AF63: 213.9 | AG63: 433.8 | AH63: 3121.8 | AI63: 8552.876712 | AJ63: 12392
A64: 55 | B64: ２５～２９歳 | C64: 27.5 | D64: 4.7 | E64: 165 | F64: 10 | G64: 265.6 | H64: 243.3 | I64: 654.7 | J64: 3841.9 | K64: 10525.75342 | L64: 18970 | N64: ２５～２９歳 | O64: 27.5 | P64: 4.8 | Q64: 165 | R64: 19 | S64: 297.4 | T64: 256.6 | U64: 767.6 | V64: 4336.4 | W64: 11880.54795 | X64: 5957 | Z64: ２５～２９歳 | AA64: 27.4 | AB64: 4.7 | AC64: 165 | AD64: 6 | AE64: 251.1 | AF64: 237.3 | AG64: 602.9 | AH64: 3616.1 | AI64: 9907.123288 | AJ64: 13012
A65: 56 | B65: ３０～３４歳 | C65: 32.5 | D65: 7.2 | E65: 165 | F65: 10 | G65: 284.7 | H65: 261.3 | I65: 696.8 | J65: 4113.2 | K65: 11269.0411 | L65: 17520 | N65: ３０～３４歳 | O65: 32.5 | P65: 7.8 | Q65: 165 | R65: 17 | S65: 331.8 | T65: 290 | U65: 873.7 | V65: 4855.3 | W65: 13302.19178 | X65: 6440 | Z65: ３０～３４歳 | AA65: 32.5 | AB65: 6.9 | AC65: 164 | AD65: 6 | AE65: 257.4 | AF65: 244.6 | AG65: 594 | AH65: 3682.8 | AI65: 10089.86301 | AJ65: 11080
A66: 57 | B66: ３５～３９歳 | C66: 37.5 | D66: 10 | E66: 164 | F66: 9 | G66: 308.7 | H66: 284.4 | I66: 824 | J66: 4528.4 | K66: 12406.57534 | L66: 20997 | N66: ３５～３９歳 | O66: 37.5 | P66: 11.2 | Q66: 165 | R66: 15 | S66: 378.3 | T66: 335.6 | U66: 1098.7 | V66: 5638.3 | W66: 15447.39726 | X66: 7569 | Z66: ３５～３９歳 | AA66: 37.5 | AB66: 9.2 | AC66: 163 | AD66: 6 | AE66: 269.4 | AF66: 255.6 | AG66: 669.1 | AH66: 3901.9 | AI66: 10690.13699 | AJ66: 13428
A67: 58 | B67: ４０～４４歳 | C67: 42.7 | D67: 12.8 | E67: 164 | F67: 10 | G67: 328.1 | H67: 303.7 | I67: 960.9 | J67: 4898.1 | K67: 13419.45205 | L67: 28863 | N67: ４０～４４歳 | O67: 42.7 | P67: 14.9 | Q67: 165 | R67: 16 | S67: 411.2 | T67: 366.5 | U67: 1275.7 | V67: 6210.1 | W67: 17013.9726 | X67: 8543 | Z67: ４０～４４歳 | AA67: 42.6 | AB67: 11.9 | AC67: 163 | AD67: 7 | AE67: 293.1 | AF67: 277.3 | AG67: 828.5 | AH67: 4345.7 | AI67: 11906.0274 | AJ67: 20320
A68: 59 | B68: ４５～４９歳 | C68: 47.6 | D68: 14.9 | E68: 163 | F68: 9 | G68: 334.1 | H68: 312.1 | I68: 1004.7 | J68: 5013.9 | K68: 13736.71233 | L68: 38424 | N68: ４５～４９歳 | O68: 47.5 | P68: 18.6 | Q68: 166 | R68: 13 | S68: 433.2 | T68: 398.4 | U68: 1476.1 | V68: 6674.5 | W68: 18286.30137 | X68: 9581 | Z68: ４５～４９歳 | AA68: 47.6 | AB68: 13.7 | AC68: 162 | AD68: 7 | AE68: 301.3 | AF68: 283.5 | AG68: 848.1 | AH68: 4463.7 | AI68: 12229.31507 | AJ68: 28843
A69: 60 | B69: ５０～５４歳 | C69: 52.5 | D69: 17.4 | E69: 163 | F69: 9 | G69: 352.9 | H69: 330 | I69: 1072.8 | J69: 5307.6 | K69: 14541.36986 | L69: 33766 | N69: ５０～５４歳 | O69: 52.5 | P69: 21.8 | Q69: 166 | R69: 12 | S69: 449.7 | T69: 418 | U69: 1478.8 | V69: 6875.2 | W69: 18836.16438 | X69: 9041 | Z69: ５０～５４歳 | AA69: 52.5 | AB69: 15.9 | AC69: 162 | AD69: 8 | AE69: 317.4 | AF69: 297.8 | AG69: 924.3 | AH69: 4733.1 | AI69: 12967.39726 | AJ69: 24725
A70: 61 | B70: ５５～５９歳 | C70: 57.4 | D70: 19.6 | E70: 163 | F70: 8 | G70: 358.6 | H70: 338 | I70: 1119.3 | J70: 5422.5 | K70: 14856.16438 | L70: 21742 | N70: ５５～５９歳 | O70: 57.5 | P70: 24.8 | Q70: 166 | R70: 11 | S70: 464.6 | T70: 434.8 | U70: 1581.1 | V70: 7156.3 | W70: 19606.30137 | X70: 6036 | Z70: ５５～５９歳 | AA70: 57.4 | AB70: 17.6 | AC70: 162 | AD70: 7 | AE70: 317.9 | AF70: 300.9 | AG70: 941.8 | AH70: 4756.6 | AI70: 13031.78082 | AJ70: 15706
A71: 62 | B71: ６０～６４歳 | C71: 62.3 | D71: 18 | E71: 162 | F71: 6 | G71: 282.2 | H71: 270.1 | I71: 643.6 | J71: 4030 | K71: 11041.09589 | L71: 12540 | N71: ６０～６４歳 | O71: 62.3 | P71: 21.6 | Q71: 164 | R71: 7 | S71: 334.6 | T71: 318.2 | U71: 842.4 | V71: 4857.6 | W71: 13308.49315 | X71: 3557 | Z71: ６０～６４歳 | AA71: 62.2 | AB71: 16.6 | AC71: 162 | AD71: 5 | AE71: 261.4 | AF71: 251 | AG71: 564.9 | AH71: 3701.7 | AI71: 10141.64384 | AJ71: 8983
A72: 63 | B72: ６５～６９歳 | C72: 67.1 | D72: 17.6 | E72: 162 | F72: 4 | G72: 273.4 | H72: 265 | I72: 452.6 | J72: 3733.4 | K72: 10228.49315 | L72: 3638 | N72: ６５～６９歳 | O72: 67.2 | P72: 18.3 | Q72: 163 | R72: 6 | S72: 299.7 | T72: 288.8 | U72: 444.7 | V72: 4041.1 | W72: 11071.50685 | X72: 1337 | Z72: ６５～６９歳 | AA72: 67 | AB72: 17.1 | AC72: 161 | AD72: 3 | AE72: 258.2 | AF72: 251.1 | AG72: 457.3 | AH72: 3555.7 | AI72: 9741.643836 | AJ72: 2300
A73: 64 | B73: ７０歳～ | C73: 72.9 | D73: 18.7 | E73: 160 | F73: 5 | G73: 298.4 | H73: 285.3 | I73: 461.4 | J73: =G73*12+I73 -> 4042.2 | K73: =J73/365*1000 -> 11074.52055 | L73: 1397 | N73: ７０歳～ | O73: 72.6 | P73: 16.1 | Q73: 159 | R73: 10 | S73: 336 | T73: 310.3 | U73: 287.5 | V73: 4319.5 | W73: 11834.24658 | X73: 491 | Z73: ７０歳～ | AA73: 73 | AB73: 20.1 | AC73: 161 | AD73: 2 | AE73: 278 | AF73: 271.8 | AG73: 555.8 | AH73: 3891.8 | AI73: 10662.46575 | AJ73: 906
A74: 65 | B74: 男女計 大学 | C74: 41.3 | D74: 11.8 | E74: 165 | F74: 11 | G74: 391.1 | H74: 362.8 | I74: 1178.7 | J74: 5871.9 | K74: 16087.39726 | L74: 879183 | N74: 男 大学 | O74: 43.4 | P74: 13.5 | Q74: 166 | R74: 12 | S74: 423 | T74: 392.1 | U74: 1326.7 | V74: 6402.7 | W74: 17541.64384 | X74: 617047 | Z74: 女 大学 | AA74: 36.6 | AB74: 7.9 | AC74: 163 | AD74: 9 | AE74: 316.2 | AF74: 294 | AG74: 830.2 | AH74: 4624.6 | AI74: 12670.13699 | AJ74: 262136
A75: 66 | B75: ～１９歳 | C75: - | D75: - | E75: - | F75: - | G75: - | H75: - | I75: - | L75: - | N75: ～１９歳 | O75: - | P75: - | Q75: - | R75: - | S75: - | T75: - | U75: - | X75: - | Z75: ～１９歳 | AA75: - | AB75: - | AC75: - | AD75: - | AE75: - | AF75: - | AG75: - | AJ75: -
A76: 67 | B76: ２０～２４歳 | C76: 23.6 | D76: 1.3 | E76: 166 | F76: 11 | G76: 255 | H76: 233.6 | I76: 339.8 | J76: 3399.8 | K76: 9314.520548 | L76: 69060 | N76: ２０～２４歳 | O76: 23.7 | P76: 1.3 | Q76: 167 | R76: 12 | S76: 259.4 | T76: 235.1 | U76: 355.3 | V76: 3468.1 | W76: 9501.643836 | X76: 34669 | Z76: ２０～２４歳 | AA76: 23.6 | AB76: 1.3 | AC76: 166 | AD76: 9 | AE76: 250.5 | AF76: 232.1 | AG76: 324.2 | AH76: 3330.2 | AI76: 9123.835616 | AJ76: 34391
A77: 68 | B77: ２５～２９歳 | C77: 27.5 | D77: 3.8 | E77: 165 | F77: 15 | G77: 297.6 | H77: 265.2 | I77: 787.4 | J77: 4358.6 | K77: 11941.36986 | L77: 133903 | N77: ２５～２９歳 | O77: 27.5 | P77: 3.9 | Q77: 166 | R77: 17 | S77: 310.8 | T77: 272.8 | U77: 835.5 | V77: 4565.1 | W77: 12507.12329 | X77: 73787 | Z77: ２５～２９歳 | AA77: 27.4 | AB77: 3.6 | AC77: 164 | AD77: 11 | AE77: 281.2 | AF77: 255.9 | AG77: 728.3 | AH77: 4102.7 | AI77: 11240.27397 | AJ77: 60115
A78: 69 | B78: ３０～３４歳 | C78: 32.4 | D78: 6.5 | E78: 165 | F78: 14 | G78: 340.3 | H78: 304.9 | I78: 962.8 | J78: 5046.4 | K78: 13825.75342 | L78: 114534 | N78: ３０～３４歳 | O78: 32.4 | P78: 6.8 | Q78: 166 | R78: 17 | S78: 361 | T78: 319.3 | U78: 1049.2 | V78: 5381.2 | W78: 14743.0137 | X78: 73475 | Z78: ３０～３４歳 | AA78: 32.3 | AB78: 6.1 | AC78: 163 | AD78: 9 | AE78: 303.1 | AF78: 279.2 | AG78: 808.1 | AH78: 4445.3 | AI78: 12178.90411 | AJ78: 41059
A79: 70 | B79: ３５～３９歳 | C79: 37.5 | D79: 9.7 | E79: 165 | F79: 13 | G79: 390.1 | H79: 353.9 | I79: 1175.2 | J79: 5856.4 | K79: 16044.93151 | L79: 113105 | N79: ３５～３９歳 | O79: 37.5 | P79: 10.1 | Q79: 167 | R79: 16 | S79: 418.4 | T79: 375.5 | U79: 1286.5 | V79: 6307.3 | W79: 17280.27397 | X79: 77300 | Z79: ３５～３９歳 | AA79: 37.5 | AB79: 8.9 | AC79: 162 | AD79: 8 | AE79: 329 | AF79: 307.2 | AG79: 934.9 | AH79: 4882.9 | AI79: 13377.80822 | AJ79: 35805
A80: 71 | B80: ４０～４４歳 | C80: 42.5 | D80: 12.8 | E80: 165 | F80: 11 | G80: 421.9 | H80: 390.7 | I80: 1331.9 | J80: 6394.7 | K80: 17519.72603 | L80: 106424 | N80: ４０～４４歳 | O80: 42.5 | P80: 13.4 | Q80: 167 | R80: 12 | S80: 449.4 | T80: 414.8 | U80: 1462.2 | V80: 6855 | W80: 18780.82192 | X80: 77057 | Z80: ４０～４４歳 | AA80: 42.5 | AB80: 11.3 | AC80: 161 | AD80: 8 | AE80: 349.5 | AF80: 327.6 | AG80: 989.9 | AH80: 5183.9 | AI80: 14202.46575 | AJ80: 29367
A81: 72 | B81: ４５～４９歳 | C81: 47.5 | D81: 16.2 | E81: 166 | F81: 10 | G81: 456.5 | H81: 429.4 | I81: 1531.3 | J81: 7009.3 | K81: 19203.56164 | L81: 107922 | N81: ４５～４９歳 | O81: 47.5 | P81: 17 | Q81: 167 | R81: 10 | S81: 483.8 | T81: 455.4 | U81: 1654.7 | V81: 7460.3 | W81: 20439.17808 | X81: 82870 | Z81: ４５～４９歳 | AA81: 47.5 | AB81: 13.3 | AC81: 163 | AD81: 9 | AE81: 366.4 | AF81: 343.4 | AG81: 1123.1 | AH81: 5519.9 | AI81: 15123.0137 | AJ81: 25052
A82: 73 | B82: ５０～５４歳 | C82: 52.4 | D82: 20.1 | E82: 166 | F82: 8 | G82: 499.2 | H82: 474.9 | I82: 1794.7 | J82: 7785.1 | K82: 21329.0411 | L82: 94620 | N82: ５０～５４歳 | O82: 52.4 | P82: 21.1 | Q82: 166 | R82: 8 | S82: 525.1 | T82: 500 | U82: 1939.3 | V82: 8240.5 | W82: 22576.71233 | X82: 77136 | Z82: ５０～５４歳 | AA82: 52.3 | AB82: 15.3 | AC82: 163 | AD82: 8 | AE82: 385.3 | AF82: 364.2 | AG82: 1156.8 | AH82: 5780.4 | AI82: 15836.71233 | AJ82: 17484
A83: 74 | B83: ５５～５９歳 | C83: 57.4 | D83: 23 | E83: 165 | F83: 7 | G83: 511.7 | H83: 491.1 | I83: 1805.7 | J83: 7946.1 | K83: 21770.13699 | L83: 71448 | N83: ５５～５９歳 | O83: 57.5 | P83: 24.1 | Q83: 165 | R83: 7 | S83: 534.5 | T83: 513.8 | U83: 1934.9 | V83: 8348.9 | W83: 22873.69863 | X83: 59703 | Z83: ５５～５９歳 | AA83: 57.3 | AB83: 17.3 | AC83: 162 | AD83: 7 | AE83: 395.6 | AF83: 375.7 | AG83: 1148.9 | AH83: 5896.1 | AI83: 16153.69863 | AJ83: 11745
A84: 75 | B84: ６０～６４歳 | C84: 62.3 | D84: 20.2 | E84: 164 | F84: 6 | G84: 384.4 | H84: 370.2 | I84: 1021.5 | J84: 5634.3 | K84: 15436.43836 | L84: 47657 | N84: ６０～６４歳 | O84: 62.3 | P84: 20.7 | Q84: 164 | R84: 6 | S84: 391.8 | T84: 377.3 | U84: 1049.3 | V84: 5750.9 | W84: 15755.89041 | X84: 42407 | Z84: ６０～６４歳 | AA84: 62.1 | AB84: 15.9 | AC84: 160 | AD84: 5 | AE84: 324.4 | AF84: 312.4 | AG84: 797.4 | AH84: 4690.2 | AI84: 12849.86301 | AJ84: 5250
A85: 76 | B85: ６５～６９歳 | C85: 67.1 | D85: 16.2 | E85: 164 | F85: 5 | G85: 342 | H85: 331 | I85: 497.2 | J85: 4601.2 | K85: 12606.0274 | L85: 14908 | N85: ６５～６９歳 | O85: 67.1 | P85: 16.3 | Q85: 164 | R85: 5 | S85: 343.5 | T85: 332.2 | U85: 492.8 | V85: 4614.8 | W85: 12643.28767 | X85: 13656 | Z85: ６５～６９歳 | AA85: 66.9 | AB85: 15.4 | AC85: 163 | AD85: 3 | AE85: 324.5 | AF85: 318.2 | AG85: 545.2 | AH85: 4439.2 | AI85: 12162.19178 | AJ85: 1252
A86: 77 | B86: ７０歳～ | C86: 73.2 | D86: 15.5 | E86: 165 | F86: 4 | G86: 347.5 | H86: 337.2 | I86: 401.3 | J86: 4571.3 | K86: 12524.10959 | L86: 5604 | N86: ７０歳～ | O86: 73.1 | P86: 15.4 | Q86: 165 | R86: 4 | S86: 350.6 | T86: 339.3 | U86: 400.1 | V86: 4607.3 | W86: 12622.73973 | X86: 4987 | Z86: ７０歳～ | AA86: 74 | AB86: 16.6 | AC86: 161 | AD86: 1 | AE86: 322.6 | AF86: 319.6 | AG86: 411.1 | AH86: 4282.3 | AI86: 11732.32877 | AJ86: 616
A87: 78 | B87: 大学院 | C87: 42 | D87: 11.6 | E87: 164 | F87: 12 | G87: 499 | H87: 464.2 | I87: 1876.1 | J87: 7864.1 | K87: 21545.47945 | L87: 99189 | N87: 大学院 | O87: 42.3 | P87: 12.4 | Q87: 165 | R87: 12 | S87: 515.7 | T87: 478.4 | U87: 2005.7 | V87: 8194.1 | W87: 22449.58904 | X87: 80138 | Z87: 大学院 | AA87: 40.5 | AB87: 8.3 | AC87: 163 | AD87: 9 | AE87: 429.1 | AF87: 404.3 | AG87: 1330.9 | AH87: 6480.1 | AI87: 17753.69863 | AJ87: 19052
A88: 79 | B88: ～１９歳 | C88: - | D88: - | E88: - | F88: - | G88: - | H88: - | I88: - | L88: - | N88: ～１９歳 | O88: - | P88: - | Q88: - | R88: - | S88: - | T88: - | U88: - | X88: - | Z88: ～１９歳 | AA88: - | AB88: - | AC88: - | AD88: - | AE88: - | AF88: - | AG88: - | AJ88: -
A89: 80 | B89: ２０～２４歳 | C89: 24.5 | D89: 0.6 | E89: 165 | F89: 8 | G89: 271 | H89: 257.1 | I89: 51.8 | J89: 3303.8 | K89: 9051.506849 | L89: 1432 | N89: ２０～２４歳 | O89: 24.5 | P89: 0.6 | Q89: 164 | R89: 7 | S89: 274.5 | T89: 260.5 | U89: 40.6 | V89: 3334.6 | W89: 9135.890411 | X89: 1033 | Z89: ２０～２４歳 | AA89: 24.5 | AB89: 0.6 | AC89: 165 | AD89: 9 | AE89: 262 | AF89: 248.5 | AG89: 81 | AH89: 3225 | AI89: 8835.616438 | AJ89: 399
A90: 81 | B90: ２５～２９歳 | C90: 27.6 | D90: 2.7 | E90: 164 | F90: 20 | G90: 335.4 | H90: 287.1 | I90: 950.1 | J90: 4974.9 | K90: 13629.86301 | L90: 14105 | N90: ２５～２９歳 | O90: 27.7 | P90: 2.8 | Q90: 164 | R90: 21 | S90: 341.5 | T90: 289.9 | U90: 985 | V90: 5083 | W90: 13926.0274 | X90: 10641 | Z90: ２５～２９歳 | AA90: 27.6 | AB90: 2.7 | AC90: 163 | AD90: 16 | AE90: 316.7 | AF90: 278.8 | AG90: 842.7 | AH90: 4643.1 | AI90: 12720.82192 | AJ90: 3463
A91: 82 | B91: ３０～３４歳 | C91: 32.5 | D91: 5.8 | E91: 164 | F91: 17 | G91: 401 | H91: 354.3 | I91: 1308.1 | J91: 6120.1 | K91: 16767.39726 | L91: 15286 | N91: ３０～３４歳 | O91: 32.6 | P91: 6.2 | Q91: 165 | R91: 19 | S91: 407.9 | T91: 357.3 | U91: 1393.1 | V91: 6287.9 | W91: 17227.12329 | X91: 12086 | Z91: ３０～３４歳 | AA91: 32.4 | AB91: 4.6 | AC91: 164 | AD91: 10 | AE91: 375 | AF91: 343.3 | AG91: 987 | AH91: 5487 | AI91: 15032.87671 | AJ91: 3200
A92: 83 | B92: ３５～３９歳 | C92: 37.4 | D92: 9.3 | E92: 165 | F92: 15 | G92: 474.9 | H92: 427.8 | I92: 1829.5 | J92: 7528.3 | K92: 20625.47945 | L92: 15573 | N92: ３５～３９歳 | O92: 37.4 | P92: 9.6 | Q92: 165 | R92: 17 | S92: 488.3 | T92: 435.5 | U92: 1972 | V92: 7831.6 | W92: 21456.43836 | X92: 12740 | Z92: ３５～３９歳 | AA92: 37.5 | AB92: 8 | AC92: 162 | AD92: 8 | AE92: 415 | AF92: 393.2 | AG92: 1188.9 | AH92: 6168.9 | AI92: 16901.09589 | AJ92: 2833
A93: 84 | B93: ４０～４４歳 | C93: 42.4 | D93: 12.1 | E93: 165 | F93: 11 | G93: 533.2 | H93: 497.5 | I93: 2052.2 | J93: 8450.6 | K93: 23152.32877 | L93: 14693 | N93: ４０～４４歳 | O93: 42.4 | P93: 12.6 | Q93: 165 | R93: 11 | S93: 555.1 | T93: 516.5 | U93: 2190.7 | V93: 8851.9 | W93: 24251.78082 | X93: 12110 | Z93: ４０～４４歳 | AA93: 42.6 | AB93: 9.6 | AC93: 163 | AD93: 7 | AE93: 430.8 | AF93: 408.6 | AG93: 1403 | AH93: 6572.6 | AI93: 18007.12329 | AJ93: 2583
A94: 85 | B94: ４５～４９歳 | C94: 47.4 | D94: 15.8 | E94: 165 | F94: 8 | G94: 566.2 | H94: 538.5 | I94: 2358.8 | J94: 9153.2 | K94: 25077.26027 | L94: 13666 | N94: ４５～４９歳 | O94: 47.4 | P94: 16.8 | Q94: 165 | R94: 8 | S94: 588.2 | T94: 558.8 | U94: 2504.2 | V94: 9562.6 | W94: 26198.90411 | X94: 11008 | Z94: ４５～４９歳 | AA94: 47.5 | AB94: 11.7 | AC94: 164 | AD94: 7 | AE94: 475.2 | AF94: 454.4 | AG94: 1756.4 | AH94: 7458.8 | AI94: 20435.06849 | AJ94: 2658
A95: 86 | B95: ５０～５４歳 | C95: 52.3 | D95: 19.3 | E95: 165 | F95: 5 | G95: 633.3 | H95: 614.3 | I95: 2612 | J95: 10211.6 | K95: 27976.9863 | L95: 10735 | N95: ５０～５４歳 | O95: 52.3 | P95: 20.4 | Q95: 165 | R95: 5 | S95: 651.8 | T95: 632.4 | U95: 2752.3 | V95: 10573.9 | W95: 28969.58904 | X95: 8863 | Z95: ５０～５４歳 | AA95: 52.3 | AB95: 13.7 | AC95: 164 | AD95: 5 | AE95: 545.9 | AF95: 528.9 | AG95: 1947.5 | AH95: 8498.3 | AI95: 23283.0137 | AJ95: 1872
A96: 87 | B96: ５５～５９歳 | C96: 57.3 | D96: 21.4 | E96: 165 | F96: 4 | G96: 653.1 | H96: 635.6 | I96: 2761 | J96: 10598.2 | K96: 29036.16438 | L96: 7681 | N96: ５５～５９歳 | O96: 57.4 | P96: 22.5 | Q96: 164 | R96: 4 | S96: 662.3 | T96: 645 | U96: 2904.4 | V96: 10852 | W96: 29731.50685 | X96: 6476 | Z96: ５５～５９歳 | AA96: 57.1 | AB96: 15.4 | AC96: 165 | AD96: 3 | AE96: 603.5 | AF96: 585 | AG96: 1989.8 | AH96: 9231.8 | AI96: 25292.60274 | AJ96: 1205
A97: 88 | B97: ６０～６４歳 | C97: 62.4 | D97: 19.5 | E97: 164 | F97: 3 | G97: 571.7 | H97: 559.6 | I97: 2215.5 | J97: 9075.9 | K97: 24865.47945 | L97: 4605 | N97: ６０～６４歳 | O97: 62.4 | P97: 20.3 | Q97: 164 | R97: 4 | S97: 572.5 | T97: 558.8 | U97: 2259.1 | V97: 9129.1 | W97: 25011.23288 | X97: 3935 | Z97: ６０～６４歳 | AA97: 62.4 | AB97: 14.8 | AC97: 164 | AD97: 1 | AE97: 567.3 | AF97: 564.6 | AG97: 1959.5 | AH97: 8767.1 | AI97: 24019.45205 | AJ97: 670
A98: 89 | B98: ６５～６９歳 | C98: 67 | D98: 16.8 | E98: 165 | F98: 1 | G98: 608.6 | H98: 600.9 | I98: 1726.5 | J98: 9029.7 | K98: 24738.90411 | L98: 1161 | N98: ６５～６９歳 | O98: 66.9 | P98: 17.5 | Q98: 165 | R98: 1 | S98: 614.6 | T98: 610.2 | U98: 1778.1 | V98: 9153.3 | W98: 25077.53425 | X98: 1020 | Z98: ６５～６９歳 | AA98: 67.4 | AB98: 11.9 | AC98: 164 | AD98: 4 | AE98: 564.8 | AF98: 533.8 | AG98: 1353.7 | AH98: 8131.3 | AI98: 22277.53425 | AJ98: 141
A99: 90 | B99: ７０歳～ | C99: 72.5 | D99: 14.2 | E99: 164 | F99: 1 | G99: 499.9 | H99: 498.4 | I99: 1117.7 | J99: 7116.5 | K99: 19497.26027 | L99: 252 | N99: ７０歳～ | O99: 72.3 | P99: 13.5 | Q99: 163 | R99: 1 | S99: 499.9 | T99: 498.2 | U99: 1082 | V99: 7080.8 | W99: 19399.45205 | X99: 224 | Z99: ７０歳～ | AA99: 73.6 | AB99: 19.7 | AC99: 170 | AD99: 0 | AE99: 500 | AF99: 500 | AG99: 1397.5 | AH99: 7397.5 | AI99: 20267.12329 | AJ99: 28
A100: 91 | B100: 不明 | C100: 45.2 | D100: 9.4 | E100: 164 | F100: 12 | G100: 286.7 | H100: 262.5 | I100: 422.1 | J100: 3862.5 | K100: 10582.19178 | L100: 168741 | N100: 不明 | O100: 45.6 | P100: 10.5 | Q100: 168 | R100: 15 | S100: 334.3 | T100: 301.2 | U100: 553.5 | V100: 4565.1 | W100: 12507.12329 | X100: 87523 | Z100: 不明 | AA100: 44.6 | AB100: 8.2 | AC100: 160 | AD100: 8 | AE100: 235.4 | AF100: 220.9 | AG100: 280.4 | AH100: 3105.2 | AI100: 8507.39726 | AJ100: 81218
A101: 92 | B101: ～１９歳 | C101: 19.2 | D101: 1.1 | E101: 163 | F101: 11 | G101: 198.1 | H101: 181.1 | I101: 67.6 | J101: 2444.8 | K101: 6698.082192 | L101: 379 | N101: ～１９歳 | O101: 19.2 | P101: 1.2 | Q101: 167 | R101: 10 | S101: 209.1 | T101: 191.6 | U101: 79.5 | V101: 2588.7 | W101: 7092.328767 | X101: 193 | Z101: ～１９歳 | AA101: 19.2 | AB101: 1 | AC101: 158 | AD101: 12 | AE101: 186.6 | AF101: 170.2 | AG101: 55.3 | AH101: 2294.5 | AI101: 6286.30137 | AJ101: 186
A102: 93 | B102: ２０～２４歳 | C102: 23.1 | D102: 1.9 | E102: 166 | F102: 14 | G102: 228.4 | H102: 204.8 | I102: 145.7 | J102: 2886.5 | K102: 7908.219178 | L102: 11194 | N102: ２０～２４歳 | O102: 23.1 | P102: 2.1 | Q102: 167 | R102: 16 | S102: 238.8 | T102: 210.5 | U102: 154.9 | V102: 3020.5 | W102: 8275.342466 | X102: 4830 | Z102: ２０～２４歳 | AA102: 23.1 | AB102: 1.8 | AC102: 165 | AD102: 12 | AE102: 220.5 | AF102: 200.5 | AG102: 138.8 | AH102: 2784.8 | AI102: 7629.589041 | AJ102: 6364
A103: 94 | B103: ２５～２９歳 | C103: 27.5 | D103: 3.3 | E103: 166 | F103: 13 | G103: 261.9 | H103: 236.7 | I103: 322.9 | J103: 3465.7 | K103: 9495.068493 | L103: 18344 | N103: ２５～２９歳 | O103: 27.5 | P103: 3.4 | Q103: 168 | R103: 16 | S103: 287.4 | T103: 254.9 | U103: 355.8 | V103: 3804.6 | W103: 10423.56164 | X103: 9295 | Z103: ２５～２９歳 | AA103: 27.5 | AB103: 3.2 | AC103: 163 | AD103: 10 | AE103: 235.8 | AF103: 218 | AG103: 289 | AH103: 3118.6 | AI103: 8544.109589 | AJ103: 9049
A104: 95 | B104: ３０～３４歳 | C104: 32.5 | D104: 4.7 | E104: 166 | F104: 12 | G104: 288.2 | H104: 264.3 | I104: 445.9 | J104: 3904.3 | K104: 10696.71233 | L104: 16629 | N104: ３０～３４歳 | O104: 32.6 | P104: 5 | Q104: 169 | R104: 15 | S104: 321.6 | T104: 291 | U104: 494.7 | V104: 4353.9 | W104: 11928.49315 | X104: 8575 | Z104: ３０～３４歳 | AA104: 32.4 | AB104: 4.4 | AC104: 163 | AD104: 9 | AE104: 252.6 | AF104: 236 | AG104: 393.9 | AH104: 3425.1 | AI104: 9383.835616 | AJ104: 8054
A105: 96 | B105: ３５～３９歳 | C105: 37.5 | D105: 7.5 | E105: 164 | F105: 12 | G105: 307.8 | H105: 282.6 | I105: 508.3 | J105: 4201.9 | K105: 11512.05479 | L105: 17408 | N105: ３５～３９歳 | O105: 37.5 | P105: 7.7 | Q105: 169 | R105: 16 | S105: 352.5 | T105: 319 | U105: 657.8 | V105: 4887.8 | W105: 13391.23288 | X105: 9671 | Z105: ３５～３９歳 | AA105: 37.5 | AB105: 7.2 | AC105: 159 | AD105: 8 | AE105: 252.1 | AF105: 237.2 | AG105: 321.6 | AH105: 3346.8 | AI105: 9169.315068 | AJ105: 7738
A106: 97 | B106: ４０～４４歳 | C106: 42.5 | D106: 9 | E106: 164 | F106: 13 | G106: 322.5 | H106: 294 | I106: 559 | J106: 4429 | K106: 12134.24658 | L106: 17341 | N106: ４０～４４歳 | O106: 42.5 | P106: 9.9 | Q106: 169 | R106: 18 | S106: 381.5 | T106: 341.1 | U106: 671.5 | V106: 5249.5 | W106: 14382.19178 | X106: 9497 | Z106: ４０～４４歳 | AA106: 42.6 | AB106: 8 | AC106: 159 | AD106: 8 | AE106: 251.2 | AF106: 237 | AG106: 422.8 | AH106: 3437.2 | AI106: 9416.986301 | AJ106: 7845
A107: 98 | B107: ４５～４９歳 | C107: 47.6 | D107: 10.9 | E107: 164 | F107: 13 | G107: 314.1 | H107: 286.2 | I107: 492.6 | J107: 4261.8 | K107: 11676.16438 | L107: 22009 | N107: ４５～４９歳 | O107: 47.5 | P107: 12.8 | Q107: 168 | R107: 18 | S107: 374.8 | T107: 335.7 | U107: 699.7 | V107: 5197.3 | W107: 14239.17808 | X107: 11386 | Z107: ４５～４９歳 | AA107: 47.6 | AB107: 8.8 | AC107: 159 | AD107: 9 | AE107: 249.2 | AF107: 233.1 | AG107: 270.6 | AH107: 3261 | AI107: 8934.246575 | AJ107: 10623
A108: 99 | B108: ５０～５４歳 | C108: 52.5 | D108: 12.3 | E108: 164 | F108: 13 | G108: 305.5 | H108: 278.2 | I108: 530.6 | J108: 4196.6 | K108: 11497.53425 | L108: 21437 | N108: ５０～５４歳 | O108: 52.5 | P108: 14.5 | Q108: 168 | R108: 17 | S108: 375.7 | T108: 335.9 | U108: 794 | V108: 5302.4 | W108: 14527.12329 | X108: 10426 | Z108: ５０～５４歳 | AA108: 52.5 | AB108: 10.3 | AC108: 159 | AD108: 8 | AE108: 239.1 | AF108: 223.5 | AG108: 281.2 | AH108: 3150.4 | AI108: 8631.232877 | AJ108: 11011
A109: 100 | B109: ５５～５９歳 | C109: 57.5 | D109: 14.2 | E109: 163 | F109: 11 | G109: 297.3 | H109: 271.5 | I109: 483.9 | J109: 4051.5 | K109: 11100 | L109: 17463 | N109: ５５～５９歳 | O109: 57.5 | P109: 16.5 | Q109: 167 | R109: 16 | S109: 367.6 | T109: 326.7 | U109: 686.7 | V109: 5097.9 | W109: 13966.84932 | X109: 8717 | Z109: ５５～５９歳 | AA109: 57.5 | AB109: 11.8 | AC109: 159 | AD109: 6 | AE109: 227.4 | AF109: 216.5 | AG109: 281.7 | AH109: 3010.5 | AI109: 8247.945205 | AJ109: 8746
A110: 101 | B110: ６０～６４歳 | C110: 62.4 | D110: 14.3 | E110: 161 | F110: 8 | G110: 260.8 | H110: 244.2 | I110: 346.1 | J110: 3475.7 | K110: 9522.465753 | L110: 14684 | N110: ６０～６４歳 | O110: 62.6 | P110: 15.6 | Q110: 165 | R110: 10 | S110: 312.4 | T110: 288.4 | U110: 491.1 | V110: 4239.9 | W110: 11616.16438 | X110: 7646 | Z110: ６０～６４歳 | AA110: 62.3 | AB110: 12.9 | AC110: 157 | AD110: 5 | AE110: 204.9 | AF110: 196.2 | AG110: 188.5 | AH110: 2647.3 | AI110: 7252.876712 | AJ110: 7037
A111: 102 | B111: ６５～６９歳 | C111: 67.3 | D111: 13.6 | E111: 161 | F111: 7 | G111: 236.1 | H111: 224.4 | I111: 189.1 | J111: 3022.3 | K111: 8280.273973 | L111: 7183 | N111: ６５～６９歳 | O111: 67.3 | P111: 12.7 | Q111: 164 | R111: 8 | S111: 265.7 | T111: 251.5 | U111: 247.5 | V111: 3435.9 | W111: 9413.424658 | X111: 4143 | Z111: ６５～６９歳 | AA111: 67.2 | AB111: 14.8 | AC111: 157 | AD111: 6 | AE111: 195.7 | AF111: 187.4 | AG111: 109.5 | AH111: 2457.9 | AI111: 6733.972603 | AJ111: 3040
A112: 103 | B112: ７０歳～ | C112: 73.4 | D112: 17 | E112: 163 | F112: 4 | G112: 218 | H112: 210.3 | I112: 123.4 | J112: 2739.4 | K112: 7505.205479 | L112: 4668 | N112: ７０歳～ | O112: 73.5 | P112: 16.4 | Q112: 166 | R112: 4 | S112: 231.5 | T112: 222.6 | U112: 122.8 | V112: 2900.8 | W112: 7947.39726 | X112: 3143 | Z112: ７０歳～ | AA112: 73.3 | AB112: 18.3 | AC112: 155 | AD112: 3 | AE112: 190.2 | AF112: 184.9 | AG112: 124.7 | AH112: 2407.1 | AI112: 6594.794521 | AJ112: 1525

Sheet 賃セＲ３ (hidden)
A1: 令和３年賃金構造基本統計調査
A2: 第１表 年齢階級別きまって支給する現金給与額、所定内給与額及び年間賞与その他特別給与額
A3: 産業 | C3: 産業計
A5: 区 分 | C5: 企業規模計（10人以上） | M5: 区 分 | O5: 企業規模計（10人以上） | Y5: 区 分 | AA5: 企業規模計（10人以上）
C6: 年齢 | D6: 勤続 年数 | E6: 所定内 実労働 時間数 | F6: 超過 実労働 時間数 | G6: きまって 支給す る現金 給与額 | I6: 年間賞与その他特別給与額 | J6: 年額計 | K6: 日額 | L6: 労働者数 | O6: 年齢 | P6: 勤続 年数 | Q6: 所定内 実労働 時間数 | R6: 超過 実労働 時間数 | S6: きまって 支給す る現金 給与額 | U6: 年間賞与その他特別給与額 | V6: 年額計 | W6: 日額 | X6: 労働者数 | AA6: 年齢 | AB6: 勤続 年数 | AC6: 所定内 実労働 時間数 | AD6: 超過 実労働 時間数 | AE6: きまって 支給す る現金 給与額 | AG6: 年間賞与その他特別給与額 | AH6: 年額計 | AI6: 日額 | AJ6: 労働者数
H7: 所定内 給与額 | K7: ÷365 | T7: 所定内 給与額 | W7: ÷365 | AF7: 所定内 給与額 | AI7: ÷365
C8: 歳 | D8: 年 | E8: 時間 | F8: 時間 | G8: 千円 | H8: 千円 | I8: 千円 | L8: 十人
A9: 0 | B9: 男女計 学歴計 | C9: 43.4 | D9: 12.3 | E9: 165 | F9: 11 | G9: 334.8 | H9: 307.4 | I9: 875.5 | J9: 4893.1 | K9: 13405.75342 | L9: 2821087 | N9: 男 学歴計 | O9: 44.1 | P9: 13.7 | Q9: 167 | R9: 14 | S9: 370.5 | T9: 337.2 | U9: 1018.2 | V9: 5464.2 | W9: 14970.41096 | X9: 1817957 | Z9: 女 学歴計 | AA9: 42.1 | AB9: 9.7 | AC9: 162 | AD9: 7 | AE9: 270.2 | AF9: 253.6 | AG9: 617 | AH9: 3859.4 | AI9: 10573.69863 | AJ9: 1003129
A10: 1 | B10: ～１９歳 | C10: 19.1 | D10: 0.9 | E10: 167 | F10: 10 | G10: 199.6 | H10: 182.5 | I10: 143.6 | J10: 2538.8 | K10: 6955.616438 | L10: 25348 | N10: ～１９歳 | O10: 19.1 | P10: 0.9 | Q10: 167 | R10: 11 | S10: 205.6 | T10: 185.6 | U10: 152.3 | V10: 2619.5 | W10: 7176.712329 | X10: 15957 | Z10: ～１９歳 | AA10: 19.1 | AB10: 0.9 | AC10: 166 | AD10: 7 | AE10: 189.3 | AF10: 177.3 | AG10: 128.8 | AH10: 2400.4 | AI10: 6576.438356 | AJ10: 9392
A11: 2 | B11: ２０～２４歳 | C11: 23 | D11: 2.1 | E11: 166 | F11: 12 | G11: 235.4 | H11: 213.1 | I11: 376.1 | J11: 3200.9 | K11: 8769.589041 | L11: 213149 | N11: ２０～２４歳 | O11: 23.1 | P11: 2.3 | Q11: 166 | R11: 15 | S11: 243.2 | T11: 215.4 | U11: 411.3 | V11: 3329.7 | W11: 9122.465753 | X11: 110596 | Z11: ２０～２４歳 | AA11: 23 | AB11: 2 | AC11: 165 | AD11: 8 | AE11: 227 | AF11: 210.7 | AG11: 338.1 | AH11: 3062.1 | AI11: 8389.315068 | AJ11: 102554
A12: 3 | B12: ２５～２９歳 | C12: 27.5 | D12: 4.2 | E12: 165 | F12: 14 | G12: 276.8 | H12: 246.2 | I12: 648.1 | J12: 3969.7 | K12: 10875.89041 | L12: 303671 | N12: ２５～２９歳 | O12: 27.5 | P12: 4.4 | Q12: 166 | R12: 17 | S12: 290.9 | T12: 253.3 | U12: 694.5 | V12: 4185.3 | W12: 11466.57534 | X12: 176336 | Z12: ２５～２９歳 | AA12: 27.4 | AB12: 4 | AC12: 163 | AD12: 10 | AE12: 257.4 | AF12: 236.2 | AG12: 583.9 | AH12: 3672.7 | AI12: 10062.19178 | AJ12: 127335
A13: 4 | B13: ３０～３４歳 | C13: 32.5 | D13: 7 | E13: 164 | F13: 14 | G13: 309.1 | H13: 275.8 | I13: 778.4 | J13: 4487.6 | K13: 12294.79452 | L13: 285500 | N13: ３０～３４歳 | O13: 32.6 | P13: 7.4 | Q13: 166 | R13: 17 | S13: 331.9 | T13: 290.5 | U13: 877 | V13: 4859.8 | W13: 13314.52055 | X13: 185739 | Z13: ３０～３４歳 | AA13: 32.5 | AB13: 6.4 | AC13: 162 | AD13: 8 | AE13: 266.7 | AF13: 248.5 | AG13: 594.9 | AH13: 3795.3 | AI13: 10398.08219 | AJ13: 99761
A14: 5 | B14: ３５～３９歳 | C14: 37.5 | D14: 9.7 | E14: 165 | F14: 13 | G14: 338.8 | H14: 305 | I14: 910.2 | J14: 4975.8 | K14: 13632.32877 | L14: 306477 | N14: ３５～３９歳 | O14: 37.5 | P14: 10.2 | Q14: 166 | R14: 17 | S14: 369 | T14: 327 | U14: 1028.8 | V14: 5456.8 | W14: 14950.13699 | X14: 205827 | Z14: ３５～３９歳 | AA14: 37.5 | AB14: 8.7 | AC14: 161 | AD14: 7 | AE14: 277.1 | AF14: 260 | AG14: 667.6 | AH14: 3992.8 | AI14: 10939.17808 | AJ14: 100650
A15: 6 | B15: ４０～４４歳 | C15: 42.6 | D15: 12.5 | E15: 165 | F15: 12 | G15: 359.8 | H15: 328 | I15: 1006.1 | J15: 5323.7 | K15: 14585.47945 | L15: 344931 | N15: ４０～４４歳 | O15: 42.6 | P15: 13.5 | Q15: 167 | R15: 15 | S15: 396.5 | T15: 357.6 | U15: 1153.1 | V15: 5911.1 | W15: 16194.79452 | X15: 228550 | Z15: ４０～４４歳 | AA15: 42.6 | AB15: 10.5 | AC15: 162 | AD15: 7 | AE15: 287.6 | AF15: 269.9 | AG15: 717.3 | AH15: 4168.5 | AI15: 11420.54795 | AJ15: 116381
A16: 7 | B16: ４５～４９歳 | C16: 47.5 | D16: 15.3 | E16: 166 | F16: 11 | G16: 373.7 | H16: 344.3 | I16: 1068.5 | J16: 5552.9 | K16: 15213.42466 | L16: 412733 | N16: ４５～４９歳 | O16: 47.5 | P16: 16.9 | Q16: 168 | R16: 14 | S16: 418.6 | T16: 382.8 | U16: 1250.2 | V16: 6273.4 | W16: 17187.39726 | X16: 270617 | Z16: ４５～４９歳 | AA16: 47.5 | AB16: 12.1 | AC16: 162 | AD16: 7 | AE16: 288.3 | AF16: 270.9 | AG16: 722.3 | AH16: 4181.9 | AI16: 11457.26027 | AJ16: 142116
A17: 8 | B17: ５０～５４歳 | C17: 52.4 | D17: 18 | E17: 165 | F17: 10 | G17: 392.9 | H17: 366.2 | I17: 1172.3 | J17: 5887.1 | K17: 16129.0411 | L17: 359816 | N17: ５０～５４歳 | O17: 52.4 | P17: 20.2 | Q17: 167 | R17: 12 | S17: 443.9 | T17: 412.1 | U17: 1392.6 | V17: 6719.4 | W17: 18409.31507 | X17: 236770 | Z17: ５０～５４歳 | AA17: 52.4 | AB17: 13.7 | AC17: 162 | AD17: 7 | AE17: 294.7 | AF17: 277.9 | AG17: 748.3 | AH17: 4284.7 | AI17: 11738.90411 | AJ17: 123046
A18: 9 | B18: ５５～５９歳 | C18: 57.4 | D18: 20 | E18: 165 | F18: 9 | G18: 388.4 | H18: 365.5 | I18: 1146.7 | J18: 5807.5 | K18: 15910.9589 | L18: 282358 | N18: ５５～５９歳 | O18: 57.4 | P18: 22.4 | Q18: 167 | R18: 10 | S18: 440.9 | T18: 413.6 | U18: 1369.9 | V18: 6660.7 | W18: 18248.49315 | X18: 185663 | Z18: ５５～５９歳 | AA18: 57.4 | AB18: 15.4 | AC18: 162 | AD18: 6 | AE18: 287.5 | AF18: 273.3 | AG18: 718.1 | AH18: 4168.1 | AI18: 11419.45205 | AJ18: 96695
A19: 10 | B19: ６０～６４歳 | C19: 62.3 | D19: 18.8 | E19: 164 | F19: 7 | G19: 307.9 | H19: 292.8 | I19: 661.3 | J19: 4356.1 | K19: 11934.52055 | L19: 181951 | N19: ６０～６４歳 | O19: 62.3 | P19: 20 | Q19: 165 | R19: 8 | S19: 335.7 | T19: 318.1 | U19: 748.8 | V19: 4777.2 | W19: 13088.21918 | X19: 126821 | Z19: ６０～６４歳 | AA19: 62.2 | AB19: 16 | AC19: 161 | AD19: 4 | AE19: 243.9 | AF19: 234.4 | AG19: 460 | AH19: 3386.8 | AI19: 9278.90411 | AJ19: 55130
A20: 11 | B20: ６５～６９歳 | C20: 67.2 | D20: 16.5 | E20: 164 | F20: 6 | G20: 271.3 | H20: 259.8 | I20: 360.1 | J20: 3615.7 | K20: 9906.027397 | L20: 71778 | N20: ６５～６９歳 | O20: 67.2 | P20: 16.6 | Q20: 165 | R20: 7 | S20: 287.8 | T20: 274.8 | U20: 380.1 | V20: 3833.7 | W20: 10503.28767 | X20: 51212 | Z20: ６５～６９歳 | AA20: 67.2 | AB20: 16.3 | AC20: 160 | AD20: 4 | AE20: 230.1 | AF20: 222.2 | AG20: 310.1 | AH20: 3071.3 | AI20: 8414.520548 | AJ20: 20566
A21: 12 | B21: ７０歳～ | C21: 73.1 | D21: 17.6 | E21: 162 | F21: 4 | G21: 251 | H21: 243.3 | I21: 252.1 | J21: 3264.1 | K21: 8942.739726 | L21: 33374 | N21: ７０歳～ | O21: 73 | P21: 17 | Q21: 164 | R21: 5 | S21: 265.3 | T21: 256.5 | U21: 238.1 | V21: 3421.7 | W21: 9374.520548 | X21: 23870 | Z21: ７０歳～ | AA21: 73.2 | AB21: 19 | AC21: 158 | AD21: 3 | AE21: 215.1 | AF21: 210.1 | AG21: 287.1 | AH21: 2868.3 | AI21: 7858.356164 | AJ21: 9505
A22: 13 | B22: 中学 | C22: 49.1 | D22: 13.3 | E22: 168 | F22: 14 | G22: 291.4 | H22: 261 | I22: 442.7 | J22: 3939.5 | K22: 10793.15068 | L22: 69074 | N22: 中学 | O22: 49.5 | P22: 14.3 | Q22: 170 | R22: 16 | S22: 312.8 | T22: 277.8 | U22: 486.1 | V22: 4239.7 | W22: 11615.61644 | X22: 53833 | Z22: 中学 | AA22: 47.6 | AB22: 9.6 | AC22: 162 | AD22: 8 | AE22: 215.9 | AF22: 201.7 | AG22: 289.3 | AH22: 2880.1 | AI22: 7890.684932 | AJ22: 15241
A23: 14 | B23: ～１９歳 | C23: 18.3 | D23: 1.2 | E23: 160 | F23: 7 | G23: 196.1 | H23: 183.3 | I23: 54.7 | J23: 2407.9 | K23: 6596.986301 | L23: 676 | N23: ～１９歳 | O23: 18.4 | P23: 1.1 | Q23: 163 | R23: 7 | S23: 205 | T23: 191 | U23: 56.5 | V23: 2516.5 | W23: 6894.520548 | X23: 487 | Z23: ～１９歳 | AA23: 18.1 | AB23: 1.4 | AC23: 152 | AD23: 7 | AE23: 173.1 | AF23: 163.2 | AG23: 50 | AH23: 2127.2 | AI23: 5827.945205 | AJ23: 189
A24: 15 | B24: ２０～２４歳 | C24: 22.8 | D24: 2.6 | E24: 166 | F24: 15 | G24: 228 | H24: 202.5 | I24: 186.1 | J24: 2922.1 | K24: 8005.753425 | L24: 2643 | N24: ２０～２４歳 | O24: 22.8 | P24: 2.7 | Q24: 170 | R24: 19 | S24: 244.4 | T24: 213.6 | U24: 230.1 | V24: 3162.9 | W24: 8665.479452 | X24: 1861 | Z24: ２０～２４歳 | AA24: 22.9 | AB24: 2.3 | AC24: 157 | AD24: 7 | AE24: 189.1 | AF24: 176.2 | AG24: 81.3 | AH24: 2350.5 | AI24: 6439.726027 | AJ24: 782
A25: 16 | B25: ２５～２９歳 | C25: 27.6 | D25: 4 | E25: 169 | F25: 13 | G25: 253.6 | H25: 225.7 | I25: 336.2 | J25: 3379.4 | K25: 9258.630137 | L25: 3989 | N25: ２５～２９歳 | O25: 27.6 | P25: 4.4 | Q25: 171 | R25: 15 | S25: 271 | T25: 237.9 | U25: 382.8 | V25: 3634.8 | W25: 9958.356164 | X25: 2820 | Z25: ２５～２９歳 | AA25: 27.5 | AB25: 3.2 | AC25: 163 | AD25: 9 | AE25: 211.4 | AF25: 196.2 | AG25: 223.6 | AH25: 2760.4 | AI25: 7562.739726 | AJ25: 1169
A26: 17 | B26: ３０～３４歳 | C26: 32.7 | D26: 6.3 | E26: 169 | F26: 18 | G26: 278.6 | H26: 243.6 | I26: 397.1 | J26: 3740.3 | K26: 10247.39726 | L26: 4540 | N26: ３０～３４歳 | O26: 32.8 | P26: 6.6 | Q26: 170 | R26: 19 | S26: 297.3 | T26: 257.7 | U26: 443.1 | V26: 4010.7 | W26: 10988.21918 | X26: 3505 | Z26: ３０～３４歳 | AA26: 32.4 | AB26: 5.1 | AC26: 164 | AD26: 12 | AE26: 215.2 | AF26: 195.9 | AG26: 241 | AH26: 2823.4 | AI26: 7735.342466 | AJ26: 1034
A27: 18 | B27: ３５～３９歳 | C27: 37.5 | D27: 8.3 | E27: 170 | F27: 17 | G27: 303.1 | H27: 267.6 | I27: 503.1 | J27: 4140.3 | K27: 11343.28767 | L27: 6695 | N27: ３５～３９歳 | O27: 37.5 | P27: 8.9 | Q27: 172 | R27: 19 | S27: 327.1 | T27: 286.1 | U27: 555.5 | V27: 4480.7 | W27: 12275.89041 | X27: 5077 | Z27: ３５～３９歳 | AA27: 37.8 | AB27: 6.1 | AC27: 164 | AD27: 10 | AE27: 227.9 | AF27: 209.8 | AG27: 338.5 | AH27: 3073.3 | AI27: 8420 | AJ27: 1617
A28: 19 | B28: ４０～４４歳 | C28: 42.4 | D28: 10.4 | E28: 170 | F28: 16 | G28: 313.2 | H28: 277.5 | I28: 522.4 | J28: 4280.8 | K28: 11728.21918 | L28: 7297 | N28: ４０～４４歳 | O28: 42.3 | P28: 11.3 | Q28: 172 | R28: 18 | S28: 340.6 | T28: 298.7 | U28: 581.9 | V28: 4669.1 | W28: 12792.05479 | X28: 5649 | Z28: ４０～４４歳 | AA28: 42.7 | AB28: 7.6 | AC28: 164 | AD28: 10 | AE28: 219.3 | AF28: 204.8 | AG28: 318.2 | AH28: 2949.8 | AI28: 8081.643836 | AJ28: 1649
A29: 20 | B29: ４５～４９歳 | C29: 47.6 | D29: 13.2 | E29: 170 | F29: 17 | G29: 333.3 | H29: 295.8 | I29: 555 | J29: 4554.6 | K29: 12478.35616 | L29: 10063 | N29: ４５～４９歳 | O29: 47.7 | P29: 14.5 | Q29: 171 | R29: 19 | S29: 359.7 | T29: 316.9 | U29: 612.7 | V29: 4929.1 | W29: 13504.38356 | X29: 7944 | Z29: ４５～４９歳 | AA29: 47.5 | AB29: 8.5 | AC29: 164 | AD29: 9 | AE29: 234.4 | AF29: 216.5 | AG29: 338.8 | AH29: 3151.6 | AI29: 8634.520548 | AJ29: 2119
A30: 21 | B30: ５０～５４歳 | C30: 52.3 | D30: 14.7 | E30: 168 | F30: 16 | G30: 326.4 | H30: 291.2 | I30: 566.4 | J30: 4483.2 | K30: 12282.73973 | L30: 9278 | N30: ５０～５４歳 | O30: 52.3 | P30: 16.1 | Q30: 170 | R30: 19 | S30: 353 | T30: 312.5 | U30: 619.9 | V30: 4855.9 | W30: 13303.83562 | X30: 7316 | Z30: ５０～５４歳 | AA30: 52.3 | AB30: 9.7 | AC30: 161 | AD30: 6 | AE30: 227.2 | AF30: 211.7 | AG30: 367.1 | AH30: 3093.5 | AI30: 8475.342466 | AJ30: 1962
A31: 22 | B31: ５５～５９歳 | C31: 57.4 | D31: 19.3 | E31: 168 | F31: 16 | G31: 334.1 | H31: 296.7 | I31: 610.5 | J31: 4619.7 | K31: 12656.71233 | L31: 7307 | N31: ５５～５９歳 | O31: 57.4 | P31: 20.4 | Q31: 170 | R31: 18 | S31: 356.8 | T31: 313.5 | U31: 648.7 | V31: 4930.3 | W31: 13507.67123 | X31: 5871 | Z31: ５５～５９歳 | AA31: 57.4 | AB31: 14.6 | AC31: 160 | AD31: 8 | AE31: 241 | AF31: 228.1 | AG31: 453.8 | AH31: 3345.8 | AI31: 9166.575342 | AJ31: 1435
A32: 23 | B32: ６０～６４歳 | C32: 62.6 | D32: 19.7 | E32: 167 | F32: 11 | G32: 263.1 | H32: 240.8 | I32: 370.7 | J32: 3527.9 | K32: 9665.479452 | L32: 6622 | N32: ６０～６４歳 | O32: 62.6 | P32: 20.9 | Q32: 168 | R32: 12 | S32: 276.9 | T32: 251.9 | U32: 398.7 | V32: 3721.5 | W32: 10195.89041 | X32: 5455 | Z32: ６０～６４歳 | AA32: 62.8 | AB32: 14.3 | AC32: 162 | AD32: 6 | AE32: 198.5 | AF32: 188.9 | AG32: 239.7 | AH32: 2621.7 | AI32: 7182.739726 | AJ32: 1168
A33: 24 | B33: ６５～６９歳 | C33: 67.4 | D33: 19.4 | E33: 165 | F33: 8 | G33: 231.1 | H33: 215.6 | I33: 217.3 | J33: 2990.5 | K33: 8193.150685 | L33: 5461 | N33: ６５～６９歳 | O33: 67.4 | P33: 19.9 | Q33: 167 | R33: 9 | S33: 244 | T33: 226.1 | U33: 222.9 | V33: 3150.9 | W33: 8632.60274 | X33: 4314 | Z33: ６５～６９歳 | AA33: 67.5 | AB33: 17.4 | AC33: 158 | AD33: 4 | AE33: 182.8 | AF33: 176 | AG33: 196 | AH33: 2389.6 | AI33: 6546.849315 | AJ33: 1147
A34: 25 | B34: ７０歳～ | C34: 73.3 | D34: 18.9 | E34: 164 | F34: 5 | G34: 216.3 | H34: 206.2 | I34: 173.7 | J34: 2769.3 | K34: 7587.123288 | L34: 4503 | N34: ７０歳～ | O34: 73.3 | P34: 18.8 | Q34: 165 | R34: 6 | S34: 224.7 | T34: 214 | U34: 176.2 | V34: 2872.6 | W34: 7870.136986 | X34: 3532 | Z34: ７０歳～ | AA34: 73.2 | AB34: 19.3 | AC34: 160 | AD34: 4 | AE34: 185.5 | AF34: 178.1 | AG34: 164.8 | AH34: 2390.8 | AI34: 6550.136986 | AJ34: 971
A35: 26 | B35: 高校 | C35: 45.4 | D35: 13.7 | E35: 166 | F35: 13 | G35: 301.2 | H35: 271.5 | I35: 693 | J35: 4307.4 | K35: 11801.09589 | L35: 1008893 | N35: 高校 | O35: 45.4 | P35: 14.9 | Q35: 167 | R35: 16 | S35: 332.3 | T35: 295.1 | U35: 799.8 | V35: 4787.4 | W35: 13116.16438 | X35: 690823 | Z35: 高校 | AA35: 45.2 | AB35: 11.1 | AC35: 163 | AD35: 7 | AE35: 233.5 | AF35: 220 | AG35: 461.1 | AH35: 3263.1 | AI35: 8940 | AJ35: 318071
A36: 27 | B36: ～１９歳 | C36: 19.1 | D36: 0.9 | E36: 167 | F36: 10 | G36: 199.8 | H36: 182.5 | I36: 149.5 | J36: 2547.1 | K36: 6978.356164 | L36: 23764 | N36: ～１９歳 | O36: 19.1 | P36: 0.9 | Q36: 167 | R36: 12 | S36: 206 | T36: 185.6 | U36: 157.4 | V36: 2629.4 | W36: 7203.835616 | X36: 15079 | Z36: ～１９歳 | AA36: 19.1 | AB36: 0.9 | AC36: 167 | AD36: 7 | AE36: 189.1 | AF36: 177 | AG36: 135.6 | AH36: 2404.8 | AI36: 6588.493151 | AJ36: 8684
A37: 28 | B37: ２０～２４歳 | C37: 22.5 | D37: 3.2 | E37: 166 | F37: 16 | G37: 227.4 | H37: 199 | I37: 477.2 | J37: 3206 | K37: 8783.561644 | L37: 71651 | N37: ２０～２４歳 | O37: 22.6 | P37: 3.3 | Q37: 166 | R37: 19 | S37: 239 | T37: 204.3 | U37: 536.3 | V37: 3404.3 | W37: 9326.849315 | X37: 45118 | Z37: ２０～２４歳 | AA37: 22.4 | AB37: 3 | AC37: 165 | AD37: 10 | AE37: 207.8 | AF37: 190 | AG37: 376.7 | AH37: 2870.3 | AI37: 7863.835616 | AJ37: 26533
A38: 29 | B38: ２５～２９歳 | C38: 27.5 | D38: 5.6 | E38: 166 | F38: 15 | G38: 255.3 | H38: 224.1 | I38: 528.8 | J38: 3592.4 | K38: 9842.191781 | L38: 71050 | N38: ２５～２９歳 | O38: 27.5 | P38: 5.9 | Q38: 167 | R38: 19 | S38: 272.9 | T38: 234.5 | U38: 605.4 | V38: 3880.2 | W38: 10630.68493 | X38: 48461 | Z38: ２５～２９歳 | AA38: 27.5 | AB38: 4.9 | AC38: 163 | AD38: 8 | AE38: 217.6 | AF38: 202 | AG38: 364.5 | AH38: 2975.7 | AI38: 8152.60274 | AJ38: 22590
A39: 30 | B39: ３０～３４歳 | C39: 32.6 | D39: 8.3 | E39: 165 | F39: 16 | G39: 282.7 | H39: 247.1 | I39: 645.5 | J39: 4037.9 | K39: 11062.73973 | L39: 76751 | N39: ３０～３４歳 | O39: 32.6 | P39: 8.8 | Q39: 166 | R39: 20 | S39: 305.6 | T39: 261.1 | U39: 739.9 | V39: 4407.1 | W39: 12074.24658 | X39: 54921 | Z39: ３０～３４歳 | AA39: 32.6 | AB39: 7 | AC39: 162 | AD39: 7 | AE39: 225.2 | AF39: 212 | AG39: 408.1 | AH39: 3110.5 | AI39: 8521.917808 | AJ39: 21830
A40: 31 | B40: ３５～３９歳 | C40: 37.6 | D40: 10.2 | E40: 166 | F40: 15 | G40: 299.9 | H40: 265.3 | I40: 679.9 | J40: 4278.7 | K40: 11722.46575 | L40: 89756 | N40: ３５～３９歳 | O40: 37.6 | P40: 10.8 | Q40: 168 | R40: 18 | S40: 327.6 | T40: 284.7 | U40: 773.8 | V40: 4705 | W40: 12890.41096 | X40: 64437 | Z40: ３５～３９歳 | AA40: 37.6 | AB40: 8.7 | AC40: 162 | AD40: 7 | AE40: 229.4 | AF40: 216 | AG40: 440.9 | AH40: 3193.7 | AI40: 8749.863014 | AJ40: 25318
A41: 32 | B41: ４０～４４歳 | C41: 42.6 | D41: 12.8 | E41: 166 | F41: 15 | G41: 319.4 | H41: 283.1 | I41: 752.8 | J41: 4585.6 | K41: 12563.28767 | L41: 113636 | N41: ４０～４４歳 | O41: 42.6 | P41: 14 | Q41: 168 | R41: 19 | S41: 353.1 | T41: 307.7 | U41: 867.4 | V41: 5104.6 | W41: 13985.20548 | X41: 80923 | Z41: ４０～４４歳 | AA41: 42.6 | AB41: 10.1 | AC41: 163 | AD41: 7 | AE41: 236 | AF41: 222.3 | AG41: 469.3 | AH41: 3301.3 | AI41: 9044.657534 | AJ41: 32713
A42: 33 | B42: ４５～４９歳 | C42: 47.6 | D42: 15.9 | E42: 167 | F42: 14 | G42: 336.6 | H42: 301.6 | I42: 850.7 | J42: 4889.9 | K42: 13396.9863 | L42: 154804 | N42: ４５～４９歳 | O42: 47.6 | P42: 17.4 | Q42: 168 | R42: 17 | S42: 377.1 | T42: 332.7 | U42: 988.8 | V42: 5514 | W42: 15106.84932 | X42: 105669 | Z42: ４５～４９歳 | AA42: 47.6 | AB42: 12.6 | AC42: 163 | AD42: 7 | AE42: 249.7 | AF42: 234.7 | AG42: 553.6 | AH42: 3550 | AI42: 9726.027397 | AJ42: 49135
A43: 34 | B43: ５０～５４歳 | C43: 52.4 | D43: 17.9 | E43: 166 | F43: 13 | G43: 341.9 | H43: 310.4 | I43: 858 | J43: 4960.8 | K43: 13591.23288 | L43: 147311 | N43: ５０～５４歳 | O43: 52.4 | P43: 20 | Q43: 168 | R43: 16 | S43: 386.3 | T43: 346.5 | U43: 1001 | V43: 5636.6 | W43: 15442.73973 | X43: 98968 | Z43: ５０～５４歳 | AA43: 52.4 | AB43: 13.5 | AC43: 162 | AD43: 7 | AE43: 250.9 | AF43: 236.5 | AG43: 565.3 | AH43: 3576.1 | AI43: 9797.534247 | AJ43: 48344
A44: 35 | B44: ５５～５９歳 | C44: 57.4 | D44: 20.4 | E44: 166 | F44: 11 | G44: 341.4 | H44: 314.5 | I44: 897.8 | J44: 4994.6 | K44: 13683.83562 | L44: 126121 | N44: ５５～５９歳 | O44: 57.4 | P44: 22.7 | Q44: 167 | R44: 13 | S44: 385.8 | T44: 351.8 | U44: 1060.4 | V44: 5690 | W44: 15589.0411 | X44: 84040 | Z44: ５５～５９歳 | AA44: 57.4 | AB44: 15.8 | AC44: 162 | AD44: 6 | AE44: 252.7 | AF44: 240 | AG44: 573 | AH44: 3605.4 | AI44: 9877.808219 | AJ44: 42081
A45: 36 | B45: ６０～６４歳 | C45: 62.3 | D45: 19.2 | E45: 165 | F45: 8 | G45: 268.4 | H45: 252.1 | I45: 520.2 | J45: 3741 | K45: 10249.31507 | L45: 82684 | N45: ６０～６４歳 | O45: 62.3 | P45: 20.5 | Q45: 166 | R45: 10 | S45: 291.4 | T45: 271.4 | U45: 590.8 | V45: 4087.6 | W45: 11198.90411 | X45: 57071 | Z45: ６０～６４歳 | AA45: 62.3 | AB45: 16.5 | AC45: 161 | AD45: 4 | AE45: 217 | AF45: 208.9 | AG45: 362.9 | AH45: 2966.9 | AI45: 8128.493151 | AJ45: 25613
A46: 37 | B46: ６５～６９歳 | C46: 67.2 | D46: 16.6 | E46: 164 | F46: 6 | G46: 238.2 | H46: 226.8 | I46: 282.1 | J46: 3140.5 | K46: 8604.109589 | L46: 34828 | N46: ６５～６９歳 | O46: 67.3 | P46: 16.7 | Q46: 166 | R46: 7 | S46: 251.3 | T46: 238 | U46: 292.7 | V46: 3308.3 | W46: 9063.835616 | X46: 24581 | Z46: ６５～６９歳 | AA46: 67.2 | AB46: 16.4 | AC46: 160 | AD46: 4 | AE46: 206.8 | AF46: 200 | AG46: 256.7 | AH46: 2738.3 | AI46: 7502.191781 | AJ46: 10247
A47: 38 | B47: ７０歳～ | C47: 73 | D47: 17.8 | E47: 162 | F47: 5 | G47: 224.6 | H47: 216.6 | I47: 217.3 | J47: 2912.5 | K47: 7979.452055 | L47: 16537 | N47: ７０歳～ | O47: 72.9 | P47: 17.1 | Q47: 164 | R47: 5 | S47: 231.8 | T47: 222.6 | U47: 202.4 | V47: 2984 | W47: 8175.342466 | X47: 11555 | Z47: ７０歳～ | AA47: 73.1 | AB47: 19.2 | AC47: 158 | AD47: 3 | AE47: 208 | AF47: 202.9 | AG47: 252 | AH47: 2748 | AI47: 7528.767123 | AJ47: 4982
A48: 39 | B48: 専門学校 | C48: 42.1 | D48: 11 | E48: 164 | F48: 9 | G48: 311.9 | H48: 288.4 | I48: 725.1 | J48: 4467.9 | K48: 12240.82192 | L48: 362236 | N48: 専門学校 | O48: 42.1 | P48: 12.4 | Q48: 167 | R48: 12 | S48: 337.6 | T48: 309.4 | U48: 818.8 | V48: 4870 | W48: 13342.46575 | X48: 191460 | Z48: 専門学校 | AA48: 42.1 | AB48: 9.4 | AC48: 162 | AD48: 6 | AE48: 283.1 | AF48: 264.8 | AG48: 620.2 | AH48: 4017.4 | AI48: 11006.57534 | AJ48: 170776
A49: 40 | B49: ～１９歳 | C49: - | D49: - | E49: - | F49: - | G49: - | H49: - | I49: - | L49: - | N49: ～１９歳 | O49: - | P49: - | Q49: - | R49: - | S49: - | T49: - | U49: - | X49: - | Z49: ～１９歳 | AA49: - | AB49: - | AC49: - | AD49: - | AE49: - | AF49: - | AG49: - | AJ49: -
A50: 41 | B50: ２０～２４歳 | C50: 22.8 | D50: 1.9 | E50: 166 | F50: 9 | G50: 231.9 | H50: 214.1 | I50: 305.6 | J50: 3088.4 | K50: 8461.369863 | L50: 32748 | N50: ２０～２４歳 | O50: 22.9 | P50: 1.9 | Q50: 167 | R50: 12 | S50: 232.4 | T50: 212 | U50: 314.9 | V50: 3103.7 | W50: 8503.287671 | X50: 14020 | Z50: ２０～２４歳 | AA50: 22.8 | AB50: 1.8 | AC50: 165 | AD50: 7 | AE50: 231.5 | AF50: 215.7 | AG50: 298.5 | AH50: 3076.5 | AI50: 8428.767123 | AJ50: 18728
A51: 42 | B51: ２５～２９歳 | C51: 27.4 | D51: 4.2 | E51: 165 | F51: 9 | G51: 261.1 | H51: 239 | I51: 509.9 | J51: 3643.1 | K51: 9981.09589 | L51: 37463 | N51: ２５～２９歳 | O51: 27.5 | P51: 4.4 | Q51: 166 | R51: 12 | S51: 265.4 | T51: 240.7 | U51: 534.1 | V51: 3718.9 | W51: 10188.76712 | X51: 18706 | Z51: ２５～２９歳 | AA51: 27.4 | AB51: 4.1 | AC51: 163 | AD51: 6 | AE51: 256.9 | AF51: 237.4 | AG51: 485.7 | AH51: 3568.5 | AI51: 9776.712329 | AJ51: 18757
A52: 43 | B52: ３０～３４歳 | C52: 32.6 | D52: 6.6 | E52: 164 | F52: 10 | G52: 280.6 | H52: 256.7 | I52: 592.6 | J52: 3959.8 | K52: 10848.76712 | L52: 38362 | N52: ３０～３４歳 | O52: 32.7 | P52: 6.9 | Q52: 166 | R52: 13 | S52: 295.8 | T52: 266.1 | U52: 652.6 | V52: 4202.2 | W52: 11512.87671 | X52: 21599 | Z52: ３０～３４歳 | AA52: 32.6 | AB52: 6.2 | AC52: 162 | AD52: 6 | AE52: 261 | AF52: 244.5 | AG52: 515.2 | AH52: 3647.2 | AI52: 9992.328767 | AJ52: 16763
A53: 44 | B53: ３５～３９歳 | C53: 37.5 | D53: 9.2 | E53: 164 | F53: 10 | G53: 306.3 | H53: 279.2 | I53: 703.5 | J53: 4379.1 | K53: 11997.53425 | L53: 44707 | N53: ３５～３９歳 | O53: 37.5 | P53: 9.8 | Q53: 166 | R53: 14 | S53: 326.9 | T53: 293.6 | U53: 772.8 | V53: 4695.6 | W53: 12864.65753 | X53: 25964 | Z53: ３５～３９歳 | AA53: 37.6 | AB53: 8.3 | AC53: 160 | AD53: 5 | AE53: 277.7 | AF53: 259.2 | AG53: 607.5 | AH53: 3939.9 | AI53: 10794.24658 | AJ53: 18744
A54: 45 | B54: ４０～４４歳 | C54: 42.6 | D54: 11.7 | E54: 164 | F54: 10 | G54: 331.4 | H54: 304.8 | I54: 832.6 | J54: 4809.4 | K54: 13176.43836 | L54: 51806 | N54: ４０～４４歳 | O54: 42.6 | P54: 12.9 | Q54: 167 | R54: 12 | S54: 358.8 | T54: 327.5 | U54: 933.8 | V54: 5239.4 | W54: 14354.52055 | X54: 28985 | Z54: ４０～４４歳 | AA54: 42.6 | AB54: 10.2 | AC54: 161 | AD54: 6 | AE54: 296.6 | AF54: 276 | AG54: 704 | AH54: 4263.2 | AI54: 11680 | AJ54: 22821
A55: 46 | B55: ４５～４９歳 | C55: 47.5 | D55: 14.3 | E55: 165 | F55: 10 | G55: 346.4 | H55: 319.6 | I55: 888.3 | J55: 5045.1 | K55: 13822.19178 | L55: 59859 | N55: ４５～４９歳 | O55: 47.5 | P55: 16.2 | Q55: 168 | R55: 13 | S55: 377 | T55: 345.1 | U55: 991.6 | V55: 5515.6 | W55: 15111.23288 | X55: 34691 | Z55: ４５～４９歳 | AA55: 47.4 | AB55: 11.6 | AC55: 161 | AD55: 6 | AE55: 304.2 | AF55: 284.5 | AG55: 746 | AH55: 4396.4 | AI55: 12044.93151 | AJ55: 25168
A56: 47 | B56: ５０～５４歳 | C56: 52.3 | D56: 16.4 | E56: 164 | F56: 9 | G56: 361.6 | H56: 337.1 | I56: 982.3 | J56: 5321.5 | K56: 14579.45205 | L56: 45126 | N56: ５０～５４歳 | O56: 52.3 | P56: 19.3 | Q56: 167 | R56: 11 | S56: 402.6 | T56: 374.6 | U56: 1140.3 | V56: 5971.5 | W56: 16360.27397 | X56: 23983 | Z56: ５０～５４歳 | AA56: 52.4 | AB56: 13.1 | AC56: 161 | AD56: 6 | AE56: 315 | AF56: 294.5 | AG56: 803.2 | AH56: 4583.2 | AI56: 12556.71233 | AJ56: 21143
A57: 48 | B57: ５５～５９歳 | C57: 57.4 | D57: 17.3 | E57: 163 | F57: 7 | G57: 355.9 | H57: 335.4 | I57: 907.8 | J57: 5178.6 | K57: 14187.94521 | L57: 30510 | N57: ５５～５９歳 | O57: 57.3 | P57: 20.3 | Q57: 166 | R57: 8 | S57: 397.4 | T57: 373.9 | U57: 1030 | V57: 5798.8 | W57: 15887.12329 | X57: 14043 | Z57: ５５～５９歳 | AA57: 57.4 | AB57: 14.8 | AC57: 161 | AD57: 5 | AE57: 320.6 | AF57: 302.6 | AG57: 803.7 | AH57: 4650.9 | AI57: 12742.19178 | AJ57: 16467
A58: 49 | B58: ６０～６４歳 | C58: 62.2 | D58: 17.1 | E58: 163 | F58: 5 | G58: 289.7 | H58: 275.8 | I58: 579.1 | J58: 4055.5 | K58: 11110.9589 | L58: 15353 | N58: ６０～６４歳 | O58: 62.3 | P58: 19.8 | Q58: 167 | R58: 7 | S58: 313.8 | T58: 298.2 | U58: 616.7 | V58: 4382.3 | W58: 12006.30137 | X58: 6626 | Z58: ６０～６４歳 | AA58: 62.2 | AB58: 15 | AC58: 161 | AD58: 4 | AE58: 271.4 | AF58: 258.8 | AG58: 550.5 | AH58: 3807.3 | AI58: 10430.9589 | AJ58: 8727
A59: 50 | B59: ６５～６９歳 | C59: 67.2 | D59: 16.7 | E59: 163 | F59: 5 | G59: 262.6 | H59: 251.3 | I59: 345.8 | J59: 3497 | K59: 9580.821918 | L59: 4660 | N59: ６５～６９歳 | O59: 67.2 | P59: 17.9 | Q59: 167 | R59: 6 | S59: 262.8 | T59: 252.4 | U59: 287.5 | V59: 3441.1 | W59: 9427.671233 | X59: 2066 | Z59: ６５～６９歳 | AA59: 67.2 | AB59: 15.7 | AC59: 159 | AD59: 4 | AE59: 262.4 | AF59: 250.5 | AG59: 392.3 | AH59: 3541.1 | AI59: 9701.643836 | AJ59: 2594
A60: 51 | B60: ７０歳～ | C60: 72.8 | D60: 18.3 | E60: 161 | F60: 3 | G60: 241.8 | H60: 236.8 | I60: 328 | J60: 3229.6 | K60: 8848.219178 | L60: 1642 | N60: ７０歳～ | O60: 72.7 | P60: 17.5 | Q60: 165 | R60: 3 | S60: 254.5 | T60: 248.6 | U60: 305.3 | V60: 3359.3 | W60: 9203.561644 | X60: 777 | Z60: ７０歳～ | AA60: 72.9 | AB60: 19 | AC60: 158 | AD60: 2 | AE60: 230.4 | AF60: 226.2 | AG60: 348.4 | AH60: 3113.2 | AI60: 8529.315068 | AJ60: 865
A61: 52 | B61: 高専・短大 | C61: 43.4 | D61: 12.6 | E61: 163 | F61: 8 | G61: 310.1 | H61: 289.2 | I61: 897.6 | J61: 4618.8 | K61: 12654.24658 | L61: 224493 | N61: 高専・短大 | O61: 43.2 | P61: 14.8 | Q61: 164 | R61: 13 | S61: 379.2 | T61: 345.7 | U61: 1206.5 | V61: 5756.9 | W61: 15772.32877 | X61: 71870 | Z61: 高専・短大 | AA61: 43.5 | AB61: 11.6 | AC61: 163 | AD61: 6 | AE61: 277.6 | AF61: 262.6 | AG61: 752.1 | AH61: 4083.3 | AI61: 11187.12329 | AJ61: 152623
A62: 53 | B62: ～１９歳 | C62: - | D62: - | E62: - | F62: - | G62: - | H62: - | I62: - | L62: - | N62: ～１９歳 | O62: - | P62: - | Q62: - | R62: - | S62: - | T62: - | U62: - | X62: - | Z62: ～１９歳 | AA62: - | AB62: - | AC62: - | AD62: - | AE62: - | AF62: - | AG62: - | AJ62: -
A63: 54 | B63: ２０～２４歳 | C63: 22.8 | D63: 2 | E63: 166 | F63: 8 | G63: 225.7 | H63: 210.7 | I63: 448.3 | J63: 3156.7 | K63: 8648.493151 | L63: 19553 | N63: ２０～２４歳 | O63: 22.9 | P63: 2 | Q63: 164 | R63: 14 | S63: 237.9 | T63: 212.1 | U63: 462.3 | V63: 3317.1 | W63: 9087.945205 | X63: 5077 | Z63: ２０～２４歳 | AA63: 22.8 | AB63: 2.1 | AC63: 167 | AD63: 6 | AE63: 221.4 | AF63: 210.2 | AG63: 443.4 | AH63: 3100.2 | AI63: 8493.69863 | AJ63: 14476
A64: 55 | B64: ２５～２９歳 | C64: 27.4 | D64: 4.7 | E64: 165 | F64: 10 | G64: 258.1 | H64: 236.7 | I64: 671.8 | J64: 3769 | K64: 10326.0274 | L64: 20451 | N64: ２５～２９歳 | O64: 27.4 | P64: 4.9 | Q64: 164 | R64: 18 | S64: 287.5 | T64: 249.7 | U64: 775.9 | V64: 4225.9 | W64: 11577.80822 | X64: 6946 | Z64: ２５～２９歳 | AA64: 27.4 | AB64: 4.6 | AC64: 165 | AD64: 6 | AE64: 243 | AF64: 230.1 | AG64: 618.3 | AH64: 3534.3 | AI64: 9683.013699 | AJ64: 13505
A65: 56 | B65: ３０～３４歳 | C65: 32.6 | D65: 7.8 | E65: 163 | F65: 10 | G65: 283.2 | H65: 257.3 | I65: 767.5 | J65: 4165.9 | K65: 11413.42466 | L65: 19697 | N65: ３０～３４歳 | O65: 32.6 | P65: 8.6 | Q65: 162 | R65: 17 | S65: 329.7 | T65: 285.3 | U65: 962.5 | V65: 4918.9 | W65: 13476.43836 | X65: 7653 | Z65: ３０～３４歳 | AA65: 32.5 | AB65: 7.3 | AC65: 163 | AD65: 6 | AE65: 253.6 | AF65: 239.5 | AG65: 643.6 | AH65: 3686.8 | AI65: 10100.82192 | AJ65: 12045
A66: 57 | B66: ３５～３９歳 | C66: 37.6 | D66: 10.5 | E66: 162 | F66: 9 | G66: 304 | H66: 279.4 | I66: 860.3 | J66: 4508.3 | K66: 12351.50685 | L66: 22803 | N66: ３５～３９歳 | O66: 37.5 | P66: 11.6 | Q66: 163 | R66: 16 | S66: 359.2 | T66: 317 | U66: 1077 | V66: 5387.4 | W66: 14760 | X66: 8957 | Z66: ３５～３９歳 | AA66: 37.6 | AB66: 9.8 | AC66: 162 | AD66: 5 | AE66: 268.3 | AF66: 255.1 | AG66: 720.1 | AH66: 3939.7 | AI66: 10793.69863 | AJ66: 13846
A67: 58 | B67: ４０～４４歳 | C67: 42.6 | D67: 12.6 | E67: 162 | F67: 9 | G67: 321.7 | H67: 297.1 | I67: 927.4 | J67: 4787.8 | K67: 13117.26027 | L67: 31215 | N67: ４０～４４歳 | O67: 42.5 | P67: 14.7 | Q67: 164 | R67: 14 | S67: 395.8 | T67: 356 | U67: 1226.5 | V67: 5976.1 | W67: 16372.87671 | X67: 9990 | Z67: ４０～４４歳 | AA67: 42.6 | AB67: 11.6 | AC67: 161 | AD67: 7 | AE67: 286.9 | AF67: 269.3 | AG67: 786.6 | AH67: 4229.4 | AI67: 11587.39726 | AJ67: 21225
A68: 59 | B68: ４５～４９歳 | C68: 47.5 | D68: 14.8 | E68: 163 | F68: 9 | G68: 334.1 | H68: 311.2 | I68: 1044.4 | J68: 5053.6 | K68: 13845.47945 | L68: 39941 | N68: ４５～４９歳 | O68: 47.5 | P68: 18.5 | Q68: 165 | R68: 12 | S68: 429.5 | T68: 394.6 | U68: 1538.9 | V68: 6692.9 | W68: 18336.71233 | X68: 11357 | Z68: ４５～４９歳 | AA68: 47.5 | AB68: 13.3 | AC68: 162 | AD68: 7 | AE68: 296.2 | AF68: 278 | AG68: 847.9 | AH68: 4402.3 | AI68: 12061.09589 | AJ68: 28584
A69: 60 | B69: ５０～５４歳 | C69: 52.4 | D69: 17.9 | E69: 163 | F69: 8 | G69: 356.8 | H69: 336.2 | I69: 1166.7 | J69: 5448.3 | K69: 14926.84932 | L69: 32054 | N69: ５０～５４歳 | O69: 52.3 | P69: 22.2 | Q69: 164 | R69: 10 | S69: 468.1 | T69: 440.3 | U69: 1727.7 | V69: 7344.9 | W69: 20123.0137 | X69: 9301 | Z69: ５０～５４歳 | AA69: 52.4 | AB69: 16.1 | AC69: 162 | AD69: 7 | AE69: 311.3 | AF69: 293.6 | AG69: 937.3 | AH69: 4672.9 | AI69: 12802.46575 | AJ69: 22753
A70: 61 | B70: ５５～５９歳 | C70: 57.4 | D70: 19.4 | E70: 163 | F70: 6 | G70: 356.3 | H70: 339.3 | I70: 1152.6 | J70: 5428.2 | K70: 14871.78082 | L70: 22048 | N70: ５５～５９歳 | O70: 57.4 | P70: 25.3 | Q70: 165 | R70: 8 | S70: 480.8 | T70: 457.2 | U70: 1754.5 | V70: 7524.1 | W70: 20613.9726 | X70: 6613 | Z70: ５５～５９歳 | AA70: 57.4 | AB70: 17 | AC70: 162 | AD70: 5 | AE70: 302.9 | AF70: 288.8 | AG70: 894.7 | AH70: 4529.5 | AI70: 12409.58904 | AJ70: 15436
A71: 62 | B71: ６０～６４歳 | C71: 62.3 | D71: 19.3 | E71: 162 | F71: 5 | G71: 288.7 | H71: 277.4 | I71: 721.8 | J71: 4186.2 | K71: 11469.0411 | L71: 12108 | N71: ６０～６４歳 | O71: 62.4 | P71: 21.6 | Q71: 165 | R71: 6 | S71: 340.9 | T71: 326 | U71: 910.7 | V71: 5001.5 | W71: 13702.73973 | X71: 4280 | Z71: ６０～６４歳 | AA71: 62.2 | AB71: 18.1 | AC71: 161 | AD71: 4 | AE71: 260.1 | AF71: 250.9 | AG71: 618.6 | AH71: 3739.8 | AI71: 10246.0274 | AJ71: 7828
A72: 63 | B72: ６５～６９歳 | C72: 66.9 | D72: 16.5 | E72: 163 | F72: 5 | G72: 273.1 | H72: 262.8 | I72: 441 | J72: 3718.2 | K72: 10186.84932 | L72: 3494 | N72: ６５～６９歳 | O72: 67 | P72: 16.2 | Q72: 166 | R72: 7 | S72: 303.3 | T72: 290.3 | U72: 454 | V72: 4093.6 | W72: 11215.34247 | X72: 1232 | Z72: ６５～６９歳 | AA72: 66.9 | AB72: 16.6 | AC72: 161 | AD72: 4 | AE72: 256.6 | AF72: 247.9 | AG72: 433.9 | AH72: 3513.1 | AI72: 9624.931507 | AJ72: 2262
A73: 64 | B73: ７０歳～ | C73: 73.5 | D73: 18 | E73: 164 | F73: 2 | G73: 260.3 | H73: 257 | I73: 454.3 | J73: 3577.9 | K73: 9802.465753 | L73: 1130 | N73: ７０歳～ | O73: 74.1 | P73: 11.9 | Q73: 171 | R73: 3 | S73: 234 | T73: 229.2 | U73: 224 | V73: 3032 | W73: 8306.849315 | X73: 466 | Z73: ７０歳～ | AA73: 73.1 | AB73: 22.3 | AC73: 160 | AD73: 1 | AE73: 278.8 | AF73: 276.5 | AG73: 616 | AH73: 3961.6 | AI73: 10853.69863 | AJ73: 664
A74: 65 | B74: 男女計 大学 | C74: 41.1 | D74: 11.9 | E74: 165 | F74: 11 | G74: 387.3 | H74: 359.5 | I74: 1167.4 | J74: 5815 | K74: 15931.50685 | L74: 876420 | N74: 男 大学 | O74: 43 | P74: 13.5 | Q74: 166 | R74: 12 | S74: 417.4 | T74: 386.9 | U74: 1301.6 | V74: 6310.4 | W74: 17288.76712 | X74: 630788 | Z74: 女 大学 | AA74: 36.2 | AB74: 7.8 | AC74: 162 | AD74: 9 | AE74: 310 | AF74: 288.9 | AG74: 823 | AH74: 4543 | AI74: 12446.57534 | AJ74: 245633
A75: 66 | B75: ～１９歳 | C75: - | D75: - | E75: - | F75: - | G75: - | H75: - | I75: - | L75: - | N75: ～１９歳 | O75: - | P75: - | Q75: - | R75: - | S75: - | T75: - | U75: - | X75: - | Z75: ～１９歳 | AA75: - | AB75: - | AC75: - | AD75: - | AE75: - | AF75: - | AG75: - | AJ75: -
A76: 67 | B76: ２０～２４歳 | C76: 23.6 | D76: 1.3 | E76: 165 | F76: 10 | G76: 249.6 | H76: 229.4 | I76: 341.5 | J76: 3336.7 | K76: 9141.643836 | L76: 73346 | N76: ２０～２４歳 | O76: 23.7 | P76: 1.3 | Q76: 166 | R76: 12 | S76: 254.4 | T76: 231.1 | U76: 346.5 | V76: 3399.3 | W76: 9313.150685 | X76: 37687 | Z76: ２０～２４歳 | AA76: 23.6 | AB76: 1.3 | AC76: 164 | AD76: 8 | AE76: 244.5 | AF76: 227.5 | AG76: 336.3 | AH76: 3270.3 | AI76: 8959.726027 | AJ76: 35659
A77: 68 | B77: ２５～２９歳 | C77: 27.4 | D77: 3.8 | E77: 165 | F77: 15 | G77: 294.2 | H77: 260.7 | I77: 774.8 | J77: 4305.2 | K77: 11795.06849 | L77: 137077 | N77: ２５～２９歳 | O77: 27.5 | P77: 3.9 | Q77: 166 | R77: 18 | S77: 306.5 | T77: 267 | U77: 798.5 | V77: 4476.5 | W77: 12264.38356 | X77: 78110 | Z77: ２５～２９歳 | AA77: 27.4 | AB77: 3.8 | AC77: 163 | AD77: 11 | AE77: 277.8 | AF77: 252.3 | AG77: 743.3 | AH77: 4076.9 | AI77: 11169.58904 | AJ77: 58967
A78: 69 | B78: ３０～３４歳 | C78: 32.5 | D78: 6.7 | E78: 164 | F78: 14 | G78: 336.3 | H78: 301.2 | I78: 931 | J78: 4966.6 | K78: 13607.12329 | L78: 113332 | N78: ３０～３４歳 | O78: 32.5 | P78: 6.8 | Q78: 166 | R78: 16 | S78: 355.5 | T78: 314.1 | U78: 1008.1 | V78: 5274.1 | W78: 14449.58904 | X78: 75444 | Z78: ３０～３４歳 | AA78: 32.4 | AB78: 6.4 | AC78: 162 | AD78: 9 | AE78: 298.2 | AF78: 275.5 | AG78: 777.6 | AH78: 4356 | AI78: 11934.24658 | AJ78: 37888
A79: 70 | B79: ３５～３９歳 | C79: 37.5 | D79: 10 | E79: 164 | F79: 14 | G79: 382.7 | H79: 346 | I79: 1175.4 | J79: 5767.8 | K79: 15802.19178 | L79: 109150 | N79: ３５～３９歳 | O79: 37.5 | P79: 10.3 | Q79: 166 | R79: 16 | S79: 407.8 | T79: 364.8 | U79: 1274.8 | V79: 6168.4 | W79: 16899.72603 | X79: 78398 | Z79: ３５～３９歳 | AA79: 37.4 | AB79: 9.4 | AC79: 160 | AD79: 8 | AE79: 318.6 | AF79: 298.2 | AG79: 922.2 | AH79: 4745.4 | AI79: 13001.09589 | AJ79: 30753
A80: 71 | B80: ４０～４４歳 | C80: 42.5 | D80: 13.1 | E80: 165 | F80: 11 | G80: 417.5 | H80: 386.1 | I80: 1351.4 | J80: 6361.4 | K80: 17428.49315 | L80: 106837 | N80: ４０～４４歳 | O80: 42.6 | P80: 13.7 | Q80: 167 | R80: 12 | S80: 442.1 | T80: 407.2 | U80: 1455.7 | V80: 6760.9 | W80: 18523.0137 | X80: 79906 | Z80: ４０～４４歳 | AA80: 42.4 | AB80: 11.3 | AC80: 161 | AD80: 8 | AE80: 344.6 | AF80: 323.3 | AG80: 1041.9 | AH80: 5177.1 | AI80: 14183.83562 | AJ80: 26931
A81: 72 | B81: ４５～４９歳 | C81: 47.5 | D81: 16.4 | E81: 166 | F81: 9 | G81: 452.9 | H81: 426.9 | I81: 1519.2 | J81: 6954 | K81: 19052.05479 | L81: 109010 | N81: ４５～４９歳 | O81: 47.5 | P81: 17.4 | Q81: 166 | R81: 9 | S81: 478.6 | T81: 451 | U81: 1641.9 | V81: 7385.1 | W81: 20233.15068 | X81: 86325 | Z81: ４５～４９歳 | AA81: 47.3 | AB81: 12.5 | AC81: 162 | AD81: 8 | AE81: 355.3 | AF81: 335.2 | AG81: 1052.1 | AH81: 5315.7 | AI81: 14563.56164 | AJ81: 22685
A82: 73 | B82: ５０～５４歳 | C82: 52.4 | D82: 20.7 | E82: 165 | F82: 7 | G82: 507.2 | H82: 484.5 | I82: 1845.3 | J82: 7931.7 | K82: 21730.68493 | L82: 92878 | N82: ５０～５４歳 | O82: 52.4 | P82: 21.8 | Q82: 165 | R82: 7 | S82: 528.6 | T82: 505.2 | U82: 1972.1 | V82: 8315.3 | W82: 22781.64384 | X82: 77136 | Z82: ５０～５４歳 | AA82: 52.3 | AB82: 15.6 | AC82: 162 | AD82: 7 | AE82: 402.8 | AF82: 383 | AG82: 1224 | AH82: 6057.6 | AI82: 16596.16438 | AJ82: 15742
A83: 74 | B83: ５５～５９歳 | C83: 57.4 | D83: 22.7 | E83: 164 | F83: 6 | G83: 503.4 | H83: 485.1 | I83: 1763.1 | J83: 7803.9 | K83: 21380.54795 | L83: 69649 | N83: ５５～５９歳 | O83: 57.4 | P83: 23.7 | Q83: 165 | R83: 6 | S83: 523.7 | T83: 505.3 | U83: 1861 | V83: 8145.4 | W83: 22316.16438 | X83: 59173 | Z83: ５５～５９歳 | AA83: 57.4 | AB83: 17.1 | AC83: 162 | AD83: 6 | AE83: 388.7 | AF83: 371.1 | AG83: 1210.4 | AH83: 5874.8 | AI83: 16095.34247 | AJ83: 10476
A84: 75 | B84: ６０～６４歳 | C84: 62.3 | D84: 20 | E84: 163 | F84: 5 | G84: 385.2 | H84: 371.8 | I84: 942.7 | J84: 5565.1 | K84: 15246.84932 | L84: 46574 | N84: ６０～６４歳 | O84: 62.3 | P84: 20.5 | Q84: 164 | R84: 6 | S84: 392.7 | T84: 379 | U84: 971.7 | V84: 5684.1 | W84: 15572.87671 | X84: 41611 | Z84: ６０～６４歳 | AA84: 62.1 | AB84: 15.9 | AC84: 160 | AD84: 4 | AE84: 322.3 | AF84: 311.6 | AG84: 699.9 | AH84: 4567.5 | AI84: 12513.69863 | AJ84: 4963
A85: 76 | B85: ６５～６９歳 | C85: 67 | D85: 16.3 | E85: 164 | F85: 4 | G85: 361.7 | H85: 352 | I85: 579.9 | J85: 4920.3 | K85: 13480.27397 | L85: 13484 | N85: ６５～６９歳 | O85: 67 | P85: 16.3 | Q85: 164 | R85: 4 | S85: 359.8 | T85: 349.8 | U85: 572.5 | V85: 4890.1 | W85: 13397.53425 | X85: 12278 | Z85: ６５～６９歳 | AA85: 67 | AB85: 16.9 | AC85: 160 | AD85: 3 | AE85: 381.7 | AF85: 374.6 | AG85: 655.2 | AH85: 5235.6 | AI85: 14344.10959 | AJ85: 1206
A86: 77 | B86: ７０歳～ | C86: 73.1 | D86: 18 | E86: 164 | F86: 3 | G86: 390.3 | H86: 383 | I86: 433.2 | J86: 5116.8 | K86: 14018.63014 | L86: 5083 | N86: ７０歳～ | O86: 73 | P86: 17.1 | Q86: 164 | R86: 3 | S86: 390.1 | T86: 382.5 | U86: 386.5 | V86: 5067.7 | W86: 13884.10959 | X86: 4720 | Z86: ７０歳～ | AA86: 74.2 | AB86: 29.4 | AC86: 162 | AD86: 1 | AE86: 393.5 | AF86: 389.9 | AG86: 1040.6 | AH86: 5762.6 | AI86: 15787.94521 | AJ86: 363
A87: 78 | B87: 大学院 | C87: 41.2 | D87: 11.3 | E87: 164 | F87: 12 | G87: 489.1 | H87: 454.1 | I87: 1806.8 | J87: 7676 | K87: 21030.13699 | L87: 100251 | N87: 大学院 | O87: 41.4 | P87: 11.9 | Q87: 165 | R87: 13 | S87: 502.9 | T87: 465.4 | U87: 1897 | V87: 7931.8 | W87: 21730.9589 | X87: 82706 | Z87: 大学院 | AA87: 40.4 | AB87: 8.6 | AC87: 163 | AD87: 8 | AE87: 424 | AF87: 400.6 | AG87: 1381.6 | AH87: 6469.6 | AI87: 17724.93151 | AJ87: 17545
A88: 79 | B88: ～１９歳 | C88: - | D88: - | E88: - | F88: - | G88: - | H88: - | I88: - | L88: - | N88: ～１９歳 | O88: - | P88: - | Q88: - | R88: - | S88: - | T88: - | U88: - | X88: - | Z88: ～１９歳 | AA88: - | AB88: - | AC88: - | AD88: - | AE88: - | AF88: - | AG88: - | AJ88: -
A89: 80 | B89: ２０～２４歳 | C89: 24.5 | D89: 0.5 | E89: 164 | F89: 5 | G89: 256.8 | H89: 245 | I89: 41.5 | J89: 3123.1 | K89: 8556.438356 | L89: 1551 | N89: ２０～２４歳 | O89: 24.5 | P89: 0.5 | Q89: 164 | R89: 6 | S89: 258.2 | T89: 245.8 | U89: 33.1 | V89: 3131.5 | W89: 8579.452055 | X89: 1120 | Z89: ２０～２４歳 | AA89: 24.5 | AB89: 0.6 | AC89: 164 | AD89: 4 | AE89: 253 | AF89: 243 | AG89: 63.2 | AH89: 3099.2 | AI89: 8490.958904 | AJ89: 431
A90: 81 | B90: ２５～２９歳 | C90: 27.5 | D90: 2.7 | E90: 164 | F90: 19 | G90: 322.6 | H90: 278.8 | I90: 908.1 | J90: 4779.3 | K90: 13093.9726 | L90: 16167 | N90: ２５～２９歳 | O90: 27.5 | P90: 2.7 | Q90: 164 | R90: 20 | S90: 327 | T90: 281 | U90: 926.4 | V90: 4850.4 | W90: 13288.76712 | X90: 12640 | Z90: ２５～２９歳 | AA90: 27.6 | AB90: 2.6 | AC90: 163 | AD90: 16 | AE90: 306.5 | AF90: 270.9 | AG90: 842.3 | AH90: 4520.3 | AI90: 12384.38356 | AJ90: 3527
A91: 82 | B91: ３０～３４歳 | C91: 32.5 | D91: 6.1 | E91: 163 | F91: 18 | G91: 394.5 | H91: 345.2 | I91: 1359.7 | J91: 6093.7 | K91: 16695.06849 | L91: 16166 | N91: ３０～３４歳 | O91: 32.5 | P91: 6.2 | Q91: 164 | R91: 20 | S91: 401.7 | T91: 348.7 | U91: 1421.7 | V91: 6242.1 | W91: 17101.64384 | X91: 13632 | Z91: ３０～３４歳 | AA91: 32.4 | AB91: 5.4 | AC91: 163 | AD91: 12 | AE91: 355.9 | AF91: 325.9 | AG91: 1026.8 | AH91: 5297.6 | AI91: 14513.9726 | AJ91: 2535
A92: 83 | B92: ３５～３９歳 | C92: 37.6 | D92: 9.5 | E92: 163 | F92: 15 | G92: 472.3 | H92: 425.3 | I92: 1730.6 | J92: 7398.2 | K92: 20269.0411 | L92: 16102 | N92: ３５～３９歳 | O92: 37.6 | P92: 9.7 | Q92: 163 | R92: 16 | S92: 482.7 | T92: 431.2 | U92: 1801.5 | V92: 7593.9 | W92: 20805.20548 | X92: 13458 | Z92: ３５～３９歳 | AA92: 37.7 | AB92: 8.4 | AC92: 161 | AD92: 8 | AE92: 419 | AF92: 395.5 | AG92: 1369.5 | AH92: 6397.5 | AI92: 17527.39726 | AJ92: 2644
A93: 84 | B93: ４０～４４歳 | C93: 42.4 | D93: 12.6 | E93: 164 | F93: 11 | G93: 529.5 | H93: 490.4 | I93: 2066.6 | J93: 8420.6 | K93: 23070.13699 | L93: 15035 | N93: ４０～４４歳 | O93: 42.4 | P93: 13 | Q93: 165 | R93: 12 | S93: 547 | T93: 503.8 | U93: 2181 | V93: 8745 | W93: 23958.90411 | X93: 12378 | Z93: ４０～４４歳 | AA93: 42.6 | AB93: 10.6 | AC93: 162 | AD93: 6 | AE93: 448 | AF93: 427.6 | AG93: 1533.7 | AH93: 6909.7 | AI93: 18930.68493 | AJ93: 2657
A94: 85 | B94: ４５～４９歳 | C94: 47.4 | D94: 15.6 | E94: 166 | F94: 7 | G94: 562.6 | H94: 538.2 | I94: 2209.3 | J94: 8960.5 | K94: 24549.31507 | L94: 13352 | N94: ４５～４９歳 | O94: 47.4 | P94: 16.5 | Q94: 166 | R94: 7 | S94: 578.1 | T94: 552.4 | U94: 2304.7 | V94: 9241.9 | W94: 25320.27397 | X94: 11088 | Z94: ４５～４９歳 | AA94: 47.5 | AB94: 11 | AC94: 164 | AD94: 5 | AE94: 486.7 | AF94: 468.8 | AG94: 1741.9 | AH94: 7582.3 | AI94: 20773.42466 | AJ94: 2264
A95: 86 | B95: ５０～５４歳 | C95: 52.4 | D95: 19.8 | E95: 167 | F95: 4 | G95: 630 | H95: 611.2 | I95: 2583.6 | J95: 10143.6 | K95: 27790.68493 | L95: 9596 | N95: ５０～５４歳 | O95: 52.4 | P95: 21 | Q95: 168 | R95: 4 | S95: 643.8 | T95: 625.7 | U95: 2719.8 | V95: 10445.4 | W95: 28617.53425 | X95: 8038 | Z95: ５０～５４歳 | AA95: 52.5 | AB95: 13.2 | AC95: 163 | AD95: 5 | AE95: 559 | AF95: 536.4 | AG95: 1881 | AH95: 8589 | AI95: 23531.50685 | AJ95: 1558
A96: 87 | B96: ５５～５９歳 | C96: 57.4 | D96: 22.3 | E96: 165 | F96: 3 | G96: 669.7 | H96: 657.1 | I96: 2985.3 | J96: 11021.7 | K96: 30196.43836 | L96: 6723 | N96: ５５～５９歳 | O96: 57.4 | P96: 23.4 | Q96: 165 | R96: 3 | S96: 690.3 | T96: 676.7 | U96: 3125.7 | V96: 11409.3 | W96: 31258.35616 | X96: 5695 | Z96: ５５～５９歳 | AA96: 57.3 | AB96: 16.3 | AC96: 166 | AD96: 2 | AE96: 555.9 | AF96: 548.7 | AG96: 2207.4 | AH96: 8878.2 | AI96: 24323.83562 | AJ96: 1028
A97: 88 | B97: ６０～６４歳 | C97: 62.3 | D97: 19.4 | E97: 164 | F97: 3 | G97: 617.2 | H97: 606.9 | I97: 2176.3 | J97: 9582.7 | K97: 26253.9726 | L97: 3922 | N97: ６０～６４歳 | O97: 62.3 | P97: 20.1 | Q97: 164 | R97: 3 | S97: 632.5 | T97: 620.8 | U97: 2191.1 | V97: 9781.1 | W97: 26797.53425 | X97: 3226 | Z97: ６０～６４歳 | AA97: 62.2 | AB97: 16.3 | AC97: 166 | AD97: 1 | AE97: 546.6 | AF97: 542.2 | AG97: 2107.5 | AH97: 8666.7 | AI97: 23744.38356 | AJ97: 696
A98: 89 | B98: ６５～６９歳 | C98: 67.1 | D98: 16.2 | E98: 164 | F98: 3 | G98: 619.3 | H98: 611.5 | I98: 1646.2 | J98: 9077.8 | K98: 24870.68493 | L98: 1413 | N98: ６５～６９歳 | O98: 67.2 | P98: 15.7 | Q98: 164 | R98: 3 | S98: 620.1 | T98: 611.8 | U98: 1642.1 | V98: 9083.3 | W98: 24885.75342 | X98: 1223 | Z98: ６５～６９歳 | AA98: 66.8 | AB98: 19.8 | AC98: 162 | AD98: 2 | AE98: 613.8 | AF98: 609.6 | AG98: 1672.2 | AH98: 9037.8 | AI98: 24761.09589 | AJ98: 190
A99: 90 | B99: ７０歳～ | C99: 73.3 | D99: 14.7 | E99: 161 | F99: 1 | G99: 546.7 | H99: 543.6 | I99: 1114 | J99: 7674.4 | K99: 21025.75342 | L99: 224 | N99: ７０歳～ | O99: 73.3 | P99: 15 | Q99: 161 | R99: 2 | S99: 552.6 | T99: 549.2 | U99: 1122.8 | V99: 7754 | W99: 21243.83562 | X99: 210 | Z99: ７０歳～ | AA99: 73.6 | AB99: 10.7 | AC99: 169 | AD99: 0 | AE99: 460.7 | AF99: 460.7 | AG99: 983.2 | AH99: 6511.6 | AI99: 17840 | AJ99: 14
A100: 91 | B100: 不明 | C100: 45.4 | D100: 9 | E100: 164 | F100: 12 | G100: 275.8 | H100: 252.7 | I100: 399.3 | J100: 3708.9 | K100: 10161.36986 | L100: 179720 | N100: 不明 | O100: 46 | P100: 10.2 | Q100: 167 | R100: 15 | S100: 314.8 | T100: 284.3 | U100: 528.9 | V100: 4306.5 | W100: 11798.63014 | X100: 96478 | Z100: 不明 | AA100: 44.7 | AB100: 7.7 | AC100: 160 | AD100: 8 | AE100: 230.6 | AF100: 216.1 | AG100: 249 | AH100: 3016.2 | AI100: 8263.561644 | AJ100: 83242
A101: 92 | B101: ～１９歳 | C101: 19.2 | D101: 1.1 | E101: 165 | F101: 9 | G101: 195 | H101: 182.7 | I101: 56.8 | J101: 2396.8 | K101: 6566.575342 | L101: 909 | N101: ～１９歳 | O101: 19.2 | P101: 1.3 | Q101: 164 | R101: 8 | S101: 189.2 | T101: 176.9 | U101: 74.9 | V101: 2345.3 | W101: 6425.479452 | X101: 390 | Z101: ～１９歳 | AA101: 19.1 | AB101: 0.9 | AC101: 166 | AD101: 9 | AE101: 199.4 | AF101: 187 | AG101: 43.1 | AH101: 2435.9 | AI101: 6673.69863 | AJ101: 519
A102: 93 | B102: ２０～２４歳 | C102: 23.1 | D102: 1.9 | E102: 165 | F102: 14 | G102: 220.3 | H102: 197.1 | I102: 136.5 | J102: 2780.1 | K102: 7616.712329 | L102: 11657 | N102: ２０～２４歳 | O102: 23.1 | P102: 2 | Q102: 166 | R102: 15 | S102: 230.4 | T102: 203.9 | U102: 176.3 | V102: 2941.1 | W102: 8057.808219 | X102: 5712 | Z102: ２０～２４歳 | AA102: 23 | AB102: 1.8 | AC102: 163 | AD102: 13 | AE102: 210.6 | AF102: 190.5 | AG102: 98.3 | AH102: 2625.5 | AI102: 7193.150685 | AJ102: 5945
A103: 94 | B103: ２５～２９歳 | C103: 27.5 | D103: 3.1 | E103: 165 | F103: 13 | G103: 246.7 | H103: 222.5 | I103: 238.7 | J103: 3199.1 | K103: 8764.657534 | L103: 17475 | N103: ２５～２９歳 | O103: 27.5 | P103: 3.3 | Q103: 166 | R103: 16 | S103: 261.1 | T103: 230.3 | U103: 298.6 | V103: 3431.8 | W103: 9402.191781 | X103: 8654 | Z103: ２５～２９歳 | AA103: 27.4 | AB103: 2.9 | AC103: 164 | AD103: 10 | AE103: 232.5 | AF103: 214.9 | AG103: 180 | AH103: 2970 | AI103: 8136.986301 | AJ103: 8821
A104: 95 | B104: ３０～３４歳 | C104: 32.5 | D104: 4.9 | E104: 164 | F104: 12 | G104: 267.1 | H104: 243 | I104: 333 | J104: 3538.2 | K104: 9693.69863 | L104: 16652 | N104: ３０～３４歳 | O104: 32.5 | P104: 5.3 | Q104: 166 | R104: 15 | S104: 290.5 | T104: 259.6 | U104: 423.4 | V104: 3909.4 | W104: 10710.68493 | X104: 8985 | Z104: ３０～３４歳 | AA104: 32.4 | AB104: 4.6 | AC104: 161 | AD104: 9 | AE104: 239.8 | AF104: 223.5 | AG104: 227.1 | AH104: 3104.7 | AI104: 8506.027397 | AJ104: 7666
A105: 96 | B105: ３５～３９歳 | C105: 37.5 | D105: 6.7 | E105: 163 | F105: 13 | G105: 282.9 | H105: 255.2 | I105: 424.6 | J105: 3819.4 | K105: 10464.10959 | L105: 17264 | N105: ３５～３９歳 | O105: 37.4 | P105: 7.1 | Q105: 166 | R105: 18 | S105: 314.6 | T105: 277.8 | U105: 543.4 | V105: 4318.6 | W105: 11831.78082 | X105: 9536 | Z105: ３５～３９歳 | AA105: 37.6 | AB105: 6.2 | AC105: 159 | AD105: 8 | AE105: 243.9 | AF105: 227.3 | AG105: 278 | AH105: 3204.8 | AI105: 8780.273973 | AJ105: 7729
A106: 97 | B106: ４０～４４歳 | C106: 42.6 | D106: 9.1 | E106: 163 | F106: 12 | G106: 300.3 | H106: 274.7 | I106: 531 | J106: 4134.6 | K106: 11327.67123 | L106: 19105 | N106: ４０～４４歳 | O106: 42.7 | P106: 10.1 | Q106: 166 | R106: 16 | S106: 343.2 | T106: 308.7 | U106: 693.6 | V106: 4812 | W106: 13183.56164 | X106: 10720 | Z106: ４０～４４歳 | AA106: 42.5 | AB106: 7.9 | AC106: 159 | AD106: 7 | AE106: 245.6 | AF106: 231.3 | AG106: 323.1 | AH106: 3270.3 | AI106: 8959.726027 | AJ106: 8385
A107: 98 | B107: ４５～４９歳 | C107: 47.5 | D107: 10.4 | E107: 164 | F107: 13 | G107: 304.5 | H107: 277.8 | I107: 533.8 | J107: 4187.8 | K107: 11473.42466 | L107: 25705 | N107: ４５～４９歳 | O107: 47.5 | P107: 12.4 | Q107: 169 | R107: 17 | S107: 361.8 | T107: 325.1 | U107: 724.2 | V107: 5065.8 | W107: 13878.90411 | X107: 13544 | Z107: ４５～４９歳 | AA107: 47.4 | AB107: 8.1 | AC107: 159 | AD107: 8 | AE107: 240.7 | AF107: 225.1 | AG107: 321.8 | AH107: 3210.2 | AI107: 8795.068493 | AJ107: 12161
A108: 99 | B108: ５０～５４歳 | C108: 52.4 | D108: 11.8 | E108: 164 | F108: 12 | G108: 300.2 | H108: 275.7 | I108: 519.5 | J108: 4121.9 | K108: 11292.87671 | L108: 23573 | N108: ５０～５４歳 | O108: 52.3 | P108: 14.3 | Q108: 169 | R108: 17 | S108: 361 | T108: 326.2 | U108: 726 | V108: 5058 | W108: 13857.53425 | X108: 12029 | Z108: ５０～５４歳 | AA108: 52.4 | AB108: 9.2 | AC108: 159 | AD108: 7 | AE108: 236.8 | AF108: 223.2 | AG108: 304.3 | AH108: 3145.9 | AI108: 8618.90411 | AJ108: 11544
A109: 100 | B109: ５５～５９歳 | C109: 57.4 | D109: 12.7 | E109: 164 | F109: 11 | G109: 294.4 | H109: 272.8 | I109: 505 | J109: 4037.8 | K109: 11062.46575 | L109: 20000 | N109: ５５～５９歳 | O109: 57.4 | P109: 14.7 | Q109: 168 | R109: 15 | S109: 358.5 | T109: 327.2 | U109: 725.4 | V109: 5027.4 | W109: 13773.69863 | X109: 10227 | Z109: ５５～５９歳 | AA109: 57.3 | AB109: 10.6 | AC109: 160 | AD109: 6 | AE109: 227.3 | AF109: 215.9 | AG109: 274.2 | AH109: 3001.8 | AI109: 8224.109589 | AJ109: 9773
A110: 101 | B110: ６０～６４歳 | C110: 62.3 | D110: 13 | E110: 162 | F110: 8 | G110: 257.5 | H110: 241.2 | I110: 326 | J110: 3416 | K110: 9358.90411 | L110: 14686 | N110: ６０～６４歳 | O110: 62.4 | P110: 13.1 | Q110: 166 | R110: 10 | S110: 293.9 | T110: 273.2 | U110: 419.6 | V110: 3946.4 | W110: 10812.05479 | X110: 8551 | Z110: ６０～６４歳 | AA110: 62.2 | AB110: 12.9 | AC110: 157 | AD110: 6 | AE110: 206.8 | AF110: 196.5 | AG110: 195.5 | AH110: 2677.1 | AI110: 7334.520548 | AJ110: 6135
A111: 102 | B111: ６５～６９歳 | C111: 67.2 | D111: 14.2 | E111: 162 | F111: 7 | G111: 234.7 | H111: 221.4 | I111: 181.8 | J111: 2998.2 | K111: 8214.246575 | L111: 8438 | N111: ６５～６９歳 | O111: 67.2 | P111: 13.7 | Q111: 165 | R111: 8 | S111: 256.6 | T111: 240.5 | U111: 202.7 | V111: 3281.9 | W111: 8991.506849 | X111: 5518 | Z111: ６５～６９歳 | AA111: 67.3 | AB111: 15.1 | AC111: 156 | AD111: 5 | AE111: 193.3 | AF111: 185.3 | AG111: 142.4 | AH111: 2462 | AI111: 6745.205479 | AJ111: 2920
A112: 103 | B112: ７０歳～ | C112: 73.3 | D112: 15 | E112: 159 | F112: 4 | G112: 209.7 | H112: 202.2 | I112: 125.2 | J112: 2641.6 | K112: 7237.260274 | L112: 4256 | N112: ７０歳～ | O112: 73.2 | P112: 15.1 | Q112: 163 | R112: 5 | S112: 229.1 | T112: 220.1 | U112: 123.1 | V112: 2872.3 | W112: 7869.315068 | X112: 2611 | Z112: ７０歳～ | AA112: 73.5 | AB112: 14.8 | AC112: 153 | AD112: 4 | AE112: 178.9 | AF112: 174 | AG112: 128.4 | AH112: 2275.2 | AI112: 6233.424658 | AJ112: 1645

Sheet 賃セＲ２ (hidden)
A1: 令和２年賃金構造基本統計調査
A2: 第１表 年齢階級別きまって支給する現金給与額、所定内給与額及び年間賞与その他特別給与額
A3: 産業 | C3: 産業計
A5: 区 分 | C5: 企業規模計（10人以上） | M5: 区 分 | O5: 企業規模計（10人以上） | Y5: 区 分 | AA5: 企業規模計（10人以上）
C6: 年齢 | D6: 勤続 年数 | E6: 所定内 実労働 時間数 | F6: 超過 実労働 時間数 | G6: きまって 支給す る現金 給与額 | I6: 年間賞与その他特別給与額 | J6: 年額計 | K6: 日額 | L6: 労働者数 | O6: 年齢 | P6: 勤続 年数 | Q6: 所定内 実労働 時間数 | R6: 超過 実労働 時間数 | S6: きまって 支給す る現金 給与額 | U6: 年間賞与その他特別給与額 | V6: 年額計 | W6: 日額 | X6: 労働者数 | AA6: 年齢 | AB6: 勤続 年数 | AC6: 所定内 実労働 時間数 | AD6: 超過 実労働 時間数 | AE6: きまって 支給す る現金 給与額 | AG6: 年間賞与その他特別給与額 | AH6: 年額計 | AI6: 日額 | AJ6: 労働者数
H7: 所定内 給与額 | K7: ÷365 | T7: 所定内 給与額 | W7: ÷365 | AF7: 所定内 給与額 | AI7: ÷365
C8: 歳 | D8: 年 | E8: 時間 | F8: 時間 | G8: 千円 | H8: 千円 | I8: 千円 | L8: 十人
A9: 0 | B9: 男女計 学歴計 | C9: 43.2 | D9: 11.9 | E9: 165 | F9: 10 | G9: 330.6 | H9: 307.7 | I9: 905.7 | J9: =G9*12+I9 -> 4872.9 | K9: =J9/365*1000 -> 13350.41096 | L9: 2765005 | N9: 男 学歴計 | O9: 43.8 | P9: 13.4 | Q9: 166 | R9: 12 | S9: 366.6 | T9: 338.8 | U9: 1060.3 | V9: =S9*12+U9 -> 5459.5 | W9: =V9/365*1000 -> 14957.53425 | X9: 1775633 | Z9: 女 学歴計 | AA9: 42 | AB9: 9.3 | AC9: 162 | AD9: 6 | AE9: 265.9 | AF9: 251.9 | AG9: 628.4 | AH9: =AE9*12+AG9 -> 3819.2 | AI9: =AH9/365*1000 -> 10463.56164 | AJ9: 989373
A10: 1 | B10: ～１９歳 | C10: 19.1 | D10: 0.9 | E10: 165 | F10: 7 | G10: 191.6 | H10: 179.6 | I10: 128.1 | J10: 2427.3 | K10: 6650.136986 | L10: 25121 | N10: ～１９歳 | O10: 19 | P10: 0.9 | Q10: 165 | R10: 8 | S10: 197 | T10: 183.2 | U10: 141.5 | V10: 2505.5 | W10: 6864.383562 | X10: 15620 | Z10: ～１９歳 | AA10: 19.1 | AB10: 0.9 | AC10: 166 | AD10: 6 | AE10: 182.6 | AF10: 173.7 | AG10: 106.1 | AH10: 2297.3 | AI10: 6293.972603 | AJ10: 9501
A11: 2 | B11: ２０～２４歳 | C11: 23 | D11: 2.1 | E11: 165 | F11: 9 | G11: 230.1 | H11: 212.1 | I11: 378.3 | J11: 3139.5 | K11: 8601.369863 | L11: 210264 | N11: ２０～２４歳 | O11: 23 | P11: 2.2 | Q11: 166 | R11: 12 | S11: 237.1 | T11: 214.6 | U11: 411.5 | V11: 3256.7 | W11: 8922.465753 | X11: 109795 | Z11: ２０～２４歳 | AA11: 23 | AB11: 1.9 | AC11: 165 | AD11: 7 | AE11: 222.4 | AF11: 209.4 | AG11: 342.1 | AH11: 3010.9 | AI11: 8249.041096 | AJ11: 100469
A12: 3 | B12: ２５～２９歳 | C12: 27.5 | D12: 4.1 | E12: 165 | F12: 11 | G12: 269.2 | H12: 244.6 | I12: 665 | J12: 3895.4 | K12: 10672.32877 | L12: 300805 | N12: ２５～２９歳 | O12: 27.5 | P12: 4.3 | Q12: 166 | R12: 14 | S12: 282.3 | T12: 252.6 | U12: 716.1 | V12: 4103.7 | W12: 11243.0137 | X12: 176463 | Z12: ２５～２９歳 | AA12: 27.4 | AB12: 3.9 | AC12: 163 | AD12: 8 | AE12: 250.5 | AF12: 233.4 | AG12: 592.7 | AH12: 3598.7 | AI12: 9859.452055 | AJ12: 124342
A13: 4 | B13: ３０～３４歳 | C13: 32.5 | D13: 6.8 | E13: 165 | F13: 12 | G13: 301.6 | H13: 274.4 | I13: 795 | J13: 4414.2 | K13: 12093.69863 | L13: 286143 | N13: ３０～３４歳 | O13: 32.5 | P13: 7.1 | Q13: 166 | R13: 14 | S13: 322.3 | T13: 289.2 | U13: 888.7 | V13: 4756.3 | W13: 13030.9589 | X13: 186082 | Z13: ３０～３４歳 | AA13: 32.5 | AB13: 6.3 | AC13: 162 | AD13: 7 | AE13: 263.1 | AF13: 246.8 | AG13: 620.8 | AH13: 3778 | AI13: 10350.68493 | AJ13: 100061
A14: 5 | B14: ３５～３９歳 | C14: 37.5 | D14: 9.5 | E14: 165 | F14: 11 | G14: 333.3 | H14: 305.2 | I14: 935.4 | J14: 4935 | K14: 13520.54795 | L14: 303760 | N14: ３５～３９歳 | O14: 37.5 | P14: 10 | Q14: 166 | R14: 14 | S14: 362.8 | T14: 328.3 | U14: 1057.7 | V14: 5411.3 | W14: 14825.47945 | X14: 203177 | Z14: ３５～３９歳 | AA14: 37.5 | AB14: 8.4 | AC14: 161 | AD14: 6 | AE14: 273.8 | AF14: 258.5 | AG14: 688.3 | AH14: 3973.9 | AI14: 10887.39726 | AJ14: 100583
A15: 6 | B15: ４０～４４歳 | C15: 42.6 | D15: 12.1 | E15: 165 | F15: 10 | G15: 355.8 | H15: 329.8 | I15: 1036.6 | J15: 5306.2 | K15: 14537.53425 | L15: 353141 | N15: ４０～４４歳 | O15: 42.6 | P15: 13.2 | Q15: 167 | R15: 13 | S15: 392.5 | T15: 360.7 | U15: 1193.3 | V15: 5903.3 | W15: 16173.42466 | X15: 235073 | Z15: ４０～４４歳 | AA15: 42.6 | AB15: 10 | AC15: 162 | AD15: 6 | AE15: 282.7 | AF15: 268.3 | AG15: 724.6 | AH15: 4117 | AI15: 11279.45205 | AJ15: 118068
A16: 7 | B16: ４５～４９歳 | C16: 47.5 | D16: 15.1 | E16: 165 | F16: 10 | G16: 372.8 | H16: 347.4 | I16: 1133 | J16: 5606.6 | K16: 15360.54795 | L16: 403473 | N16: ４５～４９歳 | O16: 47.5 | P16: 16.9 | Q16: 167 | R16: 12 | S16: 418.9 | T16: 387.9 | U16: 1331.1 | V16: 6357.9 | W16: 17418.90411 | X16: 263484 | Z16: ４５～４９歳 | AA16: 47.5 | AB16: 11.6 | AC16: 162 | AD16: 6 | AE16: 286 | AF16: 271.1 | AG16: 760.2 | AH16: 4192.2 | AI16: 11485.47945 | AJ16: 139989
A17: 8 | B17: ５０～５４歳 | C17: 52.4 | D17: 17.5 | E17: 165 | F17: 9 | G17: 390.5 | H17: 368 | I17: 1218.4 | J17: 5904.4 | K17: 16176.43836 | L17: 340309 | N17: ５０～５４歳 | O17: 52.4 | P17: 20 | Q17: 167 | R17: 10 | S17: 446.6 | T17: 419.6 | U17: 1480.4 | V17: 6839.6 | W17: 18738.63014 | X17: 219248 | Z17: ５０～５４歳 | AA17: 52.4 | AB17: 12.8 | AC17: 162 | AD17: 6 | AE17: 288.9 | AF17: 274.7 | AG17: 744 | AH17: 4210.8 | AI17: 11536.43836 | AJ17: 121061
A18: 9 | B18: ５５～５９歳 | C18: 57.4 | D18: 19.7 | E18: 165 | F18: 7 | G18: 387.7 | H18: 368.6 | I18: 1190.2 | J18: 5842.6 | K18: 16007.12329 | L18: 273041 | N18: ５５～５９歳 | O18: 57.4 | P18: 22.4 | Q18: 166 | R18: 9 | S18: 443 | T18: 420.1 | U18: 1445.7 | V18: 6761.7 | W18: 18525.20548 | X18: 178633 | Z18: ５５～５９歳 | AA18: 57.4 | AB18: 14.7 | AC18: 162 | AD18: 5 | AE18: 283.1 | AF18: 271.1 | AG18: 706.7 | AH18: 4103.9 | AI18: 11243.56164 | AJ18: 94408
A19: 10 | B19: ６０～６４歳 | C19: 62.3 | D19: 18.2 | E19: 164 | F19: 6 | G19: 302.6 | H19: 289.3 | I19: 670.5 | J19: 4301.7 | K19: 11785.47945 | L19: 170067 | N19: ６０～６４歳 | O19: 62.3 | P19: 19.5 | Q19: 166 | R19: 7 | S19: 329.8 | T19: 314.3 | U19: 761.6 | V19: 4719.2 | W19: 12929.31507 | X19: 118324 | Z19: ６０～６４歳 | AA19: 62.2 | AB19: 15.3 | AC19: 161 | AD19: 4 | AE19: 240.3 | AF19: 232 | AG19: 462.1 | AH19: 3345.7 | AI19: 9166.30137 | AJ19: 51743
A20: 11 | B20: ６５～６９歳 | C20: 67.2 | D20: 16.1 | E20: 164 | F20: 5 | G20: 267.8 | H20: 257.4 | I20: 363.4 | J20: 3577 | K20: 9800 | L20: 67540 | N20: ６５～６９歳 | O20: 67.2 | P20: 16 | Q20: 166 | R20: 6 | S20: 287.1 | T20: 275 | U20: 394.6 | V20: 3839.8 | W20: 10520 | X20: 47529 | Z20: ６５～６９歳 | AA20: 67.2 | AB20: 16.1 | AC20: 160 | AD20: 3 | AE20: 222 | AF20: 215.5 | AG20: 289.4 | AH20: 2953.4 | AI20: 8091.506849 | AJ20: 20012
A21: 12 | B21: ７０歳～ | C21: 73 | D21: 17.3 | E21: 164 | F21: 4 | G21: 255.6 | H21: 247.9 | I21: 272.7 | J21: 3339.9 | K21: 9150.410959 | L21: 31341 | N21: ７０歳～ | O21: 73 | P21: 16.7 | Q21: 166 | R21: 5 | S21: 269.4 | T21: 260.5 | U21: 258.8 | V21: 3491.6 | W21: 9566.027397 | X21: 22205 | Z21: ７０歳～ | AA21: 73.1 | AB21: 18.8 | AC21: 160 | AD21: 3 | AE21: 222.1 | AF21: 217.3 | AG21: 306.3 | AH21: 2971.5 | AI21: 8141.09589 | AJ21: 9136
A22: 13 | B22: 中学 | C22: 49.4 | D22: 13.4 | E22: 168 | F22: 13 | G22: 282.7 | H22: 257.2 | I22: 450.4 | J22: 3842.8 | K22: 10528.21918 | L22: 69516 | N22: 中学 | O22: 49.6 | P22: 14.2 | Q22: 171 | R22: 14 | S22: 304 | T22: 274.5 | U22: 494 | V22: 4142 | W22: 11347.94521 | X22: 54274 | Z22: 中学 | AA22: 48.8 | AB22: 10.4 | AC22: 161 | AD22: 6 | AE22: 206.9 | AF22: 195.7 | AG22: 295.4 | AH22: 2778.2 | AI22: 7611.506849 | AJ22: 15243
A23: 14 | B23: ～１９歳 | C23: 18.5 | D23: 1.4 | E23: 166 | F23: 7 | G23: 214.8 | H23: 205.4 | I23: 68 | J23: 2645.6 | K23: 7248.219178 | L23: 786 | N23: ～１９歳 | O23: 18.5 | P23: 1.4 | Q23: 166 | R23: 6 | S23: 225.7 | T23: 217.1 | U23: 67.3 | V23: 2775.7 | W23: 7604.657534 | X23: 575 | Z23: ～１９歳 | AA23: 18.7 | AB23: 1.5 | AC23: 167 | AD23: 8 | AE23: 185 | AF23: 173.8 | AG23: 69.8 | AH23: 2289.8 | AI23: 6273.424658 | AJ23: 212
A24: 15 | B24: ２０～２４歳 | C24: 22.7 | D24: 2.6 | E24: 165 | F24: 13 | G24: 224.8 | H24: 204.3 | I24: 164.4 | J24: 2862 | K24: 7841.09589 | L24: 2377 | N24: ２０～２４歳 | O24: 22.7 | P24: 2.6 | Q24: 171 | R24: 18 | S24: 248.9 | T24: 220.9 | U24: 203.6 | V24: 3190.4 | W24: 8740.821918 | X24: 1558 | Z24: ２０～２４歳 | AA24: 22.6 | AB24: 2.7 | AC24: 153 | AD24: 4 | AE24: 179 | AF24: 172.7 | AG24: 90 | AH24: 2238 | AI24: 6131.506849 | AJ24: 820
A25: 16 | B25: ２５～２９歳 | C25: 27.5 | D25: 4.3 | E25: 169 | F25: 14 | G25: 250.1 | H25: 225.8 | I25: 332.4 | J25: 3333.6 | K25: 9133.150685 | L25: 3946 | N25: ２５～２９歳 | O25: 27.5 | P25: 4.6 | Q25: 173 | R25: 16 | S25: 269.1 | T25: 240.3 | U25: 367.9 | V25: 3597.1 | W25: 9855.068493 | X25: 2894 | Z25: ２５～２９歳 | AA25: 27.6 | AB25: 3.6 | AC25: 158 | AD25: 8 | AE25: 197.7 | AF25: 185.8 | AG25: 234.8 | AH25: 2607.2 | AI25: 7143.013699 | AJ25: 1052
A26: 17 | B26: ３０～３４歳 | C26: 32.5 | D26: 5.7 | E26: 167 | F26: 15 | G26: 270.1 | H26: 240.9 | I26: 397.8 | J26: 3639 | K26: 9969.863014 | L26: 4966 | N26: ３０～３４歳 | O26: 32.5 | P26: 6.1 | Q26: 169 | R26: 17 | S26: 287.9 | T26: 252.1 | U26: 447.9 | V26: 3902.7 | W26: 10692.32877 | X26: 3675 | Z26: ３０～３４歳 | AA26: 32.6 | AB26: 4.5 | AC26: 160 | AD26: 7 | AE26: 219.7 | AF26: 208.7 | AG26: 255.3 | AH26: 2891.7 | AI26: 7922.465753 | AJ26: 1291
A27: 18 | B27: ３５～３９歳 | C27: 37.5 | D27: 8 | E27: 169 | F27: 15 | G27: 297.3 | H27: 265.7 | I27: 475.8 | J27: 4043.4 | K27: 11077.80822 | L27: 7085 | N27: ３５～３９歳 | O27: 37.5 | P27: 8.6 | Q27: 170 | R27: 17 | S27: 319 | T27: 282.8 | U27: 534.7 | V27: 4362.7 | W27: 11952.60274 | X27: 5501 | Z27: ３５～３９歳 | AA27: 37.4 | AB27: 6 | AC27: 163 | AD27: 8 | AE27: 222 | AF27: 206.3 | AG27: 271.2 | AH27: 2935.2 | AI27: 8041.643836 | AJ27: 1584
A28: 19 | B28: ４０～４４歳 | C28: 42.7 | D28: 10.7 | E28: 171 | F28: 14 | G28: 313.7 | H28: 285.2 | I28: 548 | J28: 4312.4 | K28: 11814.79452 | L28: 6782 | N28: ４０～４４歳 | O28: 42.7 | P28: 11.5 | Q28: 172 | R28: 16 | S28: 333.4 | T28: 302.2 | U28: 605 | V28: 4605.8 | W28: 12618.63014 | X28: 5598 | Z28: ４０～４４歳 | AA28: 43 | AB28: 7.1 | AC28: 163 | AD28: 9 | AE28: 220.3 | AF28: 204.8 | AG28: 278.6 | AH28: 2922.2 | AI28: 8006.027397 | AJ28: 1184
A29: 20 | B29: ４５～４９歳 | C29: 47.5 | D29: 12.9 | E29: 170 | F29: 16 | G29: 322.5 | H29: 287 | I29: 569.7 | J29: 4439.7 | K29: 12163.56164 | L29: 9995 | N29: ４５～４９歳 | O29: 47.5 | P29: 13.8 | Q29: 171 | R29: 18 | S29: 343.2 | T29: 302.9 | U29: 612.2 | V29: 4730.6 | W29: 12960.54795 | X29: 8109 | Z29: ４５～４９歳 | AA29: 47.5 | AB29: 8.9 | AC29: 162 | AD29: 8 | AE29: 233.5 | AF29: 219 | AG29: 386.7 | AH29: 3188.7 | AI29: 8736.164384 | AJ29: 1886
A30: 21 | B30: ５０～５４歳 | C30: 52.3 | D30: 15.2 | E30: 169 | F30: 14 | G30: 319 | H30: 287.3 | I30: 595.5 | J30: 4423.5 | K30: 12119.17808 | L30: 8348 | N30: ５０～５４歳 | O30: 52.3 | P30: 16.3 | Q30: 171 | R30: 16 | S30: 342 | T30: 306.1 | U30: 641.8 | V30: 4745.8 | W30: 13002.19178 | X30: 6748 | Z30: ５０～５４歳 | AA30: 52.4 | AB30: 10.8 | AC30: 160 | AD30: 7 | AE30: 222 | AF30: 207.9 | AG30: 400.4 | AH30: 3064.4 | AI30: 8395.616438 | AJ30: 1600
A31: 22 | B31: ５５～５９歳 | C31: 57.5 | D31: 18.3 | E31: 169 | F31: 13 | G31: 307.5 | H31: 281.5 | I31: 618.6 | J31: 4308.6 | K31: 11804.38356 | L31: 6501 | N31: ５５～５９歳 | O31: 57.5 | P31: 19.1 | Q31: 172 | R31: 14 | S31: 329.3 | T31: 299.7 | U31: 645.2 | V31: 4596.8 | W31: 12593.9726 | X31: 5160 | Z31: ５５～５９歳 | AA31: 57.6 | AB31: 15.1 | AC31: 160 | AD31: 6 | AE31: 223.4 | AF31: 211.3 | AG31: 516.4 | AH31: 3197.2 | AI31: 8759.452055 | AJ31: 1340
A32: 23 | B32: ６０～６４歳 | C32: 62.5 | D32: 20.7 | E32: 167 | F32: 10 | G32: 261.8 | H32: 242.6 | I32: 405.7 | J32: 3547.3 | K32: 9718.630137 | L32: 7529 | N32: ６０～６４歳 | O32: 62.6 | P32: 22.1 | Q32: 170 | R32: 11 | S32: 280 | T32: 258 | U32: 439.5 | V32: 3799.5 | W32: 10409.58904 | X32: 6005 | Z32: ６０～６４歳 | AA32: 62.5 | AB32: 14.9 | AC32: 157 | AD32: 4 | AE32: 190.3 | AF32: 182 | AG32: 272.7 | AH32: 2556.3 | AI32: 7003.561644 | AJ32: 1524
A33: 24 | B33: ６５～６９歳 | C33: 67.4 | D33: 19.3 | E33: 168 | F33: 8 | G33: 234.6 | H33: 221.2 | I33: 247.5 | J33: 3062.7 | K33: 8390.958904 | L33: 6087 | N33: ６５～６９歳 | O33: 67.4 | P33: 19.6 | Q33: 170 | R33: 8 | S33: 249.6 | T33: 234.3 | U33: 267 | V33: 3262.2 | W33: 8937.534247 | X33: 4747 | Z33: ６５～６９歳 | AA33: 67.4 | AB33: 17.9 | AC33: 163 | AD33: 4 | AE33: 181.6 | AF33: 174.9 | AG33: 178.3 | AH33: 2357.5 | AI33: 6458.90411 | AJ33: 1340
A34: 25 | B34: ７０歳～ | C34: 73.4 | D34: 19.7 | E34: 166 | F34: 5 | G34: 216.1 | H34: 207.2 | I34: 243.4 | J34: 2836.6 | K34: 7771.506849 | L34: 5113 | N34: ７０歳～ | O34: 73.3 | P34: 19.9 | Q34: 168 | R34: 6 | S34: 234.9 | T34: 224.2 | U34: 238.6 | V34: 3057.4 | W34: 8376.438356 | X34: 3704 | Z34: ７０歳～ | AA34: 73.4 | AB34: 19.3 | AC34: 162 | AD34: 3 | AE34: 166.8 | AF34: 162.5 | AG34: 255.8 | AH34: 2257.4 | AI34: 6184.657534 | AJ34: 1409
A35: 26 | B35: 高校 | C35: 45.2 | D35: 13.2 | E35: 166 | F35: 11 | G35: 295.4 | H35: 270.4 | I35: 711.4 | J35: 4256.2 | K35: 11660.82192 | L35: 994514 | N35: 高校 | O35: 45.1 | P35: 14.6 | Q35: 167 | R35: 14 | S35: 326.6 | T35: 295 | U35: 828.3 | V35: 4747.5 | W35: 13006.84932 | X35: 676441 | Z35: 高校 | AA35: 45.2 | AB35: 10.5 | AC35: 163 | AD35: 6 | AE35: 228.9 | AF35: 218 | AG35: 462.7 | AH35: 3209.5 | AI35: 8793.150685 | AJ35: 318073
A36: 27 | B36: ～１９歳 | C36: 19.1 | D36: 0.9 | E36: 165 | F36: 7 | G36: 190.9 | H36: 179.4 | I36: 133.9 | J36: 2424.7 | K36: 6643.013699 | L36: 23320 | N36: ～１９歳 | O36: 19 | P36: 0.9 | Q36: 165 | R36: 8 | S36: 196.5 | T36: 182.4 | U36: 146.8 | V36: 2504.8 | W36: 6862.465753 | X36: 14541 | Z36: ～１９歳 | AA36: 19.1 | AB36: 0.9 | AC36: 166 | AD36: 5 | AE36: 181.8 | AF36: 174.5 | AG36: 112.4 | AH36: 2294 | AI36: 6284.931507 | AJ36: 8778
A37: 28 | B37: ２０～２４歳 | C37: 22.5 | D37: 3.1 | E37: 165 | F37: 12 | G37: 220.3 | H37: 199 | I37: 468.2 | J37: 3111.8 | K37: 8525.479452 | L37: 72286 | N37: ２０～２４歳 | O37: 22.6 | P37: 3.2 | Q37: 165 | R37: 14 | S37: 230.6 | T37: 204.3 | U37: 520 | V37: 3287.2 | W37: 9006.027397 | X37: 46324 | Z37: ２０～２４歳 | AA37: 22.5 | AB37: 2.9 | AC37: 164 | AD37: 7 | AE37: 202 | AF37: 189.6 | AG37: 375.6 | AH37: 2799.6 | AI37: 7670.136986 | AJ37: 25963
A38: 29 | B38: ２５～２９歳 | C38: 27.5 | D38: 5.4 | E38: 165 | F38: 12 | G38: 248.1 | H38: 223.1 | I38: 536.7 | J38: 3513.9 | K38: 9627.123288 | L38: 70353 | N38: ２５～２９歳 | O38: 27.5 | P38: 5.7 | Q38: 166 | R38: 15 | S38: 264.2 | T38: 233.1 | U38: 609.7 | V38: 3780.1 | W38: 10356.43836 | X38: 48045 | Z38: ２５～２９歳 | AA38: 27.5 | AB38: 5 | AC38: 163 | AD38: 7 | AE38: 213.6 | AF38: 201.5 | AG38: 379.6 | AH38: 2942.8 | AI38: 8062.465753 | AJ38: 22308
A39: 30 | B39: ３０～３４歳 | C39: 32.5 | D39: 7.7 | E39: 165 | F39: 13 | G39: 271.4 | H39: 243.7 | I39: 623.3 | J39: 3880.1 | K39: 10630.41096 | L39: 76470 | N39: ３０～３４歳 | O39: 32.5 | P39: 8.2 | Q39: 166 | R39: 16 | S39: 292.7 | T39: 258.7 | U39: 715.1 | V39: 4227.5 | W39: 11582.19178 | X39: 54393 | Z39: ３０～３４歳 | AA39: 32.5 | AB39: 6.5 | AC39: 162 | AD39: 7 | AE39: 218.8 | AF39: 206.6 | AG39: 397 | AH39: 3022.6 | AI39: 8281.09589 | AJ39: 22077
A40: 31 | B40: ３５～３９歳 | C40: 37.6 | D40: 10 | E40: 166 | F40: 13 | G40: 294.6 | H40: 265.7 | I40: 708.9 | J40: 4244.1 | K40: 11627.67123 | L40: 88625 | N40: ３５～３９歳 | O40: 37.6 | P40: 10.7 | Q40: 167 | R40: 16 | S40: 321.2 | T40: 285.2 | U40: 809.7 | V40: 4664.1 | W40: 12778.35616 | X40: 63574 | Z40: ３５～３９歳 | AA40: 37.6 | AB40: 8.2 | AC40: 162 | AD40: 6 | AE40: 227.2 | AF40: 216.1 | AG40: 453.4 | AH40: 3179.8 | AI40: 8711.780822 | AJ40: 25052
A41: 32 | B41: ４０～４４歳 | C41: 42.6 | D41: 12.7 | E41: 166 | F41: 13 | G41: 316.7 | H41: 285.5 | I41: 794.9 | J41: 4595.3 | K41: 12589.86301 | L41: 116464 | N41: ４０～４４歳 | O41: 42.6 | P41: 13.9 | Q41: 168 | R41: 16 | S41: 350.6 | T41: 311.4 | U41: 915.2 | V41: 5122.4 | W41: 14033.9726 | X41: 82805 | Z41: ４０～４４歳 | AA41: 42.6 | AB41: 10 | AC41: 163 | AD41: 6 | AE41: 233.5 | AF41: 221.9 | AG41: 499.1 | AH41: 3301.1 | AI41: 9044.109589 | AJ41: 33660
A42: 33 | B42: ４５～４９歳 | C42: 47.6 | D42: 15.6 | E42: 166 | F42: 12 | G42: 331.8 | H42: 301.3 | I42: 889.2 | J42: 4870.8 | K42: 13344.65753 | L42: 152995 | N42: ４５～４９歳 | O42: 47.5 | P42: 17.5 | Q42: 168 | R42: 15 | S42: 372.5 | T42: 333.3 | U42: 1039.8 | V42: 5509.8 | W42: 15095.34247 | X42: 103673 | Z42: ４５～４９歳 | AA42: 47.6 | AB42: 11.7 | AC42: 163 | AD42: 6 | AE42: 246.3 | AF42: 234 | AG42: 572.7 | AH42: 3528.3 | AI42: 9666.575342 | AJ42: 49323
A43: 34 | B43: ５０～５４歳 | C43: 52.4 | D43: 17.3 | E43: 166 | F43: 11 | G43: 334 | H43: 307 | I43: 881.1 | J43: 4889.1 | K43: 13394.79452 | L43: 142316 | N43: ５０～５４歳 | O43: 52.4 | P43: 19.7 | Q43: 168 | R43: 14 | S43: 379.9 | T43: 345.4 | U43: 1043.1 | V43: 5601.9 | W43: 15347.67123 | X43: 93578 | Z43: ５０～５４歳 | AA43: 52.4 | AB43: 12.8 | AC43: 162 | AD43: 6 | AE43: 245.9 | AF43: 233.5 | AG43: 570.2 | AH43: 3521 | AI43: 9646.575342 | AJ43: 48738
A44: 35 | B44: ５５～５９歳 | C44: 57.4 | D44: 19.9 | E44: 166 | F44: 9 | G44: 335.3 | H44: 312.8 | I44: 917.4 | J44: 4941 | K44: 13536.9863 | L44: 125574 | N44: ５５～５９歳 | O44: 57.4 | P44: 22.7 | Q44: 167 | R44: 12 | S44: 382.8 | T44: 353.7 | U44: 1116.8 | V44: 5710.4 | W44: 15644.93151 | X44: 82665 | Z44: ５５～５９歳 | AA44: 57.5 | AB44: 14.4 | AC44: 163 | AD44: 4 | AE44: 243.7 | AF44: 234 | AG44: 533.2 | AH44: 3457.6 | AI44: 9472.876712 | AJ44: 42910
A45: 36 | B45: ６０～６４歳 | C45: 62.3 | D45: 18.4 | E45: 165 | F45: 7 | G45: 263.3 | H45: 248.7 | I45: 511.7 | J45: 3671.3 | K45: 10058.35616 | L45: 78052 | N45: ６０～６４歳 | O45: 62.3 | P45: 19.8 | Q45: 166 | R45: 9 | S45: 285.9 | T45: 268 | U45: 582.2 | V45: 4013 | W45: 10994.52055 | X45: 53735 | Z45: ６０～６４歳 | AA45: 62.2 | AB45: 15.3 | AC45: 162 | AD45: 4 | AE45: 213.2 | AF45: 206.1 | AG45: 355.8 | AH45: 2914.2 | AI45: 7984.109589 | AJ45: 24316
A46: 37 | B46: ６５～６９歳 | C46: 67.2 | D46: 16.2 | E46: 165 | F46: 6 | G46: 236.3 | H46: 225.3 | I46: 290.6 | J46: 3126.2 | K46: 8564.931507 | L46: 33454 | N46: ６５～６９歳 | O46: 67.2 | P46: 16.3 | Q46: 167 | R46: 7 | S46: 252.1 | T46: 238.6 | U46: 316.9 | V46: 3342.1 | W46: 9156.438356 | X46: 23061 | Z46: ６５～６９歳 | AA46: 67.2 | AB46: 16.1 | AC46: 161 | AD46: 3 | AE46: 201.2 | AF46: 195.7 | AG46: 232.2 | AH46: 2646.6 | AI46: 7250.958904 | AJ46: 10393
A47: 38 | B47: ７０歳～ | C47: 72.9 | D47: 17.7 | E47: 165 | F47: 5 | G47: 224.9 | H47: 216.5 | I47: 230.1 | J47: 2928.9 | K47: 8024.383562 | L47: 14604 | N47: ７０歳～ | O47: 72.8 | P47: 16.8 | Q47: 167 | R47: 6 | S47: 231.1 | T47: 221.3 | U47: 227.4 | V47: 3000.6 | W47: 8220.821918 | X47: 10048 | Z47: ７０歳～ | AA47: 73.2 | AB47: 19.6 | AC47: 161 | AD47: 3 | AE47: 211.2 | AF47: 205.8 | AG47: 236 | AH47: 2770.4 | AI47: 7590.136986 | AJ47: 4555
A48: 39 | B48: 専門学校 | C48: 41.8 | D48: 10.5 | E48: 165 | F48: 8 | G48: 307.8 | H48: 287.6 | I48: 753.5 | J48: 4447.1 | K48: 12183.83562 | L48: 366417 | N48: 専門学校 | O48: 41.6 | P48: 11.9 | Q48: 167 | R48: 10 | S48: 333.1 | T48: 309.3 | U48: 846.7 | V48: 4843.9 | W48: 13270.9589 | X48: 192801 | Z48: 専門学校 | AA48: 42.1 | AB48: 8.9 | AC48: 162 | AD48: 5 | AE48: 279.7 | AF48: 263.4 | AG48: 650 | AH48: 4006.4 | AI48: 10976.43836 | AJ48: 173616
A49: 40 | B49: ～１９歳 | C49: - | D49: - | E49: - | F49: - | G49: - | H49: - | I49: - | J49: - | K49: - | L49: - | N49: ～１９歳 | O49: - | P49: - | Q49: - | R49: - | S49: - | T49: - | U49: - | V49: - | W49: - | X49: - | Z49: ～１９歳 | AA49: - | AB49: - | AC49: - | AD49: - | AE49: - | AF49: - | AG49: - | AH49: - | AI49: - | AJ49: -
A50: 41 | B50: ２０～２４歳 | C50: 22.8 | D50: 1.8 | E50: 166 | F50: 7 | G50: 230.9 | H50: 215.1 | I50: 332.5 | J50: 3103.3 | K50: 8502.191781 | L50: 33091 | N50: ２０～２４歳 | O50: 22.8 | P50: 1.8 | Q50: 168 | R50: 10 | S50: 231.4 | T50: 213.4 | U50: 343.9 | V50: 3120.7 | W50: 8549.863014 | X50: 13879 | Z50: ２０～２４歳 | AA50: 22.9 | AB50: 1.8 | AC50: 165 | AD50: 5 | AE50: 230.5 | AF50: 216.4 | AG50: 324.2 | AH50: 3090.2 | AI50: 8466.30137 | AJ50: 19212
A51: 42 | B51: ２５～２９歳 | C51: 27.4 | D51: 4.1 | E51: 166 | F51: 8 | G51: 256.4 | H51: 238.7 | I51: 515.1 | J51: 3591.9 | K51: 9840.821918 | L51: 38525 | N51: ２５～２９歳 | O51: 27.5 | P51: 4.2 | Q51: 168 | R51: 9 | S51: 259.5 | T51: 241.2 | U51: 520.7 | V51: 3634.7 | W51: 9958.082192 | X51: 19619 | Z51: ２５～２９歳 | AA51: 27.3 | AB51: 4 | AC51: 163 | AD51: 6 | AE51: 253.1 | AF51: 236.1 | AG51: 509.3 | AH51: 3546.5 | AI51: 9716.438356 | AJ51: 18906
A52: 43 | B52: ３０～３４歳 | C52: 32.7 | D52: 6.6 | E52: 165 | F52: 8 | G52: 283 | H52: 263.1 | I52: 641.7 | J52: 4037.7 | K52: 11062.19178 | L52: 40021 | N52: ３０～３４歳 | O52: 32.7 | P52: 7 | Q52: 166 | R52: 10 | S52: 297.2 | T52: 274.2 | U52: 705.8 | V52: 4272.2 | W52: 11704.65753 | X52: 23182 | Z52: ３０～３４歳 | AA52: 32.6 | AB52: 6.2 | AC52: 162 | AD52: 5 | AE52: 263.4 | AF52: 247.8 | AG52: 553.3 | AH52: 3714.1 | AI52: 10175.61644 | AJ52: 16839
A53: 44 | B53: ３５～３９歳 | C53: 37.5 | D53: 8.9 | E53: 164 | F53: 9 | G53: 304.4 | H53: 282.3 | I53: 740 | J53: 4392.8 | K53: 12035.06849 | L53: 45555 | N53: ３５～３９歳 | O53: 37.5 | P53: 9.6 | Q53: 166 | R53: 12 | S53: 326.8 | T53: 299.8 | U53: 801.7 | V53: 4723.3 | W53: 12940.54795 | X53: 26973 | Z53: ３５～３９歳 | AA53: 37.5 | AB53: 8 | AC53: 161 | AD53: 5 | AE53: 271.9 | AF53: 256.8 | AG53: 650.4 | AH53: 3913.2 | AI53: 10721.09589 | AJ53: 18583
A54: 45 | B54: ４０～４４歳 | C54: 42.6 | D54: 11.1 | E54: 165 | F54: 8 | G54: 323.6 | H54: 301.4 | I54: 824.7 | J54: 4707.9 | K54: 12898.35616 | L54: 56109 | N54: ４０～４４歳 | O54: 42.6 | P54: 12.3 | Q54: 167 | R54: 11 | S54: 345.7 | T54: 319.8 | U54: 881.8 | V54: 5030.2 | W54: 13781.36986 | X54: 32987 | Z54: ４０～４４歳 | AA54: 42.5 | AB54: 9.4 | AC54: 161 | AD54: 5 | AE54: 292.1 | AF54: 275.2 | AG54: 743.1 | AH54: 4248.3 | AI54: 11639.17808 | AJ54: 23122
A55: 46 | B55: ４５～４９歳 | C55: 47.4 | D55: 14.3 | E55: 165 | F55: 9 | G55: 345.2 | H55: 320.2 | I55: 971.1 | J55: 5113.5 | K55: 14009.58904 | L55: 59858 | N55: ４５～４９歳 | O55: 47.4 | P55: 16.6 | Q55: 167 | R55: 12 | S55: 380.9 | T55: 351.4 | U55: 1098.8 | V55: 5669.6 | W55: 15533.15068 | X55: 33943 | Z55: ４５～４９歳 | AA55: 47.5 | AB55: 11.2 | AC55: 162 | AD55: 6 | AE55: 298.5 | AF55: 279.4 | AG55: 803.9 | AH55: 4385.9 | AI55: 12016.16438 | AJ55: 25915
A56: 47 | B56: ５０～５４歳 | C56: 52.2 | D56: 15.1 | E56: 165 | F56: 7 | G56: 349 | H56: 329.7 | I56: 960 | J56: 5148 | K56: 14104.10959 | L56: 43558 | N56: ５０～５４歳 | O56: 52.2 | P56: 19 | Q56: 168 | R56: 9 | S56: 398.8 | T56: 376.2 | U56: 1192.8 | V56: 5978.4 | W56: 16379.17808 | X56: 20703 | Z56: ５０～５４歳 | AA56: 52.2 | AB56: 11.5 | AC56: 163 | AD56: 5 | AE56: 303.9 | AF56: 287.6 | AG56: 749.1 | AH56: 4395.9 | AI56: 12043.56164 | AJ56: 22855
A57: 48 | B57: ５５～５９歳 | C57: 57.3 | D57: 16.9 | E57: 164 | F57: 6 | G57: 351.2 | H57: 332.5 | I57: 975.9 | J57: 5190.3 | K57: 14220 | L57: 29019 | N57: ５５～５９歳 | O57: 57.3 | P57: 20.4 | Q57: 167 | R57: 8 | S57: 399.4 | T57: 378.5 | U57: 1155.8 | V57: 5948.6 | W57: 16297.53425 | X57: 12225 | Z57: ５５～５９歳 | AA57: 57.3 | AB57: 14.3 | AC57: 161 | AD57: 5 | AE57: 316.1 | AF57: 299 | AG57: 845 | AH57: 4638.2 | AI57: 12707.39726 | AJ57: 16794
A58: 49 | B58: ６０～６４歳 | C58: 62.2 | D58: 16.3 | E58: 164 | F58: 5 | G58: 292.3 | H58: 278.4 | I58: 610.1 | J58: 4117.7 | K58: 11281.36986 | L58: 14550 | N58: ６０～６４歳 | O58: 62.1 | P58: 17.8 | Q58: 167 | R58: 7 | S58: 309.2 | T58: 293.8 | U58: 622.4 | V58: 4332.8 | W58: 11870.68493 | X58: 6556 | Z58: ６０～６４歳 | AA58: 62.2 | AB58: 15 | AC58: 161 | AD58: 3 | AE58: 278.4 | AF58: 265.9 | AG58: 600 | AH58: 3940.8 | AI58: 10796.71233 | AJ58: 7995
A59: 50 | B59: ６５～６９歳 | C59: 67.1 | D59: 15.1 | E59: 162 | F59: 4 | G59: 263.5 | H59: 252.1 | I59: 404.7 | J59: 3566.7 | K59: 9771.780822 | L59: 4682 | N59: ６５～６９歳 | O59: 67 | P59: 14.8 | Q59: 164 | R59: 6 | S59: 269.6 | T59: 258.1 | U59: 386.9 | V59: 3622.1 | W59: 9923.561644 | X59: 2095 | Z59: ６５～６９歳 | AA59: 67.2 | AB59: 15.4 | AC59: 161 | AD59: 3 | AE59: 258.6 | AF59: 247.2 | AG59: 419.2 | AH59: 3522.4 | AI59: 9650.410959 | AJ59: 2586
A60: 51 | B60: ７０歳～ | C60: 72.7 | D60: 16.2 | E60: 161 | F60: 3 | G60: 248.5 | H60: 242.3 | I60: 376 | J60: 3358 | K60: 9200 | L60: 1448 | N60: ７０歳～ | O60: 72.6 | P60: 15.2 | Q60: 164 | R60: 4 | S60: 229.5 | T60: 221.6 | U60: 249.9 | V60: 3003.9 | W60: 8229.863014 | X60: 638 | Z60: ７０歳～ | AA60: 72.8 | AB60: 17 | AC60: 159 | AD60: 1 | AE60: 263.5 | AF60: 258.6 | AG60: 475.2 | AH60: 3637.2 | AI60: 9964.931507 | AJ60: 810
A61: 52 | B61: 高専・短大 | C61: 43.2 | D61: 12.1 | E61: 164 | F61: 7 | G61: 301.7 | H61: 284.5 | I61: 908.2 | J61: 4528.6 | K61: 12407.12329 | L61: 214995 | N61: 高専・短大 | O61: 43.3 | P61: 14.7 | Q61: 165 | R61: 11 | S61: 373 | T61: 345.5 | U61: 1261.2 | V61: 5737.2 | W61: 15718.35616 | X61: 64894 | Z61: 高専・短大 | AA61: 43.2 | AB61: 11 | AC61: 163 | AD61: 5 | AE61: 270.9 | AF61: 258.1 | AG61: 755.6 | AH61: 4006.4 | AI61: 10976.43836 | AJ61: 150101
A62: 53 | B62: ～１９歳 | C62: - | D62: - | E62: - | F62: - | G62: - | H62: - | I62: - | J62: - | K62: - | L62: - | N62: ～１９歳 | O62: - | P62: - | Q62: - | R62: - | S62: - | T62: - | U62: - | V62: - | W62: - | X62: - | Z62: ～１９歳 | AA62: - | AB62: - | AC62: - | AD62: - | AE62: - | AF62: - | AG62: - | AH62: - | AI62: - | AJ62: -
A63: 54 | B63: ２０～２４歳 | C63: 22.7 | D63: 2 | E63: 167 | F63: 6 | G63: 220.9 | H63: 207.9 | I63: 436.9 | J63: 3087.7 | K63: 8459.452055 | L63: 18275 | N63: ２０～２４歳 | O63: 22.9 | P63: 2 | Q63: 166 | R63: 12 | S63: 237.5 | T63: 213.7 | U63: 478.7 | V63: 3328.7 | W63: 9119.726027 | X63: 4374 | Z63: ２０～２４歳 | AA63: 22.7 | AB63: 2 | AC63: 168 | AD63: 4 | AE63: 215.6 | AF63: 206.1 | AG63: 423.7 | AH63: 3010.9 | AI63: 8249.041096 | AJ63: 13900
A64: 55 | B64: ２５～２９歳 | C64: 27.4 | D64: 4.7 | E64: 165 | F64: 8 | G64: 251.1 | H64: 232.1 | I64: 699 | J64: 3712.2 | K64: 10170.41096 | L64: 20133 | N64: ２５～２９歳 | O64: 27.5 | P64: 4.8 | Q64: 165 | R64: 14 | S64: 280 | T64: 249.1 | U64: 827.7 | V64: 4187.7 | W64: 11473.15068 | X64: 6202 | Z64: ２５～２９歳 | AA64: 27.4 | AB64: 4.6 | AC64: 165 | AD64: 6 | AE64: 238.2 | AF64: 224.6 | AG64: 641.7 | AH64: 3500.1 | AI64: 9589.315068 | AJ64: 13931
A65: 56 | B65: ３０～３４歳 | C65: 32.6 | D65: 7.5 | E65: 164 | F65: 8 | G65: 273 | H65: 253.2 | I65: 777.4 | J65: 4053.4 | K65: 11105.20548 | L65: 19381 | N65: ３０～３４歳 | O65: 32.6 | P65: 7.9 | Q65: 165 | R65: 14 | S65: 315.9 | T65: 281.6 | U65: 979.4 | V65: 4770.2 | W65: 13069.0411 | X65: 7174 | Z65: ３０～３４歳 | AA65: 32.5 | AB65: 7.3 | AC65: 163 | AD65: 5 | AE65: 247.7 | AF65: 236.5 | AG65: 658.7 | AH65: 3631.1 | AI65: 9948.219178 | AJ65: 12208
A66: 57 | B66: ３５～３９歳 | C66: 37.6 | D66: 9.9 | E66: 163 | F66: 8 | G66: 296.5 | H66: 275.5 | I66: 875.9 | J66: 4433.9 | K66: 12147.67123 | L66: 21564 | N66: ３５～３９歳 | O66: 37.5 | P66: 11.2 | Q66: 164 | R66: 13 | S66: 363.2 | T66: 325.7 | U66: 1181.7 | V66: 5540.1 | W66: 15178.35616 | X66: 7346 | Z66: ３５～３９歳 | AA66: 37.6 | AB66: 9.3 | AC66: 162 | AD66: 5 | AE66: 262 | AF66: 249.5 | AG66: 717.9 | AH66: 3861.9 | AI66: 10580.54795 | AJ66: 14218
A67: 58 | B67: ４０～４４歳 | C67: 42.6 | D67: 12.2 | E67: 163 | F67: 7 | G67: 311.6 | H67: 292.6 | I67: 946.5 | J67: 4685.7 | K67: 12837.53425 | L67: 31924 | N67: ４０～４４歳 | O67: 42.5 | P67: 14.2 | Q67: 165 | R67: 12 | S67: 392.4 | T67: 359.8 | U67: 1278.6 | V67: 5987.4 | W67: 16403.83562 | X67: 9309 | Z67: ４０～４４歳 | AA67: 42.7 | AB67: 11.4 | AC67: 163 | AD67: 6 | AE67: 278.4 | AF67: 264.9 | AG67: 809.8 | AH67: 4150.6 | AI67: 11371.50685 | AJ67: 22615
A68: 59 | B68: ４５～４９歳 | C68: 47.5 | D68: 14.3 | E68: 163 | F68: 7 | G68: 326.1 | H68: 307.8 | I68: 1053.7 | J68: 4966.9 | K68: 13607.94521 | L68: 38533 | N68: ４５～４９歳 | O68: 47.5 | P68: 17.8 | Q68: 166 | R68: 11 | S68: 418 | T68: 390.9 | U68: 1475.9 | V68: 6491.9 | W68: 17786.0274 | X68: 10690 | Z68: ４５～４９歳 | AA68: 47.5 | AB68: 13 | AC68: 162 | AD68: 6 | AE68: 290.8 | AF68: 275.8 | AG68: 891.6 | AH68: 4381.2 | AI68: 12003.28767 | AJ68: 27843
A69: 60 | B69: ５０～５４歳 | C69: 52.3 | D69: 17.1 | E69: 163 | F69: 7 | G69: 350.2 | H69: 333.2 | I69: 1187.6 | J69: 5390 | K69: 14767.12329 | L69: 29273 | N69: ５０～５４歳 | O69: 52.3 | P69: 22.9 | Q69: 165 | R69: 9 | S69: 462.8 | T69: 439.9 | U69: 1846.2 | V69: 7399.8 | W69: 20273.42466 | X69: 8567 | Z69: ５０～５４歳 | AA69: 52.3 | AB69: 14.8 | AC69: 162 | AD69: 6 | AE69: 303.6 | AF69: 289 | AG69: 915.1 | AH69: 4558.3 | AI69: 12488.49315 | AJ69: 20706
A70: 61 | B70: ５５～５９歳 | C70: 57.4 | D70: 18.8 | E70: 163 | F70: 6 | G70: 344.8 | H70: 330.2 | I70: 1149.9 | J70: 5287.5 | K70: 14486.30137 | L70: 20708 | N70: ５５～５９歳 | O70: 57.5 | P70: 24.8 | Q70: 165 | R70: 7 | S70: 459.2 | T70: 440.4 | U70: 1846.3 | V70: 7356.7 | W70: 20155.34247 | X70: 6038 | Z70: ５５～５９歳 | AA70: 57.4 | AB70: 16.3 | AC70: 163 | AD70: 5 | AE70: 297.7 | AF70: 284.8 | AG70: 863.3 | AH70: 4435.7 | AI70: 12152.60274 | AJ70: 14670
A71: 62 | B71: ６０～６４歳 | C71: 62.2 | D71: 18.3 | E71: 162 | F71: 4 | G71: 275.8 | H71: 266.9 | I71: 696.3 | J71: 4005.9 | K71: 10975.06849 | L71: 11472 | N71: ６０～６４歳 | O71: 62.3 | P71: 21.9 | Q71: 164 | R71: 6 | S71: 324.6 | T71: 311.4 | U71: 944.8 | V71: 4840 | W71: 13260.27397 | X71: 3754 | Z71: ６０～６４歳 | AA71: 62.2 | AB71: 16.6 | AC71: 160 | AD71: 3 | AE71: 252.1 | AF71: 245.2 | AG71: 575.5 | AH71: 3600.7 | AI71: 9864.931507 | AJ71: 7718
A72: 63 | B72: ６５～６９歳 | C72: 67.2 | D72: 18.4 | E72: 164 | F72: 4 | G72: 273.3 | H72: 266.4 | I72: 428.1 | J72: 3707.7 | K72: 10158.08219 | L72: 2710 | N72: ６５～６９歳 | O72: 67 | P72: 18.2 | Q72: 165 | R72: 6 | S72: 303.3 | T72: 292.3 | U72: 401.8 | V72: 4041.4 | W72: 11072.32877 | X72: 1086 | Z72: ６５～６９歳 | AA72: 67.4 | AB72: 18.6 | AC72: 163 | AD72: 2 | AE72: 253.2 | AF72: 249 | AG72: 445.7 | AH72: 3484.1 | AI72: 9545.479452 | AJ72: 1624
A73: 64 | B73: ７０歳～ | C73: 72.7 | D73: 21.7 | E73: 164 | F73: 2 | G73: 273.7 | H73: 271.1 | I73: 694.2 | J73: =G73*12+I73 -> 3978.6 | K73: =J73/365*1000 -> 10900.27397 | L73: 1023 | N73: ７０歳～ | O73: 72.6 | P73: 25.3 | Q73: 169 | R73: 1 | S73: 249 | T73: 247.3 | U73: 796.2 | V73: =S73*12+U73 -> 3784.2 | W73: =V73/365*1000 -> 10367.67123 | X73: 353 | Z73: ７０歳～ | AA73: 72.8 | AB73: 19.8 | AC73: 161 | AD73: 2 | AE73: 286.7 | AF73: 283.7 | AG73: 640.3 | AH73: =AE73*12+AG73 -> 4080.7 | AI73: =AH73/365*1000 -> 11180 | AJ73: 669
A74: 65 | B74: 男女計 大学 | C74: 40.9 | D74: 11.6 | E74: 165 | F74: 9 | G74: 385.8 | H74: 362.9 | I74: 1227 | J74: 5856.6 | K74: 16045.47945 | L74: 851562 | N74: 男 大学 | O74: 42.7 | P74: 13.2 | Q74: 166 | R74: 10 | S74: 416.8 | T74: 391.9 | U74: 1377.7 | V74: 6379.3 | W74: 17477.53425 | X74: 613381 | Z74: 女 大学 | AA74: 36.2 | AB74: 7.5 | AC74: 163 | AD74: 7 | AE74: 306 | AF74: 288.3 | AG74: 838.8 | AH74: 4510.8 | AI74: 12358.35616 | AJ74: 238181
A75: 66 | B75: ～１９歳 | C75: - | D75: - | E75: - | F75: - | G75: - | H75: - | I75: - | J75: - | K75: - | L75: - | N75: ～１９歳 | O75: - | P75: - | Q75: - | R75: - | S75: - | T75: - | U75: - | V75: - | W75: - | X75: - | Z75: ～１９歳 | AA75: - | AB75: - | AC75: - | AD75: - | AE75: - | AF75: - | AG75: - | AH75: - | AI75: - | AJ75: -
A76: 67 | B76: ２０～２４歳 | C76: 23.6 | D76: 1.3 | E76: 165 | F76: 9 | G76: 244.6 | H76: 227.8 | I76: 349.7 | J76: 3284.9 | K76: 8999.726027 | L76: 71004 | N76: ２０～２４歳 | O76: 23.7 | P76: 1.3 | Q76: 166 | R76: 10 | S76: 248.7 | T76: 229.1 | U76: 357.7 | V76: 3342.1 | W76: 9156.438356 | X76: 36886 | Z76: ２０～２４歳 | AA76: 23.6 | AB76: 1.3 | AC76: 164 | AD76: 7 | AE76: 240.2 | AF76: 226.5 | AG76: 341.1 | AH76: 3223.5 | AI76: 8831.506849 | AJ76: 34118
A77: 68 | B77: ２５～２９歳 | C77: 27.5 | D77: 3.7 | E77: 165 | F77: 12 | G77: 285.4 | H77: 259.1 | I77: 799.1 | J77: 4223.9 | K77: 11572.32877 | L77: 133710 | N77: ２５～２９歳 | O77: 27.5 | P77: 3.8 | Q77: 166 | R77: 14 | S77: 297.2 | T77: 266.1 | U77: 838.5 | V77: 4404.9 | W77: 12068.21918 | X77: 77501 | Z77: ２５～２９歳 | AA77: 27.4 | AB77: 3.6 | AC77: 164 | AD77: 9 | AE77: 269.1 | AF77: 249.4 | AG77: 744.9 | AH77: 3974.1 | AI77: 10887.94521 | AJ77: 56209
A78: 69 | B78: ３０～３４歳 | C78: 32.5 | D78: 6.7 | E78: 164 | F78: 12 | G78: 330.9 | H78: 301.1 | I78: 983.5 | J78: 4954.3 | K78: 13573.42466 | L78: 112848 | N78: ３０～３４歳 | O78: 32.5 | P78: 6.8 | Q78: 165 | R78: 14 | S78: 348.1 | T78: 313.9 | U78: 1057.7 | V78: 5234.9 | W78: 14342.19178 | X78: 75248 | Z78: ３０～３４歳 | AA78: 32.4 | AB78: 6.4 | AC78: 162 | AD78: 8 | AE78: 296.6 | AF78: 275.3 | AG78: 835 | AH78: 4394.2 | AI78: 12038.90411 | AJ78: 37599
A79: 70 | B79: ３５～３９歳 | C79: 37.5 | D79: 9.8 | E79: 164 | F79: 11 | G79: 376.3 | H79: 346.1 | I79: 1206.8 | J79: 5722.4 | K79: 15677.80822 | L79: 107219 | N79: ３５～３９歳 | O79: 37.5 | P79: 10.1 | Q79: 166 | R79: 13 | S79: 399.6 | T79: 365.2 | U79: 1308.3 | V79: 6103.5 | W79: 16721.91781 | X79: 76590 | Z79: ３５～３９歳 | AA79: 37.5 | AB79: 8.9 | AC79: 161 | AD79: 8 | AE79: 318 | AF79: 298.2 | AG79: 953.1 | AH79: 4769.1 | AI79: 13066.0274 | AJ79: 30629
A80: 71 | B80: ４０～４４歳 | C80: 42.5 | D80: 12.7 | E80: 165 | F80: 9 | G80: 416.8 | H80: 392.3 | I80: 1407 | J80: 6408.6 | K80: 17557.80822 | L80: 107764 | N80: ４０～４４歳 | O80: 42.5 | P80: 13.5 | Q80: 166 | R80: 10 | S80: 443.6 | T80: 416.4 | U80: 1552.9 | V80: 6876.1 | W80: 18838.63014 | X80: 80792 | Z80: ４０～４４歳 | AA80: 42.5 | AB80: 10.3 | AC80: 162 | AD80: 6 | AE80: 336.6 | AF80: 320.3 | AG80: 970.2 | AH80: 5009.4 | AI80: 13724.38356 | AJ80: 26972
A81: 72 | B81: ４５～４９歳 | C81: 47.5 | D81: 16.3 | E81: 166 | F81: 8 | G81: 458.1 | H81: 436.6 | I81: 1638.9 | J81: 7136.1 | K81: 19550.9589 | L81: 105979 | N81: ４５～４９歳 | O81: 47.5 | P81: 17.3 | Q81: 167 | R81: 8 | S81: 484.3 | T81: 461.5 | U81: 1774.7 | V81: 7586.3 | W81: 20784.38356 | X81: 84099 | Z81: ４５～４９歳 | AA81: 47.4 | AB81: 12.4 | AC81: 162 | AD81: 6 | AE81: 357.4 | AF81: 340.9 | AG81: 1117.1 | AH81: 5405.9 | AI81: 14810.68493 | AJ81: 21880
A82: 73 | B82: ５０～５４歳 | C82: 52.4 | D82: 20.5 | E82: 165 | F82: 6 | G82: 521 | H82: 501.6 | I82: 1986.1 | J82: 8238.1 | K82: 22570.13699 | L82: 86801 | N82: ５０～５４歳 | O82: 52.4 | P82: 21.7 | Q82: 166 | R82: 6 | S82: 546.4 | T82: 526.6 | U82: 2133.3 | V82: 8690.1 | W82: 23808.49315 | X82: 71813 | Z82: ５０～５４歳 | AA82: 52.3 | AB82: 14.8 | AC82: 162 | AD82: 6 | AE82: 399.4 | AF82: 382 | AG82: 1280.9 | AH82: 6073.7 | AI82: 16640.27397 | AJ82: 14988
A83: 74 | B83: ５５～５９歳 | C83: 57.4 | D83: 22.8 | E83: 164 | F83: 5 | G83: 511.1 | H83: 496.7 | I83: 1864.3 | J83: 7997.5 | K83: 21910.9589 | L83: 67463 | N83: ５５～５９歳 | O83: 57.4 | P83: 23.9 | Q83: 165 | R83: 5 | S83: 531.3 | T83: 516.5 | U83: 1980.4 | V83: 8356 | W83: 22893.15068 | X83: 57600 | Z83: ５５～５９歳 | AA83: 57.4 | AB83: 16.3 | AC83: 163 | AD83: 4 | AE83: 393.7 | AF83: 381.3 | AG83: 1186.2 | AH83: 5910.6 | AI83: 16193.42466 | AJ83: 9862
A84: 75 | B84: ６０～６４歳 | C84: 62.3 | D84: 20 | E84: 164 | F84: 5 | G84: 382.1 | H84: 370.8 | I84: 990.6 | J84: 5575.8 | K84: 15276.16438 | L84: 41107 | N84: ６０～６４歳 | O84: 62.3 | P84: 20.5 | Q84: 164 | R84: 5 | S84: 389.6 | T84: 378 | U84: 1017 | V84: 5692.2 | W84: 15595.06849 | X84: 36916 | Z84: ６０～６４歳 | AA84: 62.2 | AB84: 15.9 | AC84: 161 | AD84: 3 | AE84: 316.2 | AF84: 307.3 | AG84: 757.8 | AH84: 4552.2 | AI84: 12471.78082 | AJ84: 4190
A85: 76 | B85: ６５～６９歳 | C85: 67.1 | D85: 16 | E85: 164 | F85: 4 | G85: 361.1 | H85: 352.9 | I85: 545.4 | J85: 4878.6 | K85: 13366.0274 | L85: 12502 | N85: ６５～６９歳 | O85: 67.1 | P85: 16 | Q85: 164 | R85: 4 | S85: 363.4 | T85: 354.8 | U85: 544.3 | V85: 4905.1 | W85: 13438.63014 | X85: 11294 | Z85: ６５～６９歳 | AA85: 67.2 | AB85: 16.2 | AC85: 159 | AD85: 1 | AE85: 340.1 | AF85: 335.3 | AG85: 554.8 | AH85: 4636 | AI85: 12701.36986 | AJ85: 1209
A86: 77 | B86: ７０歳～ | C86: 73.2 | D86: 15.9 | E86: 165 | F86: 3 | G86: 371.2 | H86: 364.3 | I86: 343.7 | J86: 4798.1 | K86: 13145.47945 | L86: 5166 | N86: ７０歳～ | O86: 73.2 | P86: 15.6 | Q86: 166 | R86: 3 | S86: 377.5 | T86: 370.2 | U86: 308.3 | V86: 4838.3 | W86: 13255.61644 | X86: 4642 | Z86: ７０歳～ | AA86: 73.4 | AB86: 19.3 | AC86: 162 | AD86: 2 | AE86: 315.3 | AF86: 311.7 | AG86: 657.4 | AH86: 4441 | AI86: 12167.12329 | AJ86: 524
A87: 78 | B87: 大学院 | C87: 40.9 | D87: 10.8 | E87: 165 | F87: 10 | G87: 483.3 | H87: 454.5 | I87: 1859.9 | J87: 7659.5 | K87: 20984.93151 | L87: 100355 | N87: 大学院 | O87: 41.1 | P87: 11.4 | Q87: 165 | R87: 11 | S87: 496.3 | T87: 465.2 | U87: 1954.9 | V87: 7910.5 | W87: 21672.60274 | X87: 82732 | Z87: 大学院 | AA87: 40 | AB87: 7.8 | AC87: 164 | AD87: 6 | AE87: 422.2 | AF87: 404.3 | AG87: 1414.2 | AH87: 6480.6 | AI87: 17755.06849 | AJ87: 17624
A88: 79 | B88: ～１９歳 | C88: - | D88: - | E88: - | F88: - | G88: - | H88: - | I88: - | J88: - | K88: - | L88: - | N88: ～１９歳 | O88: - | P88: - | Q88: - | R88: - | S88: - | T88: - | U88: - | V88: - | W88: - | X88: - | Z88: ～１９歳 | AA88: - | AB88: - | AC88: - | AD88: - | AE88: - | AF88: - | AG88: - | AH88: - | AI88: - | AJ88: -
A89: 80 | B89: ２０～２４歳 | C89: 24.5 | D89: 0.6 | E89: 164 | F89: 3 | G89: 256.5 | H89: 250.6 | I89: 68.1 | J89: 3146.1 | K89: 8619.452055 | L89: 1582 | N89: ２０～２４歳 | O89: 24.5 | P89: 0.6 | Q89: 163 | R89: 2 | S89: 257.2 | T89: 252.3 | U89: 63.9 | V89: 3150.3 | W89: 8630.958904 | X89: 1290 | Z89: ２０～２４歳 | AA89: 24.5 | AB89: 0.6 | AC89: 165 | AD89: 5 | AE89: 253.4 | AF89: 243.3 | AG89: 86.7 | AH89: 3127.5 | AI89: 8568.493151 | AJ89: 293
A90: 81 | B90: ２５～２９歳 | C90: 27.6 | D90: 2.7 | E90: 165 | F90: 16 | G90: 316 | H90: 280.5 | I90: 953.5 | J90: 4745.5 | K90: 13001.36986 | L90: 17136 | N90: ２５～２９歳 | O90: 27.7 | P90: 2.8 | Q90: 165 | R90: 17 | S90: 320.2 | T90: 282 | U90: 981.1 | V90: 4823.5 | W90: 13215.06849 | X90: 13703 | Z90: ２５～２９歳 | AA90: 27.4 | AB90: 2.5 | AC90: 166 | AD90: 11 | AE90: 299.2 | AF90: 274.4 | AG90: 843.2 | AH90: 4433.6 | AI90: 12146.84932 | AJ90: 3433
A91: 82 | B91: ３０～３４歳 | C91: 32.4 | D91: 5.8 | E91: 165 | F91: 15 | G91: 378.1 | H91: 337.6 | I91: 1325.7 | J91: 5862.9 | K91: 16062.73973 | L91: 16213 | N91: ３０～３４歳 | O91: 32.4 | P91: 6.1 | Q91: 165 | R91: 17 | S91: 383.1 | T91: 337.8 | U91: 1391.5 | V91: 5988.7 | W91: 16407.39726 | X91: 13429 | Z91: ３０～３４歳 | AA91: 32.3 | AB91: 4.7 | AC91: 164 | AD91: 7 | AE91: 354.2 | AF91: 336.4 | AG91: 1008.1 | AH91: 5258.5 | AI91: 14406.84932 | AJ91: 2783
A92: 83 | B92: ３５～３９歳 | C92: 37.4 | D92: 9.2 | E92: 165 | F92: 13 | G92: 463.6 | H92: 422.1 | I92: 1774.2 | J92: 7337.4 | K92: 20102.46575 | L92: 16450 | N92: ３５～３９歳 | O92: 37.5 | P92: 9.6 | Q92: 165 | R92: 14 | S92: 481.2 | T92: 435.9 | U92: 1895.2 | V92: 7669.6 | W92: 21012.60274 | X92: 13254 | Z92: ３５～３９歳 | AA92: 37.3 | AB92: 7.8 | AC92: 164 | AD92: 8 | AE92: 390.5 | AF92: 364.7 | AG92: 1272.5 | AH92: 5958.5 | AI92: 16324.65753 | AJ92: 3196
A93: 84 | B93: ４０～４４歳 | C93: 42.4 | D93: 12.2 | E93: 165 | F93: 9 | G93: 518.9 | H93: 490.6 | I93: 2152.6 | J93: 8379.4 | K93: 22957.26027 | L93: 14987 | N93: ４０～４４歳 | O93: 42.4 | P93: 12.7 | Q93: 165 | R93: 10 | S93: 529.5 | T93: 498.9 | U93: 2251.1 | V93: 8605.1 | W93: 23575.61644 | X93: 12427 | Z93: ４０～４４歳 | AA93: 42.5 | AB93: 9.7 | AC93: 162 | AD93: 5 | AE93: 467.5 | AF93: 450.3 | AG93: 1674.4 | AH93: 7284.4 | AI93: 19957.26027 | AJ93: 2560
A94: 85 | B94: ４５～４９歳 | C94: 47.4 | D94: 15.4 | E94: 166 | F94: 6 | G94: 571.6 | H94: 550.5 | I94: 2391.9 | J94: 9251.1 | K94: 25345.47945 | L94: 12854 | N94: ４５～４９歳 | O94: 47.4 | P94: 16.4 | Q94: 166 | R94: 6 | S94: 582.7 | T94: 560.3 | U94: 2519 | V94: 9511.4 | W94: 26058.63014 | X94: 10762 | Z94: ４５～４９歳 | AA94: 47.3 | AB94: 10.5 | AC94: 165 | AD94: 4 | AE94: 514.8 | AF94: 500.1 | AG94: 1738 | AH94: 7915.6 | AI94: 21686.57534 | AJ94: 2092
A95: 86 | B95: ５０～５４歳 | C95: 52.4 | D95: 18.7 | E95: 165 | F95: 3 | G95: 636.2 | H95: 623.5 | I95: 2838 | J95: 10472.4 | K95: 28691.50685 | L95: 8758 | N95: ５０～５４歳 | O95: 52.3 | P95: 19.9 | Q95: 165 | R95: 3 | S95: 650.3 | T95: 636.5 | U95: 2974.7 | V95: 10778.3 | W95: 29529.58904 | X95: 7312 | Z95: ５０～５４歳 | AA95: 52.4 | AB95: 12.4 | AC95: 166 | AD95: 3 | AE95: 564.7 | AF95: 558 | AG95: 2146.2 | AH95: 8922.6 | AI95: 24445.47945 | AJ95: 1446
A96: 87 | B96: ５５～５９歳 | C96: 57.3 | D96: 20.1 | E96: 164 | F96: 3 | G96: 701.8 | H96: 688.9 | I96: 2926.3 | J96: 11347.9 | K96: 31090.13699 | L96: 6778 | N96: ５５～５９歳 | O96: 57.3 | P96: 21.1 | Q96: 165 | R96: 3 | S96: 728.5 | T96: 714.9 | U96: 3033.1 | V96: 11775.1 | W96: 32260.54795 | X96: 5800 | Z96: ５５～５９歳 | AA96: 57.5 | AB96: 14.2 | AC96: 164 | AD96: 3 | AE96: 543.3 | AF96: 534.5 | AG96: 2292.7 | AH96: 8812.3 | AI96: 24143.28767 | AJ96: 978
A97: 88 | B97: ６０～６４歳 | C97: 62.3 | D97: 19.3 | E97: 163 | F97: 2 | G97: 615.1 | H97: 608.7 | I97: 2259 | J97: 9640.2 | K97: 26411.50685 | L97: 4114 | N97: ６０～６４歳 | O97: 62.3 | P97: 20 | Q97: 163 | R97: 2 | S97: 624.8 | T97: 617.6 | U97: 2251.3 | V97: 9748.9 | W97: 26709.31507 | X97: 3467 | Z97: ６０～６４歳 | AA97: 62.3 | AB97: 15.7 | AC97: 165 | AD97: 0 | AE97: 562.9 | AF97: 560.8 | AG97: 2300.4 | AH97: 9055.2 | AI97: 24808.76712 | AJ97: 647
A98: 89 | B98: ６５～６９歳 | C98: 67 | D98: 17.8 | E98: 164 | F98: 2 | G98: 599.5 | H98: 590.6 | I98: 1842.9 | J98: 9036.9 | K98: 24758.63014 | L98: 1151 | N98: ６５～６９歳 | O98: 66.9 | P98: 18.2 | Q98: 165 | R98: 2 | S98: 605.5 | T98: 595.2 | U98: 1776.8 | V98: 9042.8 | W98: 24774.79452 | X98: 992 | Z98: ６５～６９歳 | AA98: 67.2 | AB98: 15.5 | AC98: 162 | AD98: 0 | AE98: 562 | AF98: 562 | AG98: 2253.8 | AH98: 8997.8 | AI98: 24651.50685 | AJ98: 160
A99: 90 | B99: ７０歳～ | C99: 74.2 | D99: 13.6 | E99: 160 | F99: 1 | G99: 749.2 | H99: 745.6 | I99: 1264.3 | J99: 10254.7 | K99: 28095.06849 | L99: 333 | N99: ７０歳～ | O99: 74.4 | P99: 13.7 | Q99: 160 | R99: 1 | S99: 741.7 | T99: 737.6 | U99: 1363.5 | V99: 10263.9 | W99: 28120.27397 | X99: 296 | Z99: ７０歳～ | AA99: 73 | AB99: 13.2 | AC99: 160 | AD99: 0 | AE99: 808.6 | AF99: 808.6 | AG99: 478.3 | AH99: 10181.5 | AI99: 27894.52055 | AJ99: 37
A100: 91 | B100: 不明 | C100: 44.7 | D100: 8.4 | E100: 163 | F100: 9 | G100: 274.4 | H100: 255.5 | I100: 374.1 | J100: 3666.9 | K100: 10046.30137 | L100: 167645 | N100: 不明 | O100: 45.3 | P100: 9.3 | Q100: 166 | R100: 11 | S100: 311.7 | T100: 288.2 | U100: 479.7 | V100: 4220.1 | W100: 11561.91781 | X100: 91110 | Z100: 不明 | AA100: 44 | AB100: 7.5 | AC100: 160 | AD100: 8 | AE100: 230 | AF100: 216.5 | AG100: 248.4 | AH100: 3008.4 | AI100: 8242.191781 | AJ100: 76535
A101: 92 | B101: ～１９歳 | C101: 19.3 | D101: 1.1 | E101: 162 | F101: 17 | G101: 187.7 | H101: 163.3 | I101: 42.3 | J101: 2294.7 | K101: 6286.849315 | L101: 1015 | N101: ～１９歳 | O101: 19.3 | P101: 1.1 | Q101: 161 | R101: 7 | S101: 180.8 | T101: 168 | U101: 72.1 | V101: 2241.7 | W101: 6141.643836 | X101: 504 | Z101: ～１９歳 | AA101: 19.3 | AB101: 1.1 | AC101: 162 | AD101: 26 | AE101: 194.5 | AF101: 158.6 | AG101: 13 | AH101: 2347 | AI101: 6430.136986 | AJ101: 511
A102: 93 | B102: ２０～２４歳 | C102: 22.9 | D102: 1.7 | E102: 165 | F102: 13 | G102: 211.4 | H102: 192 | I102: 119.7 | J102: 2656.5 | K102: 7278.082192 | L102: 11649 | N102: ２０～２４歳 | O102: 22.8 | P102: 1.7 | Q102: 167 | R102: 13 | S102: 219.3 | T102: 197.7 | U102: 115.2 | V102: 2746.8 | W102: 7525.479452 | X102: 5486 | Z102: ２０～２４歳 | AA102: 23 | AB102: 1.7 | AC102: 163 | AD102: 12 | AE102: 204.5 | AF102: 186.9 | AG102: 123.8 | AH102: 2577.8 | AI102: 7062.465753 | AJ102: 6163
A103: 94 | B103: ２５～２９歳 | C103: 27.5 | D103: 3 | E103: 165 | F103: 11 | G103: 236.5 | H103: 216.8 | I103: 227.4 | J103: 3065.4 | K103: 8398.356164 | L103: 17002 | N103: ２５～２９歳 | O103: 27.5 | P103: 3.1 | Q103: 167 | R103: 11 | S103: 247.3 | T103: 224.6 | U103: 261.5 | V103: 3229.1 | W103: 8846.849315 | X103: 8498 | Z103: ２５～２９歳 | AA103: 27.5 | AB103: 2.8 | AC103: 163 | AD103: 10 | AE103: 225.8 | AF103: 208.9 | AG103: 193.3 | AH103: 2902.9 | AI103: 7953.150685 | AJ103: 8504
A104: 95 | B104: ３０～３４歳 | C104: 32.4 | D104: 4.8 | E104: 164 | F104: 10 | G104: 253.1 | H104: 233.4 | I104: 284.9 | J104: 3322.1 | K104: 9101.643836 | L104: 16244 | N104: ３０～３４歳 | O104: 32.4 | P104: 5.1 | Q104: 167 | R104: 11 | S104: 277.5 | T104: 253.3 | U104: 352.2 | V104: 3682.2 | W104: 10088.21918 | X104: 8980 | Z104: ３０～３４歳 | AA104: 32.5 | AB104: 4.3 | AC104: 161 | AD104: 8 | AE104: 222.9 | AF104: 208.9 | AG104: 201.6 | AH104: 2876.4 | AI104: 7880.547945 | AJ104: 7264
A105: 96 | B105: ３５～３９歳 | C105: 37.5 | D105: 6.8 | E105: 163 | F105: 11 | G105: 278.2 | H105: 256.6 | I105: 391.1 | J105: 3729.5 | K105: 10217.80822 | L105: 17261 | N105: ３５～３９歳 | O105: 37.5 | P105: 7.2 | Q105: 165 | R105: 13 | S105: 309.3 | T105: 281.1 | U105: 489.1 | V105: 4200.7 | W105: 11508.76712 | X105: 9940 | Z105: ３５～３９歳 | AA105: 37.5 | AB105: 6.3 | AC105: 159 | AD105: 7 | AE105: 236.1 | AF105: 223.4 | AG105: 257.9 | AH105: 3091.1 | AI105: 8468.767123 | AJ105: 7321
A106: 97 | B106: ４０～４４歳 | C106: 42.5 | D106: 8.8 | E106: 165 | F106: 10 | G106: 305.3 | H106: 283.3 | I106: 491.3 | J106: 4154.9 | K106: 11383.28767 | L106: 19109 | N106: ４０～４４歳 | O106: 42.5 | P106: 9.8 | Q106: 168 | R106: 12 | S106: 349.9 | T106: 321.9 | U106: 620 | V106: 4818.8 | W106: 13202.19178 | X106: 11155 | Z106: ４０～４４歳 | AA106: 42.6 | AB106: 7.3 | AC106: 160 | AD106: 7 | AE106: 242.7 | AF106: 229.2 | AG106: 310.8 | AH106: 3223.2 | AI106: 8830.684932 | AJ106: 7955
A107: 98 | B107: ４５～４９歳 | C107: 47.5 | D107: 9.9 | E107: 164 | F107: 10 | G107: 313.1 | H107: 292.7 | I107: 525.9 | J107: 4283.1 | K107: 11734.52055 | L107: 23259 | N107: ４５～４９歳 | O107: 47.5 | P107: 11.7 | Q107: 167 | R107: 12 | S107: 374.4 | T107: 347.8 | U107: 697.8 | V107: 5190.6 | W107: 14220.82192 | X107: 12209 | Z107: ４５～４９歳 | AA107: 47.5 | AB107: 7.8 | AC107: 160 | AD107: 7 | AE107: 245.4 | AF107: 231.9 | AG107: 335.8 | AH107: 3280.6 | AI107: 8987.945205 | AJ107: 11050
A108: 99 | B108: ５０～５４歳 | C108: 52.4 | D108: 11.3 | E108: 163 | F108: 9 | G108: 303.2 | H108: 283.9 | I108: 491.2 | J108: 4129.6 | K108: 11313.9726 | L108: 21255 | N108: ５０～５４歳 | O108: 52.4 | P108: 13.5 | Q108: 166 | R108: 11 | S108: 365.4 | T108: 339.6 | U108: 680.6 | V108: 5065.4 | W108: 13877.80822 | X108: 10527 | Z108: ５０～５４歳 | AA108: 52.4 | AB108: 9.2 | AC108: 161 | AD108: 7 | AE108: 242.1 | AF108: 229.3 | AG108: 305.3 | AH108: 3210.5 | AI108: 8795.890411 | AJ108: 10728
A109: 100 | B109: ５５～５９歳 | C109: 57.3 | D109: 12.8 | E109: 163 | F109: 8 | G109: 304.7 | H109: 286.3 | I109: 471 | J109: 4127.4 | K109: 11307.94521 | L109: 16998 | N109: ５５～５９歳 | O109: 57.4 | P109: 14.1 | Q109: 166 | R109: 10 | S109: 361 | T109: 337.1 | U109: 618.1 | V109: 4950.1 | W109: 13561.91781 | X109: 9145 | Z109: ５５～５９歳 | AA109: 57.3 | AB109: 11.4 | AC109: 160 | AD109: 6 | AE109: 239.1 | AF109: 227.1 | AG109: 299.6 | AH109: 3168.8 | AI109: 8681.643836 | AJ109: 7853
A110: 101 | B110: ６０～６４歳 | C110: 62.3 | D110: 12.1 | E110: 161 | F110: 7 | G110: 247.8 | H110: 234.2 | I110: 313.8 | J110: 3287.4 | K110: 9006.575342 | L110: 13243 | N110: ６０～６４歳 | O110: 62.4 | P110: 11.5 | Q110: 164 | R110: 8 | S110: 276.3 | T110: 260 | U110: 407.3 | V110: 3722.9 | W110: 10199.72603 | X110: 7890 | Z110: ６０～６４歳 | AA110: 62.2 | AB110: 13 | AC110: 158 | AD110: 6 | AE110: 205.7 | AF110: 196 | AG110: 175.9 | AH110: 2644.3 | AI110: 7244.657534 | AJ110: 5353
A111: 102 | B111: ６５～６９歳 | C111: 67.3 | D111: 11.9 | E111: 159 | F111: 5 | G111: 226.6 | H111: 216.5 | I111: 190.4 | J111: 2909.6 | K111: 7971.506849 | L111: 6954 | N111: ６５～６９歳 | O111: 67.4 | P111: 10.3 | Q111: 164 | R111: 6 | S111: 246.6 | T111: 235.2 | U111: 240.5 | V111: 3199.7 | W111: 8766.30137 | X111: 4254 | Z111: ６５～６９歳 | AA111: 67.1 | AB111: 14.6 | AC111: 152 | AD111: 4 | AE111: 195.2 | AF111: 187.1 | AG111: 111.5 | AH111: 2453.9 | AI111: 6723.013699 | AJ111: 2700
A112: 103 | B112: ７０歳～ | C112: 72.9 | D112: 13.9 | E112: 159 | F112: 4 | G112: 223 | H112: 216.2 | I112: 134 | J112: 2810 | K112: 7698.630137 | L112: 3655 | N112: ７０歳～ | O112: 73 | P112: 13 | Q112: 163 | R112: 4 | S112: 231.3 | T112: 223.5 | U112: 120 | V112: 2895.6 | W112: 7933.150685 | X112: 2523 | Z112: ７０歳～ | AA112: 72.7 | AB112: 15.8 | AC112: 150 | AD112: 3 | AE112: 204.3 | AF112: 199.9 | AG112: 165.3 | AH112: 2616.9 | AI112: 7169.589041 | AJ112: 1132

Sheet 賃セＲ１ (hidden)
A1: 令和元年賃金構造基本統計調査
A2: 第１表 年齢階級別きまって支給する現金給与額、所定内給与額及び年間賞与その他特別給与額
A3: 産業 | C3: 産業計
A5: 区 分 | C5: 企業規模計（10人以上） | M5: 区 分 | O5: 企業規模計（10人以上） | Y5: 区 分 | AA5: 企業規模計（10人以上）
C6: 年齢 | D6: 勤続 年数 | E6: 所定内 実労働 時間数 | F6: 超過 実労働 時間数 | G6: きまって 支給す る現金 給与額 | I6: 年間賞与その他特別給与額 | J6: 年額計 | K6: 日額 | L6: 労働者数 | O6: 年齢 | P6: 勤続 年数 | Q6: 所定内 実労働 時間数 | R6: 超過 実労働 時間数 | S6: きまって 支給す る現金 給与額 | U6: 年間賞与その他特別給与額 | V6: 年額計 | W6: 日額 | X6: 労働者数 | AA6: 年齢 | AB6: 勤続 年数 | AC6: 所定内 実労働 時間数 | AD6: 超過 実労働 時間数 | AE6: きまって 支給す る現金 給与額 | AG6: 年間賞与その他特別給与額 | AH6: 年額計 | AI6: 日額 | AJ6: 労働者数
H7: 所定内 給与額 | K7: ÷365 | T7: 所定内 給与額 | W7: ÷365 | AF7: 所定内 給与額 | AI7: ÷365
C8: 歳 | D8: 年 | E8: 時間 | F8: 時間 | G8: 千円 | H8: 千円 | I8: 千円 | L8: 十人
A9: 0 | B9: 男 女 計 学 歴 計 | C9: 43.1 | D9: 12.4 | E9: 160 | F9: 13 | G9: 338 | H9: 307.7 | I9: 950.9 | J9: =G9*12+I9 -> 5006.9 | K9: =J9/365*1000 -> 13717.53425 | L9: 2218142 | N9: 男 学 歴 計 | O9: 43.8 | P9: 13.8 | Q9: 162 | R9: 16 | S9: 374.9 | T9: 338 | U9: 1110.9 | V9: =S9*12+U9 -> 5609.7 | W9: =V9/365*1000 -> 15369.0411 | X9: 1445008 | Z9: 女 学 歴 計 | AA9: 41.8 | AB9: 9.8 | AC9: 158 | AD9: 8 | AE9: 269 | AF9: 251 | AG9: 652 | AH9: =AE9*12+AG9 -> 3880 | AI9: =AH9/365*1000 -> 10630.13699 | AJ9: 773134
A10: 1 | B10: ～１９歳 | C10: 19.1 | D10: 0.9 | E10: 164 | F10: 12 | G10: 198.7 | H10: 179 | I10: 139 | J10: 2523.4 | K10: 6913.424658 | L10: 20819 | N10: ～１９歳 | O10: 19.1 | P10: 0.9 | Q10: 163 | R10: 13 | S10: 206.2 | T10: 182.8 | U10: 151.2 | V10: 2625.6 | W10: 7193.424658 | X10: 13317 | Z10: ～１９歳 | AA10: 19.1 | AB10: 0.9 | AC10: 164 | AD10: 9 | AE10: 185.6 | AF10: 172.4 | AG10: 117.2 | AH10: 2344.4 | AI10: 6423.013699 | AJ10: 7502
A11: 2 | B11: ２０～２４歳 | C11: 23 | D11: 2.1 | E11: 161 | F11: 14 | G11: 236 | H11: 210.9 | I11: 396.3 | J11: 3228.3 | K11: 8844.657534 | L11: 166317 | N11: ２０～２４歳 | O11: 23 | P11: 2.3 | Q11: 162 | R11: 18 | S11: 245.5 | T11: 213.4 | U11: 430.8 | V11: 3376.8 | W11: 9251.506849 | X11: 87254 | Z11: ２０～２４歳 | AA11: 23 | AB11: 2 | AC11: 160 | AD11: 10 | AE11: 225.5 | AF11: 208.1 | AG11: 358.3 | AH11: 3064.3 | AI11: 8395.342466 | AJ11: 79063
A12: 3 | B12: ２５～２９歳 | C12: 27.5 | D12: 4.3 | E12: 159 | F12: 16 | G12: 277.9 | H12: 243.9 | I12: 696.4 | J12: 4031.2 | K12: 11044.38356 | L12: 237150 | N12: ２５～２９歳 | O12: 27.5 | P12: 4.5 | Q12: 160 | R12: 20 | S12: 293.9 | T12: 251.6 | U12: 754.9 | V12: 4281.7 | W12: 11730.68493 | X12: 139360 | Z12: ２５～２９歳 | AA12: 27.4 | AB12: 4.1 | AC12: 158 | AD12: 11 | AE12: 255.2 | AF12: 232.9 | AG12: 613 | AH12: 3675.4 | AI12: 10069.58904 | AJ12: 97791
A13: 4 | B13: ３０～３４歳 | C13: 32.5 | D13: 7.1 | E13: 160 | F13: 16 | G13: 313 | H13: 275.9 | I13: 847.6 | J13: 4603.6 | K13: 12612.60274 | L13: 237305 | N13: ３０～３４歳 | O13: 32.5 | P13: 7.4 | Q13: 161 | R13: 20 | S13: 336.6 | T13: 290.8 | U13: 946.6 | V13: 4985.8 | W13: 13659.72603 | X13: 155977 | Z13: ３０～３４歳 | AA13: 32.5 | AB13: 6.5 | AC13: 157 | AD13: 9 | AE13: 267.8 | AF13: 247.4 | AG13: 657.9 | AH13: 3871.5 | AI13: 10606.84932 | AJ13: 81328
A14: 5 | B14: ３５～３９歳 | C14: 37.5 | D14: 9.8 | E14: 160 | F14: 15 | G14: 341.9 | H14: 305.3 | I14: 962.7 | J14: 5065.5 | K14: 13878.08219 | L14: 248956 | N14: ３５～３９歳 | O14: 37.5 | P14: 10.3 | Q14: 162 | R14: 19 | S14: 373.6 | T14: 328.4 | U14: 1090 | V14: 5573.2 | W14: 15269.0411 | X14: 169291 | Z14: ３５～３９歳 | AA14: 37.5 | AB14: 8.7 | AC14: 156 | AD14: 8 | AE14: 274.6 | AF14: 256.2 | AG14: 692.2 | AH14: 3987.4 | AI14: 10924.38356 | AJ14: 79665
A15: 6 | B15: ４０～４４歳 | C15: 42.6 | D15: 12.7 | E15: 160 | F15: 14 | G15: 363.9 | H15: 329.6 | I15: 1073.2 | J15: 5440 | K15: 14904.10959 | L15: 290750 | N15: ４０～４４歳 | O15: 42.6 | P15: 13.7 | Q15: 162 | R15: 17 | S15: 402.5 | T15: 360.1 | U15: 1233 | V15: 6063 | W15: 16610.9589 | X15: 193883 | Z15: ４０～４４歳 | AA15: 42.6 | AB15: 10.7 | AC15: 157 | AD15: 8 | AE15: 286.8 | AF15: 268.6 | AG15: 753.2 | AH15: 4194.8 | AI15: 11492.60274 | AJ15: 96866
A16: 7 | B16: ４５～４９歳 | C16: 47.4 | D16: 15.7 | E16: 161 | F16: 13 | G16: 382.4 | H16: 350.3 | I16: 1189.4 | J16: 5778.2 | K16: 15830.68493 | L16: 318369 | N16: ４５～４９歳 | O16: 47.4 | P16: 17.4 | Q16: 162 | R16: 15 | S16: 429.3 | T16: 390.4 | U16: 1395.8 | V16: 6547.4 | W16: 17938.08219 | X16: 210716 | Z16: ４５～４９歳 | AA16: 47.5 | AB16: 12.4 | AC16: 157 | AD16: 8 | AE16: 290.5 | AF16: 271.6 | AG16: 785.5 | AH16: 4271.5 | AI16: 11702.73973 | AJ16: 107654
A17: 8 | B17: ５０～５４歳 | C17: 52.4 | D17: 18.5 | E17: 160 | F17: 11 | G17: 402.4 | H17: 373.5 | I17: 1313.9 | J17: 6142.7 | K17: 16829.31507 | L17: 265481 | N17: ５０～５４歳 | O17: 52.4 | P17: 20.9 | Q17: 162 | R17: 13 | S17: 458.5 | T17: 423.7 | U17: 1586.1 | V17: 7088.1 | W17: 19419.45205 | X17: 175349 | Z17: ５０～５４歳 | AA17: 52.4 | AB17: 13.9 | AC17: 158 | AD17: 8 | AE17: 293.3 | AF17: 275.8 | AG17: 784.2 | AH17: 4303.8 | AI17: 11791.23288 | AJ17: 90132
A18: 9 | B18: ５５～５９歳 | C18: 57.4 | D18: 20.7 | E18: 160 | F18: 10 | G18: 392.2 | H18: 367.2 | I18: 1259.5 | J18: 5965.9 | K18: 16344.93151 | L18: 215994 | N18: ５５～５９歳 | O18: 57.4 | P18: 23.2 | Q18: 161 | R18: 12 | S18: 446.1 | T18: 416.6 | U18: 1518.6 | V18: 6871.8 | W18: 18826.84932 | X18: 144748 | Z18: ５５～５９歳 | AA18: 57.4 | AB18: 15.8 | AC18: 158 | AD18: 7 | AE18: 282.6 | AF18: 266.8 | AG18: 732.9 | AH18: 4124.1 | AI18: 11298.90411 | AJ18: 71246
A19: 10 | B19: ６０～６４歳 | C19: 62.3 | D19: 18.8 | E19: 160 | F19: 8 | G19: 299.6 | H19: 283 | I19: 684.1 | J19: 4279.3 | K19: 11724.10959 | L19: 140568 | N19: ６０～６４歳 | O19: 62.4 | P19: 19.9 | Q19: 160 | R19: 10 | S19: 324.6 | T19: 305.5 | U19: 773.3 | V19: 4668.5 | W19: 12790.41096 | X19: 99005 | Z19: ６０～６４歳 | AA19: 62.2 | AB19: 16 | AC19: 158 | AD19: 6 | AE19: 240.2 | AF19: 229.5 | AG19: 471.4 | AH19: 3353.8 | AI19: 9188.493151 | AJ19: 41563
A20: 11 | B20: ６５～６９歳 | C20: 67.2 | D20: 15.9 | E20: 161 | F20: 8 | G20: 263.1 | H20: 249 | I20: 393.5 | J20: 3550.7 | K20: 9727.945205 | L20: 54687 | N20: ６５～６９歳 | O20: 67.2 | P20: 15.9 | Q20: 162 | R20: 9 | S20: 277.5 | T20: 261.9 | U20: 420 | V20: 3750 | W20: 10273.9726 | X20: 40192 | Z20: ６５～６９歳 | AA20: 67.1 | AB20: 16 | AC20: 159 | AD20: 6 | AE20: 223.2 | AF20: 213.3 | AG20: 320.1 | AH20: 2998.5 | AI20: 8215.068493 | AJ20: 14495
A21: 12 | B21: ７０歳～ | C21: 73 | D21: 17.5 | E21: 161 | F21: 6 | G21: 247.8 | H21: 237.6 | I21: 244.5 | J21: 3218.1 | K21: 8816.712329 | L21: 21746 | N21: ７０歳～ | O21: 72.9 | P21: 16.7 | Q21: 163 | R21: 7 | S21: 257.4 | T21: 246 | U21: 229.6 | V21: 3318.4 | W21: 9091.506849 | X21: 15917 | Z21: ７０歳～ | AA21: 73.2 | AB21: 19.7 | AC21: 157 | AD21: 5 | AE21: 221.7 | AF21: 214.6 | AG21: 285.2 | AH21: 2945.6 | AI21: 8070.136986 | AJ21: 5829
A22: 13 | B22: 中 学 卒 | C22: 49.7 | D22: 13.6 | E22: 166 | F22: 17 | G22: 281.4 | H22: 249.1 | I22: 431.7 | J22: 3808.5 | K22: 10434.24658 | L22: 60400 | N22: 中 学 卒 | O22: 50.1 | P22: 14.6 | Q22: 167 | R22: 19 | S22: 303.1 | T22: 265.8 | U22: 477.4 | V22: 4114.6 | W22: 11272.87671 | X22: 46569 | Z22: 中 学 卒 | AA22: 48.5 | AB22: 10.2 | AC22: 160 | AD22: 10 | AE22: 208.4 | AF22: 193 | AG22: 278 | AH22: 2778.8 | AI22: 7613.150685 | AJ22: 13831
A23: 14 | B23: ～１９歳 | C23: 18.6 | D23: 1.4 | E23: 163 | F23: 14 | G23: 197.4 | H23: 176.8 | I23: 58.6 | J23: 2427.4 | K23: 6650.410959 | L23: 712 | N23: ～１９歳 | O23: 18.6 | P23: 1.6 | Q23: 164 | R23: 14 | S23: 207.5 | T23: 185.4 | U23: 73.6 | V23: 2563.6 | W23: 7023.561644 | X23: 516 | Z23: ～１９歳 | AA23: 18.8 | AB23: 0.9 | AC23: 161 | AD23: 13 | AE23: 170.9 | AF23: 154.2 | AG23: 19 | AH23: 2069.8 | AI23: 5670.684932 | AJ23: 196
A24: 15 | B24: ２０～２４歳 | C24: 22.6 | D24: 2.4 | E24: 166 | F24: 18 | G24: 222.8 | H24: 194.8 | I24: 137.1 | J24: 2810.7 | K24: 7700.547945 | L24: 2555 | N24: ２０～２４歳 | O24: 22.5 | P24: 2.6 | Q24: 167 | R24: 20 | S24: 235.6 | T24: 203.3 | U24: 158.8 | V24: 2986 | W24: 8180.821918 | X24: 1804 | Z24: ２０～２４歳 | AA24: 22.6 | AB24: 2.1 | AC24: 161 | AD24: 13 | AE24: 192.2 | AF24: 174.3 | AG24: 85 | AH24: 2391.4 | AI24: 6551.780822 | AJ24: 751
A25: 16 | B25: ２５～２９歳 | C25: 27.5 | D25: 4.4 | E25: 164 | F25: 18 | G25: 247.2 | H25: 214.7 | I25: 305.2 | J25: 3271.6 | K25: 8963.287671 | L25: 3218 | N25: ２５～２９歳 | O25: 27.6 | P25: 4.8 | Q25: 166 | R25: 21 | S25: 265.4 | T25: 228.1 | U25: 364.2 | V25: 3549 | W25: 9723.287671 | X25: 2174 | Z25: ２５～２９歳 | AA25: 27.3 | AB25: 3.6 | AC25: 159 | AD25: 14 | AE25: 209.3 | AF25: 186.7 | AG25: 182.4 | AH25: 2694 | AI25: 7380.821918 | AJ25: 1044
A26: 17 | B26: ３０～３４歳 | C26: 32.7 | D26: 5.8 | E26: 166 | F26: 20 | G26: 273.6 | H26: 236.8 | I26: 392.9 | J26: 3676.1 | K26: 10071.50685 | L26: 4460 | N26: ３０～３４歳 | O26: 32.8 | P26: 6.3 | Q26: 168 | R26: 23 | S26: 296.9 | T26: 254.2 | U26: 454.1 | V26: 4016.9 | W26: 11005.20548 | X26: 3359 | Z26: ３０～３４歳 | AA26: 32.3 | AB26: 4.4 | AC26: 158 | AD26: 12 | AE26: 202.3 | AF26: 183.9 | AG26: 206.3 | AH26: 2633.9 | AI26: 7216.164384 | AJ26: 1100
A27: 18 | B27: ３５～３９歳 | C27: 37.6 | D27: 7.7 | E27: 167 | F27: 21 | G27: 302 | H27: 262.7 | I27: 481.5 | J27: 4105.5 | K27: 11247.94521 | L27: 5437 | N27: ３５～３９歳 | O27: 37.6 | P27: 8.4 | Q27: 169 | R27: 23 | S27: 325.5 | T27: 280.9 | U27: 543.9 | V27: 4449.9 | W27: 12191.50685 | X27: 4240 | Z27: ３５～３９歳 | AA27: 37.5 | AB27: 5.2 | AC27: 160 | AD27: 13 | AE27: 218.7 | AF27: 198.3 | AG27: 260.7 | AH27: 2885.1 | AI27: 7904.383562 | AJ27: 1197
A28: 19 | B28: ４０～４４歳 | C28: 42.6 | D28: 11 | E28: 168 | F28: 19 | G28: 310.8 | H28: 272 | I28: 552.3 | J28: 4281.9 | K28: 11731.23288 | L28: 6187 | N28: ４０～４４歳 | O28: 42.6 | P28: 11.9 | Q28: 170 | R28: 21 | S28: 336.3 | T28: 291.5 | U28: 617 | V28: 4652.6 | W28: 12746.84932 | X28: 4815 | Z28: ４０～４４歳 | AA28: 42.6 | AB28: 7.9 | AC28: 161 | AD28: 11 | AE28: 221.3 | AF28: 203.6 | AG28: 325.3 | AH28: 2980.9 | AI28: 8166.849315 | AJ28: 1372
A29: 20 | B29: ４５～４９歳 | C29: 47.4 | D29: 13.2 | E29: 168 | F29: 19 | G29: 322.6 | H29: 282.2 | I29: 570.5 | J29: 4441.7 | K29: 12169.0411 | L29: 7575 | N29: ４５～４９歳 | O29: 47.5 | P29: 14.4 | Q29: 170 | R29: 22 | S29: 349 | T29: 303 | U29: 624.9 | V29: 4812.9 | W29: 13186.0274 | X29: 5946 | Z29: ４５～４９歳 | AA29: 47.4 | AB29: 8.8 | AC29: 162 | AD29: 11 | AE29: 226.3 | AF29: 206.6 | AG29: 371.7 | AH29: 3087.3 | AI29: 8458.356164 | AJ29: 1629
A30: 21 | B30: ５０～５４歳 | C30: 52.4 | D30: 14.9 | E30: 166 | F30: 20 | G30: 322.1 | H30: 279.5 | I30: 583.9 | J30: 4449.1 | K30: 12189.31507 | L30: 6422 | N30: ５０～５４歳 | O30: 52.5 | P30: 16.1 | Q30: 167 | R30: 24 | S30: 350.9 | T30: 299.8 | U30: 648 | V30: 4858.8 | W30: 13311.78082 | X30: 4941 | Z30: ５０～５４歳 | AA30: 52.1 | AB30: 10.9 | AC30: 160 | AD30: 9 | AE30: 225.9 | AF30: 211.7 | AG30: 370.1 | AH30: 3080.9 | AI30: 8440.821918 | AJ30: 1481
A31: 22 | B31: ５５～５９歳 | C31: 57.5 | D31: 19 | E31: 164 | F31: 18 | G31: 325.2 | H31: 286.8 | I31: 640.9 | J31: 4543.3 | K31: 12447.39726 | L31: 5875 | N31: ５５～５９歳 | O31: 57.5 | P31: 20.5 | Q31: 166 | R31: 20 | S31: 351.1 | T31: 306.6 | U31: 693.7 | V31: 4906.9 | W31: 13443.56164 | X31: 4733 | Z31: ５５～５９歳 | AA31: 57.5 | AB31: 12.9 | AC31: 158 | AD31: 7 | AE31: 218 | AF31: 204.9 | AG31: 422.2 | AH31: 3038.2 | AI31: 8323.835616 | AJ31: 1143
